{"text_format":"1","workbook":"xlsx","n_sheets":1,"sheets":["2020-2021"],"not_rendered":{"charts":0,"images":0,"macros":1,"external_links":0,"defined_names":1,"comments":0,"pivot_tables":0},"unopened":[],"bounds":{"document_bytes":16777216,"sheet_cells":100000,"rows_first":2000,"rows_last":500,"rows_between":2000,"halvings":0,"cell_chars":16384,"cell_head_chars":4096},"cells_cut":0,"cells_raw":0,"read":"whole","date_system":"1900"}

{"sheet":"2020-2021","index":0,"n_rows":311,"n_cols":72,"rows_kept":311,"cut":false,"hidden":false,"merged":[[8,43,8,52],[8,57,8,65],[10,63,13,63],[10,64,13,64],[10,65,13,65],[10,51,13,51],[9,43,9,45],[9,46,9,48],[10,47,13,47],[10,48,13,48],[9,63,9,65],[9,60,9,62],[10,57,13,57],[10,58,13,58],[10,59,13,59],[10,60,13,60],[10,61,13,61],[10,62,13,62],[10,29,13,29],[10,27,13,27],[12,23,13,23],[10,40,13,40],[10,41,13,41],[10,30,11,31],[10,32,11,33],[12,30,13,30],[12,31,13,31],[12,32,13,32],[12,33,13,33],[10,25,11,26],[10,23,11,24],[10,28,13,28],[9,57,9,59],[10,52,13,52],[10,43,13,43],[10,44,13,44],[10,45,13,45],[10,46,13,46],[10,49,13,49],[10,50,13,50],[9,49,9,52],[10,0,13,0],[11,15,11,18],[12,17,12,18],[11,7,12,8],[10,3,13,3],[10,4,10,10],[11,6,13,6],[11,5,13,5],[11,4,13,4],[11,9,12,10],[11,11,11,14],[8,0,8,29],[10,39,13,39],[10,11,10,18],[12,15,12,16],[10,19,13,19],[10,20,12,21],[10,38,13,38],[12,13,12,14],[12,11,12,12],[12,37,13,37],[10,34,11,35],[10,36,11,37],[12,34,13,34],[10,1,11,2],[12,2,13,2],[12,1,13,1],[12,35,13,35],[12,36,13,36],[10,22,13,22],[12,26,13,26],[12,25,13,25],[12,24,13,24]]}
[null,null,null,null,null,null,null,null,null,null,null,null,null,null,null,null,null,null,null,null,null,null,null,null,null,null,null,null,null,null,null,null,null,null,null,null,null,null,null,null,null,null,null,null,null,null,null,null,null,null,null,null,null,null,null,null,null,null,null,null,null,null,null,null,null,null,null,null,null,null,"Data","Sarbatoare legala"]
[null,null,null,null,null,null,null,null,null,null,null,null,null,null,null,null,null,null,null,null,null,null,null,null,null,null,null,null,null,null,null,null,null,null,null,null,null,null,null,null,null,null,null,null,null,null,null,null,null,null,null,null,null,null,null,null,null,null,null,null,null,null,null,null,null,null,null,null,null,null,"2020-11-30","Sf Andrei"]
[null,null,null,null,null,null,null,null,null,null,null,null,null,null,null,null,null,null,null,null,null,null,null,null,null,null,null,null,null,null,null,null,null,null,null,null,null,null,null,null,null,null,null,null,null,null,null,null,null,null,null,null,null,null,null,null,null,null,null,null,null,null,null,null,null,null,null,null,null,null,"2020-12-01","Ziua Nationala"]
[null,null,null,null,null,null,null,null,null,null,null,null,null,null,null,null,null,null,null,null,null,null,null,null,null,null,null,null,null,null,null,null,null,null,null,null,null,null,null,null,null,null,null,null,null,null,null,null,null,null,null,null,null,null,null,null,null,null,null,null,null,null,null,null,null,null,null,null,null,null,"2020-12-25","Craciun prima zi"]
[null,null,null,null,null,null,null,null,null,null,null,null,null,null,null,null,null,null,null,null,null,null,null,null,null,null,null,null,null,null,null,null,null,null,null,null,null,null,null,null,null,null,null,null,null,null,null,null,null,null,null,null,null,null,null,null,null,null,null,null,null,null,null,null,null,null,null,null,null,null,"2021-01-01","Anul nou prima zi"]
[null,null,null,null,null,null,null,null,null,null,null,null,null,null,null,null,null,null,null,null,null,null,null,null,null,null,null,null,null,null,null,null,null,null,null,null,null,null,null,null,null,null,null,null,null,null,null,null,null,null,null,null,null,null,null,null,null,null,null,null,null,null,null,null,null,null,null,null,null,null,"2021-04-30","Vinerea Mare"]
[null,null,null,null,null,null,null,null,null,null,null,null,null,null,null,null,null,null,null,null,null,null,null,null,null,null,null,null,null,null,null,null,null,null,null,null,null,null,null,null,null,null,null,null,null,null,null,null,null,null,null,null,null,null,null,null,null,null,null,null,null,null,null,null,null,null,null,null,null,null,"2021-05-03","Paste"]
[null,null,null,null,null,null,null,null,null,null,null,null,null,null,null,null,null,null,null,null,null,null,null,null,null,null,null,null,null,null,null,null,null,null,null,null,null,null,null,null,null,null,null,null,null,null,null,null,null,null,null,null,null,null,"parteneri adiacenti","UR",null,null,null,null,null,null,null,null,null,null,null,"parteneri adiacenti","UR",null,"2021-06-01","Ziua copilului"]
["EVIDENȚA LIMITĂRILOR ȘI/SAU ÎNTRERUPERILOR PLANIFICATE ȘI NEPLANIFICATE pentru anul gazier 2020 - 2021 / RECORD OF THE PLANNED AND UNPLANNED LIMITATIONS AND/OR INTERRUPTIONS related to the gas year 2020 - 2021",null,null,null,null,null,null,null,null,null,null,null,null,null,null,null,null,null,null,null,null,null,null,null,null,null,null,null,null,null,null,null,null,null,null,null,null,null,null,null,null,null,null,"Lucrari neprogramate",null,null,null,null,null,null,null,null,null,"NU6 ",{"$f":"SUBTOTAL(9,AS:AS)","v":120},{"$f":"SUBTOTAL(9,AV:AV)","v":3696},null,"Lucrari programate",null,null,null,null,null,null,null,null,"NU5",{"$f":"SUBTOTAL(9,BG:BG)","v":30},{"$f":"SUBTOTAL(9,BJ:BJ)","v":959},null,"2021-06-21","Rusalii"]
[null,null,null,null,null,null,null,null,null,null,null,null,null,null,null,null,null,null,null,null,null,null,null,null,null,null,null,null,null,null,null,null,null,null,null,null,null,null,null,null,null,null,null,"Partener adiacent",null,null,"UR",null,null,null,null,null,null,"NUafectati ",{"$f":"SUBTOTAL(9,AT:AT)","v":120},{"$f":"SUBTOTAL(9,AW:AW)","v":3697},null,"Partener adiacent",null,null,"UR",null,null,null,null,null,"NUafectati ",{"$f":"SUBTOTAL(9,BH:BH)","v":30},{"$f":"SUBTOTAL(9,BK:BK)","v":959}]
["Nr. crt. / Item No.","Tipul limitării/întreruperii / \nType of limitation/interruption",null,"Denumire lucrare/motiv limitare și/sau întrerupere / \nName of the works/reason for the limitation and/or interruption ","Locația limitării/întreruperii / Location of the limitation/interruption ",null,null,null,null,null,null,"Punct de ieșire/intrare afectat / Affected exit/entry point",null,null,null,null,null,null,null,"Cod punct relevant / Code of the relevant point","Utilizator ST afectat / Affected TS user ",null,"Perioada planificată de execuție a lucrării / Planned period for the execution of the works","Data și ora limitării/întreruperii / Date and hour of the limitation/interruption ",null,"Data și ora reluării prestării serviciului / Date and hour the service supply is resumed",null,"Exploatarea Teritorială / Regional Office","Observații / Comments","Justificarea modificării perioadei planificate de execuție a lucrări","Data și ora efectivă de limitare/întrerupere ",null,"Data și ora efectivă de reluare a prestării serviciului",null,"Data și ora informării UR",null,"Data și ora informării partenerului adiacent",null,"Foaia de manevră","A fost afectat producătorul (în cazul PM) sau consumatorul final (în cazul SM)? \n(DA/NU)","Observatii","Program bugetat",null,"Numar de ore de la producerea intreruperii / limitarii pana la anuntarea partenerului adiacent\n (trebuie sa fie mai mic decat 6)","NU6","NUafectati","Numar de ore de la producerea intreruperii / limitarii pana la anuntarea UR\n (trebuie sa fie mai mic decat 6)","NU6","NUafectati","Durata intreruperii / limitarii [ore]\n(daca este mai mare de 24, trebuie sa fie completata celula aferenta de pe coloana AZ)","NU24","Nuafectati","Partener adiacent informat din 12 in 12 ore, daca durata mai mare de 24h\n(DA/NU)","NU6 ",{"$f":"BC9+BD9","v":3816},"IP51",null,"Numar de zile lucratoare de anuntare partener adiacent pana la limitare / intrerupere (trebuie sa fie mai mare de 5)","NU5","NUafectati","Numar de zile de anuntare UR pana la limitare / intrerupere \n(trebuie sa fie mai mare de 5)","NU5","NUafectati","Numar ore intre data anuntata si cea efectiva de reluare\n(trebuie sa fie mai mic sau egal cu 0)","NUreluate","NUafectati","NU5",{"$f":"BP9+BQ9","v":989},"IP61"]
[null,null,null,null,"Siruta / Siruta code","Localitate / Locality","Județ / County","Coordonate GPS început / GPS coordinates-beginning",null,"Coordonate GPS sfârșit / GPS coordinates-end",null,"Puncte de ieșire din SNT / NTS exit points",null,null,null,"Puncte de intrare în SNT / NTS entry points ",null,null,null,null,null,null,null,null,null,null,null,null,null,null,null,null,null,null,null,null,null,null,null,null,null,null,null,null,null,null,null,null,null,null,null,null,null,"NUafectati ",{"$f":"BC10+BD10","v":3817},{"$f":"IF(BC12=0,1,BC11/BC12)","v":0.99973801414723606},null,null,null,null,null,null,null,null,null,null,"NUafectati ",{"$f":"BP10+BQ10","v":989},{"$f":"IF(BP12=0,1,BP11/BP12)","v":1}]
[null,"Neplanificată / Unplanned","Planificată / Planned",null,null,null,null,null,null,null,null,"Limitare / Limitation",null,"Întrerupere / Interruption",null,"Limitare / Limitation",null,"Întrerupere / Interruption",null,null,null,null,null,"Data / Date","Ora / Hour","Data / Date","Ora / Hour",null,null,null,"Data","Ora","Data","Ora","Data","Ora","Data","Ora",null,null,null,null,null,null,null,null,null,null,null,null,null,null,null,"NU24",{"$f":"SUBTOTAL(9,AY:AY)","v":5},"IP52",null,null,null,null,null,null,null,null,null,null,"NUreluare",{"$f":"SUBTOTAL(9,BM:BM)","v":989},"IP62"]
[null,null,null,null,null,null,null,"X1","Y1","X2","Y2","Cod / Code","Denumire / Name","Cod / Code","Denumire / Name","Cod / Code","Denumire / Name","Cod / Code","Denumire / Name",null,"Utilizator de rețea / Network User","Partener adiacent / Adjacent Partner",null,null,null,null,null,null,null,null,null,null,null,null,null,null,null,null,null,null,null,null,null,null,null,null,null,null,null,null,null,null,null,"NUafectati",{"$f":"SUBTOTAL(9,AZ:AZ)","v":5},{"$f":"IF(BC14=0,1,BC13/BC14)","v":1},null,null,null,null,null,null,null,null,null,null,"NUafectati",{"$f":"SUBTOTAL(9,BN:BN)","v":989},{"$f":"IF(BP14=0,1,BP13/BP14)","v":1}]
[0,1,2,3,4,5,6,7,8,9,10,11,12,13,14,15,16,17,18,19,20,21,22,23,24,25,26,27,28,29,30,31,32,33,34,35,36,37,38,39,40,41]
[{"$f":"SUM(1,A15)","v":1},"-","x","Punere în siguranță a conductei de transport gaze naturale 8” Cornățel - Avrig, zona Cornățel - Săcădate",145435,"Cornățel","Sibiu",449818.78,477723.02,449818.78,477723.02,"-","-","SM0795D0","Cornățel","-","-","-","-","SM-SD001","Aderro GP, Nova Power, Cez Vânzare, Cis Gaz, Conef Gaz, CPL Concordia, Crest Energy, MVM Energy Trade, Design Proiect, Distrigaz Vest, Engie, E.on Energie, Electrica Furnizare, Electric Planners, Electric&Gas, Energy Distribution, Enel Energie, Enel Muntenia, Gas&Power, Entrex, Premier Energy Trading, Gaz Est, Hargaz, Gazmir, Gaz Vest, Mihoc Oil, Met România, Monsson, Next Energy Distribution, Next Energy Partners, Pado Group, Premier Energy, Petrom, Prisma Serv, Gas Provider, Renovatio, Res Energy, Restart Energy, RWE Supply, SST Grup, Tetarom, Tinmar, Veolia, Wiee, With us","Delgaz Grid","octombrie - decembrie 2020\n15 martie - 15 iunie 2021","2021-05-19","09:00:00","2021-05-19","16:00:00","Mediaș","Efectuată","Constructorul a fost angrenat în alte lucrări de investiții","2021-05-19","09:00:00","2021-05-19","16:00:00","2021-05-06","12:09:00","2021-05-06","11:48:00","1373/17.05.2021","DA",null,"PMDI_2021_cap.A_2.1.A.7",null,{"$f":"IF(B16=\"X\",IF(AN16=\"\",\"Afectat sau NU?\",IF(AN16=\"DA\",IF(((AK16+AL16)-(AE16+AF16))*24<-720,\"Neinformat\",((AK16+AL16)-(AE16+AF16))*24),\"Nu a fost afectat producator/consumator\")),\"\")","v":""},{"$f":"IF(B16=\"X\",IF(AN16=\"DA\",IF(AR16<6,LEN(TRIM(V16))-LEN(SUBSTITUTE(V16,CHAR(44),\"\"))+1,0),\"-\"),\"\")","v":""},{"$f":"IF(B16=\"X\",IF(AN16=\"DA\",LEN(TRIM(V16))-LEN(SUBSTITUTE(V16,CHAR(44),\"\"))+1,\"-\"),\"\")","v":""},{"$f":"IF(B16=\"X\",IF(AN16=\"\",\"Afectat sau NU?\",IF(AN16=\"DA\",IF(((AI16+AJ16)-(AE16+AF16))*24<-720,\"Neinformat\",((AI16+AJ16)-(AE16+AF16))*24),\"Nu a fost afectat producator/consumator\")),\"\")","v":""},{"$f":"IF(B16=\"X\",IF(AN16=\"DA\",IF(AU16<6,LEN(TRIM(U16))-LEN(SUBSTITUTE(U16,CHAR(44),\"\"))+1,0),\"-\"),\"\")","v":""},{"$f":"IF(B16=\"X\",IF(AN16=\"DA\",LEN(TRIM(U16))-LEN(SUBSTITUTE(U16,CHAR(44),\"\"))+1,\"-\"),\"\")","v":""},{"$f":"IF(B16=\"X\",IF(AN16=\"\",\"Afectat sau NU?\",IF(AN16=\"DA\",((AG16+AH16)-(AE16+AF16))*24,\"Nu a fost afectat producator/consumator\")),\"\")","v":""},{"$f":"IF(B16=\"X\",IF(AN16=\"DA\",IF(AX16>24,IF(BA16=\"NU\",0,LEN(TRIM(V16))-LEN(SUBSTITUTE(V16,CHAR(44),\"\"))+1),0),\"-\"),\"\")","v":""},{"$f":"IF(B16=\"X\",IF(AN16=\"DA\",IF(AX16>24,LEN(TRIM(V16))-LEN(SUBSTITUTE(V16,CHAR(44),\"\"))+1,0),\"-\"),\"\")","v":""},null,null,null,null,null,{"$f":"IF(C16=\"X\",IF(AN16=\"\",\"Afectat sau NU?\",IF(AN16=\"DA\",IF(AK16=\"\",\"Neinformat\",NETWORKDAYS(AK16+AL16,AE16+AF16,$BS$2:$BS$14)-2),\"Nu a fost afectat producator/consumator\")),\"\")","v":8},{"$f":"IF(C16=\"X\",IF(AN16=\"DA\",IF(AND(BF16>=5,AK16<>\"\"),LEN(TRIM(V16))-LEN(SUBSTITUTE(V16,CHAR(44),\"\"))+1,0),\"-\"),\"\")","v":1},{"$f":"IF(C16=\"X\",IF(AN16=\"DA\",LEN(TRIM(V16))-LEN(SUBSTITUTE(V16,CHAR(44),\"\"))+1,\"-\"),\"\")","v":1},{"$f":"IF(C16=\"X\",IF(AN16=\"\",\"Afectat sau NU?\",IF(AN16=\"DA\",IF(AI16=\"\",\"Neinformat\",NETWORKDAYS(AI16+AJ16,AE16+AF16,$BS$2:$BS$14)-2),\"Nu a fost afectat producator/consumator\")),\"\")","v":8},{"$f":"IF(C16=\"X\",IF(AN16=\"DA\",IF(AND(BI16>=5,AI16<>\"\"),LEN(TRIM(U16))-LEN(SUBSTITUTE(U16,CHAR(44),\"\"))+1,0),\"-\"),\"\")","v":45},{"$f":"IF(C16=\"X\",IF(AN16=\"DA\",LEN(TRIM(U16))-LEN(SUBSTITUTE(U16,CHAR(44),\"\"))+1,\"-\"),\"\")","v":45},{"$f":"IF(C16=\"X\",IF(AN16=\"\",\"Afectat sau NU?\",IF(AN16=\"DA\",((AG16+AH16)-(Z16+AA16))*24,\"Nu a fost afectat producator/consumator\")),\"\")","v":0},{"$f":"IF(C16=\"X\",IF(AN16<>\"DA\",\"-\",IF(AND(AN16=\"DA\",BL16<=0),LEN(TRIM(V16))-LEN(SUBSTITUTE(V16,CHAR(44),\"\"))+1+LEN(TRIM(U16))-LEN(SUBSTITUTE(U16,CHAR(44),\"\"))+1,0)),\"\")","v":46},{"$f":"IF(C16=\"X\",IF(AN16=\"DA\",LEN(TRIM(V16))-LEN(SUBSTITUTE(V16,CHAR(44),\"\"))+1+LEN(TRIM(U16))-LEN(SUBSTITUTE(U16,CHAR(44),\"\"))+1,\"-\"),\"\")","v":46}]
[2,"-","x","Punere în siguranță a conductei de transport gaze naturale 8” Cornățel - Avrig, zona Cornățel - Săcădate",144072,"Bradu","Sibiu",448674.81,469982.34,448674.81,469982.34,"-","-","SM0801D0","Bradu","-","-","-","-","SM-SD001","Aderro GP, Nova Power, Cez Vânzare, Cis Gaz, Conef Gaz, CPL Concordia, Crest Energy, MVM Energy Trade, Design Proiect, Distrigaz Vest, Engie, E.on Energie, Electrica Furnizare, Electric Planners, Electric&Gas, Energy Distribution, Enel Energie, Enel Muntenia, Gas&Power, Entrex, Premier Energy Trading, Gaz Est, Hargaz, Gazmir, Gaz Vest, Mihoc Oil, Met România, Monsson, Next Energy Distribution, Next Energy Partners, Pado Group, Premier Energy, Petrom, Prisma Serv, Gas Provider, Renovatio, Res Energy, Restart Energy, RWE Supply, SST Grup, Tetarom, Tinmar, Veolia, Wiee, With us","Delgaz Grid","octombrie - decembrie 2020\n15 martie - 15 iunie 2021","2021-05-19","09:00:00","2021-05-19","16:00:00","Mediaș","Efectuată","Constructorul a fost angrenat în alte lucrări de investiții","2021-05-19","09:00:00","2021-05-19","16:00:00","2021-05-06","12:09:00","2021-05-06","11:48:00","1373/17.05.2021","DA",null,"PMDI_2021_cap.A_2.1.A.7",null,"","","","","","","","","",null,null,null,null,null,8,1,1,8,45,45,0,46,46]
[3,"-","x","Punere în siguranță a conductei de transport gaze naturale 8” Cornățel - Avrig, zona Cornățel - Săcădate",144107,"Săcădate","Sibiu",452372.31,473781.88,452372.31,473781.88,"-","-","SM0796D0","Săcădate","-","-","-","-","SM-SD001","Aderro GP, Nova Power, Cez Vânzare, Cis Gaz, Conef Gaz, CPL Concordia, Crest Energy, MVM Energy Trade, Design Proiect, Distrigaz Vest, Engie, E.on Energie, Electrica Furnizare, Electric Planners, Electric&Gas, Energy Distribution, Enel Energie, Enel Muntenia, Gas&Power, Entrex, Premier Energy Trading, Gaz Est, Hargaz, Gazmir, Gaz Vest, Mihoc Oil, Met România, Monsson, Next Energy Distribution, Next Energy Partners, Pado Group, Premier Energy, Petrom, Prisma Serv, Gas Provider, Renovatio, Res Energy, Restart Energy, RWE Supply, SST Grup, Tetarom, Tinmar, Veolia, Wiee, With us","Delgaz Grid","octombrie - decembrie 2020\n15 martie - 15 iunie 2021","2021-05-19","09:00:00","2021-05-19","16:00:00","Mediaș","Efectuată","Constructorul a fost angrenat în alte lucrări de investiții","2021-05-19","09:00:00","2021-05-19","16:00:00","2021-05-06","12:09:00","2021-05-06","11:48:00","1373/17.05.2021","DA",null,"PMDI_2021_cap.A_2.1.A.7",null,"","","","","","","","","",null,null,null,null,null,8,1,1,8,45,45,0,46,46]
[4,"-","x","Punere în siguranță a conductei de transport gaze naturale 8” Cornățel - Avrig, zona Cornățel - Săcădate",144063,"Avrig","Sibiu",453991.75,471082.89,453991.75,471082.89,"-","-","SM0804D0","SC Premium Porc Sibiu - Avrig","-","-","-","-","SM-CF001","Renovatio","SC Premium Porc Sibiu SRL","octombrie - decembrie 2020\n15 martie - 15 iunie 2021","2021-05-19","09:00:00","2021-05-19","16:00:00","Mediaș","Efectuată","Constructorul a fost angrenat în alte lucrări de investiții","2021-05-19","09:00:00","2021-05-19","16:00:00","2021-05-06","12:12:00","2021-05-06","11:54:00","1373/17.05.2021","DA",null,"PMDI_2021_cap.A_2.1.A.7",null,"","","","","","","","","",null,null,null,null,null,8,1,1,8,1,1,0,2,2]
[5,"-","x","Punere în siguranță a conductei de transport gaze naturale 8” Cornățel - Avrig, zona Cornățel - Săcădate",144063,"Avrig","Sibiu",453138.85,469627.97,453138.85,469627.97,"-","-","SM0802D1","Avrig","-","-","-","-","SM-SD001","Aderro GP, Nova Power, Cez Vânzare, Cis Gaz, Conef Gaz, CPL Concordia, Crest Energy, MVM Energy Trade, Design Proiect, Distrigaz Vest, Engie, E.on Energie, Electrica Furnizare, Electric Planners, Electric&Gas, Energy Distribution, Enel Energie, Enel Muntenia, Gas&Power, Entrex, Premier Energy Trading, Gaz Est, Hargaz, Gazmir, Gaz Vest, Mihoc Oil, Met România, Monsson, Next Energy Distribution, Next Energy Partners, Pado Group, Premier Energy, Petrom, Prisma Serv, Gas Provider, Renovatio, Res Energy, Restart Energy, RWE Supply, SST Grup, Tetarom, Tinmar, Veolia, Wiee, With us","Delgaz Grid","octombrie - decembrie 2020\n15 martie - 15 iunie 2021","2021-05-19","09:00:00","2021-05-19","16:00:00","Mediaș","Efectuată","Constructorul a fost angrenat în alte lucrări de investiții","2021-05-19","09:00:00","2021-05-19","16:00:00","2021-05-06","12:09:00","2021-05-06","11:48:00","1373/17.05.2021","DA",null,"PMDI_2021_cap.A_2.1.A.7",null,"","","","","","","","","",null,null,null,null,null,8,1,1,8,45,45,0,46,46]
[6,"-","x","Punere în siguranță a conductei de transport gaze naturale 8” Cornățel - Avrig, zona Cornățel - Săcădate",144063,"Avrig","Sibiu",453138.85,469627.97,453138.85,469627.97,"-","-","SM0802D2","SC Jifa Avrig","-","-","-","-","SM-CF001","Electrica Furnizare","SC Jifa SA","octombrie - decembrie 2020\n15 martie - 15 iunie 2021","2021-05-19","09:00:00","2021-05-19","16:00:00","Mediaș","Efectuată","Constructorul a fost angrenat în alte lucrări de investiții","2021-05-19","09:00:00","2021-05-19","16:00:00","2021-05-06","12:17:00","2021-05-06","11:58:00","1373/17.05.2021","DA",null,"PMDI_2021_cap.A_2.1.A.7",null,"","","","","","","","","",null,null,null,null,null,8,1,1,8,1,1,0,2,2]
[7,"-","x","Punere în siguranță a conductei de transport gaze naturale 8” Cornățel - Avrig, zona Cornățel - Săcădate",144090,"Mârșa","Sibiu",451489.67,466968.99,451489.67,466968.99,"-","-","SM0819D1","Mârșa","-","-","-","-","SM-SD001","Aderro GP, Nova Power, Cez Vânzare, Cis Gaz, Conef Gaz, CPL Concordia, Crest Energy, MVM Energy Trade, Design Proiect, Distrigaz Vest, Engie, E.on Energie, Electrica Furnizare, Electric Planners, Electric&Gas, Energy Distribution, Enel Energie, Enel Muntenia, Gas&Power, Entrex, Premier Energy Trading, Gaz Est, Hargaz, Gazmir, Gaz Vest, Mihoc Oil, Met România, Monsson, Next Energy Distribution, Next Energy Partners, Pado Group, Premier Energy, Petrom, Prisma Serv, Gas Provider, Renovatio, Res Energy, Restart Energy, RWE Supply, SST Grup, Tetarom, Tinmar, Veolia, Wiee, With us","Delgaz Grid","octombrie - decembrie 2020\n15 martie - 15 iunie 2021","2021-05-19","09:00:00","2021-05-19","16:00:00","Mediaș","Efectuată","Constructorul a fost angrenat în alte lucrări de investiții","2021-05-19","09:00:00","2021-05-19","16:00:00","2021-05-06","12:09:00","2021-05-06","11:48:00","1373/17.05.2021","DA",null,"PMDI_2021_cap.A_2.1.A.7",null,"","","","","","","","","",null,null,null,null,null,8,1,1,8,45,45,0,46,46]
[7.1,"-","x","Punere în siguranță a conductei de transport gaze naturale 8” Cornățel - Avrig, zona Cornățel - Săcădate",144090,"Mârșa","Sibiu",451489.67,466968.99,451489.67,466968.99,"-","-","SM0819D2","SC Alcoradu Mârșa","-","-","-","-","SM-CF001","Cis Gaz","SC Alcoradu SRL","octombrie - decembrie 2020\n15 martie - 15 iunie 2021","2021-05-19","09:00:00","2021-05-19","16:00:00","Mediaș","Efectuată","Constructorul a fost angrenat în alte lucrări de investiții","2021-05-19","09:00:00","2021-05-19","16:00:00","2021-05-06","12:14:00","2021-05-06","12:05:00","1373/17.05.2021","DA",null,"PMDI_2021_cap.A_2.1.A.7",null,"","","","","","","","","",null,null,null,null,null,8,1,1,8,1,1,0,2,2]
[{"$f":"SUM(1,A22)","v":8},"-","x","Punere în siguranță a conductei de transport gaze naturale 8” Cornățel - Avrig, zona Cornățel - Săcădate",145364,"Racovița","Sibiu",448491.14,465243.62,448491.14,465243.62,"-","-","SM0876D0","Racovița","-","-","-","-","SM-SD001","Aderro GP, Nova Power, Cez Vânzare, Cis Gaz, Conef Gaz, CPL Concordia, Crest Energy, MVM Energy Trade, Design Proiect, Distrigaz Vest, Engie, E.on Energie, Electrica Furnizare, Electric Planners, Electric&Gas, Energy Distribution, Enel Energie, Enel Muntenia, Gas&Power, Entrex, Premier Energy Trading, Gaz Est, Hargaz, Gazmir, Gaz Vest, Mihoc Oil, Met România, Monsson, Next Energy Distribution, Next Energy Partners, Pado Group, Premier Energy, Petrom, Prisma Serv, Gas Provider, Renovatio, Res Energy, Restart Energy, RWE Supply, SST Grup, Tetarom, Tinmar, Veolia, Wiee, With us","Delgaz Grid","octombrie - decembrie 2020\n15 martie - 15 iunie 2021","2021-05-19","09:00:00","2021-05-19","16:00:00","Mediaș","Efectuată","Constructorul a fost angrenat în alte lucrări de investiții","2021-05-19","09:00:00","2021-05-19","16:00:00","2021-05-06","12:09:00","2021-05-06","11:48:00","1373/17.05.2021","DA",null,"PMDI_2021_cap.A_2.1.A.7",null,"","","","","","","","","",null,null,null,null,null,8,1,1,8,45,45,0,46,46]
[{"$f":"SUM(1,A24)","v":9},"-","x","Punere în siguranță a conductei de transport gaze naturale 8” Cornățel - Avrig, zona Cornățel - Săcădate",145373,"Sebeșu de Sus","Sibiu",449528.49,462452.81,449528.49,462452.81,"-","-","SM0903D0","Sebeșu de Sus","-","-","-","-","SM-SD001","Aderro GP, Nova Power, Cez Vânzare, Cis Gaz, Conef Gaz, CPL Concordia, Crest Energy, MVM Energy Trade, Design Proiect, Distrigaz Vest, Engie, E.on Energie, Electrica Furnizare, Electric Planners, Electric&Gas, Energy Distribution, Enel Energie, Enel Muntenia, Gas&Power, Entrex, Premier Energy Trading, Gaz Est, Hargaz, Gazmir, Gaz Vest, Mihoc Oil, Met România, Monsson, Next Energy Distribution, Next Energy Partners, Pado Group, Premier Energy, Petrom, Prisma Serv, Gas Provider, Renovatio, Res Energy, Restart Energy, RWE Supply, SST Grup, Tetarom, Tinmar, Veolia, Wiee, With us","Delgaz Grid","octombrie - decembrie 2020\n15 martie - 15 iunie 2021","2021-05-19","09:00:00","2021-05-19","16:00:00","Mediaș","Efectuată","Constructorul a fost angrenat în alte lucrări de investiții","2021-05-19","09:00:00","2021-05-19","16:00:00","2021-05-06","12:09:00","2021-05-06","11:48:00","1373/17.05.2021","DA",null,"PMDI_2021_cap.A_2.1.A.7",null,"","","","","","","","","",null,null,null,null,null,8,1,1,8,45,45,0,46,46]
[10,"-","x","Punere în siguranță a conductei de transport gaze naturale 8” Cornățel - Avrig, zona Cornățel - Săcădate",145952,"Sebeșu de Jos","Sibiu",448296.46,461833.47,448296.46,461833.47,"-","-","SM1041D0","Sebeșu de Jos","-","-","-","-","SM-SD001","Aderro GP, Nova Power, Cez Vânzare, Cis Gaz, Conef Gaz, CPL Concordia, Crest Energy, MVM Energy Trade, Design Proiect, Distrigaz Vest, Engie, E.on Energie, Electrica Furnizare, Electric Planners, Electric&Gas, Energy Distribution, Enel Energie, Enel Muntenia, Gas&Power, Entrex, Premier Energy Trading, Gaz Est, Hargaz, Gazmir, Gaz Vest, Mihoc Oil, Met România, Monsson, Next Energy Distribution, Next Energy Partners, Pado Group, Premier Energy, Petrom, Prisma Serv, Gas Provider, Renovatio, Res Energy, Restart Energy, RWE Supply, SST Grup, Tetarom, Tinmar, Veolia, Wiee, With us","Delgaz Grid","octombrie - decembrie 2020\n15 martie - 15 iunie 2021","2021-05-19","09:00:00","2021-05-19","16:00:00","Mediaș","Efectuată","Constructorul a fost angrenat în alte lucrări de investiții","2021-05-19","09:00:00","2021-05-19","16:00:00","2021-05-06","12:09:00","2021-05-06","11:48:00","1373/17.05.2021","DA",null,"PMDI_2021_cap.A_2.1.A.7",null,"","","","","","","","","",null,null,null,null,null,8,1,1,8,45,45,0,46,46]
[11,"-","x","Punere în siguranță a conductei de transport gaze naturale 8” Cornățel - Avrig, zona Cornățel - Săcădate",145943,"Turnu Roșu","Sibiu",445948.45,460774.96,445948.45,460774.96,"-","-","SM0805D0","Turnu Roșu","-","-","-","-","SM-SD001","Aderro GP, Nova Power, Cez Vânzare, Cis Gaz, Conef Gaz, CPL Concordia, Crest Energy, MVM Energy Trade, Design Proiect, Distrigaz Vest, Engie, E.on Energie, Electrica Furnizare, Electric Planners, Electric&Gas, Energy Distribution, Enel Energie, Enel Muntenia, Gas&Power, Entrex, Premier Energy Trading, Gaz Est, Hargaz, Gazmir, Gaz Vest, Mihoc Oil, Met România, Monsson, Next Energy Distribution, Next Energy Partners, Pado Group, Premier Energy, Petrom, Prisma Serv, Gas Provider, Renovatio, Res Energy, Restart Energy, RWE Supply, SST Grup, Tetarom, Tinmar, Veolia, Wiee, With us","Delgaz Grid","octombrie - decembrie 2020\n15 martie - 15 iunie 2021","2021-05-19","09:00:00","2021-05-19","16:00:00","Mediaș","Efectuată","Constructorul a fost angrenat în alte lucrări de investiții","2021-05-19","09:00:00","2021-05-19","16:00:00","2021-05-06","12:09:00","2021-05-06","11:48:00","1373/17.05.2021","DA",null,"PMDI_2021_cap.A_2.1.A.7",null,"","","","","","","","","",null,null,null,null,null,8,1,1,8,45,45,0,46,46]
[12,"-","x","Punere în siguranță a conductei 8” racord PM Alămor, zona Alămor",144811,"Alămor","Sibiu",420533.37,493520.71,420533.37,493520.71,"-","-","-","-","-","-","PM0140","Alămor","PM-PP001","Romgaz","Romgaz","octombrie - decembrie 2020\n15 martie - 15 iunie 2021","27.04.2021\n27.05.2021","09:00:00","27.04.2021\n27.05.2021","17:00:00","Mediaș","Efectuată","Constructorul a fost angrenat în alte lucrări de investiții\nDatorită necesității efectuării și a altor lucrări, concomitent cu aceasta","2021-05-27","09:00:00","2021-05-27","17:00:00","2021-05-19","12:13:00","2021-05-19","12:05:00","1471/25.05.2021","DA",null,"PMDI_2021_cap.A_2.1.A.5",null,"","","","","","","","","",null,null,null,null,null,5,1,1,5,1,1,0,2,2]
[13,"-","x","Punere în siguranță a conductei 8” racord PM Alămor, zona Alămor",144811,"Alămor","Sibiu",422864.33,492914.95,422864.33,492914.95,"-","-","SM0748D0","Alămor","-","-","-","-","SM-SD001","Aderro GP, Nova Power, Cez Vânzare, Cis Gaz, Conef Gaz, CPL Concordia, Crest Energy, MVM Energy Trade, Design Proiect, Distrigaz Vest, Engie, E.on Energie, Electrica Furnizare, Electric Planners, Electric&Gas, Energy Distribution, Enel Energie, Enel Muntenia, Gas&Power, Entrex, Premier Energy Trading, Gaz Est, Hargaz, Gazmir, Gaz Vest, Mihoc Oil, Met România, Monsson, Next Energy Distribution, Next Energy Partners, Pado Group, Premier Energy, Petrom, Prisma Serv, Gas Provider, Renovatio, Res Energy, Restart Energy, RWE Supply, SST Grup, Tetarom, Tinmar, Veolia, Wiee, With Us","Delgaz Grid","octombrie - decembrie 2020\n15 martie - 15 iunie 2021","27.04.2021\n27.05.2021","09:00:00","27.04.2021\n27.05.2021","17:00:00","Mediaș","Efectuată","Constructorul a fost angrenat în alte lucrări de investiții\nDatorită necesității efectuării și a altor lucrări, concomitent cu aceasta","2021-05-27","09:00:00","2021-05-27","17:00:00","2021-05-19","12:17:00","2021-05-19","12:08:00","1471/25.05.2021","DA",null,"PMDI_2021_cap.A_2.1.A.5",null,"","","","","","","","","",null,null,null,null,null,5,1,1,5,45,45,0,46,46]
[14,"-","x","Punere în siguranță a conductei 12” Agârbiciu - Sibiu, zona Șeica Mare",145676,"Șeica Mare","Sibiu",434864.28,502349.67,434864.28,502349.67,"-","-","SM0737D0","Șeica Mare","-","-","-","-","SM-SD001",null,"Delgaz Grid","iulie - septembrie 2021",null,null,null,null,"Mediaș",null,null,null,null,null,null,null,null,null,null,null,null,null,"PMDI_2021_7_Anexa 7",null,"","","","","","","","","",null,null,null,null,null,"Afectat sau NU?","-","-","Afectat sau NU?","-","-",{"$f":"IF(C30=\"X\",IF(AN30=\"\",\"Afectat sau NU?\",IF(AN30=\"DA\",((AG30+AH30)-(Z30+AA30))*24,\"Nu a fost afectat producator/consumator\")),\"\")","v":"Afectat sau NU?"},"-","-"]
[15,"-","x","Refacere subtraversare râu Dâmbovița cu conducta Inel București, zona Bălăceanca",101760,"Cernica","Ilfov",602275.49,322657.23,602275.49,322657.23,"-","-","SM1133D0","Cernica II (Bălăceanca)","-","-","-","-","SM-SD001","Aderro GP, Nova Power, Cez Vânzare, Cis Gaz, Conef Gaz, Crest Energy, Distrigaz Vest, Engie, E.on Energie, Electrica Furnizare, Electric Planners, Electric&Gas, Energy Distribution, Enel Energie, Enel Muntenia, Gas&Power, Premier Energy Trading, Gaz Est, Gaz vest, Megaconstruct, Mehedinți Gaz, Met România, Monsson, Next Energy, Nord Gaz, Premier Energy, Petrom, Energy Gas Provider, Renovatio, Restart Energy, Tinmar, Transenergo, AIK Energy, Veolia, WIEE","Premier Energy","octombrie - decembrie 2020\nianuarie - martie 2021",null,null,null,null,"București","Nu este necesară întreruperea furnizării gazelor naturale.","Întârzieri în execuția forajului orizontal",null,null,null,null,null,null,null,null,null,null,null,"PMDI_2021_cap.A_2.1.A.4",null,"","","","","","","","","",null,null,null,null,null,"Afectat sau NU?","-","-","Afectat sau NU?","-","-","Afectat sau NU?","-","-"]
[16,"-","x","Conductă de transport gaze naturale 20” Plătărești - Bălăceanca",100629,"Oltenița","Călărași",632481.62,289201.63,632481.62,289201.63,"-","-","SM0962D0","Oltenita","-","-","-","-","SM-SD001",null,"Distrigaz Sud Rețele","iulie - septembrie 2021\nanul gazier 2022 - 2023",null,null,null,null,"București",null,"Se află în procedura de licitație",null,null,null,null,null,null,null,null,null,null,null,"PMDI_2021_cap.A_2.1.B.2",null,"","","","","","","","","",null,null,null,null,null,"Afectat sau NU?","-","-","Afectat sau NU?","-","-","Afectat sau NU?","-","-"]
[17,"-","x","Conductă de transport gaze naturale 20” Plătărești - Bălăceanca",101813,"Chirnogi","Călărași",627947.05000000005,291419.55,627947.05000000005,291419.55,null,null,"SM1152D0","Chirnogi","-","-","-","-","SM-SD001",null,"Gazmir Iași","iulie - septembrie 2021\nanul gazier 2022 - 2023",null,null,null,null,"București",null,"Se află în procedura de licitație",null,null,null,null,null,null,null,null,null,null,null,"PMDI_2021_cap.A_2.1.B.2",null,"","","","","","","","","",null,null,null,null,null,"Afectat sau NU?","-","-","Afectat sau NU?","-","-","Afectat sau NU?","-","-"]
[18,"-","x","Conductă de transport gaze naturale 20” Plătărești - Bălăceanca",100647,"Mitreni","Călărași",628420.76,296597.06,628420.76,296597.06,null,null,"SM1234D0","Mitreni","-","-","-","-","SM-SD001",null,"Distrigaz Sud Rețele","iulie - septembrie 2021\nanul gazier 2022 - 2023",null,null,null,null,"București",null,"Se află în procedura de licitație",null,null,null,null,null,null,null,null,null,null,null,"PMDI_2021_cap.A_2.1.B.2",null,"","","","","","","","","",null,null,null,null,null,"Afectat sau NU?","-","-","Afectat sau NU?","-","-","Afectat sau NU?","-","-"]
[19,"-","x","Conductă de transport gaze naturale Nadeș - Sighișoara",114596,"Hetiur","Mureș",481685.76000000001,529831.52,481685.76000000001,529831.52,null,null,"SM0834D0","Hetiur",null,null,null,null,"SM-SD001",null,"Delgaz Grid","iulie - septembrie 2021\nanul gazier 2021 - 2022",null,null,null,null,"Brașov",null,"Ordin de incepere din data de 28.06.2021, cu termen de executie 12 luni.",null,null,null,null,null,null,null,null,null,null,null,"PMDI_2021_cap.A_2.1.B.3",null,"","","","","","","","","",null,null,null,null,null,"Afectat sau NU?","-","-","Afectat sau NU?","-","-","Afectat sau NU?","-","-"]
[20,"-","x","Punere în siguranță a conductei 3” racord SRM Ucea de Jos și adaptare la teren SRM Ucea de Jos",42110,"Ucea de Jos","Braşov",474571.17,476371.61,474571.17,476371.61,"-","-","SM0811D0","Ucea de Jos","-","-","-","-","SM-SD001",null,"Distrigaz Sud Rețele","aprilie - iunie 2021\nanul gazier 2022 - 2023",null,null,null,null,"Mediaș",null,"Lipsă ofertă",null,null,null,null,null,null,null,null,null,null,null,"PMDI_2021_cap.A_2.1.B.4",null,"","","","","","","","","",null,null,null,null,null,"Afectat sau NU?","-","-","Afectat sau NU?","-","-","Afectat sau NU?","-","-"]
[21,"-","x","Înlocuire tronson pe conducta de transport gaze naturale 8” racord SRM Poiana Brașov",42432,"Poiana Brașov","Braşov",543202.21,455663.91,543202.21,455663.91,"-","-","SM0054D0","Poiana Brașov","-","-","-","-","SM-SD001",null,"Distrigaz Sud Rețele","iulie - septembrie 2021\nanul gazier 2021 - 2022",null,null,null,null,"Brașov",null,"Probleme cu proprietarii de terenuri",null,null,null,null,null,null,null,null,null,null,null,"PMDI_2021_cap.A_2.1.B.6",null,"","","","","","","","","",null,null,null,null,null,"Afectat sau NU?","-","-","Afectat sau NU?","-","-","Afectat sau NU?","-","-"]
[22,"-","x","Înlocuire tronson pe conducta de transport gaze naturale 8” racord SRM Poiana Brașov",42432,"Poiana Brașov","Braşov",543067.84,456573.21,543067.84,456573.21,"-","-","SM1113D0","Poiana Sticlăriei","-","-","-","-","SM-SD001",null,"Distrigaz Sud Rețele","iulie - septembrie 2021\nanul gazier 2021 - 2022",null,null,null,null,"Brașov",null,"Probleme cu proprietarii de terenuri",null,null,null,null,null,null,null,null,null,null,null,"PMDI_2021_cap.A_2.1.B.6",null,"","","","","","","","","",null,null,null,null,null,"Afectat sau NU?","-","-","Afectat sau NU?","-","-","Afectat sau NU?","-","-"]
[23,"-","x","Mărire capacitate SRM Uricani, județul Iași",95284,"Iași","Iași",688243.26,633571.56000000006,688243.26,633571.56000000006,"-","-","SM0480D2","Uricani","-","-","-","-","SM-SD001",null,"Delgaz Grid","iulie - septembrie 2021\nanul gazier 2021 - 2022",null,null,null,null,"Bacău",null,"Stanilirea termenului de finalizare prin emiterea Ordinului de începere a lucrării ",null,null,null,null,null,null,null,null,null,null,null,"PMDI_2021_cap.C_5",null,"","","","","","","","","",null,null,null,null,null,"Afectat sau NU?","-","-","Afectat sau NU?","-","-","Afectat sau NU?","-","-"]
[24,"-","x","Racord și SRM Lețcani, județul Iași",97688,"Lețcani","Iași",682858.38,636181.85,682858.38,636181.85,"-","-","SM0886D0","Lețcani","-","-","-","-","SM-SD001",null,"Delgaz Grid","aprilie - iunie 2021\nanul gazier 2021 - 2022",null,null,null,null,"Bacău",null,"Întârzieri în execuție",null,null,null,null,null,null,null,null,null,null,null,"PMDI_2021_cap.C_8",null,"","","","","","","","","",null,null,null,null,null,"Afectat sau NU?","-","-","Afectat sau NU?","-","-","Afectat sau NU?","-","-"]
[25,"-","x","SRM Clinceni - Eficientizarea sistemului de măsură prin completarea instalației tehnologice cu elemente/echipamente corespunzătoare",102044,"Clinceni","Ilfov",574454.57999999996,318647.90000000002,574454.57999999996,318647.90000000002,"-","-","SM0249D1","Clinceni","-","-","-","-","SM-SD001","Aderro GP, AIK Londra, Alpha Metal, Nova Power, Cez Vânzare, Cis Gaz, Conef Gaz, Crest Energy, Cyeb, Distrigaz Vest, Engie, E.On Energie, Electrocentrale București, Electrocentrale Constanța, Electrica Furnizare, Electric Planners, Electric&Gas, Energy Distribution, Enel Energie, Enel Muntenia, Gas&Power, Entrex, Euro Seven Industry, Premier Energy Trading, Gaz Est, Hargaz, Gaz Vest, Megaconstruct, Met România, Monsson, Next Energy Distribution, Nord Gaz, Oligopol, Premier Energy, Petrom, Progaz, Energy Gas Provider, Renovatio, Restart Energy, Romgaz, RWE Supply, Tinmar, Transenergo, AIK România, Veolia, WIEE","Distrigaz Sud Rețele","octombrie - decembrie 2020\nianuarie - aprilie 2021\n15 mai - septembrie 2021\nanul gazier 2021 - 2022",null,null,null,null,"București",null,"Întârzieri în execuție\nÎntârzieri în execuție",null,null,null,null,null,null,null,null,null,null,null,"PMDI_2021_1_Anexa_3",null,"","","","","","","","","",null,null,null,null,null,"Afectat sau NU?","-","-","Afectat sau NU?","-","-","Afectat sau NU?","-","-"]
[26,"-","x","SRM Clinceni - Eficientizarea sistemului de măsură prin completarea instalației tehnologice cu elemente/echipamente corespunzătoare",102222,"Clinceni","Ilfov",574454.57999999996,318647.90000000002,574454.57999999996,318647.90000000002,"-","-","SM0249D2","Cornetu","-","-","-","-","SM-SD001","Aderro GP, Nova Power, Cez Vânzare, Cis Gaz, Conef Gaz, Crest Energy, Distrigaz Vest, Engie, E.on Energie, Electrica Furnizare, Electric Planners, Electric&Gas, Energy Distribution, Enel Energie, Enel Muntenia, Gas&Power, Premier Energy Trading, Gaz Est, Gaz vest, Megaconstruct, Mehedinți Gaz, Met România, Monsson, Next Energy, Nord Gaz, Premier Energy, Petrom, Energy Gas Provider, Renovatio, Restart Energy, Tinmar, Transenergo, AIK Energy, Veolia, WIEE","Premier Energy","octombrie - decembrie 2020\nianuarie - aprilie 2021\n15 mai - septembrie 2021\nanul gazier 2021 - 2022",null,null,null,null,"București",null,"Întârzieri în execuție\nÎntârzieri în execuție",null,null,null,null,null,null,null,null,null,null,null,"PMDI_2021_1_Anexa_3",null,"","","","","","","","","",null,null,null,null,null,"Afectat sau NU?","-","-","Afectat sau NU?","-","-","Afectat sau NU?","-","-"]
[27,"-","x","SRM Clinceni - Eficientizarea sistemului de măsură prin completarea instalației tehnologice cu elemente/echipamente corespunzătoare",102044,"Clinceni","Ilfov",574454.57999999996,318647.90000000002,574454.57999999996,318647.90000000002,"-","-","SM0249D3","Clinceni Aeroport","-","-","-","-","SM-SD001","Aderro GP, Nova Power, Cez Vânzare, Cis Gaz, Conef Gaz, Crest Energy, Distrigaz Vest, Engie, E.on Energie, Electrica Furnizare, Electric Planners, Electric&Gas, Energy Distribution, Enel Energie, Enel Muntenia, Gas&Power, Premier Energy Trading, Gaz Est, Gaz vest, Megaconstruct, Mehedinți Gaz, Met România, Monsson, Next Energy, Nord Gaz, Premier Energy, Petrom, Energy Gas Provider, Renovatio, Restart Energy, Tinmar, Transenergo, AIK Energy, Veolia, WIEE","Premier Energy","octombrie - decembrie 2020\nianuarie - aprilie 2021\n15 mai - septembrie 2021\nanul gazier 2021 - 2022",null,null,null,null,"București",null,"Întârzieri în execuție\nÎntârzieri în execuție",null,null,null,null,null,null,null,null,null,null,null,"PMDI_2021_1_Anexa_3",null,"","","","","","","","","",null,null,null,null,null,"Afectat sau NU?","-","-","Afectat sau NU?","-","-","Afectat sau NU?","-","-"]
[28,"-","x","Punere în siguranță a conductei 8” Cornățel - Avrig, zona Avrig",144090,"Mârșa","Sibiu",451489.67,466968.99,451489.67,466968.99,"-","-","SM0819D1","Mârșa","-","-","-","-","SM-SD001",null,"Delgaz Grid","iulie - septembrie 2021",null,null,null,null,"Mediaș",null,null,null,null,null,null,null,null,null,null,null,null,null,"PMDI_2021_3_Anexa_7",null,"","","","","","","","","",null,null,null,null,null,"Afectat sau NU?","-","-","Afectat sau NU?","-","-","Afectat sau NU?","-","-"]
[29,"-","x","Punere în siguranță a conductei 8” Cornățel - Avrig, zona Avrig",145364,"Racovița","Sibiu",448491.14,465243.62,448491.14,465243.62,"-","-","SM0876D0","Racovița","-","-","-","-","SM-SD001",null,"Delgaz Grid","iulie - septembrie 2021",null,null,null,null,"Mediaș",null,null,null,null,null,null,null,null,null,null,null,null,null,"PMDI_2021_3_Anexa_7",null,"","","","","","","","","",null,null,null,null,null,"Afectat sau NU?","-","-","Afectat sau NU?","-","-","Afectat sau NU?","-","-"]
[30,"-","x","Punere în siguranță a conductei 8” Cornățel - Avrig, zona Avrig",145373,"Sebeșu de Sus","Sibiu",449528.49,462452.81,449528.49,462452.81,"-","-","SM0903D0","Sebeșu de Sus","-","-","-","-","SM-SD001",null,"Delgaz Grid","iulie - septembrie 2021",null,null,null,null,"Mediaș",null,null,null,null,null,null,null,null,null,null,null,null,null,"PMDI_2021_3_Anexa_7",null,"","","","","","","","","",null,null,null,null,null,"Afectat sau NU?","-","-","Afectat sau NU?","-","-","Afectat sau NU?","-","-"]
[31,"-","x","Punere în siguranță a conductei 8” Cornățel - Avrig, zona Avrig",145952,"Sebeșu de Jos","Sibiu",448296.46,461833.47,448296.46,461833.47,"-","-","SM1041D0","Sebeșu de Jos","-","-","-","-","SM-SD001",null,"Delgaz Grid","iulie - septembrie 2021",null,null,null,null,"Mediaș",null,null,null,null,null,null,null,null,null,null,null,null,null,"PMDI_2021_3_Anexa_7",null,"","","","","","","","","",null,null,null,null,null,"Afectat sau NU?","-","-","Afectat sau NU?","-","-","Afectat sau NU?","-","-"]
[32,"-","x","Punere în siguranță a conductei 8” Cornățel - Avrig, zona Avrig",145943,"Turnu Roșu","Sibiu",445948.45,460774.96,445948.45,460774.96,"-","-","SM0805D0","Turnu Roșu","-","-","-","-","SM-SD001",null,"Delgaz Grid","iulie - septembrie 2021",null,null,null,null,"Mediaș",null,null,null,null,null,null,null,null,null,null,null,null,null,"PMDI_2021_3_Anexa_7",null,"","","","","","","","","",null,null,null,null,null,"Afectat sau NU?","-","-","Afectat sau NU?","-","-","Afectat sau NU?","-","-"]
[33,"-","x","Punere în siguranță a conductei 12\" Vlădeni - Mănești, zona Vlădeni",67283,"Vlădeni","Dâmbovița",561569.94999999995,374101.8,561569.94999999995,374101.8,"-","-","SM0137D0","Vlădeni","-","-","-","-","SM-SD001","Aderro GP, Alpha Metal, Nova Power, Cez Vânzare, Cis Gaz, Conef Gaz, Crest Energy, Energy Trade, Distrigaz Vest, Engie, E.On Energie, Electrocentrale București, Electrocentrale Constanța, Electrica Furnizare, Electric Planners, Electric&Gas, Energy Distribution, Enel, Enel Muntenia, Gas&Power, Entrex, Euro Seven Industry, Premier Energy Trading, Gaz Est, Hargaz, Gaz Vest, Getica 95, Megaconstruct, Met România, Monsson, Next Energy Distribution, Next Energy Partners, Nord Gaz, Oligopol, Premier Energy, Petrom, Progaz, Energy Gas Provider, Renovatio, Res Energy, Restart Energy, Romgaz, RWE Supply, Tinmar, Transenergo, Vega 93, Veolia, WIEE","Distrigaz Sud Rețele","octombrie 2020\n18-31 decembrie 2020\nfebruarie - martie 2021\nmartie - aprilie 2021","2021-04-07","08:00:00","2021-04-07","18:00:00","București","Efectuată","Întârzieri în aprovizionarea cu materialele necesare\nCarantinarea unor zone care implică accesul restricționat al personalului implicat.\nConform adresei DGSR lucrarea nu se va executa în sezonul rece.","2021-04-07","08:11:00","2021-04-07","18:00:00","2021-03-29","10:58:00","2021-03-29","08:57:00","26330/06.04.2021","DA",null,"PRRASM_2021_IA5_Anexa_1",null,"","","","","","","","","",null,null,null,null,null,6,1,1,6,48,48,0,49,49]
[34,"-","x","Punere în siguranță a conductei 12\" Vlădeni - Mănești, zona Vlădeni",134238,"Coada Izvorului","Prahova",566412.39,374268.11,566412.39,374268.11,"-","-","SM0033D0","Coada Izvorului","-","-","-","-","SM-SD001","Aderro GP, Alpha Metal, Nova Power, Cez Vânzare, Cis Gaz, Conef Gaz, Crest Energy, Cyeb, Distrigaz Vest, Engie, E.On Energie, Electrocentrale București, Electrocentrale Constanța, Electrica Furnizare, Electric Planners, Electric&Gas, Energy Distribution, Enel, Enel Muntenia, Gas&Power, Entrex, Euro Seven Industry, Premier Energy Trading, Gaz Est, Hargaz, Megaconstruct, Met România, Monsson, Next Energy, Nord Gaz, Oligopol, Premier Energy, Petrom, Progaz, Energy Gas Provider, Renovatio, Restart Energy, Romgaz, RWE Supply, Tinmar, Transenergo, AIK România, Veolia, WIEE","Distrigaz Sud Rețele","octombrie 2020\n18-31 decembrie 2020\nfebruarie - martie 2021\nmartie - aprilie 2021",null,null,null,null,"București","Efectuată (Nu a mai fost necesară întreruperea)","Întârzieri în aprovizionarea cu materialele necesare\nCarantinarea unor zone care implică accesul restricționat al personalului implicat.\nConform adresei DGSR lucrarea nu se va executa în sezonul rece.",null,null,null,null,null,null,null,null,null,null,null,"PRRASM_2021_IA5_Anexa_1",null,"","","","","","","","","",null,null,null,null,null,"Afectat sau NU?","-","-","Afectat sau NU?","-","-","Afectat sau NU?","-","-"]
[35,"-","x","Punere în siguranță a conductei 12\" Vlădeni - Mănești, zona Vlădeni",67283,"Vlădeni","Dâmbovița",561822.71999999997,373131.94,561822.71999999997,373131.94,"-","-","-","-","-","-","PM0014","Vlădeni","PM-PP001","Romgaz, Amromco","Romgaz, Amromco","octombrie 2020\n18-31 decembrie 2020\nfebruarie - martie 2021\nmartie - aprilie 2021","2021-04-07","08:00:00","2021-04-07","18:00:00","București","Efectuată","Întârzieri în aprovizionarea cu materialele necesare\nCarantinarea unor zone care implică accesul restricționat al personalului implicat.\nConform adresei DGSR lucrarea nu se va executa în sezonul rece.","2021-04-07","08:10:00","2021-04-07","18:00:00","2021-03-29","10:38:00","2021-03-29","09:05:00","26330/06.04.2021","DA",null,"PRRASM_2021_IA5_Anexa_1",null,"","","","","","","","","",null,null,null,null,null,6,2,2,6,2,2,0,4,4]
[36,"-","x","Înlocuire robineți la SRM Avrig",144063,"Avrig","Sibiu",453138.85,469627.97,453138.85,469627.97,"-","-","SM0802D1","Avrig","-","-","-","-","SM-SD001",null,"Delgaz Grid","mai 2021\niulie - august 2021",null,null,null,null,"Mediaș","Efectuată (Lucrarea a fost executată în data de 29.07.2021 fără a mai fi necesară întreruperea)","Întârzieri în aprovizionarea cu materialele necesare",null,null,null,null,null,null,null,null,null,null,null,"Forțe proprii",null,"","","","","","","","","",null,null,null,null,null,"Afectat sau NU?","-","-","Afectat sau NU?","-","-","Afectat sau NU?","-","-"]
[37,"-","x","Înlocuire robineți și montare baterie filtre la SRM Mârșa",144090,"Mârșa","Sibiu",451489.67,466968.99,451489.67,466968.99,"-","-","SM0819D1","Mârșa","-","-","-","-","SM-SD001","Aderro GP, Nova Power, Cez Vânzare, Cis Gaz, Conef Gaz, CPL Concordia, Crest Energy, Cyeb, Design Proiect, Distrigaz Vest, Engie, E.on Energie, Electrica Furnizare, Electric Planners, Electric&Gas, Energy Distribution, Enel Energie, Enel Muntenia, Gas&Power, Entrex, Premier Energy Trading, Gaz Est, Hargaz, Gazmir, Gaz Vest, Mihoc Oil, Met România, Monsson, Next Energy Distribution, Pado Group, Premier Energy, Petrom, Prisma Serv, Gas Provider, Renovatio, Restart Energy, RWE Supply, SST Grup, Tetarom, Tinmar, AIK Energy, Veolia, Wiee","Delgaz Grid","mai 2021\nmai - iulie 2021\nseptembrie 2021",null,null,null,null,"Mediaș",null,"Întârzieri în aprovizionarea cu materialele necesare.\nVolum mare de lucrări executate de echipa de intervenție a sectorului.",null,null,null,null,null,null,null,null,null,null,null,"Forțe proprii",null,"","","","","","","","","",null,null,null,null,null,"Afectat sau NU?","-","-","Afectat sau NU?","-","-","Afectat sau NU?","-","-"]
[38,"-","x","Înlocuire robineță la SRM Rusciori",145818,"Rusciori","Sibiu",425238.47,479734.58,425238.47,479734.58,"-","-","SM0761D0","Rusciori","-","-","-","-","SM-SD001",null,"Delgaz Grid","iunie 2021\nseptembrie 2021",null,null,null,null,"Mediaș",null,"Întârzieri în aprovizionarea cu materialele necesare",null,null,null,null,null,null,null,null,null,null,null,"Forțe proprii",null,"","","","","","","","","",null,null,null,null,null,"Afectat sau NU?","-","-","Afectat sau NU?","-","-","Afectat sau NU?","-","-"]
[39,"-","x","Înlocuire robineți la SRM Ocna Sibiului",143860,"Ocna Sibiului","Sibiu",427912.33,486555.98,427912.33,486555.98,"-","-","SM0723D0","Ocna Sibiului","-","-","-","-","SM-SD001",null,"Delgaz Grid","iunie 2021",null,null,null,null,"Mediaș","Nu este necesară întreruperea furnizării gazelor naturale deoarece s-au găsit soluții alternative de executare a lucrărilor",null,null,null,null,null,null,null,null,null,null,null,null,"Forțe proprii",null,"","","","","","","","","",null,null,null,null,null,"Afectat sau NU?","-","-","Afectat sau NU?","-","-","Afectat sau NU?","-","-"]
[40,"-","x","Înlocuire robineți la SRM Șura Mare",145774,"Șura Mare","Sibiu",434542.96,483711.13,434542.96,483711.13,"-","-","SM0742D0","Șura Mare","-","-","-","-","SM-SD001",null,"Delgaz Grid","iulie 2021",null,null,null,null,"Mediaș","Nu este necesară întreruperea furnizării gazelor naturale deoarece s-au găsit soluții alternative de executare a lucrărilor",null,null,null,null,null,null,null,null,null,null,null,null,"Forțe proprii",null,"","","","","","","","","",null,null,null,null,null,"Afectat sau NU?","-","-","Afectat sau NU?","-","-","Afectat sau NU?","-","-"]
[41,"-","x","Înlocuire robineți la SRM Hosman",145186,"Hosman","Sibiu",455162.02,482490.4,455162.02,482490.4,"-","-","SM0791D0","Hosman","-","-","-","-","SM-SD001",null,"Delgaz Grid","august 2021",null,null,null,null,"Mediaș","Nu este necesară întreruperea furnizării gazelor naturale deoarece s-au găsit soluții alternative de executare a lucrărilor",null,null,null,null,null,null,null,null,null,null,null,null,"Forțe proprii",null,"","","","","","","","","",null,null,null,null,null,"Afectat sau NU?","-","-","Afectat sau NU?","-","-","Afectat sau NU?","-","-"]
[42,"-","x","Înlocuire robineți la SRM Ilimbav",144919,"Ilimbav","Sibiu",462643.39,486014.37,462643.39,486014.37,"-","-","SM0792D0","Ilimbav","-","-","-","-","SM-SD001",null,"Delgaz Grid","august 2021",null,null,null,null,"Mediaș","Nu este necesară întreruperea furnizării gazelor naturale deoarece s-au găsit soluții alternative de executare a lucrărilor",null,null,null,null,null,null,null,null,null,null,null,null,"Forțe proprii",null,"","","","","","","","","",null,null,null,null,null,"Afectat sau NU?","-","-","Afectat sau NU?","-","-","Afectat sau NU?","-","-"]
[43,"-","x","Înlocuire robineți la SRM Vârd",144483,"Vârd","Sibiu",468618.46,494023.26,468618.46,494023.26,"-","-","SM0789D0","Vârd","-","-","-","-","SM-SD001",null,"Delgaz Grid","septembrie 2021",null,null,null,null,"Mediaș","Nu este necesară întreruperea furnizării gazelor naturale deoarece s-au găsit soluții alternative de executare a lucrărilor",null,null,null,null,null,null,null,null,null,null,null,null,"Forțe proprii",null,"","","","","","","","","",null,null,null,null,null,"Afectat sau NU?","-","-","Afectat sau NU?","-","-","Afectat sau NU?","-","-"]
[44,"-","x","Înlocuire robineți la SRM Racovița",145364,"Racovița","Sibiu",448491.14,465243.62,448491.14,465243.62,"-","-","SM0876D0","Racovița","-","-","-","-","SM-SD001","Aderro GP, Nova Power, Cez Vânzare, Cis Gaz, Conef Gaz, CPL Concordia, Crest Energy, Cyeb, Design Proiect, Distrigaz Vest, Engie, E.on Energie, Electrica Furnizare, Electric Planners, Electric&Gas, Energy Distribution, Enel Energie, Enel Muntenia, Gas&Power, Entrex, Premier Energy Trading, Gaz Est, Hargaz, Gazmir, Gaz Vest, Mihoc Oil, Met România, Monsson, Next Energy Distribution, Pado Group, Premier Energy, Petrom, Prisma Serv, Gas Provider, Renovatio, Restart Energy, RWE Supply, SST Grup, Tetarom, Tinmar, AIK Energy, Veolia, Wiee","Delgaz Grid","septembrie 2021",null,null,null,null,"Mediaș",null,null,null,null,null,null,null,null,null,null,null,null,null,"Forțe proprii",null,"","","","","","","","","",null,null,null,null,null,"Afectat sau NU?","-","-","Afectat sau NU?","-","-","Afectat sau NU?","-","-"]
[45,"-","x","Montare îmbinare electroizolantă pe conducta 3\" racord SRM Vad",41845,"Vad","Brașov",511691.09,477821.71,511691.09,477821.71,"-","-","SM0021D0","Vad","-","-","-","-","SM-SD001",null,"Distrigaz Sud Rețele","mai 2021",null,null,null,null,"Mediaș",null,"Avand in vedere volumul mare a lucrarilor de mentenanta necesare a fi executate si in urma prioritizarii acestora s-a ajuns la concluzia ca lucrarea nu poate fi realizata in acest an gazier. Se va reprograma pentru anul gazier urmator (2022), la o data comunicata ulterior",null,null,null,null,null,null,null,null,null,null,null,"Forțe proprii",null,"","","","","","","","","",null,null,null,null,null,"Afectat sau NU?","-","-","Afectat sau NU?","-","-","Afectat sau NU?","-","-"]
[46,"-","x","Lucrări privind sistematizarea și creșterea siguranței în funcționare a infrastructurii SNT  din zona NT Rodbav - SRM Făgăraș.",40571,"Calbor","Brașov",492123.16,486057.15,492123.16,486057.15,"-","-","SM0769D0","SRM Calbor","-","-","-","-","SM-SD001",null,"Distrigaz Sud Rețele","iulie 2021",null,null,null,null,"Mediaș",null,"Datorita faptului ca nu se intrevede repornirea in viitorul apropiat a Combinatului Chimic de la Fagaras, iar Combinatul Viromet de la Victoria a functionat pe perioade foarte scurte de timp in ultimii ani, lucrarea nu mai reprezinta o prioritate si va fi reprogramata la o data ulterioara pe care o sa o comunicam in functie de necesitatile de consum ale zonei",null,null,null,null,null,null,null,null,null,null,null,"Sucursala_2020_A_24",null,"","","","","","","","","",null,null,null,null,null,"Afectat sau NU?","-","-","Afectat sau NU?","-","-","Afectat sau NU?","-","-"]
[47,"-","x","Relocare instalație mecanică veche de la Aricești II la Stăncești (înlocuire SRM Stăncești)",130892,"Ploiești","Prahova",571593.42000000004,373696.77,571593.42000000004,373696.77,"-","-","SM0140D0","Stâncești","-","-","-","-","SM-SD001","Aderro GP, Alpha Metal, Nova Power, Cez Vânzare, Cis Gaz, Conef Gaz, Crest Energy, Cyeb, Distrigaz Vest, Engie, E.On Energie, Electrocentrale București, Electrocentrale Constanța, Electrica Furnizare, Electric Planners, Electric&Gas, Energy Distribution, Enel, Enel Muntenia, Gas&Power, Entrex, Euro Seven Industry, Premier Energy Trading, Gaz Est, Hargaz, Megaconstruct, Met România, Monsson, Next Energy, Nord Gaz, Oligopol, Premier Energy, Petrom, Progaz, Energy Gas Provider, Renovatio, Restart Energy, Romgaz, RWE Supply, Tinmar, Transenergo, AIK România, Veolia, WIEE","Distrigaz Sud Rețele","03 - 31 octombrie 2020\n18 decembrie 2020 - martie 2021",null,null,null,null,"București","Efectuată (Nu a mai fost necesară întreruperea)","Întârzieri în aprovizionarea cu materialele necesare",null,null,null,null,null,null,null,null,null,null,null,"Forțe proprii",null,"","","","","","","","","",null,null,null,null,null,"Afectat sau NU?","-","-","Afectat sau NU?","-","-","Afectat sau NU?","-","-"]
[48,"-","x","Modernizare NT Schitu Goleşti - montare gară godevil",18689,"Schitu Golești","Argeș",499964.40600000002,409075.77299999999,499964.40600000002,409075.77299999999,"-","-","SM1089D0","Schitu Golești","-","-","-","-","SM-SD001",null,"SC Distrigaz Sud Rețele","iulie - septembrie 2021\nanul gazier 2021 - 2022",null,null,null,null,"Craiova",null,"Stanilirea termenului de finalizare prin emiterea Ordinului de începere a lucrării ",null,null,null,null,null,null,null,null,null,null,null,"PMDI 2021_4_Anexa 1",null,"","","","","","","","","",null,null,null,null,null,"Afectat sau NU?","-","-","Afectat sau NU?","-","-","Afectat sau NU?","-","-"]
[49,"-","x","Modernizare NT Schitu Goleşti - montare gară godevil",17254,"Mihăești","Argeș",500598.14502300002,401110.15465600003,500598.14502300002,401110.15465600003,"-","-","SM1243D0","Mihaești AG","-","-","-","-","SM-SD001",null,"SC Distrigaz Sud Rețele","iulie - septembrie 2021\nanul gazier 2021 - 2022",null,null,null,null,"Craiova",null,"Stanilirea termenului de finalizare prin emiterea Ordinului de începere a lucrării ",null,null,null,null,null,null,null,null,null,null,null,"PMDI 2021_4_Anexa 1",null,"","","","","","","","","",null,null,null,null,null,"Afectat sau NU?","-","-","Afectat sau NU?","-","-","Afectat sau NU?","-","-"]
[50,"-","x","Pregătire conductă 24” Paltin - Schitu Golești pentru transformare în conductă godevilabilă (jud. Argeș)",13506,"Câmpulung","Argeș",506375.18,420606.43400000001,506375.17,420606.43400000001,"-","-","SM0429D0","SC Edilul Câmpulung","-","-","-","-","SM-CF001",null,"SC Edilul C.G.A. SA","iulie - august 2021\nanul gazier 2021 - 2022",null,null,null,null,"Craiova",null,"Reluare temă de proiectare/proiect",null,null,null,null,null,null,null,null,null,null,null,"PRRASM 2021_IIA2_Anexa 1",null,"","","","","","","","","",null,null,null,null,null,"Afectat sau NU?","-","-","Afectat sau NU?","-","-","Afectat sau NU?","-","-"]
[51,"-","x","Pregătire conductă 24” Paltin - Schitu Golești pentru transformare în conductă godevilabilă (jud. Argeș)",13506,"Câmpulung","Argeș",506435.56099999999,420938.47100000002,506435.56099999999,420938.47100000002,"-","-","SM0874D0","SC Complex Holcim Câmpulung Sediu","-","-","-","-","SM-CF001",null,"SC Holcim (România) SA","iulie - august 2021\nanul gazier 2021 - 2022",null,null,null,null,"Craiova",null,"Reluare temă de proiectare/proiect",null,null,null,null,null,null,null,null,null,null,null,"PRRASM 2021_IIA2_Anexa 1",null,"","","","","","","","","",null,null,null,null,null,"Afectat sau NU?","-","-","Afectat sau NU?","-","-","Afectat sau NU?","-","-"]
[52,"-","x","Pregătire conductă 24” Paltin - Schitu Golești pentru transformare în conductă godevilabilă (jud. Argeș)",13506,"Câmpulung","Argeș",506492.15500000003,421280.19400000002,506492.15500000003,421280.19400000002,"-","-","SM0078D0","SC Romturingia Câmpulung","-","-","-","-","SM-CF001",null,"SC Romturingia SRL","iulie - august 2021\nanul gazier 2021 - 2022",null,null,null,null,"Craiova",null,"Reluare temă de proiectare/proiect",null,null,null,null,null,null,null,null,null,null,null,"PRRASM 2021_IIA2_Anexa 1",null,"","","","","","","","","",null,null,null,null,null,"Afectat sau NU?","-","-","Afectat sau NU?","-","-","Afectat sau NU?","-","-"]
[53,"-","x","Pregătire conductă 24” Paltin - Schitu Golești pentru transformare în conductă godevilabilă (jud. Argeș)",13506,"Câmpulung","Argeș",509108.28096399998,421227.17672599998,509108.28096399998,421227.17672599998,"-","-","SM0213D1","SC Holcim Câmpulung","-","-","-","-","SM-CF001",null,"SC Holcim (România) SA","iulie - august 2021\nanul gazier 2021 - 2022",null,null,null,null,"Craiova",null,"Reluare temă de proiectare/proiect",null,null,null,null,null,null,null,null,null,null,null,"PRRASM 2021_IIA2_Anexa 1",null,"","","","","","","","","",null,null,null,null,null,"Afectat sau NU?","-","-","Afectat sau NU?","-","-","Afectat sau NU?","-","-"]
[54,"-","x","Pregătire conductă 24” Paltin - Schitu Golești pentru transformare în conductă godevilabilă (jud. Argeș)",13506,"Câmpulung","Argeș",509108.28096399998,421227.17672599998,509108.28096399998,421227.17672599998,"-","-","SM0213D2","SC Carmeuse Holding Câmpulung","-","-","-","-","SM-CF001",null,"SC Carmeuse Holding SRL","iulie - august 2021\nanul gazier 2021 - 2022",null,null,null,null,"Craiova",null,"Reluare temă de proiectare/proiect",null,null,null,null,null,null,null,null,null,null,null,"PRRASM 2021_IIA2_Anexa 1",null,"","","","","","","","","",null,null,null,null,null,"Afectat sau NU?","-","-","Afectat sau NU?","-","-","Afectat sau NU?","-","-"]
[55,"-","x","Pregătire conductă 24” Paltin - Schitu Golești pentru transformare în conductă godevilabilă (jud. Argeș)",13533,"Valea Mare Pravăț","Argeș",509108.28096399998,421227.17672599998,509108.28096399998,421227.17672599998,"-","-","SM0213D3","SC Star Multitrade Pravăț","-","-","-","-","SM-SD001",null,"SC Distrigaz Sud Rețele","iulie - august 2021\nanul gazier 2021 - 2022",null,null,null,null,"Craiova",null,"Reluare temă de proiectare/proiect",null,null,null,null,null,null,null,null,null,null,null,"PRRASM 2021_IIA2_Anexa 1",null,"","","","","","","","","",null,null,null,null,null,"Afectat sau NU?","-","-","Afectat sau NU?","-","-","Afectat sau NU?","-","-"]
[56,"-","x","Pregătire conductă 24” Paltin - Schitu Golești pentru transformare în conductă godevilabilă (jud. Argeș)",13506,"Câmpulung","Argeș",504544.17111499998,418845.73154000001,504544.17111499998,418845.73154000001,"-","-","SM0216D0","Câmpulung Muscel","-","-","-","-","SM-SD001",null,"SC Distrigaz Sud Rețele","iulie - august 2021\nanul gazier 2021 - 2022",null,null,null,null,"Craiova",null,"Reluare temă de proiectare/proiect",null,null,null,null,null,null,null,null,null,null,null,"PRRASM 2021_IIA2_Anexa 1",null,"","","","","","","","","",null,null,null,null,null,"Afectat sau NU?","-","-","Afectat sau NU?","-","-","Afectat sau NU?","-","-"]
[57,"-","x","Pregătire conductă 24” Paltin - Schitu Golești pentru transformare în conductă godevilabilă (jud. Argeș)",16917,"Lerești","Argeș",505375.83399999997,421813.47600000002,505375.83399999997,421813.47600000002,"-","-","SM1242D0","Lerești","-","-","-","-","SM-SD001",null,"SC Distrigaz Sud Rețele","iulie - august 2021\nanul gazier 2021 - 2022",null,null,null,null,"Craiova",null,"Reluare temă de proiectare/proiect",null,null,null,null,null,null,null,null,null,null,null,"PRRASM 2021_IIA2_Anexa 1",null,"","","","","","","","","",null,null,null,null,null,"Afectat sau NU?","-","-","Afectat sau NU?","-","-","Afectat sau NU?","-","-"]
[58,"-","x","Pregătire conductă 24” Paltin - Schitu Golești pentru transformare în conductă godevilabilă (jud. Argeș)",16356,"Podu Dâmboviței","Argeș",515779.41327671334,434408.46333483607,515779.41327671334,434408.46333483607,"-","-","SM1088D0","Podu Dâmboviței","-","-","-","-","SM-SD001",null,"SC Distrigaz Sud Rețele","iulie - august 2021\nanul gazier 2021 - 2022",null,null,null,null,"Brașov",null,"Reluare temă de proiectare/proiect",null,null,null,null,null,null,null,null,null,null,null,"PRRASM 2021_IIA2_Anexa 1",null,"","","","","","","","","",null,null,null,null,null,"Afectat sau NU?","-","-","Afectat sau NU?","-","-","Afectat sau NU?","-","-"]
[59,"-","x","Pregătire conductă 24” Paltin - Schitu Golești pentru transformare în conductă godevilabilă (jud. Argeș)",18536,"Rucăr","Argeș",514200.63,431834.68,514200.63,431834.68,"-","-","SM0938D0","Rucăr","-","-","-","-","SM-SD001",null,"Distrigaz Sud Rețele","iulie - august 2021\nanul gazier 2021 - 2022",null,null,null,null,"Brașov",null,"Reluare temă de proiectare/proiect",null,null,null,null,null,null,null,null,null,null,null,"PRRASM 2021_IIA2_Anexa 1",null,"","","","","","","","","",null,null,null,null,null,"Afectat sau NU?","-","-","Afectat sau NU?","-","-","Afectat sau NU?","-","-"]
[60,"-","x","Pregătire conductă 24” Paltin - Schitu Golești pentru transformare în conductă godevilabilă (jud. Brașov)",41630,"Poiana Mărului","Brașov",523056.64230800001,457084.35658999998,523056.64230800001,457084.35658999998,"-","-","SM0212D0","Poiana Mărului","-","-","-","-","SM-SD001",null,"SC Distrigaz Sud Rețele","iulie - august 2021\nseptembrie 2021",null,null,null,null,"Brașov",null,"Întârzieri în aprovizionarea cu materialele necesare",null,null,null,null,null,null,null,null,null,null,null,"PRRASM 2021_IIA5_Anexa 1",null,"","","","","","","","","",null,null,null,null,null,"Afectat sau NU?","-","-","Afectat sau NU?","-","-","Afectat sau NU?","-","-"]
[61,"-","x","Pregătire conductă 24” Paltin - Schitu Golești pentru transformare în conductă godevilabilă (jud. Brașov)",40508,"Zărnești","Brașov",525537.90700000001,451706.17499999999,525537.90700000001,451706.17499999999,"-","-","SM1251D0","DS Smith Paper Zărnești","-","-","-","-","SM-CF001",null,"DS Smith Paper Zarnești SRL","iulie - august 2021\nseptembrie 2021",null,null,null,null,"Brașov",null,"Întârzieri în aprovizionarea cu materialele necesare",null,null,null,null,null,null,null,null,null,null,null,"PRRASM 2021_IIA5_Anexa 1",null,"","","","","","","","","",null,null,null,null,null,"Afectat sau NU?","-","-","Afectat sau NU?","-","-","Afectat sau NU?","-","-"]
[62,"-","x","Pregătire conductă 24” Paltin - Schitu Golești pentru transformare în conductă godevilabilă (jud. Brașov)",41480,"Moieciu de Jos","Brașov",520679.86340593785,445316.53378087026,520679.86340593785,445316.53378087026,"-","-","SM1139D0","Moieciu","-","-","-","-","SM-SD001",null,"SC Premier Energy SRL","iulie - august 2021\nseptembrie 2021",null,null,null,null,"Brașov",null,"Întârzieri în aprovizionarea cu materialele necesare",null,null,null,null,null,null,null,null,null,null,null,"PRRASM 2021_IIA5_Anexa 1",null,"","","","","","","","","",null,null,null,null,null,"Afectat sau NU?","-","-","Afectat sau NU?","-","-","Afectat sau NU?","-","-"]
[63,"-","x","Pregătirea conductei 20” Ișalnița - Cruce Ghercești pentru transformarea în conductă godevilabilă, zonele Melinești, CET II Craiova și Ghercești",72409,"Ghercești","Dolj",411337.338474622,315622.46369252302,411337.338474622,315622.46369252302,"-","-","-","-","PM0275","Stația Centrală Ghercești Extras","-","-","VPM01","Aderro GP, Alpha Metal, Nova Power, Cez Vânzare, Cis Gaz, Cordun Gaz, CPL Concordia, Energy Trade, Design Proiect, Distrigaz Vest, Engie, Axpo, E.on Energie, Electric Planners, Energy Distribution, Enel Energie, Enel Muntenia, Gas&Power, Entrex, Euro Seven, Premier Energy Trading, Gaz Est, Gaz Nord Est, Mehedinți Gaz, Met România, Nord Gaz, Oligopol, Pado Group, Premier Energy, Petrom, Prisma Serv, Progaz, Energy Gas Provider, Restart Energy, Romgaz, RWE Supply, Salgaz, Tinmar, Vega 93, Veolia, Wiee","Depogaz Ploiești","5 octombrie - 30 noiembrie 2020\n8 februarie - 31 martie 2021","2021-03-18","09:00:00","2021-03-26","16:00:00","Craiova","Efectuată","Întârzieri în aprovizionarea cu materialele necesare datorită pandemiei COVID","2021-03-18","09:00:00","2021-03-22","19:05:00","2021-03-10","15:24:00","2021-03-10","15:10:00","19165/12.03.2021","DA",null,"PRRASM 2021_IIA4_Anexa 1",null,"","","","","","","","","",null,null,null,null,null,5,1,1,5,41,41,-92.916666666569654,42,42]
[64,"-","x","Pregătirea conductei 20” Ișalnița - Cruce Ghercești pentru transformarea în conductă godevilabilă, zonele Melinești, CET II Craiova și Ghercești",72409,"Ghercești","Dolj",404873.43649811199,317922.64097540599,404873.43649811199,317922.64097540599,"-","-","SM1142D0","Stația Centrală Ghercești Înmagazinat","-","-","-","-","VSM01",null,"Depogaz Ploiești","5 octombrie - 30 noiembrie 2020\n8 februarie - 31 martie 2021",null,null,null,null,"Craiova","Efectuată (Nu a mai fost necesară întreruperea)","Întârzieri în aprovizionarea cu materialele necesare datorită pandemiei COVID",null,null,null,null,null,null,null,null,null,null,null,"PRRASM 2021_IIA4_Anexa 1",null,{"$f":"IF(B80=\"X\",IF(AN80=\"\",\"Afectat sau NU?\",IF(AN80=\"DA\",IF(((AK80+AL80)-(AE80+AF80))*24<-720,\"Neinformat\",((AK80+AL80)-(AE80+AF80))*24),\"Nu a fost afectat producator/consumator\")),\"\")","v":""},{"$f":"IF(B80=\"X\",IF(AN80=\"DA\",IF(AR80<6,LEN(TRIM(V80))-LEN(SUBSTITUTE(V80,CHAR(44),\"\"))+1,0),\"-\"),\"\")","v":""},{"$f":"IF(B80=\"X\",IF(AN80=\"DA\",LEN(TRIM(V80))-LEN(SUBSTITUTE(V80,CHAR(44),\"\"))+1,\"-\"),\"\")","v":""},{"$f":"IF(B80=\"X\",IF(AN80=\"\",\"Afectat sau NU?\",IF(AN80=\"DA\",IF(((AI80+AJ80)-(AE80+AF80))*24<-720,\"Neinformat\",((AI80+AJ80)-(AE80+AF80))*24),\"Nu a fost afectat producator/consumator\")),\"\")","v":""},{"$f":"IF(B80=\"X\",IF(AN80=\"DA\",IF(AU80<6,LEN(TRIM(U80))-LEN(SUBSTITUTE(U80,CHAR(44),\"\"))+1,0),\"-\"),\"\")","v":""},{"$f":"IF(B80=\"X\",IF(AN80=\"DA\",LEN(TRIM(U80))-LEN(SUBSTITUTE(U80,CHAR(44),\"\"))+1,\"-\"),\"\")","v":""},{"$f":"IF(B80=\"X\",IF(AN80=\"\",\"Afectat sau NU?\",IF(AN80=\"DA\",((AG80+AH80)-(AE80+AF80))*24,\"Nu a fost afectat producator/consumator\")),\"\")","v":""},{"$f":"IF(B80=\"X\",IF(AN80=\"DA\",IF(AX80>24,IF(BA80=\"NU\",0,LEN(TRIM(V80))-LEN(SUBSTITUTE(V80,CHAR(44),\"\"))+1),0),\"-\"),\"\")","v":""},{"$f":"IF(B80=\"X\",IF(AN80=\"DA\",IF(AX80>24,LEN(TRIM(V80))-LEN(SUBSTITUTE(V80,CHAR(44),\"\"))+1,0),\"-\"),\"\")","v":""},null,null,null,null,null,{"$f":"IF(C80=\"X\",IF(AN80=\"\",\"Afectat sau NU?\",IF(AN80=\"DA\",IF(AK80=\"\",\"Neinformat\",NETWORKDAYS(AK80+AL80,AE80+AF80,$BS$2:$BS$14)-2),\"Nu a fost afectat producator/consumator\")),\"\")","v":"Afectat sau NU?"},{"$f":"IF(C80=\"X\",IF(AN80=\"DA\",IF(AND(BF80>=5,AK80<>\"\"),LEN(TRIM(V80))-LEN(SUBSTITUTE(V80,CHAR(44),\"\"))+1,0),\"-\"),\"\")","v":"-"},{"$f":"IF(C80=\"X\",IF(AN80=\"DA\",LEN(TRIM(V80))-LEN(SUBSTITUTE(V80,CHAR(44),\"\"))+1,\"-\"),\"\")","v":"-"},{"$f":"IF(C80=\"X\",IF(AN80=\"\",\"Afectat sau NU?\",IF(AN80=\"DA\",IF(AI80=\"\",\"Neinformat\",NETWORKDAYS(AI80+AJ80,AE80+AF80,$BS$2:$BS$14)-2),\"Nu a fost afectat producator/consumator\")),\"\")","v":"Afectat sau NU?"},{"$f":"IF(C80=\"X\",IF(AN80=\"DA\",IF(AND(BI80>=5,AI80<>\"\"),LEN(TRIM(U80))-LEN(SUBSTITUTE(U80,CHAR(44),\"\"))+1,0),\"-\"),\"\")","v":"-"},{"$f":"IF(C80=\"X\",IF(AN80=\"DA\",LEN(TRIM(U80))-LEN(SUBSTITUTE(U80,CHAR(44),\"\"))+1,\"-\"),\"\")","v":"-"},"Afectat sau NU?",{"$f":"IF(C80=\"X\",IF(AN80<>\"DA\",\"-\",IF(AND(AN80=\"DA\",BL80<=0),LEN(TRIM(V80))-LEN(SUBSTITUTE(V80,CHAR(44),\"\"))+1+LEN(TRIM(U80))-LEN(SUBSTITUTE(U80,CHAR(44),\"\"))+1,0)),\"\")","v":"-"},{"$f":"IF(C80=\"X\",IF(AN80=\"DA\",LEN(TRIM(V80))-LEN(SUBSTITUTE(V80,CHAR(44),\"\"))+1+LEN(TRIM(U80))-LEN(SUBSTITUTE(U80,CHAR(44),\"\"))+1,\"-\"),\"\")","v":"-"}]
[65,"-","x","Pregătirea conductei 20” Ișalnița - Cruce Ghercești pentru transformarea în conductă godevilabilă, zonele Melinești, CET II Craiova și Ghercești",73246,"Mischii","Dolj",410109.20217399998,320464.25903700001,410109.20217399998,320464.25903700001,"-","-","SM1037D0","Mischii","-","-","-","-","SM-SD001",null,"SC Distrigaz Sud Rețele","5 octombrie - 30 noiembrie 2020\n8 februarie - 31 martie 2021",null,null,null,null,"Craiova","Efectuată (Nu a mai fost necesară întreruperea)","Întârzieri în aprovizionarea cu materialele necesare datorită pandemiei COVID",null,null,null,null,null,null,null,null,null,null,null,"PRRASM 2021_IIA4_Anexa 1",null,"","","","","","","","","",null,null,null,null,null,"Afectat sau NU?","-","-","Afectat sau NU?","-","-","Afectat sau NU?","-","-"]
[66,"-","x","Pregătirea conductei 20” Ișalnița - Cruce Ghercești pentru transformarea în conductă godevilabilă, zonele Melinești, CET II Craiova și Ghercești",72418,"Ghercești","Dolj",412675.23300656455,316838.13070982782,412675.23300656455,316838.13070982782,"-","-","SM1146D0","Ghercești","-","-","-","-","SM-SD001",null,"SNGN Romgaz SA - Distribuție","5 octombrie - 30 noiembrie 2020\n8 februarie - 31 martie 2021",null,null,null,null,"Craiova","Efectuată (Nu a mai fost necesară întreruperea)","Întârzieri în aprovizionarea cu materialele necesare datorită pandemiei COVID",null,null,null,null,null,null,null,null,null,null,null,"PRRASM 2021_IIA4_Anexa 1",null,"","","","","","","","","",null,null,null,null,null,"Afectat sau NU?","-","-","Afectat sau NU?","-","-","Afectat sau NU?","-","-"]
[67,"-","x","Pregătirea conductei 20” Ișalnița - Cruce Ghercești pentru transformarea în conductă godevilabilă, zonele Melinești, CET II Craiova și Ghercești",72409,"Ghercești","Dolj",409849.89834700001,314332.01364700001,409849.89834700001,314332.01364700001,"-","-","SM1194D0","Ghercești II","-","-","-","-","SM-SD001",null,"SNGN Romgaz SA - Distribuție","5 octombrie - 30 noiembrie 2020\n8 februarie - 31 martie 2021",null,null,null,null,"Craiova","Efectuată (Nu a mai fost necesară întreruperea)","Întârzieri în aprovizionarea cu materialele necesare datorită pandemiei COVID",null,null,null,null,null,null,null,null,null,null,null,"PRRASM 2021_IIA4_Anexa 1",null,"","","","","","","","","",null,null,null,null,null,"Afectat sau NU?","-","-","Afectat sau NU?","-","-","Afectat sau NU?","-","-"]
[68,"-","x","Pregătirea conductei 20” Ișalnița - Cruce Ghercești pentru transformarea în conductă godevilabilă, zonele Melinești, CET II Craiova și Ghercești",73638,"Pielești","Dolj",414077.27,316502.84999999998,414077.27,316502.84999999998,"-","-","SM1187D0","Pielești","-","-","-","-","SM-SD001",null,"SC Megaconstruct SA","5 octombrie - 30 noiembrie 2020\n8 februarie - 31 martie 2021",null,null,null,null,"Craiova","Efectuată (Nu a mai fost necesară întreruperea)","Întârzieri în aprovizionarea cu materialele necesare datorită pandemiei COVID",null,null,null,null,null,null,null,null,null,null,null,"PRRASM 2021_IIA4_Anexa 1",null,"","","","","","","","","",null,null,null,null,null,"Afectat sau NU?","-","-","Afectat sau NU?","-","-","Afectat sau NU?","-","-"]
[69,"-","x","Pregătirea conductei 20” Ișalnița - Cruce Ghercești pentru transformarea în conductă godevilabilă, zonele Melinești, CET II Craiova și Ghercești",69900,"Craiova","Dolj",404921.26517999999,317959.37717400002,404921.26517999999,317959.37717400002,"-","-","SM1158D0","CET Craiova II","-","-","-","-","SM-CF001",null,"Complexul Energetic Oltenia","5 octombrie - 30 noiembrie 2020\n8 februarie - 31 martie 2021",null,null,null,null,"Craiova","Efectuată (Nu a mai fost necesară întreruperea)","Întârzieri în aprovizionarea cu materialele necesare datorită pandemiei COVID",null,null,null,null,null,null,null,null,null,null,null,"PRRASM 2021_IIA4_Anexa 1",null,"","","","","","","","","",null,null,null,null,null,"Afectat sau NU?","-","-","Afectat sau NU?","-","-","Afectat sau NU?","-","-"]
[70,"-","x","Pregătirea conductei 20” Ișalnița - Cruce Ghercești pentru transformarea în conductă godevilabilă, zonele Melinești, CET II Craiova și Ghercești",69900,"Craiova","Dolj",408229.28978400002,311000.13555200002,408229.28978400002,311000.13555200002,"-","-","SM0209D1","SC Ford Combinat","-","-","-","-","SM-CF001",null,"SC Ford România SA","5 octombrie - 30 noiembrie 2020\n8 februarie - 31 martie 2021",null,null,null,null,"Craiova","Efectuată (Nu a mai fost necesară întreruperea)","Întârzieri în aprovizionarea cu materialele necesare datorită pandemiei COVID",null,null,null,null,null,null,null,null,null,null,null,"PRRASM 2021_IIA4_Anexa 1",null,"","","","","","","","","",null,null,null,null,null,"Afectat sau NU?","-","-","Afectat sau NU?","-","-","Afectat sau NU?","-","-"]
[71,"-","x","Pregătirea conductei 20” Ișalnița - Cruce Ghercești pentru transformarea în conductă godevilabilă, zonele Melinești, CET II Craiova și Ghercești",69900,"Craiova","Dolj",408229.28978400002,311000.13555200002,408229.28978400002,311000.13555200002,"-","-","SM0209D2","Ford Craiova Casnici","-","-","-","-","SM-SD001",null,"SC Distrigaz Sud Rețele","5 octombrie - 30 noiembrie 2020\n8 februarie - 31 martie 2021",null,null,null,null,"Craiova","Efectuată (Nu a mai fost necesară întreruperea)","Întârzieri în aprovizionarea cu materialele necesare datorită pandemiei COVID",null,null,null,null,null,null,null,null,null,null,null,"PRRASM 2021_IIA4_Anexa 1",null,"","","","","","","","","",null,null,null,null,null,"Afectat sau NU?","-","-","Afectat sau NU?","-","-","Afectat sau NU?","-","-"]
[72,"-","x","Pregătirea conductei 20” Ișalnița - Cruce Ghercești pentru transformarea în conductă godevilabilă, zonele Melinești, CET II Craiova și Ghercești",69900,"Craiova","Dolj",404628.83991899999,311354.10385900002,404628.83991899999,311354.10385900002,"-","-","SM0208D0","Craiova Sud","-","-","-","-","SM-SD001",null,"SC Distrigaz Sud Rețele","5 octombrie - 30 noiembrie 2020\n8 februarie - 31 martie 2021",null,null,null,null,"Craiova","Efectuată (Nu a mai fost necesară întreruperea)","Întârzieri în aprovizionarea cu materialele necesare datorită pandemiei COVID",null,null,null,null,null,null,null,null,null,null,null,"PRRASM 2021_IIA4_Anexa 1",null,"","","","","","","","","",null,null,null,null,null,"Afectat sau NU?","-","-","Afectat sau NU?","-","-","Afectat sau NU?","-","-"]
[{"$f":"SUM(1,A88)","v":73},"-","x","Pregătirea conductei 20” Ișalnița - Cruce Ghercești pentru transformarea în conductă godevilabilă, zonele Melinești, CET II Craiova și Ghercești",70110,"Podari","Dolj",404627.67373699998,311347.63970100001,404627.67373699998,311347.63970100001,"-","-","SM1053D0","Podari","-","-","-","-","SM-SD001",null,"SC Distrigaz Sud Rețele","5 octombrie - 30 noiembrie 2020\n8 februarie - 31 martie 2021",null,null,null,null,"Craiova","Efectuată (Nu a mai fost necesară întreruperea)","Întârzieri în aprovizionarea cu materialele necesare datorită pandemiei COVID",null,null,null,null,null,null,null,null,null,null,null,"PRRASM 2021_IIA4_Anexa 1",null,"","","","","","","","","",null,null,null,null,null,"Afectat sau NU?","-","-","Afectat sau NU?","-","-","Afectat sau NU?","-","-"]
[74,"-","x","Reparație 6\" racord alimentare ELSID Titu, zona SRM Elsid",66090,"Titu","Dâmbovița",544542.71999999997,352331.07,544542.71999999997,352331.07,"-","-","SM0147D0","SC Elsid Titu","-","-","-","-","SM-CF001","E.on Energie","SC Elsid SA","5 octombrie - 30 noiembrie 2020\n14 - 31 decembrie 2020","2020-12-21","08:00:00","2020-12-21","18:00:00","București","Efectuată","Imposibilitate oprire alimentare cu gaze naturale datorită consumatorului direct ELSID, care pe perioada 09.11 - 10.12.2020 are instalația de calcinare în funcțiune.","2020-12-21","08:00:00","2020-12-21","17:10:00","2020-12-07","14:12:00","2020-12-07","13:37:00","5269/15.12.2020","DA",null,"PRRASM 2020_I_A_1 (Anexa 1)",null,"","","","","","","","","",null,null,null,null,null,9,1,1,9,1,1,-0.83333333325572312,2,2]
[75,"-","x","Lucrări de mentenanță în cadrul SRM Vlădeni",67265,"Vlădeni","Dâmbovița",561830.12,373144.01,567501.55000000005,372878.02,"-","-","SM0137D0","Vlădeni","-","-","-","-","SM-SD001","Aderro GP, Alpha Metal, Nova Power, Cez Vânzare, Cis Gaz, Conef Gaz, Crest Energy, Cyeb, Distrigaz Vest, Engie, E.On Energie, Electrocentrale București, Electrocentrale Constanța, Electrica Furnizare, Electric Planners, Electric&Gas, Energy Distribution, Enel, Enel Muntenia, Gas&Power, Entrex, Euro Seven Industry, Premier Energy Trading, Gaz Est, Hargaz, Megaconstruct, Met România, Monsson, Next Energy, Nord Gaz, Oligopol, Premier Energy, Petrom, Progaz, Energy Gas Provider, Renovatio, Restart Energy, Romgaz, RWE Supply, Tinmar, Transenergo, AIK România, Veolia, WIEE","Distrigaz Sud Rețele","5 octombrie - 30 noiembrie 2020\n18 - 31 decembrie 2020\nfebruarie - martie 2021\nmartie - aprilie 2021","2021-04-07","08:00:00","2021-04-07","18:00:00","București","Efectuată (Lucrarea a fost efectuată concomitent cu lucrarea de la pozițiile 33 - 35)","Lucrarea se va executa concomitent cu lucrarea de la pozițiile 33 - 35",null,null,null,null,null,null,null,null,null,null,null,"Lucrare realizată cu Sucursala Mediaș între lucrările planificate din Programul acesteia",null,"","","","","","","","","",null,null,null,null,null,"Afectat sau NU?","-","-","Afectat sau NU?","-","-","Afectat sau NU?","-","-"]
[76,"-","x","Lucrări de sistematizare a înstalației tehnologice SRM Gura Suții",65690,"Găești","Dimbovita",540272,360540,540272,360540,"-","-","SM0877D2","Gura Șuții - Găești","-","-","-","-","SM-SD001",null,"Distrigaz Sud Rețele","5 octombrie - 30 noiembrie 2020",null,null,null,null,"București","Efectuată (Nu a mai fost necesară întreruperea)",null,null,null,null,null,null,null,null,null,null,null,null,"Lucrare realizată cu Sucursala Mediaș între lucrările planificate din Programul acesteia",null,"","","","","","","","","",null,null,null,null,null,"Afectat sau NU?","-","-","Afectat sau NU?","-","-","Afectat sau NU?","-","-"]
[77,"-","x","Lucrări de sistematizare a înstalației tehnologice SRM Gura Suții",67657,"Gura Șuții","Dimbovita",540272,360540,540272,360540,"-","-","SM0877D1","Gura Șuții","-","-","-","-","SM-SD001",null,"Distrigaz Sud Rețele","5 octombrie - 30 noiembrie 2020",null,null,null,null,"București","Efectuată (Nu a mai fost necesară întreruperea)",null,null,null,null,null,null,null,null,null,null,null,null,"Lucrare realizată cu Sucursala Mediaș între lucrările planificate din Programul acesteia",null,"","","","","","","","","",null,null,null,null,null,"Afectat sau NU?","-","-","Afectat sau NU?","-","-","Afectat sau NU?","-","-"]
[78,"-","x","Lucrări de sistematizare a înstalației tehnologice SRM Gura Suții",66090,"Titu","Dimbovita",540271.56000000006,360541.04,540271.56000000006,360541.04,"-","-","SM0147D0","SC ELSID Titu","-","-","-","-","SM-CF001",null,"SC ELSID SA","5 octombrie - 30 noiembrie 2020",null,null,null,null,"București","Efectuată (Nu a mai fost necesară întreruperea)",null,null,null,null,null,null,null,null,null,null,null,null,"Lucrare realizată cu Sucursala Mediaș între lucrările planificate din Programul acesteia",null,"","","","","","","","","",null,null,null,null,null,"Afectat sau NU?","-","-","Afectat sau NU?","-","-",{"$f":"IF(C94=\"X\",IF(AN94=\"\",\"Afectat sau NU?\",IF(AN94=\"DA\",((AG94+AH94)-(Z94+AA94))*24,\"Nu a fost afectat producator/consumator\")),\"\")","v":"Afectat sau NU?"},"-","-"]
[79,"-","x","Reparație conductă  4'' racord SRM Zagna Vădeni, zona Vădeni                                                                                                                                        ",44408,"Vădeni","Brăila",728803.97,433053.5,728803.97,433053.5,"-","-","SM0532D0","Zagna Vădeni","-","-","-","-","SM-SD001",null,"Distrigaz Sud Rețele","aprilie - septembrie 2021",null,null,null,null,"Brăila",null,null,null,null,null,null,null,null,null,null,null,null,null,"Sucursala A_13",null,"","","","","","","","","",null,null,null,null,null,"Afectat sau NU?","-","-","Afectat sau NU?","-","-","Afectat sau NU?","-","-"]
[80,"x","-","Eliminare emanații la robinetul RF12 în SRM Rulmentul Bârlad                                                                                                                              ",161801,"Bârlad","Vaslui",706749.84,532319.88,706749.84,532319.88,"-","-","SM0978D0","Rulmenți Bârlad","-","-","-","-","SM-CF001","Power&Gas, Cez Vânzare","SC Rulmenți SA","-","2020-10-03","08:05:00","2020-10-03","11:00:00","Brăila","Efectuată",null,"2020-10-03","08:05:00","2020-10-03","09:35:00","2020-10-03","08:24:00","2020-10-03","08:11:00","5720/29.09.2020","DA",null,null,null,9.9999999976716936E-2,1,1,0.31666666665114462,2,2,1.5,0,0,null,null,null,null,null,"","","","","","","","",""]
[81,"x","-","Înlocuire robinet defect în SRM Chițcani",163155,"Chițcani","Vaslui",715362.07,550449.77,715362.07,550449.77,"-","-","SM1114D0","Chițcani","-","-","-","-","SM-SD001","Aderro, Power&Gas, Cez Vânzare, CIS Gaz, Engie România, E.On Energie, Electrica Furnizare, Electric&Gas, Energy Distribution, Enel Energie, Enel Energie Muntenia, Gas&Power, Premier Energy Trading, Gaz Est, Gaz Vest, Met România, Premier Energy, Petrom, Renovatio, Restart Energy, Safi-Star, Tinmar, AIK Energy","Gaz Est","-","2020-10-03","12:10:00","2020-10-03","14:00:00","Brăila","Efectuată",null,"2020-10-03","12:10:00","2020-10-03","12:35:00","2020-10-03","12:25:00","2020-10-03","12:15:00","5719/29.09.2020","DA",null,null,null,8.3333333255723119E-2,1,1,0.24999999994179234,23,23,0.41666666662786156,0,0,null,null,null,null,null,"","","","","","","","",""]
[82,"x","-","Înlocuire cupon pe conducta 4\" racord SRM Zagna Vădeni",44408,"Vădeni","Brăila",728803.97,433053.5,728803.97,433053.5,"-","-","SM0532D0","Zagna Vădeni","-","-","-","-","SM-SD001","Aderro GP, Alpha Metal, Nova Power, Cez Vânzare, Cis Gaz, Conef Gaz, Crest Energy, Cyeb, Distrigaz Vest, Engie, E.On Energie, Electrocentrale București, Electrocentrale Constanța, Electrica Furnizare, Electric Planners, Electric&Gas, Energy Distribution, Enel Energie, Enel Muntenia, Gas&Power, Entrex, Euro Seven Industry, Premier Energy Trading, Gaz Est, Hargaz, Gaz Vest, Megaconstruct, Met România, Monsson, Next Energy Distribution, Next Energy Parteners, Nord Gaz, Oligopol, Premier Energy, Petrom, Progaz, Energy Gas Provider, Renovatio, Res Energy Solutions, Restart Energy, Romgaz, RWE Supply, Tinmar, Transenergo, AIK România, Veolia, Wiee România","Distrigaz Sud Rețele","-","2020-10-08","07:05:00","2020-10-08","15:00:00","Brăila","Efectuată",null,"2020-10-08","07:05:00","2020-10-08","13:20:00","2020-10-08","07:37:00","2020-10-08","07:15:00","5901/06.10.2020","DA",null,null,null,0.16666666668606922,1,1,0.53333333332557231,47,47,6.2499999999417923,0,0,null,null,null,null,null,"","","","","","","","",""]
[83,"x","-","Înlocuire robinet R2 și R3 în SRM Mihăești AG",17263,"Mihăești","Argeș",500598.14,401110.15,500598.14,401110.15,"-","-","SM1243D0","Mihăești AG","-","-","-","-","SM-SD001","Aderro GP, Alpha Metal, Nova Power, Cez Vânzare, Cis Gaz, Conef Gaz, Crest Energy, Cyeb, Distrigaz Vest, Engie, E.On Energie, Electrocentrale București, Electrocentrale Constanța, Electrica Furnizare, Electric Planners, Electric&Gas, Energy Distribution, Enel Energie, Enel Muntenia, Gas&Power, Entrex, Euro Seven Industry, Premier Energy Trading, Gaz Est, Hargaz, Gaz Vest, Megaconstruct, Met România, Monsson, Next Energy Distribution, Next Energy Parteners, Nord Gaz, Oligopol, Premier Energy, Petrom, Progaz, Energy Gas Provider, Renovatio, Res Energy Solutions, Restart Energy, Romgaz, RWE Supply, Tinmar, Transenergo, AIK România, Veolia, Wiee România","Distrigaz Sud Rețele","-","2020-10-14","09:35:00","2020-10-14","14:00:00","Craiova","Efectuată",null,"2020-10-14","09:35:00","2020-10-14","13:25:00","2020-10-14","09:46:00","2020-10-14","09:36:00","2450/13.10.2020","DA",null,null,null,1.6666666720993817E-2,1,1,0.18333333340706304,47,47,3.8333333334303461,0,0,null,null,null,null,null,"","","","","","","","",""]
[84,"x","-","Întrerupere accidentală SRM Adjud datorită blocării modulului de reglare cauzat de acumularea de impurități mecanice fine la sistemul de pilotare a regulatoarelor de pe ambele linii ale instalației",174897,"Adjudu Vechi","Vrancea",669494.85,517076.88,669494.85,517076.88,"-","-","SM0508D0","Adjud","-","-","-","-","SM-SD001","Aderro GP, Alpha Metal, Nova Power, Cez Vânzare, Cis Gaz, Conef Gaz, Crest Energy, Cyeb, Distrigaz Vest, Engie, E.On Energie, Electrocentrale București, Electrocentrale Constanța, Electrica Furnizare, Electric Planners, Electric&Gas, Energy Distribution, Enel Energie, Enel Muntenia, Gas&Power, Entrex, Euro Seven Industry, Premier Energy Trading, Gaz Est, Hargaz, Gaz Vest, Megaconstruct, Met România, Monsson, Next Energy Distribution, Next Energy Parteners, Nord Gaz, Oligopol, Premier Energy, Petrom, Progaz, Energy Gas Provider, Renovatio, Res Energy Solutions, Restart Energy, Romgaz, RWE Supply, Tinmar, Transenergo, AIK România, Veolia, Wiee România","Distrigaz Sud Rețele","-","2020-10-15","21:00:00","2020-10-16","07:30:00","Bacău","Efectuată",null,"2020-10-15","21:00:00","2020-10-16","07:30:00","2020-10-15","23:30:00","2020-10-15","21:00:00","-","DA",null,null,null,0,1,1,2.4999999999417923,47,47,10.5,0,0,null,null,null,null,null,"","","","","","","","",""]
[85,"x","-","Remediere defecte de coroziune pe conducta 20\" Adjudul Vechi - Siliștea, zona Malul Alb",76709,"Matca","Galați",695489.22,484890.48,695489.22,484890.48,"-","-","SM0980D0","Matca(Vega93)","-","-","-","-","SM-SD001","Nova Power, Cez Vânzare, Engie, Electrica Furnizare, Enel Energie, Enel Muntenia, Premier Energy Trading, Met România, Petrom, Restart Energy, Tinmar, AIK România, Vega 93","Vega 93","-","2020-10-22","07:05:00","2020-10-22","17:00:00","Brăila","Efectuată",null,"2020-10-22","07:05:00","2020-10-22","16:20:00","2020-10-22","07:27:00","2020-10-22","07:14:00","6174/19.10.2020","DA",null,null,null,0.1499999999650754,1,1,0.36666666663950309,13,13,9.2499999999417923,0,0,null,null,null,null,null,"","","","","","","","",""]
[86,"x","-","Remediere defecte de coroziune pe conducta 20\" Adjudul Vechi - Siliștea, zona Malul Alb",76166,"Cudalbi","Galați",695290.48,477000.47,695290.48,477000.47,"-","-","-","-","-","-","PM0284","Cudalbi","PM-PP001","Amromco","Amromco","-","2020-10-22","07:07:00","2020-10-22","17:00:00","Brăila","Efectuată",null,"2020-10-22","07:07:00","2020-10-22","16:23:00","2020-10-22","07:24:00","2020-10-22","07:15:00","6174/19.10.2020","DA",null,null,null,0.13333333341870457,1,1,0.28333333338377997,1,1,9.2666666666627862,0,0,null,null,null,null,null,"","","","","","","","",""]
[87,"x","-","Întrerupere accidentală SRM Venchi datorită blocării modulului de reglare.",116527,"Seleuș","Mureș",478337.54,526538,478337.54,526538,"-","-","SM0008D0","Venchi","-","-","-","-","SM-SD001","Aderro GP, Nova Power, Cez Vânzare, Cis Gaz, Conef Gaz, CPL Concordia, Crest Energy, Cyeb, Design Proiect, Distrigaz Vest, Engie, E.on Energie, Electrica Furnizare, Electric Planners, Electric&Gas, Energy Distribution, Enel Energie, Enel Muntenia, Gas&Power, Entrex, Premier Energy Trading, Gaz Est, Hargaz, Gazmir, Gaz Vest, Mihoc Oil, Met România, Monsson, Next Energy Distribution, Next Energy Partners, Pado Group, Premier Energy, Petrom, Prisma Serv, Gas Provider, Renovatio, Res Energy Solutions, Restart Energy, RWE Supply, SST Grup, Tetarom, Tinmar, AIK Energy, Veolia, Wiee","Delgaz Grid","-","2020-10-23","15:30:00","2020-10-23","17:00:00","Mediaș","Efectuată",null,"2020-10-23","15:30:00","2020-10-23","17:15:00","2020-10-23","16:04:00","2020-10-23","15:49:00","-","DA",null,null,null,0.31666666665114462,1,1,0.56666666659293696,45,45,1.7499999999417923,0,0,null,null,null,null,null,"","","","","","","","",""]
[88,"x","-","Înlocuire robinet R11 în SRM Ișalnița (ieșire CET)",70101,"Ișalnița","Dolj",399102.24,320723.83,399102.24,320723.83,"-","-","SM0207D6","CET Ișalnița","-","-","-","-","SM-CF001","E.on Energie, Premier Energy","Complexul Energetic Oltenia","-","2020-10-27","09:13:00","2020-10-27","19:00:00","Craiova","Efectuată",null,"2020-10-27","09:13:00","2020-10-27","13:16:00","2020-10-27","09:35:00","2020-10-27","09:27:00","-","DA",null,null,null,0.2333333333954215,1,1,0.36666666663950309,2,2,4.0499999999301508,0,0,null,null,null,null,null,"","","","","","","","",""]
[89,"x","-","Înlocuire instalație tehnologică SRM Dumitra",7419,"Dumitra","Alba",397685.98,511910.97,397685.98,511910.97,"-","-","SM0277D0","Dumitra","-","-","-","-","SM-SD001","Aderro GP, Nova Power, Cez Vânzare, Cis Gaz, Conef Gaz, CPL Concordia, Crest Energy, Cyeb, Design Proiect, Distrigaz Vest, Engie, E.on Energie, Electrica Furnizare, Electric Planners, Electric&Gas, Energy Distribution, Enel Energie, Enel Muntenia, Gas&Power, Entrex, Premier Energy Trading, Gaz Est, Hargaz, Gazmir, Gaz Vest, Mihoc Oil, Met România, Monsson, Next Energy Distribution, Next Energy Partners, Pado Group, Premier Energy, Petrom, Prisma Serv, Gas Provider, Renovatio, Res Energy Solutions, Restart Energy, RWE Supply, SST Grup, Tetarom, Tinmar, AIK Energy, Veolia, Wiee","Delgaz Grid","-","2020-10-28","08:00:00","2020-10-28","14:00:00","Mediaș","Efectuată",null,"2020-10-28","08:00:00","2020-10-28","14:00:00","2020-10-28","08:13:00","2020-10-28","08:02:00","-","DA",null,null,null,3.3333333267364651E-2,1,1,0.21666666667442769,45,45,6,0,0,null,null,null,null,null,"","","","","","","","",""]
[90,"x","-","Întrerupere accidentală SRM Oradea I",26671,"Palota","Bihor",257019.14,624573.64,257019.14,624573.64,"-","-","SM0300D0","Oradea I","-","-","-","-","SM-SD001","Nova Power, Cez Vânzare, CIS Gaz, Cyeb, Distrigaz Vest, Engie, E.On Energie, Electrica Furnizare, Electric&Gas, Energy Distribution, Enel Energie, Enel Muntenia, Gas&Power, Premier Energy Trading, Gaz Est, Gaz Vest, Met România, Premier Energy, Petrom, Energy Gas Provider, Renovatio, Restart Energy, Tinmar, AIK România","Gaz Vest","-","2020-11-02","10:10:00","2020-11-02","13:00:00","Cluj","Efectuată",null,"2020-11-02","10:10:00","2020-11-02","13:00:00","2020-11-02","11:24:00","2020-11-02","10:57:00","-","DA",null,null,null,0.78333333344198763,1,1,1.2333333333372138,24,24,2.8333333333139308,0,0,null,null,null,null,null,"","","","","","","","",""]
[91,"x","-","Înlocuire cupon de 50 ml pe conducta 16” Buhoci - Valea Malului, zona Poieni",20830,"Comănești","Bacău",612544.18000000005,546881.67000000004,612544.18000000005,546881.67000000004,"-","-","SM0432D1","Comănești","-","-","-","-","SM-SD001","Aderro GP, Nova Power, Cez Vânzare, Cis Gaz, Conef Gaz, CPL Concordia, Crest Energy, Cyeb, Design Proiect, Distrigaz Vest, Engie, E.on Energie, Electrica Furnizare, Electric Planners, Electric&Gas, Energy Distribution, Enel Energie, Enel Muntenia, Gas&Power, Entrex, Premier Energy Trading, Gaz Est, Hargaz, Gazmir, Gaz Vest, Mihoc Oil, Met România, Monsson, Next Energy Distribution, Next Energy Partners, Pado Group, Premier Energy, Petrom, Prisma Serv, Gas Provider, Renovatio, Res Energy Solutions, Restart Energy, RWE Supply, SST Grup, Tetarom, Tinmar, AIK Energy, Veolia, Wiee","Delgaz Grid","-","2020-11-04","09:04:00","2020-11-04","17:00:00","Bacău","Efectuată",null,"2020-11-04","09:04:00","2020-11-04","17:00:00","2020-11-04","09:26:00","2020-11-04","09:10:00","6156/02.11.2020","DA",null,null,null,9.9999999976716936E-2,1,1,0.36666666663950309,45,45,7.9333333333488554,0,0,null,null,null,null,null,"","","","","","","","",""]
[92,"x","-","Înlocuire cupon de 50 ml pe conducta 16” Buhoci - Valea Malului, zona Poieni",20983,"Poieni","Bacău",620720.72,533623.9,620720.72,533623.9,"-","-","SM0430D0","Poieni","-","-","-","-","SM-SD001","Aderro GP, Nova Power, Cez Vânzare, Cis Gaz, Conef Gaz, CPL Concordia, Crest Energy, Cyeb, Design Proiect, Distrigaz Vest, Engie, E.on Energie, Electrica Furnizare, Electric Planners, Electric&Gas, Energy Distribution, Enel Energie, Enel Muntenia, Gas&Power, Entrex, Premier Energy Trading, Gaz Est, Hargaz, Gazmir, Gaz Vest, Mihoc Oil, Met România, Monsson, Next Energy Distribution, Next Energy Partners, Pado Group, Premier Energy, Petrom, Prisma Serv, Gas Provider, Renovatio, Res Energy Solutions, Restart Energy, RWE Supply, SST Grup, Tetarom, Tinmar, AIK Energy, Veolia, Wiee","Delgaz Grid","-","2020-11-04","09:04:00","2020-11-04","17:00:00","Bacău","Efectuată",null,"2020-11-04","09:04:00","2020-11-04","17:00:00","2020-11-04","09:26:00","2020-11-04","09:10:00","6156/02.11.2020","DA",null,null,null,9.9999999976716936E-2,1,1,0.36666666663950309,45,45,7.9333333333488554,0,0,null,null,null,null,null,"","","","","","","","",""]
[93,"x","-","Înlocuire cupon de 50 ml pe conducta 16” Buhoci - Valea Malului, zona Poieni",20885,"Moinești","Bacău",613113.19999999995,553437.6,613113.19999999995,553437.6,"-","-","SM0440D0","Moinești Dealu Mare","-","-","-","-","SM-SD001","Aderro GP, Nova Power, Cez Vânzare, Cis Gaz, Conef Gaz, CPL Concordia, Crest Energy, Cyeb, Design Proiect, Distrigaz Vest, Engie, E.on Energie, Electrica Furnizare, Electric Planners, Electric&Gas, Energy Distribution, Enel Energie, Enel Muntenia, Gas&Power, Entrex, Premier Energy Trading, Gaz Est, Hargaz, Gazmir, Gaz Vest, Mihoc Oil, Met România, Monsson, Next Energy Distribution, Next Energy Partners, Pado Group, Premier Energy, Petrom, Prisma Serv, Gas Provider, Renovatio, Res Energy Solutions, Restart Energy, RWE Supply, SST Grup, Tetarom, Tinmar, AIK Energy, Veolia, Wiee","Delgaz Grid","-","2020-11-04","09:04:00","2020-11-04","17:00:00","Bacău","Efectuată",null,"2020-11-04","09:04:00","2020-11-04","17:00:00","2020-11-04","09:26:00","2020-11-04","09:10:00","6156/02.11.2020","DA",null,null,null,9.9999999976716936E-2,1,1,0.36666666663950309,45,45,7.9333333333488554,0,0,null,null,null,null,null,"","","","","","","","",""]
[94,"x","-","Remediere definitivă a unui defect de coroziune pe conducta 20” Turburea - Ișalnița, fir I, zona Răcari",72418,"Ghercești","Dolj",412675.23,316838.13,412675.23,316838.13,"-","-","SM1142D0","Stația Centrală Ghercești Înmagazinat","-","-","-","-","VSM01","Amarad, Nova Power, Cez Vânzare, Cordun Gaz, CPL Concordia, MM Data, Distrigaz Vest, Engie, Axpo, E.on Energie, Enel, Enel Muntenia, Euro Seven, Gaz Est, Mehedinți Gaz, Met România, Nord Gaz, Premier Energy, Petrom, Progaz, Restart Energy, Romgaz, Tinmar","Depogaz Ploiești","-","2020-11-16","11:10:00","2020-11-16","23:00:00","Craiova","Efectuată (din motive tehnice a trebuit amânată)",null,"2020-11-16","11:10:00","2020-11-16","12:50:00","2020-11-16","12:28:00","2020-11-16","11:26:00","2717/13.11.2020","DA",null,null,null,0.26666666666278616,1,1,1.2999999998719431,23,23,1.6666666665114462,0,0,null,null,null,null,null,"","","","","","","","",""]
[95,"x","-","Remediere definitivă a unui defect de coroziune pe conducta 20” Turburea - Ișalnița, fir I, zona Răcari",72418,"Ghercești","Dolj",412675.23,316838.13,412675.23,316838.13,"-","-","-","-","-","-","PM0275","Stația Centrală Ghercești Extras","VPM01","Aderro GP, Alpha Metal, Amarad, Nova Power, Cez Vânzare, Cordun Gaz, CPL Concordia, Cyeb, MM Data, Distrigaz Vest, Engie, E.on Energie, Electrica Furnizare, Electric&Gas, Energy Distribution, Enel Energie, Enel Muntenia, Gas&Power, Euro Seven, Premier Energy Trading, Gaz Est, Hargaz, Gazmir, Gaz Nord Est, Gaz Vest, Gecabuild, Măcin Gaz, Mehedinți Gaz, Met România, Nord Gaz, Oligopol, Pado Group, Premier Energy, Petrom, Prisma Serv, Progaz, Energy Gas Provider, Restart Energy, Romgaz, Tinmar, Vega 93, Veolia, Wiee","Depogaz Ploiești","-","2020-11-16","11:10:00","2020-11-16","23:00:00","Craiova","Efectuată (din motive tehnice a trebuit amânată)",null,"2020-11-16","11:10:00","2020-11-16","12:50:00","2020-11-16","12:28:00","2020-11-16","11:26:00","2717/13.11.2020","DA",null,null,null,0.26666666666278616,1,1,1.2999999998719431,43,43,1.6666666665114462,0,0,null,null,null,null,null,"","","","","","","","",""]
[96,"x","-","Cuplare deviere conductă 4” racord SRM Tălmăcel",145845,"Boița","Sibiu",442446.2,460048.52,442446.2,460048.52,"-","-","SM0736D0","Boița","-","-","-","-","SM-SD001","Aderro GP, Nova Power, Cez Vânzare, Cis Gaz, Conef Gaz, CPL Concordia, Crest Energy, Cyeb, Design Proiect, Distrigaz Vest, Engie, E.on Energie, Electrica Furnizare, Electric Planners, Electric&Gas, Energy Distribution, Enel Energie, Enel Muntenia, Gas&Power, Entrex, Premier Energy Trading, Gaz Est, Hargaz, Gazmir, Gaz Vest, Mihoc Oil, Met România, Monsson, Next Energy Distribution, Next Energy Partners, Pado Group, Premier Energy, Petrom, Prisma Serv, Gas Provider, Renovatio, Res Energy Solutions, Restart Energy, RWE Supply, SST Grup, Tetarom, Tinmar, Veolia, Wiee","Delgaz Grid","-","2020-11-24","08:00:00","2020-11-24","15:00:00","Mediaș","Efectuată",null,"2020-11-24","08:00:00","2020-11-24","14:00:00","2020-11-24","08:29:00","2020-11-24","08:09:00","10487/23.11.2020","DA",null,null,null,0.1499999999650754,1,1,0.48333333333721384,44,44,6,0,0,null,null,null,null,null,"","","","","","","","",""]
[97,"x","-","Cuplare deviere conductă 4” racord SRM Tălmăcel",145890,"Tălmăcel","Sibiu",441757.19,461422.55,441757.19,461422.55,"-","-","SM1160D0","Tălmăcel II","-","-","-","-","SM-SD001","Aderro GP, Nova Power, Cez Vânzare, Cis Gaz, Conef Gaz, CPL Concordia, Crest Energy, Cyeb, Design Proiect, Distrigaz Vest, Engie, E.on Energie, Electrica Furnizare, Electric Planners, Electric&Gas, Energy Distribution, Enel Energie, Enel Muntenia, Gas&Power, Entrex, Premier Energy Trading, Gaz Est, Hargaz, Gazmir, Gaz Vest, Mihoc Oil, Met România, Monsson, Next Energy Distribution, Next Energy Partners, Pado Group, Premier Energy, Petrom, Prisma Serv, Gas Provider, Renovatio, Res Energy Solutions, Restart Energy, RWE Supply, SST Grup, Tetarom, Tinmar, Veolia, Wiee","Delgaz Grid","-","2020-11-24","08:00:00","2020-11-24","15:00:00","Mediaș","Efectuată",null,"2020-11-24","08:00:00","2020-11-24","14:00:00","2020-11-24","08:29:00","2020-11-24","08:09:00","10487/23.11.2020","DA",null,null,null,0.1499999999650754,1,1,0.48333333333721384,44,44,6,0,0,null,null,null,null,null,"","","","","","","","",""]
[98,"x","-","Cuplare deviere conductă 4” racord SRM Tălmăcel",145890,"Tălmăcel","Sibiu",441290.5,461208.57,441290.5,461208.57,"-","-","SM0735D0","Tălmăcel","-","-","-","-","SM-SD001","Aderro GP, Nova Power, Cez Vânzare, Cis Gaz, Conef Gaz, CPL Concordia, Crest Energy, Cyeb, Design Proiect, Distrigaz Vest, Engie, E.on Energie, Electrica Furnizare, Electric Planners, Electric&Gas, Energy Distribution, Enel Energie, Enel Muntenia, Gas&Power, Entrex, Premier Energy Trading, Gaz Est, Hargaz, Gazmir, Gaz Vest, Mihoc Oil, Met România, Monsson, Next Energy Distribution, Next Energy Partners, Pado Group, Premier Energy, Petrom, Prisma Serv, Gas Provider, Renovatio, Res Energy Solutions, Restart Energy, RWE Supply, SST Grup, Tetarom, Tinmar, Veolia, Wiee","Delgaz Grid","-","2020-11-24","08:00:00","2020-11-24","15:00:00","Mediaș","Efectuată",null,"2020-11-24","08:00:00","2020-11-24","14:00:00","2020-11-24","08:29:00","2020-11-24","08:09:00","10487/23.11.2020","DA",null,null,null,0.1499999999650754,1,1,0.48333333333721384,44,44,6,0,0,null,null,null,null,null,"","","","","","","","",""]
[99,"x","-","Întrerupere accidentală SRM Vața",19962,"Vața","Argeș",474320.82,361923.01,474320.82,361923.01,"-","-","SM0219D0","Vața","-","-","-","-","SM-SD001","Aderro GP, Alpha Metal, Nova Power, Cez Vânzare, Cis Gaz, Conef Gaz, Crest Energy, Cyeb, Distrigaz Vest, Engie, E.on Energie, Electrocentrale București, Electrocentrale Constanța, Electrica Furnizare, Electric Planners, Electric&Gas, Energy Distribution, Enel Energie, Enel Muntenia, Gas&Power, Entrex, Euro Seven, Premier Energy Trading, Gaz Est, Hargaz, Gaz Vest, Megaconstruct, Met România, Monsson, Next Energy Distribution, Next Energy Partners, Nord Gaz, Oligopol, Premier Energy, Petrom, Progaz, Energy Gas Provider, Renovatio, Res Energy Solutions, Restart Energy, Romgaz, RWE Supply, Tinmar, Transenergo, Vega 93, Veolia, Wiee","Distrigaz Sud Rețele","-","2020-12-03","11:50:00","2020-12-03","14:00:00","Craiova","Efectuată",null,"2020-12-03","11:50:00","2020-12-03","14:00:00","2020-12-03","12:21:00","2020-12-03","12:14:00","-","DA",null,null,null,0.40000000008149073,1,1,0.5166666666045785,47,47,2.1666666667442769,0,0,null,null,null,null,null,"","","","","","","","",""]
[100,"x","-","Întrerupere accidentală SRM Gordon Prod Bulgăreni",84852,"Bulgăreni","Harghita",518631.57,539395.30000000005,518631.57,539395.30000000005,"-","-","SM0999D0","SC Gordon Prod Bulgăreni","-","-","-","-","SM-CF001","Nova Power","SC Gordon Prod SRL","-","2020-12-17","14:56:00","2020-12-18","14:00:00","Brașov","Efectuată",null,"2020-12-17","14:56:00","2020-12-18","10:00:00","2020-12-17","15:20:00","2020-12-17","15:03:00","3589/18.12.2020","DA",null,null,null,0.11666666669771075,1,1,0.40000000008149073,1,1,19.066666666651145,0,0,null,null,null,null,null,"","","","","","","","",""]
[101,"x","-","Remediere defect pe conducta 32\" Moșu - Cogenerare Brazi la traversarea râului Prahova ",130721,"Brazii de sus","Prahova",578964.69999999995,376015.84,578964.69999999995,376015.84,"SM1248D0","CECC Brazi","-","-","-","-","-","-","SM-CF001","Nova Power, Cez Vânzare, Engie, E.on Energie, Electric&Gas, Enel, Premier Energy Trading, Gaz Est, Premier Energy, Petrom, Restart Energy","Petrom","-","2020-12-31","04:50:00","2020-12-31","14:00:00","București","Efectuată",null,"2020-12-31","04:50:00","2020-12-31","11:45:00","2020-12-31","06:09:00","2020-12-31","05:43:00","5519/31.12.2020","DA",null,null,null,0.88333333324408159,1,1,1.316666666592937,11,11,6.9166666666860692,0,0,null,null,null,null,null,"","","","","","","","",""]
[102,"x","-","Limitare tehnică a conductei 20\" NT Mănești - Brazi Fir II",130721,"Brazii de sus","Prahova",578964.69999999995,376015.84,578964.69999999995,376015.84,"SM1248D0","CECC Brazi","-","-","-","-","-","-","SM-CF001","Nova Power, Cez Vânzare, Engie, E.on Energie, Electric&Gas, Enel, Premier Energy Trading, Gaz Est, Premier Energy, Petrom, Restart Energy","Petrom","-","2020-12-31","15:00:00","2021-01-01","04:00:00","București","Efectuată",null,"2020-12-31","15:00:00","2021-01-01","10:29:00","2020-12-31","15:48:00","2020-12-31","15:29:00",null,"DA",null,null,null,0.48333333333721384,1,1,0.79999999998835847,11,11,19.483333333279006,0,0,null,null,null,null,null,"","","","","","","","",""]
[103,"x","-","Cuplare instalație tehnologică SRM Chișineu Criș la racord 8\" Chișineu Criș",9468,"Chișineu-Criș","Arad",233939.75,564386.76,233939.75,564386.76,"-","-","SM0357D0","Chișineu-Criș I","-","-","-","-","SM-SD001","Aderro GP, Nova Power, Cez Vânzare, Cis Gaz, Conef Gaz, CPL Concordia, Crest Energy, Cyeb, Design Proiect, Distrigaz Vest, Engie, E.on Energie, Electrica Furnizare, Electric Planners, Electric&Gas, Energy Distribution, Enel Energie, Enel Muntenia, Gas&Power, Entrex, Premier Energy Trading, Gaz Est, Hargaz, Gazmir, Gaz Vest, Mihoc Oil, Met România, Monsson, Next Energy Distribution, Next Energy Partners, Pado Group, Premier Energy, Petrom, Prisma Serv, Gas Provider, Renovatio, Res Energy Solutions, Restart Energy, RWE Supply, SST Grup, Tetarom, Tinmar, Veolia, Wiee","Delgaz Grid","-","2021-01-05","09:00:00","2021-01-05","16:00:00","Arad","Efectuată",null,"2021-01-05","09:00:00","2021-01-05","18:00:00","2021-01-05","09:56:00","2021-01-05","09:34:00","12055/30.12.2020","DA",null,null,null,0.56666666659293696,1,1,0.93333333340706304,44,44,9,0,0,null,null,null,null,null,"","","","","","","","",""]
[104,"x","-","Cuplare instalație tehnologică SRM Chișineu Criș la racord 8\" Chișineu Criș",9468,"Chișineu-Criș","Arad",234007.73,565309.06000000006,234007.73,565309.06000000006,"-","-","SM0356D0","SC Maricom Chișineu Criș III","-","-","-","-","SM-SD001","Aderro GP, Nova Power, Cez Vânzare, Cis Gaz, Conef Gaz, CPL Concordia, Crest Energy, Cyeb, Design Proiect, Distrigaz Vest, Engie, E.on Energie, Electrica Furnizare, Electric Planners, Electric&Gas, Energy Distribution, Enel Energie, Enel Muntenia, Gas&Power, Entrex, Premier Energy Trading, Gaz Est, Hargaz, Gazmir, Gaz Vest, Mihoc Oil, Met România, Monsson, Next Energy Distribution, Next Energy Partners, Pado Group, Premier Energy, Petrom, Prisma Serv, Gas Provider, Renovatio, Res Energy Solutions, Restart Energy, RWE Supply, SST Grup, Tetarom, Tinmar, Veolia, Wiee","Delgaz Grid","-","2021-01-05","09:00:00","2021-01-05","16:00:00","Arad","Efectuată",null,"2021-01-05","09:00:00","2021-01-05","16:25:00","2021-01-05","09:55:00","2021-01-05","09:38:00","12055/30.12.2020","DA",null,null,null,0.63333333330228925,1,1,0.91666666668606922,44,44,7.4166666667442769,0,0,null,null,null,null,null,"","","","","","","","",""]
[105,"x","-","Remediere definitivă a unui defect de coroziune pe conducta 20” Turburea - Ișalnița, fir I, zona Răcari",72418,"Ghercești","Dolj",412675.23,316838.13,412675.23,316838.13,"SM1142D0","Stația Centrală Ghercești Înmagazinat","-","-","-","-","-","-","VSM01","Nova Power, Cez Vânzare, Cordun Gaz, MM Data, Distrigaz Vest, Engie, Axpo, E.on Energie, Energy Distribution, Enel, Enel Muntenia, Euro Seven, Gaz Est, Mehedinți Gaz, Met România, Nord Gaz, Premier Energy, Petrom, Progaz, Renovatio, Restart Energy, Romgaz, Tinmar","Depogaz Ploiești","-","2021-01-14","12:30:00","2021-01-15","18:00:00","Craiova","Efectuată",null,"2021-01-14","12:30:00","2021-01-15","17:45:00","2021-01-14","12:55:00","2021-01-14","12:49:00","120/14.01.2021","DA",null,null,null,0.31666666665114462,1,1,0.41666666662786156,23,23,29.25,1,1,"DA",null,null,null,null,"","","","","","","","",""]
[106,"x","-","Remediere definitivă a unui defect de coroziune pe conducta 20” Turburea - Ișalnița, fir I, zona Răcari",72418,"Ghercești","Dolj",412675.23,316838.13,412675.23,316838.13,"-","-","-","-","PM0275","Stația Centrală Ghercești Extras","-","-","VPM01","Aderro GP, Alpha Metal, Nova Power, Cez Vânzare, Cordun Gaz, CPL Concordia, Cyeb, MM Data, Design Proiect, Distrigaz Vest, Engie, E.on Energie, Electrica Furnizare, Electric Planners, Electric&Gas, Energy Distribution, Enel Energie, Enel Muntenia, Gas&Power, Entrex, Euro Seven, Premier Energy Trading, Gaz Est, Gazmir, Gaz Nord Est, Gaz Vest, Gecabuild, Măcin Gaz, Mehedinți Gaz, Met România, Nord Gaz, Oligopol, Pado Group, Premier Energy, Petrom, Prisma Serv, Progaz, Energy Gas Provider, Restart Energy, Romgaz, RWE Supply, Salgaz, SST Grup, Tinmar, Vega 93, Veolia, Wiee","Depogaz Ploiești","-","2021-01-14","12:30:00","2021-01-05","18:00:00","Craiova","Efectuată",null,"2021-01-14","12:30:00","2021-01-15","17:45:00","2021-01-14","12:55:00","2021-01-14","12:49:00","120/14.01.2021","DA",null,null,null,0.31666666665114462,1,1,0.41666666662786156,47,47,29.25,1,1,"DA",null,null,null,null,"","","","","","","","",""]
[107,"x","-","Remediere defect, în regim de urgență, apărut pe conducta 12” Cruce - Mischii",73255,"Mischii","Dolj",410109.2,320464.25,410109.2,320464.25,"-","-","SM1037D0","Mischii","-","-","-","-","SM-SD001","Aderro GP, Alpha Metal, Nova Power, Cez Vânzare, Cis Gaz, Conef Gaz, Crest Energy, Cyeb, Distrigaz Vest, Engie, E.on Energie, Electrocentrale București, Electrocentrale Constanța, Electrica Furnizare, Electric Planners, Electric&Gas, Energy Distribution, Enel Energie, Enel Muntenia, Gas&Power, Entrex, Euro Seven, Premier Energy Trading, Gaz Est, Hargaz, Gaz Vest, Getica 95, Megaconstruct, Met România, Monsson, Next Energy Distribution, Next Energy Partners, Nord Gaz, Oligopol, Premier Energy, Petrom, Progaz, Gas Provider, Renovatio, Res Energy Solutions, Restart Energy, Romgaz, RWE Supply, Tinmar, Transenergo, Vega 93, Veolia, Wiee","Distrigaz Sud Rețele","-","2021-02-04","08:00:00","2021-02-04","15:00:00","Craiova","Efectuată",null,"2021-02-04","08:00:00","2021-02-04","14:55:00","2021-02-04","08:59:00","2021-02-04","08:15:00","7666/03.02.2021","DA",null,null,null,0.24999999994179234,1,1,0.98333333322079852,48,48,6.9166666666860692,0,0,null,null,null,null,null,"","","","","","","","",""]
[108,"x","-","Cuplare deviere conductă 20” Coroi - Ungheni",114319,"Tg. Mureș","Mureș",465959.09,558179.15,465959.09,558179.15,"-","-","-","-","-","-","PM0250","Mureș P12 Depo Extras","PM0250","Engie, E.on Energie, Premier Energy Trading, Premier Energy, Gaz Vest","Depomureș","-","2021-02-11","08:40:00","2021-02-11","16:00:00","Mediaș","Efectuată",null,"2021-02-11","08:40:00","2021-02-11","16:30:00","2021-02-11","09:02:00","2021-02-11","08:56:00","9302/09.02.2021","DA",null,null,null,0.26666666666278616,1,1,0.36666666663950309,5,5,7.8333333333721384,0,0,null,null,null,null,null,"","","","","","","","",""]
[109,"x","-","Întrerupere accidentală SRM SDE Belciugatele datorită blocării contorului cu pistoane rotative",101092,"Belciugatele","Călărași",611888.9,330669.39,611888.9,330669.39,"-","-","SM0164D0","SC SDE Belciugatele","-","-","-","-","SM-CF001","Engie","SC SDE Belciugatele","-","2021-02-12","10:42:00","2021-02-12","15:00:00","București","Efectuată",null,"2021-02-12","10:42:00","2021-02-12","14:55:00","2021-02-12","11:16:00","2021-02-12","11:05:00","-","DA",null,null,null,0.38333333336049691,1,1,0.56666666676755995,1,1,4.216666666790843,0,0,null,null,null,null,null,"","","","","","","","",""]
[110,"x","-","Blocarea regulatorului din instalația tehnologică de reglare a presiunii gazelor naturale din zona Moșnița datorită întreruperii alimentării cu energie electrică",155270,"Dumbrăvița","Timiș",209730.02,485196.96,209730.02,485196.96,"SM0294D0","Dumbrăvița TM","-","-","-","-","-","-","SM-SD001","Aderro GP, Nova Power, Cez Vânzare, Cis Gaz, Conef Gaz, CPL Concordia, Crest Energy, Cyeb, Design Proiect, Distrigaz Vest, Engie, E.on Energie, Electrica Furnizare, Electric Planners, Electric&Gas, Energy Distribution, Enel Energie, Enel Muntenia, Gas&Power, Entrex, Premier Energy Trading, Gaz Est, Hargaz, Gazmir, Gaz Vest, Mihoc Oil, Met România, Monsson, Next Energy Distribution, Next Energy Partners, Pado Group, Premier Energy, Petrom, Prisma Serv, Gas Provider, Renovatio, Res Energy Solutions, Restart Energy, RWE Supply, SST Grup, Tetarom, Tinmar, Veolia, Wiee","Delgaz Grid","-","2021-02-24","15:15:00","2021-02-24","16:30:00","Arad","Efectuată",null,"2021-02-24","15:15:00","2021-02-24","15:50:00","2021-02-24","16:20:00","2021-02-24","16:11:00","-","DA",null,null,null,0.93333333340706304,1,1,1.0833333333721384,44,44,0.58333333331393078,0,0,null,null,null,null,null,"","","","","","","","",""]
[111,"x","-","Blocarea regulatorului din instalația tehnologică de reglare a presiunii gazelor naturale din zona Moșnița datorită întreruperii alimentării cu energie electrică",155305,"Giarmata-Vii","Timiș",211961.9,484303.83,211961.9,484303.83,"SM0346D0","Giarmata-Vii","-","-","-","-","-","-","SM-SD001","Aderro GP, Nova Power, Cez Vânzare, Cis Gaz, Conef Gaz, CPL Concordia, Crest Energy, Cyeb, Design Proiect, Distrigaz Vest, Engie, E.on Energie, Electrica Furnizare, Electric Planners, Electric&Gas, Energy Distribution, Enel Energie, Enel Muntenia, Gas&Power, Entrex, Premier Energy Trading, Gaz Est, Hargaz, Gazmir, Gaz Vest, Mihoc Oil, Met România, Monsson, Next Energy Distribution, Next Energy Partners, Pado Group, Premier Energy, Petrom, Prisma Serv, Gas Provider, Renovatio, Res Energy Solutions, Restart Energy, RWE Supply, SST Grup, Tetarom, Tinmar, Veolia, Wiee","Delgaz Grid","-","2021-02-24","15:15:00","2021-02-24","16:30:00","Arad","Efectuată",null,"2021-02-24","15:15:00","2021-02-24","15:50:00","2021-02-24","16:20:00","2021-02-24","16:11:00","-","DA",null,null,null,0.93333333340706304,1,1,1.0833333333721384,44,44,0.58333333331393078,0,0,null,null,null,null,null,"","","","","","","","",""]
[112,"x","-","Blocarea regulatorului din instalația tehnologică de reglare a presiunii gazelor naturale din zona Moșnița datorită întreruperii alimentării cu energie electrică",157255,"Giarmata Mare","Timiș",213459.45,487919.34,213459.45,487919.34,"SM0347D0","Giarmata ","-","-","-","-","-","-","SM-SD001","Nova Power, Cez Vânzare, CIS Gaz, Cyeb, Distrigaz Vest, Engie, E.On Energie, Electrica Furnizare, Electric&Gas, Energy Distribution, Enel Energie, Enel Muntenia, Gas&Power, Premier Energy Trading, Gaz Est, Gaz Vest, Met România, Premier Energy, Petrom, Energy Gas Provider, Renovatio, Restart Energy, Tinmar","Gaz Vest","-","2021-02-24","15:15:00","2021-02-24","16:30:00","Arad","Efectuată",null,"2021-02-24","15:15:00","2021-02-24","15:50:00","2021-02-24","16:29:00","2021-02-24","16:18:00","-","DA",null,null,null,1.0500000001047738,1,1,1.2333333333372138,23,23,0.58333333331393078,0,0,null,null,null,null,null,"","","","","","","","",""]
[113,"x","-","Blocarea regulatorului din instalația tehnologică de reglare a presiunii gazelor naturale din zona Moșnița datorită întreruperii alimentării cu energie electrică",155252,"Timișoara","Timiș",214005.13,485720.82,214005.13,485720.82,"SM0340D0","SC Aeroportul Internațional Timișoara","-","-","-","-","-","-","SM-CF001","Premier Energy Trading","SN Aeroportul Internațional Timișoara Traian Vuia","-","2021-02-24","15:15:00","2021-02-24","16:30:00","Arad","Efectuată",null,"2021-02-24","15:15:00","2021-02-24","15:50:00","2021-02-24","16:20:00","2021-02-24","18:32:00","-","DA",null,null,null,3.28333333338378,1,1,1.0833333333721384,1,1,0.58333333331393078,0,0,null,null,null,null,null,"","","","","","","","",""]
[114,"x","-","Blocarea regulatorului din instalația tehnologică de reglare a presiunii gazelor naturale din zona Moșnița datorită întreruperii alimentării cu energie electrică",155270,"Dumbrăvița","Timiș",211286.24,484424.69,211286.24,484424.69,"SM1168D0","Dumbrăvița II","-","-","-","-","-","-","SM-SD001","Aderro GP, Nova Power, Cez Vânzare, Cis Gaz, Conef Gaz, CPL Concordia, Crest Energy, Cyeb, Design Proiect, Distrigaz Vest, Engie, E.on Energie, Electrica Furnizare, Electric Planners, Electric&Gas, Energy Distribution, Enel Energie, Enel Muntenia, Gas&Power, Entrex, Premier Energy Trading, Gaz Est, Hargaz, Gazmir, Gaz Vest, Mihoc Oil, Met România, Monsson, Next Energy Distribution, Next Energy Partners, Pado Group, Premier Energy, Petrom, Prisma Serv, Gas Provider, Renovatio, Res Energy Solutions, Restart Energy, RWE Supply, SST Grup, Tetarom, Tinmar, Veolia, Wiee","Delgaz Grid","-","2021-02-24","15:15:00","2021-02-24","16:30:00","Arad","Efectuată",null,"2021-02-24","15:15:00","2021-02-24","15:50:00","2021-02-24","16:20:00","2021-02-24","16:11:00","-","DA",null,null,null,0.93333333340706304,1,1,1.0833333333721384,44,44,0.58333333331393078,0,0,null,null,null,null,null,"","","","","","","","",""]
[115,"x","-","Blocarea regulatorului din instalația tehnologică de reglare a presiunii gazelor naturale din zona Moșnița datorită întreruperii alimentării cu energie electrică",155298,"Ghiroda","Timiș",213312.19,480706.64,213312.19,480706.64,"SM0344D0","Ghiroda","-","-","-","-","-","-","SM-SD001","Aderro GP, Nova Power, Cez Vânzare, Cis Gaz, Conef Gaz, CPL Concordia, Crest Energy, Cyeb, Design Proiect, Distrigaz Vest, Engie, E.on Energie, Electrica Furnizare, Electric Planners, Electric&Gas, Energy Distribution, Enel Energie, Enel Muntenia, Gas&Power, Entrex, Premier Energy Trading, Gaz Est, Hargaz, Gazmir, Gaz Vest, Mihoc Oil, Met România, Monsson, Next Energy Distribution, Next Energy Partners, Pado Group, Premier Energy, Petrom, Prisma Serv, Gas Provider, Renovatio, Res Energy Solutions, Restart Energy, RWE Supply, SST Grup, Tetarom, Tinmar, Veolia, Wiee","Delgaz Grid","-","2021-02-24","15:15:00","2021-02-24","16:30:00","Arad","Efectuată",null,"2021-02-24","15:15:00","2021-02-24","15:50:00","2021-02-24","16:43:00","2021-02-24","16:35:00","-","DA",null,null,null,1.3333333333139308,1,1,1.4666666667326353,44,44,0.58333333331393078,0,0,null,null,null,null,null,"","","","","","","","",""]
[116,"x","-","Blocarea regulatorului din instalația tehnologică de reglare a presiunii gazelor naturale din zona Moșnița datorită întreruperii alimentării cu energie electrică",155252,"Timișoara","Timiș",214955.96,484273.94,214955.96,484273.94,"-","-","SM0339D0","Timișoara IV- Aeroportul Militar","-","-","-","-","SM-SD001","Aderro GP, Nova Power, Cez Vânzare, Cis Gaz, Conef Gaz, CPL Concordia, Crest Energy, Cyeb, Design Proiect, Distrigaz Vest, Engie, E.on Energie, Electrica Furnizare, Electric Planners, Electric&Gas, Energy Distribution, Enel Energie, Enel Muntenia, Gas&Power, Entrex, Premier Energy Trading, Gaz Est, Hargaz, Gazmir, Gaz Vest, Mihoc Oil, Met România, Monsson, Next Energy Distribution, Next Energy Partners, Pado Group, Premier Energy, Petrom, Prisma Serv, Gas Provider, Renovatio, Res Energy Solutions, Restart Energy, RWE Supply, SST Grup, Tetarom, Tinmar, Veolia, Wiee","Delgaz Grid","-","2021-02-24","15:36:00","2021-02-24","16:30:00","Arad","Efectuată",null,"2021-02-24","15:36:00","2021-02-24","15:50:00","2021-02-24","16:23:00","2021-02-24","16:14:00","-","DA",null,null,null,0.63333333330228925,1,1,0.78333333326736465,44,44,0.23333333322079852,0,0,null,null,null,null,null,"","","","","","","","",""]
[117,"x","-","Incident tehnic pe conducta 10\" Gănești - Ungheni",119689,"Idrifaia","Mureș",457437.79,542785.36,457437.79,542785.36,"-","-","SM0661D0","Idrifaia","-","-","-","-","SM-SD001","Aderro GP, Nova Power, Cez Vânzare, Cis Gaz, Conef Gaz, CPL Concordia, Crest Energy, Cyeb, Design Proiect, Distrigaz Vest, Engie, E.on Energie, Electrica Furnizare, Electric Planners, Electric&Gas, Energy Distribution, Enel Energie, Enel Muntenia, Gas&Power, Entrex, Premier Energy Trading, Gaz Est, Hargaz, Gazmir, Gaz Vest, Mihoc Oil, Met România, Monsson, Next Energy Distribution, Next Energy Partners, Pado Group, Premier Energy, Petrom, Prisma Serv, Gas Provider, Renovatio, Res Energy Solutions, Restart Energy, RWE Supply, SST Grup, Tetarom, Tinmar, Veolia, Wiee","Delgaz Grid","-","2021-02-26","12:00:00","2021-02-26","19:00:00","Mediaș","Efectuată",null,"2021-02-26","12:00:00","2021-02-26","19:00:00","2021-02-26","12:55:00","2021-02-26","12:28:00","-","DA",null,null,null,0.46666666661622003,1,1,0.91666666668606922,44,44,6.9999999999417923,0,0,null,null,null,null,null,"","","","","","","","",""]
[118,"x","-","Incident tehnic pe conducta 10\" Gănești - Ungheni",116947,"GăneștiI","Mureș",450775.6,537951.26,450775.6,537951.26,"-","-","SM0662D0","Gănești","-","-","-","-","SM-SD001","Aderro GP, Nova Power, Cez Vânzare, Cis Gaz, Conef Gaz, CPL Concordia, Crest Energy, Cyeb, Design Proiect, Distrigaz Vest, Engie, E.on Energie, Electrica Furnizare, Electric Planners, Electric&Gas, Energy Distribution, Enel Energie, Enel Muntenia, Gas&Power, Entrex, Premier Energy Trading, Gaz Est, Hargaz, Gazmir, Gaz Vest, Mihoc Oil, Met România, Monsson, Next Energy Distribution, Next Energy Partners, Pado Group, Premier Energy, Petrom, Prisma Serv, Gas Provider, Renovatio, Res Energy Solutions, Restart Energy, RWE Supply, SST Grup, Tetarom, Tinmar, Veolia, Wiee","Delgaz Grid","-","2021-02-26","12:00:00","2021-02-26","19:00:00","Mediaș","Efectuată",null,"2021-02-26","12:00:00","2021-02-26","19:00:00","2021-02-26","12:55:00","2021-02-26","12:28:00","-","DA",null,null,null,0.46666666661622003,1,1,0.91666666668606922,44,44,6.9999999999417923,0,0,null,null,null,null,null,"","","","","","","","",""]
[119,"x","-","Incident tehnic pe conducta 10\" Gănești - Ungheni",118218,"Mica","Mureș",453969.01,540754.25,453969.01,540754.25,"-","-","SM0663D0","Mica","-","-","-","-","SM-SD001","Aderro GP, Nova Power, Cez Vânzare, Cis Gaz, Conef Gaz, CPL Concordia, Crest Energy, Cyeb, Design Proiect, Distrigaz Vest, Engie, E.on Energie, Electrica Furnizare, Electric Planners, Electric&Gas, Energy Distribution, Enel Energie, Enel Muntenia, Gas&Power, Entrex, Premier Energy Trading, Gaz Est, Hargaz, Gazmir, Gaz Vest, Mihoc Oil, Met România, Monsson, Next Energy Distribution, Next Energy Partners, Pado Group, Premier Energy, Petrom, Prisma Serv, Gas Provider, Renovatio, Res Energy Solutions, Restart Energy, RWE Supply, SST Grup, Tetarom, Tinmar, Veolia, Wiee","Delgaz Grid","-","2021-02-26","12:00:00","2021-02-26","19:00:00","Mediaș","Efectuată",null,"2021-02-26","12:00:00","2021-02-26","19:00:00","2021-02-26","12:55:00","2021-02-26","12:28:00","-","DA",null,null,null,0.46666666661622003,1,1,0.91666666668606922,44,44,6.9999999999417923,0,0,null,null,null,null,null,"","","","","","","","",""]
[120,"x","-","Incident tehnic pe conducta 10\" Gănești - Ungheni",118227,"Abuș","Mureș",452793.32,539877.30000000005,452793.32,539877.30000000005,"-","-","SM0665D0","Abuș","-","-","-","-","SM-SD001","Aderro GP, Nova Power, Cez Vânzare, Cis Gaz, Conef Gaz, CPL Concordia, Crest Energy, Cyeb, Design Proiect, Distrigaz Vest, Engie, E.on Energie, Electrica Furnizare, Electric Planners, Electric&Gas, Energy Distribution, Enel Energie, Enel Muntenia, Gas&Power, Entrex, Premier Energy Trading, Gaz Est, Hargaz, Gazmir, Gaz Vest, Mihoc Oil, Met România, Monsson, Next Energy Distribution, Next Energy Partners, Pado Group, Premier Energy, Petrom, Prisma Serv, Gas Provider, Renovatio, Res Energy Solutions, Restart Energy, RWE Supply, SST Grup, Tetarom, Tinmar, Veolia, Wiee","Delgaz Grid","-","2021-02-26","12:00:00","2021-02-26","19:00:00","Mediaș","Efectuată",null,"2021-02-26","12:00:00","2021-02-26","19:00:00","2021-02-26","12:55:00","2021-02-26","12:28:00","-","DA",null,null,null,0.46666666661622003,1,1,0.91666666668606922,44,44,6.9999999999417923,0,0,null,null,null,null,null,"","","","","","","","",""]
[121,"x","-","Incident tehnic pe conducta 10\" Gănești - Ungheni",118272,"Șomoștelnic","Mureș",452741.8,543489.24,452741.8,543489.24,"-","-","SM0702D0","Șomoștelnic","-","-","-","-","SM-SD001","Aderro GP, Nova Power, Cez Vânzare, Cis Gaz, Conef Gaz, CPL Concordia, Crest Energy, Cyeb, Design Proiect, Distrigaz Vest, Engie, E.on Energie, Electrica Furnizare, Electric Planners, Electric&Gas, Energy Distribution, Enel Energie, Enel Muntenia, Gas&Power, Entrex, Premier Energy Trading, Gaz Est, Hargaz, Gazmir, Gaz Vest, Mihoc Oil, Met România, Monsson, Next Energy Distribution, Next Energy Partners, Pado Group, Premier Energy, Petrom, Prisma Serv, Gas Provider, Renovatio, Res Energy Solutions, Restart Energy, RWE Supply, SST Grup, Tetarom, Tinmar, Veolia, Wiee","Delgaz Grid","-","2021-02-26","12:00:00","2021-02-26","19:00:00","Mediaș","Efectuată",null,"2021-02-26","12:00:00","2021-02-26","19:00:00","2021-02-26","12:55:00","2021-02-26","12:28:00","-","DA",null,null,null,0.46666666661622003,1,1,0.91666666668606922,44,44,6.9999999999417923,0,0,null,null,null,null,null,"","","","","","","","",""]
[122,"x","-","Incident tehnic pe conducta 10\" Gănești - Ungheni",119929,"Cerghizel","Mureș",457591.12,549147.76,457591.12,549147.76,"-","-","SM0707D0","Cerghizel II TAU","-","-","-","-","SM-SD001","Aderro GP, Nova Power, Cez Vânzare, Cis Gaz, Conef Gaz, CPL Concordia, Crest Energy, Cyeb, Design Proiect, Distrigaz Vest, Engie, E.on Energie, Electrica Furnizare, Electric Planners, Electric&Gas, Energy Distribution, Enel Energie, Enel Muntenia, Gas&Power, Entrex, Premier Energy Trading, Gaz Est, Hargaz, Gazmir, Gaz Vest, Mihoc Oil, Met România, Monsson, Next Energy Distribution, Next Energy Partners, Pado Group, Premier Energy, Petrom, Prisma Serv, Gas Provider, Renovatio, Res Energy Solutions, Restart Energy, RWE Supply, SST Grup, Tetarom, Tinmar, Veolia, Wiee","Delgaz Grid","-","2021-02-26","12:00:00","2021-02-26","19:00:00","Mediaș","Efectuată",null,"2021-02-26","12:00:00","2021-02-26","19:00:00","2021-02-26","12:55:00","2021-02-26","12:28:00","-","DA",null,null,null,0.46666666661622003,1,1,0.91666666668606922,44,44,6.9999999999417923,0,0,null,null,null,null,null,"","","","","","","","",""]
[123,"x","-","Incident tehnic pe conducta 10\" Gănești - Ungheni",119910,"Cerghid","Mureș",457317.75,546240.65,457317.75,546240.65,"-","-","SM0708D0","Cerghid","-","-","-","-","SM-SD001","Aderro GP, Nova Power, Cez Vânzare, Cis Gaz, Conef Gaz, CPL Concordia, Crest Energy, Cyeb, Design Proiect, Distrigaz Vest, Engie, E.on Energie, Electrica Furnizare, Electric Planners, Electric&Gas, Energy Distribution, Enel Energie, Enel Muntenia, Gas&Power, Entrex, Premier Energy Trading, Gaz Est, Hargaz, Gazmir, Gaz Vest, Mihoc Oil, Met România, Monsson, Next Energy Distribution, Next Energy Partners, Pado Group, Premier Energy, Petrom, Prisma Serv, Gas Provider, Renovatio, Res Energy Solutions, Restart Energy, RWE Supply, SST Grup, Tetarom, Tinmar, Veolia, Wiee","Delgaz Grid","-","2021-02-26","12:00:00","2021-02-26","19:00:00","Mediaș","Efectuată",null,"2021-02-26","12:00:00","2021-02-26","19:00:00","2021-02-26","12:55:00","2021-02-26","12:28:00","-","DA",null,null,null,0.46666666661622003,1,1,0.91666666668606922,44,44,6.9999999999417923,0,0,null,null,null,null,null,"","","","","","","","",""]
[124,"-","x","Dublare robinet de pe ocolitorul exterior, înlocuire regulator și robinet aval de regulator în SRM Bod",40615,"Bod","Brașov",546272.24,472861.14,546272.24,472861.14,"-","-","SM0044D0","Bod","-","-","-","-","SM-SD001","Aderro GP, Alpha Metal, Nova Power, Cez Vânzare, Cis Gaz, Conef Gaz, Crest Energy, Cyeb, Distrigaz Vest, Engie, E.on Energie, Electrocentrale București, Electrocentrale Constanța, Electrica Furnizare, Electric Planners, Electric&Gas, Energy Distribution, Enel Energie, Enel Muntenia, Gas&Power, Entrex, Euro Seven, Premier Energy Trading, Gaz Est, Hargaz, Megaconstruct, Met România, Monsson, Next Energy Distribution, Nord Gaz, Oligopol, Premier Energy, Petrom, Progaz, Gas Provider, Renovatio, Restart Energy, Romgaz, RWE Supply, Tinmar, Transenergo, Veolia, Wiee","Distrigaz Sud Rețele","mai - august 2021",null,null,null,null,"Brașov","Efectuată (Nu mai este necesară întreruperea)","S-a efectuat odată cu oprirea SRM Bod solicitată de SC Distrigaz Sud SA din data de 10.06.2021",null,null,null,null,null,null,null,null,null,null,null,"Forțe proprii",null,"","","","","","","","","",null,null,null,null,null,"Afectat sau NU?","-","-","Afectat sau NU?","-","-","Afectat sau NU?","-","-"]
[125,"-","x","Dublare robinet de pe ocolitorul exterior, înlocuire regulator și robinet aval de regulator în SRM Hălchiu",41042,"Hălchiu","Brașov",543099.97,473349.94,543099.97,473349.94,"-","-","SM0041D0","Hălchiu","-","-","-","-","SM-SD001","Aderro GP, Alpha Metal, Nova Power, Cez Vânzare, Cis Gaz, Conef Gaz, Crest Energy, Cyeb, Distrigaz Vest, Engie, E.on Energie, Electrocentrale București, Electrocentrale Constanța, Electrica Furnizare, Electric Planners, Electric&Gas, Energy Distribution, Enel Energie, Enel Muntenia, Gas&Power, Entrex, Euro Seven, Premier Energy Trading, Gaz Est, Hargaz, Megaconstruct, Met România, Monsson, Next Energy Distribution, Nord Gaz, Oligopol, Premier Energy, Petrom, Progaz, Gas Provider, Renovatio, Restart Energy, Romgaz, RWE Supply, Tinmar, Transenergo, Veolia, Wiee","Distrigaz Sud Rețele","mai - august 2021","2021-07-16","09:05:00","2021-07-16","15:00:00","Brașov","Efectuată (Lucrarea a fost efectuată concomitent cu lucrarea de la poziția 246)",null,null,null,null,null,null,null,null,null,null,null,null,"Forțe proprii",null,"","","","","","","","","",null,null,null,null,null,"Afectat sau NU?","-","-","Afectat sau NU?","-","-","Afectat sau NU?","-","-"]
[126,"-","x","Dublare robinet de pe ocolitorul exterior, înlocuire două regulatoare și două robinete aval de regulatoare în SRM Hărman",41097,"Hărman","Brașov",553066.53,467266.75,553066.53,467266.75,"-","-","SM0048D0","Hărman","-","-","-","-","SM-SD001","Aderro GP, Alpha Metal, Nova Power, Cez Vânzare, Cis Gaz, Conef Gaz, Crest Energy, MVM Energy Trade, Distrigaz Vest, Engie, E.on Energie, Electrocentrale București, Electrocentrale Constanța, Electrica Furnizare, Electric Planners, Electric&Gas, Energy Distribution, Enel Energie, Enel Muntenia, Gas&Power, Entrex, Euro Seven, Premier Energy Trading, Gaz Est, Hargaz, Gaz&Energy Distributie, Gaz Vest, Gecabuild, Getica 95, Măcin Gaz, Megaconstruct, Met România, Monsson, Next Energy Distribution, Next Energy Partners, Nord Gaz, Oligopol, Premier Energy, Petrom, Progaz, Gas Provider, Renovatio, Res Energy, Restart Energy, Romgaz, RWE Supply, Tinmar, Transenergo, Veolia, Wiee, Arovi Energy","Distrigaz Sud Rețele","iunie - august 2021","2021-07-19","09:00:00","2021-07-19","17:00:00","Brașov","Efectuată",null,"2021-07-19","09:00:00","2021-07-19","16:30:00","2021-07-06","10:49:00","2021-07-06","10:32:00","1492/16.07.2021","DA",null,"Forțe proprii",null,"","","","","","","","","",null,null,null,null,null,8,1,1,8,51,51,-0.50000000005820766,52,52]
[127,"-","x","Dublare robinet de pe ocolitorul exterior în SRM Tohanu Nou",40517,"Tohanu Nou","Brașov",529762.89,450827.66,529762.89,450827.66,"-","-","SM0058D0","Tohanu Nou","-","-","-","-","SM-SD001","Aderro GP, Alpha Metal, Nova Power, Cez Vânzare, Cis Gaz, Conef Gaz, Crest Energy, MVM Energy Trade, Distrigaz Vest, Engie, E.on Energie, Electrocentrale București, Electrocentrale Constanța, Electrica Furnizare, Electric Planners, Electric&Gas, Energy Distribution, Enel Energie, Enel Muntenia, Gas&Power, Entrex, Euro Seven, Premier Energy Trading, Gaz Est, Hargaz, Gaz&Energy Distributie, Gaz Vest, Gecabuild, Getica 95, Megaconstruct, Met România, Monsson, Next Energy Distribution, Next Energy Partners, Nord Gaz, Oligopol, Premier Energy, Petrom, Progaz, Gas Provider, Renovatio, Res Energy, Restart Energy, Romgaz, RWE Supply, Tinmar, Transenergo, Veolia, Wiee, With Us","Distrigaz Sud Rețele","mai - iulie 2021","2021-06-23","09:00:00","2021-06-23","15:00:00","Brașov","Efectuată",null,"2021-06-23","09:00:00","2021-06-23","14:30:00","2021-06-14","12:53:00","2021-06-14","12:46:00","1331/22.06.2021","NU",null,"Forțe proprii",null,"","","","","","","","","",null,null,null,null,null,"Nu a fost afectat producator/consumator","-","-","Nu a fost afectat producator/consumator","-","-","Nu a fost afectat producator/consumator","-","-"]
[128,"-","x","Înlocuire robinet DN500 intrare SRM Brașov II",40205,"Brașov","Brașov",554708.24,461528.35,554708.24,461528.35,"-","-","SM0866D0","Brașov II","-","-","-","-","SM-SD001","Aderro GP, Alpha Metal, Nova Power, Cez Vânzare, Cis Gaz, Conef Gaz, Crest Energy, Energy Trade, Distrigaz Vest, Engie, E.On Energie, Electrocentrale București, Electrocentrale Constanța, Electrica Furnizare, Electric Planners, Electric&Gas, Energy Distribution, Enel, Enel Muntenia, Gas&Power, Entrex, Euro Seven Industry, Premier Energy Trading, Gaz Est, Hargaz, Gaz&Energy Distributie, Gaz Vest, Gecabuild, Getica 95, Macin Gaz, Megaconstruct, Met România, Monsson, Next Energy Distribution, Next Energy Partners, Nord Gaz, Oligopol, Premier Energy, Petrom, Progaz, Energy Gas Provider, Renovatio, Res Energy, Restart Energy, Romgaz, RWE Supply, Tinmar, Transenergo, Veolia, WIEE, With Us","Distrigaz Sud Rețele","iulie - septembrie 2021","2021-08-25","08:00:00","2021-08-28","18:00:00","Brașov","Efectuată",null,"2021-08-25","08:00:00","2021-08-25","18:00:00","2021-08-16","15:29:00","2021-08-16","15:22:00","1689/24.08.2021","NU",null,"Sucursala Mediaș",null,{"$f":"IF(B144=\"X\",IF(AN144=\"\",\"Afectat sau NU?\",IF(AN144=\"DA\",IF(((AK144+AL144)-(AE144+AF144))*24<-720,\"Neinformat\",((AK144+AL144)-(AE144+AF144))*24),\"Nu a fost afectat producator/consumator\")),\"\")","v":""},{"$f":"IF(B144=\"X\",IF(AN144=\"DA\",IF(AR144<6,LEN(TRIM(V144))-LEN(SUBSTITUTE(V144,CHAR(44),\"\"))+1,0),\"-\"),\"\")","v":""},{"$f":"IF(B144=\"X\",IF(AN144=\"DA\",LEN(TRIM(V144))-LEN(SUBSTITUTE(V144,CHAR(44),\"\"))+1,\"-\"),\"\")","v":""},{"$f":"IF(B144=\"X\",IF(AN144=\"\",\"Afectat sau NU?\",IF(AN144=\"DA\",IF(((AI144+AJ144)-(AE144+AF144))*24<-720,\"Neinformat\",((AI144+AJ144)-(AE144+AF144))*24),\"Nu a fost afectat producator/consumator\")),\"\")","v":""},{"$f":"IF(B144=\"X\",IF(AN144=\"DA\",IF(AU144<6,LEN(TRIM(U144))-LEN(SUBSTITUTE(U144,CHAR(44),\"\"))+1,0),\"-\"),\"\")","v":""},{"$f":"IF(B144=\"X\",IF(AN144=\"DA\",LEN(TRIM(U144))-LEN(SUBSTITUTE(U144,CHAR(44),\"\"))+1,\"-\"),\"\")","v":""},{"$f":"IF(B144=\"X\",IF(AN144=\"\",\"Afectat sau NU?\",IF(AN144=\"DA\",((AG144+AH144)-(AE144+AF144))*24,\"Nu a fost afectat producator/consumator\")),\"\")","v":""},{"$f":"IF(B144=\"X\",IF(AN144=\"DA\",IF(AX144>24,IF(BA144=\"NU\",0,LEN(TRIM(V144))-LEN(SUBSTITUTE(V144,CHAR(44),\"\"))+1),0),\"-\"),\"\")","v":""},{"$f":"IF(B144=\"X\",IF(AN144=\"DA\",IF(AX144>24,LEN(TRIM(V144))-LEN(SUBSTITUTE(V144,CHAR(44),\"\"))+1,0),\"-\"),\"\")","v":""},null,null,null,null,null,{"$f":"IF(C144=\"X\",IF(AN144=\"\",\"Afectat sau NU?\",IF(AN144=\"DA\",IF(AK144=\"\",\"Neinformat\",NETWORKDAYS(AK144+AL144,AE144+AF144,$BS$2:$BS$14)-2),\"Nu a fost afectat producator/consumator\")),\"\")","v":"Nu a fost afectat producator/consumator"},{"$f":"IF(C144=\"X\",IF(AN144=\"DA\",IF(AND(BF144>=5,AK144<>\"\"),LEN(TRIM(V144))-LEN(SUBSTITUTE(V144,CHAR(44),\"\"))+1,0),\"-\"),\"\")","v":"-"},{"$f":"IF(C144=\"X\",IF(AN144=\"DA\",LEN(TRIM(V144))-LEN(SUBSTITUTE(V144,CHAR(44),\"\"))+1,\"-\"),\"\")","v":"-"},{"$f":"IF(C144=\"X\",IF(AN144=\"\",\"Afectat sau NU?\",IF(AN144=\"DA\",IF(AI144=\"\",\"Neinformat\",NETWORKDAYS(AI144+AJ144,AE144+AF144,$BS$2:$BS$14)-2),\"Nu a fost afectat producator/consumator\")),\"\")","v":"Nu a fost afectat producator/consumator"},{"$f":"IF(C144=\"X\",IF(AN144=\"DA\",IF(AND(BI144>=5,AI144<>\"\"),LEN(TRIM(U144))-LEN(SUBSTITUTE(U144,CHAR(44),\"\"))+1,0),\"-\"),\"\")","v":"-"},{"$f":"IF(C144=\"X\",IF(AN144=\"DA\",LEN(TRIM(U144))-LEN(SUBSTITUTE(U144,CHAR(44),\"\"))+1,\"-\"),\"\")","v":"-"},"Nu a fost afectat producator/consumator",{"$f":"IF(C144=\"X\",IF(AN144<>\"DA\",\"-\",IF(AND(AN144=\"DA\",BL144<=0),LEN(TRIM(V144))-LEN(SUBSTITUTE(V144,CHAR(44),\"\"))+1+LEN(TRIM(U144))-LEN(SUBSTITUTE(U144,CHAR(44),\"\"))+1,0)),\"\")","v":"-"},{"$f":"IF(C144=\"X\",IF(AN144=\"DA\",LEN(TRIM(V144))-LEN(SUBSTITUTE(V144,CHAR(44),\"\"))+1+LEN(TRIM(U144))-LEN(SUBSTITUTE(U144,CHAR(44),\"\"))+1,\"-\"),\"\")","v":"-"}]
[129,"-","x","Înlocuire robinet DN500 intrare SRM Brașov II",41676,"Prejmer","Brașov",560082.66,468147.57,560082.66,468147.57,"-","-","SM0049D0","Prejmer","-","-","-","-","SM-SD001","Aderro GP, Alpha Metal, Nova Power, Cez Vânzare, Cis Gaz, Conef Gaz, Crest Energy, Energy Trade, Distrigaz Vest, Engie, E.On Energie, Electrocentrale București, Electrocentrale Constanța, Electrica Furnizare, Electric Planners, Electric&Gas, Energy Distribution, Enel, Enel Muntenia, Gas&Power, Entrex, Euro Seven Industry, Premier Energy Trading, Gaz Est, Hargaz, Gaz&Energy Distributie, Gaz Vest, Gecabuild, Getica 95, Macin Gaz, Megaconstruct, Met România, Monsson, Next Energy Distribution, Next Energy Partners, Nord Gaz, Oligopol, Premier Energy, Petrom, Progaz, Energy Gas Provider, Renovatio, Res Energy, Restart Energy, Romgaz, RWE Supply, Tinmar, Transenergo, Veolia, WIEE, With Us","Distrigaz Sud Rețele","iulie - septembrie 2021","2021-08-25","08:00:00","2021-08-25","18:00:00","Brașov","Efectuată",null,"2021-08-25","08:00:00","2021-08-25","18:00:00","2021-08-16","15:23:00","2021-08-16","15:02:00","1689/24.08.2021","DA",null,"Sucursala Mediaș",null,"","","","","","","","","",null,null,null,null,null,6,1,1,6,51,51,0,52,52]
[130,"-","x","Înlocuire robinet DN500 intrare SRM Brașov II",41676,"Prejmer","Brașov",558035.31000000006,468707.66,558035.31000000006,468707.66,"-","-","SM1011D0","SC Graells Prejmer","-","-","-","-","SM-SD001","Aderro GP, Alpha Metal, Nova Power, Cez Vânzare, Cis Gaz, Conef Gaz, Crest Energy, Energy Trade, Distrigaz Vest, Engie, E.On Energie, Electrocentrale București, Electrocentrale Constanța, Electrica Furnizare, Electric Planners, Electric&Gas, Energy Distribution, Enel, Enel Muntenia, Gas&Power, Entrex, Euro Seven Industry, Premier Energy Trading, Gaz Est, Hargaz, Gaz&Energy Distributie, Gaz Vest, Gecabuild, Getica 95, Macin Gaz, Megaconstruct, Met România, Monsson, Next Energy Distribution, Next Energy Partners, Nord Gaz, Oligopol, Premier Energy, Petrom, Progaz, Energy Gas Provider, Renovatio, Res Energy, Restart Energy, Romgaz, RWE Supply, Tinmar, Transenergo, Veolia, WIEE, With Us","Distrigaz Sud Rețele","iulie - septembrie 2021","2021-08-25","08:00:00","2021-08-25","18:00:00","Brașov","Efectuată",null,"2021-08-25","08:00:00","2021-08-25","18:00:00","2021-08-16","15:23:00","2021-08-16","15:02:00","1689/24.08.2021","DA",null,"Sucursala Mediaș",null,"","","","","","","","","",null,null,null,null,null,6,1,1,6,51,51,0,52,52]
[131,"-","x","Înlocuire robinet DN500 intrare SRM Brașov II",40205,"Brașov","Brașov",554708.24,461528.35,554708.24,461528.35,"-","-","SM0866D1","Târlungeni","-","-","-","-","SM-SD001","Aderro GP, Nova Power, Cez Vânzare, Engie, E.on Energie, Electrica Furnizare, Energy Distribution, Enel Energie, Enel Muntenia, Gas&Power, Entrex, Premier Energy Trading, Megaconstruct, Met România, Premier Energy, Petrom, Gas Provider, Renovatio, Restart Energy, Tinmar","SC Megaconstruct SA","iulie - septembrie 2021","2021-08-25","08:00:00","2021-08-25","18:00:00","Brașov","Efectuată",null,"2021-08-25","08:00:00","2021-08-25","16:35:00","2021-08-16","15:04:00","2021-08-16","14:51:00","1689/24.08.2021","DA",null,"Sucursala Mediaș",null,"","","","","","","","","",null,null,null,null,null,6,1,1,6,20,20,-1.4166666667442769,21,21]
[132,"-","x","Dublare robinet de pe ocolitorul exterior în SRM Vulcan",42405,"Vulcan","Brașov",533367.36,459457.65,533367.36,459457.65,"-","-","SM0056D0","Vulcan","-","-","-","-","SM-SD001","Aderro GP, Alpha Metal, Nova Power, Cez Vânzare, Cis Gaz, Conef Gaz, Crest Energy, MVM Energy Trade, Distrigaz Vest, Engie, E.on Energie, Electrocentrale București, Electrocentrale Constanța, Electrica Furnizare, Electric Planners, Electric&Gas, Energy Distribution, Enel Energie, Enel Muntenia, Gas&Power, Entrex, Euro Seven, Premier Energy Trading, Gaz Est, Hargaz, Gaz&Energy Distributie, Gaz Vest, Gecabuild, Getica 95, Megaconstruct, Met România, Monsson, Next Energy Distribution, Next Energy Partners, Nord Gaz, Oligopol, Premier Energy, Petrom, Progaz, Gas Provider, Renovatio, Res Energy, Restart Energy, Romgaz, RWE Supply, Tinmar, Transenergo, Veolia, Wiee, With Us","Distrigaz Sud Rețele","mai - august 2021","2021-06-30","09:00:00","2021-06-30","15:00:00","Brașov","Efectuată",null,"2021-06-30","09:00:00","2021-06-30","14:35:00","2021-06-22","10:57:00","2021-06-22","10:45:00","1369/29.06.2021","DA",null,"Forțe proprii",null,"","","","","","","","","",null,null,null,null,null,5,1,1,5,50,50,-0.41666666662786156,51,51]
[133,"-","x","Dublare robinet de pe ocolitorul exterior în SRM SC Avicola Măgurele",40205,"Brașov","Brașov",540664.06999999995,459648.46,540664.06999999995,459648.46,"-","-","SM0053D1","SC Avicola Măgurele Brașov","-","-","-","-","SM-CF001","Nova Power","SC Avicola Brașov SA","mai - august 2021","2021-08-19","14:00:00","2021-08-19","17:00:00","Brașov","Efectuată",null,"2021-08-19","14:00:00","2021-08-19","15:30:00","2021-08-09","09:32:00","2021-08-09","09:25:00","1655/18.08.2021","NU",null,"Forțe proprii",null,"","","","","","","","","",null,null,null,null,null,"Nu a fost afectat producator/consumator","-","-","Nu a fost afectat producator/consumator","-","-","Nu a fost afectat producator/consumator","-","-"]
[134,"-","x","Dublare robinet de pe ocolitorul exterior în SRM SC Avicola Măgurele",40205,"Brașov","Brașov",540664.06999999995,459648.46,540664.06999999995,459648.46,"-","-","SM0053D2","SC Institutul Pajiști Brașov","-","-","-","-","SM-CF001","Engie","Institutul de cercetare-dezvoltare pentru pajiști Brașov","mai - august 2021","2021-08-19","14:00:00","2021-08-19","17:00:00","Brașov","Efectuată",null,"2021-08-19","14:00:00","2021-08-19","15:30:00","2021-08-09","09:48:00","2021-08-09","09:33:00","1655/18.08.2021","NU",null,"Forțe proprii",null,"","","","","","","","","",null,null,null,null,null,"Nu a fost afectat producator/consumator","-","-","Nu a fost afectat producator/consumator","-","-","Nu a fost afectat producator/consumator","-","-"]
[135,"x","-","Întrerupere accidentală SRM Rora datorită blocării modulului de reglare",114550,"Rora","Mureș",478913,524825.27,478913,524825.27,"-","-","SM0004D0","Rora","-","-","-","-","SM-SD001","Aderro GP, Nova Power, Cez Vânzare, Cis Gaz, Conef Gaz, CPL Concordia, Crest Energy, Cyeb, Design Proiect, Distrigaz Vest, Engie, E.on Energie, Electrica Furnizare, Electric Planners, Electric&Gas, Energy Distribution, Enel Energie, Enel Muntenia, Gas&Power, Entrex, Premier Energy Trading, Gaz Est, Hargaz, Gazmir, Gaz Vest, Mihoc Oil, Met România, Monsson, Next Energy Distribution, Next Energy Partners, Pado Group, Premier Energy, Petrom, Prisma Serv, Gas Provider, Renovatio, Res Energy Solutions, Restart Energy, RWE Supply, SST Grup, Tetarom, Tinmar, Veolia, Wiee","Delgaz Grid","-","2021-03-09","21:00:00","2021-03-09","23:30:00","Mediaș","Efectuată",null,"2021-03-09","21:00:00","2021-03-09","23:30:00","2021-03-09","22:12:00","2021-03-09","21:58:00","-","DA",null,null,null,0.96666666667442769,1,1,1.2000000000698492,44,44,2.4999999999417923,0,0,null,null,null,null,null,"","","","","","","","",""]
[136,"x","-","Deviere conductă 10\" Gănești - Ungheni",119689,"Idrifaia","Mureș",457437.79,542785.36,457437.79,542785.36,"-","-","SM0661D0","Idrifaia","-","-","-","-","SM-SD001","Aderro GP, Nova Power, Cez Vânzare, Cis Gaz, Conef Gaz, CPL Concordia, Crest Energy, Cyeb, Design Proiect, Distrigaz Vest, Engie, E.on Energie, Electrica Furnizare, Electric Planners, Electric&Gas, Energy Distribution, Enel Energie, Enel Muntenia, Gas&Power, Entrex, Premier Energy Trading, Gaz Est, Hargaz, Gazmir, Gaz Vest, Mihoc Oil, Met România, Monsson, Next Energy Distribution, Next Energy Partners, Pado Group, Premier Energy, Petrom, Prisma Serv, Gas Provider, Renovatio, Res Energy Solutions, Restart Energy, RWE Supply, SST Grup, Tetarom, Tinmar, Veolia, Wiee","Delgaz Grid","-","2021-03-10","09:00:00","2021-03-10","14:00:00","Mediaș","Efectuată",null,"2021-03-10","09:00:00","2021-03-10","14:00:00","2021-03-10","09:49:00","2021-03-10","09:27:00","17562/08.03.2021","DA",null,null,null,0.45000000006984919,1,1,0.81666666670935228,44,44,5.0000000000582077,0,0,null,null,null,null,null,"","","","","","","","",""]
[{"$f":"SUM(1,A152)","v":137},"x","-","Deviere conductă 10\" Gănești - Ungheni",116947,"GăneștiI","Mureș",450775.6,537951.26,450775.6,537951.26,"-","-","SM0662D0","Gănești","-","-","-","-","SM-SD001","Aderro GP, Nova Power, Cez Vânzare, Cis Gaz, Conef Gaz, CPL Concordia, Crest Energy, Cyeb, Design Proiect, Distrigaz Vest, Engie, E.on Energie, Electrica Furnizare, Electric Planners, Electric&Gas, Energy Distribution, Enel Energie, Enel Muntenia, Gas&Power, Entrex, Premier Energy Trading, Gaz Est, Hargaz, Gazmir, Gaz Vest, Mihoc Oil, Met România, Monsson, Next Energy Distribution, Next Energy Partners, Pado Group, Premier Energy, Petrom, Prisma Serv, Gas Provider, Renovatio, Res Energy Solutions, Restart Energy, RWE Supply, SST Grup, Tetarom, Tinmar, Veolia, Wiee","Delgaz Grid","-","2021-03-10","09:00:00","2021-03-10","14:00:00","Mediaș","Efectuată",null,"2021-03-10","09:00:00","2021-03-10","14:00:00","2021-03-10","09:49:00","2021-03-10","09:27:00","17562/08.03.2021","DA",null,null,null,0.45000000006984919,1,1,0.81666666670935228,44,44,5.0000000000582077,0,0,null,null,null,null,null,"","","","","","","","",""]
[138,"x","-","Deviere conductă 10\" Gănești - Ungheni",118218,"Mica","Mureș",453969.01,540754.25,453969.01,540754.25,"-","-","SM0663D0","Mica","-","-","-","-","SM-SD001","Aderro GP, Nova Power, Cez Vânzare, Cis Gaz, Conef Gaz, CPL Concordia, Crest Energy, Cyeb, Design Proiect, Distrigaz Vest, Engie, E.on Energie, Electrica Furnizare, Electric Planners, Electric&Gas, Energy Distribution, Enel Energie, Enel Muntenia, Gas&Power, Entrex, Premier Energy Trading, Gaz Est, Hargaz, Gazmir, Gaz Vest, Mihoc Oil, Met România, Monsson, Next Energy Distribution, Next Energy Partners, Pado Group, Premier Energy, Petrom, Prisma Serv, Gas Provider, Renovatio, Res Energy Solutions, Restart Energy, RWE Supply, SST Grup, Tetarom, Tinmar, Veolia, Wiee","Delgaz Grid","-","2021-03-10","09:00:00","2021-03-10","14:00:00","Mediaș","Efectuată",null,"2021-03-10","09:00:00","2021-03-10","14:00:00","2021-03-10","09:49:00","2021-03-10","09:27:00","17562/08.03.2021","DA",null,null,null,0.45000000006984919,1,1,0.81666666670935228,44,44,5.0000000000582077,0,0,null,null,null,null,null,"","","","","","","","",""]
[139,"x","-","Deviere conductă 10\" Gănești - Ungheni",118227,"Abuș","Mureș",452793.32,539877.30000000005,452793.32,539877.30000000005,"-","-","SM0665D0","Abuș","-","-","-","-","SM-SD001","Aderro GP, Nova Power, Cez Vânzare, Cis Gaz, Conef Gaz, CPL Concordia, Crest Energy, Cyeb, Design Proiect, Distrigaz Vest, Engie, E.on Energie, Electrica Furnizare, Electric Planners, Electric&Gas, Energy Distribution, Enel Energie, Enel Muntenia, Gas&Power, Entrex, Premier Energy Trading, Gaz Est, Hargaz, Gazmir, Gaz Vest, Mihoc Oil, Met România, Monsson, Next Energy Distribution, Next Energy Partners, Pado Group, Premier Energy, Petrom, Prisma Serv, Gas Provider, Renovatio, Res Energy Solutions, Restart Energy, RWE Supply, SST Grup, Tetarom, Tinmar, Veolia, Wiee","Delgaz Grid","-","2021-03-10","09:00:00","2021-03-10","14:00:00","Mediaș","Efectuată",null,"2021-03-10","09:00:00","2021-03-10","14:00:00","2021-03-10","09:49:00","2021-03-10","09:27:00","17562/08.03.2021","DA",null,null,null,0.45000000006984919,1,1,0.81666666670935228,44,44,5.0000000000582077,0,0,null,null,null,null,null,"","","","","","","","",""]
[140,"x","-","Deviere conductă 10\" Gănești - Ungheni",118272,"Șomoștelnic","Mureș",452741.8,543489.24,452741.8,543489.24,"-","-","SM0702D0","Șomoștelnic","-","-","-","-","SM-SD001","Aderro GP, Nova Power, Cez Vânzare, Cis Gaz, Conef Gaz, CPL Concordia, Crest Energy, Cyeb, Design Proiect, Distrigaz Vest, Engie, E.on Energie, Electrica Furnizare, Electric Planners, Electric&Gas, Energy Distribution, Enel Energie, Enel Muntenia, Gas&Power, Entrex, Premier Energy Trading, Gaz Est, Hargaz, Gazmir, Gaz Vest, Mihoc Oil, Met România, Monsson, Next Energy Distribution, Next Energy Partners, Pado Group, Premier Energy, Petrom, Prisma Serv, Gas Provider, Renovatio, Res Energy Solutions, Restart Energy, RWE Supply, SST Grup, Tetarom, Tinmar, Veolia, Wiee","Delgaz Grid","-","2021-03-10","09:00:00","2021-03-10","14:00:00","Mediaș","Efectuată",null,"2021-03-10","09:00:00","2021-03-10","14:00:00","2021-03-10","09:49:00","2021-03-10","09:27:00","17562/08.03.2021","DA",null,null,null,0.45000000006984919,1,1,0.81666666670935228,44,44,5.0000000000582077,0,0,null,null,null,null,null,"","","","","","","","",""]
[141,"x","-","Deviere conductă 10\" Gănești - Ungheni",119929,"Cerghizel","Mureș",457591.12,549147.76,457591.12,549147.76,"-","-","SM0707D0","Cerghizel II TAU","-","-","-","-","SM-SD001","Aderro GP, Nova Power, Cez Vânzare, Cis Gaz, Conef Gaz, CPL Concordia, Crest Energy, Cyeb, Design Proiect, Distrigaz Vest, Engie, E.on Energie, Electrica Furnizare, Electric Planners, Electric&Gas, Energy Distribution, Enel Energie, Enel Muntenia, Gas&Power, Entrex, Premier Energy Trading, Gaz Est, Hargaz, Gazmir, Gaz Vest, Mihoc Oil, Met România, Monsson, Next Energy Distribution, Next Energy Partners, Pado Group, Premier Energy, Petrom, Prisma Serv, Gas Provider, Renovatio, Res Energy Solutions, Restart Energy, RWE Supply, SST Grup, Tetarom, Tinmar, Veolia, Wiee","Delgaz Grid","-","2021-03-10","09:00:00","2021-03-10","14:00:00","Mediaș","Efectuată",null,"2021-03-10","09:00:00","2021-03-10","14:00:00","2021-03-10","09:49:00","2021-03-10","09:27:00","17562/08.03.2021","DA",null,null,null,0.45000000006984919,1,1,0.81666666670935228,44,44,5.0000000000582077,0,0,null,null,null,null,null,"","","","","","","","",""]
[142,"x","-","Deviere conductă 10\" Gănești - Ungheni",119910,"Cerghid","Mureș",457317.75,546240.65,457317.75,546240.65,"-","-","SM0708D0","Cerghid","-","-","-","-","SM-SD001","Aderro GP, Nova Power, Cez Vânzare, Cis Gaz, Conef Gaz, CPL Concordia, Crest Energy, Cyeb, Design Proiect, Distrigaz Vest, Engie, E.on Energie, Electrica Furnizare, Electric Planners, Electric&Gas, Energy Distribution, Enel Energie, Enel Muntenia, Gas&Power, Entrex, Premier Energy Trading, Gaz Est, Hargaz, Gazmir, Gaz Vest, Mihoc Oil, Met România, Monsson, Next Energy Distribution, Next Energy Partners, Pado Group, Premier Energy, Petrom, Prisma Serv, Gas Provider, Renovatio, Res Energy Solutions, Restart Energy, RWE Supply, SST Grup, Tetarom, Tinmar, Veolia, Wiee","Delgaz Grid","-","2021-03-10","09:00:00","2021-03-10","14:00:00","Mediaș","Efectuată",null,"2021-03-10","09:00:00","2021-03-10","14:00:00","2021-03-10","09:49:00","2021-03-10","09:27:00","17562/08.03.2021","DA",null,null,null,0.45000000006984919,1,1,0.81666666670935228,44,44,5.0000000000582077,0,0,null,null,null,null,null,"","","","","","",{"$f":"IF(C158=\"X\",IF(AN158=\"\",\"Afectat sau NU?\",IF(AN158=\"DA\",((AG158+AH158)-(Z158+AA158))*24,\"Nu a fost afectat producator/consumator\")),\"\")","v":""},"",""]
[143,"x","-","Defect pe conducta 20\" Ișalnița - Cruce în zona separator Șimnic",72409,"Ghercești","Dolj",411337.338474622,315622.46369252302,411337.338474622,315622.46369252302,"-","-","-","-","PM0275","Stația Centrală Ghercești Extras","-","-","VPM01","Aderro GP, Alpha Metal, Nova Power, Cez Vânzare, Cis Gaz, Cordun Gaz, CPL Concordia, Cyeb, Design Proiect, Distrigaz Vest, Engie, Axpo Energy, E.on Energie, Electric Planners, Energy Distribution, Enel Energie, Enel Muntenia, Gas&Power, Entrex, Euro Seven, Premier Energy Trading, Gaz Est, Gaz Nord Est, Mehedinți Gaz, Met România, Nord Gaz, Oligopol, Pado Group, Premier Energy, Petrom, Prisma Serv, Progaz, Energy Gas Provider, Restart Energy, Romgaz, RWE Supply, Salgaz, Tinmar, Vega 93, Veolia, Wiee","Depogaz Ploiești","-","2021-03-12","10:00:00","2021-03-17","18:00:00","Craiova","Efectuată",null,"2021-03-12","10:00:00","2021-03-17","12:28:00","2021-03-12","10:22:00","2021-03-12","10:14:00","18255/10.03.2021","DA",null,null,null,0.2333333333954215,1,1,0.36666666663950309,41,41,122.46666666667443,1,1,"DA",null,null,null,null,"","","","","","","","",""]
[144,"x","-","Incident tehnic pe conducta 4\" racord SRM Bogatu Roman, zona Bogatu Roman",145248,"Bogatu Român","Sibiu",417933.66,500204.42,417933.66,500204.42,"-","-","SM0752D0","Bogatu Român","-","-","-","-","SM-SD001","Aderro GP, Nova Power, Cez Vânzare, Cis Gaz, Conef Gaz, CPL Concordia, Crest Energy, Energy Trade, Design Proiect, Distrigaz Vest, Engie, E.on Energie, Electrica Furnizare, Electric Planners, Electric&Gas, Energy Distribution, Enel Energie, Enel Muntenia, Gas&Power, Entrex, Premier Energy Trading, Gaz Est, Hargaz, Gazmir, Gaz Vest, Mihoc Oil, Met România, Monsson, Next Energy Distribution, Next Energy Partners, Pado Group, Premier Energy, Petrom, Prisma Serv, Gas Provider, Renovatio, Res Energy Solutions, Restart Energy, RWE Supply, SST Grup, Tetarom, Tinmar, Veolia, Wiee","Delgaz Grid","-","2021-03-17","16:45:00","2021-03-17","20:00:00","Mediaș","Efectuată",null,"2021-03-17","16:45:00","2021-03-17","21:00:00","2021-03-17","17:20:00","2021-03-17","16:51:00","-","DA",null,null,null,9.9999999976716936E-2,1,1,0.58333333331393078,44,44,4.2500000000582077,0,0,null,null,null,null,null,"","","","","","","","",""]
[145,"x","-","Incident tehnic pe conducta 4\" racord SRM Bogatu Roman, zona Bogatu Roman",145239,"Păuca","Sibiu",414787.47,501461.26,414787.47,501461.26,"-","-","SM0753D0","Păuca","-","-","-","-","SM-SD001","Aderro GP, Nova Power, Cez Vânzare, Cis Gaz, Conef Gaz, CPL Concordia, Crest Energy, Energy Trade, Design Proiect, Distrigaz Vest, Engie, E.on Energie, Electrica Furnizare, Electric Planners, Electric&Gas, Energy Distribution, Enel Energie, Enel Muntenia, Gas&Power, Entrex, Premier Energy Trading, Gaz Est, Hargaz, Gazmir, Gaz Vest, Mihoc Oil, Met România, Monsson, Next Energy Distribution, Next Energy Partners, Pado Group, Premier Energy, Petrom, Prisma Serv, Gas Provider, Renovatio, Res Energy Solutions, Restart Energy, RWE Supply, SST Grup, Tetarom, Tinmar, Veolia, Wiee","Delgaz Grid","-","2021-03-17","16:45:00","2021-03-17","20:00:00","Mediaș","Efectuată",null,"2021-03-17","16:45:00","2021-03-17","21:00:00","2021-03-17","17:20:00","2021-03-17","16:51:00","-","DA",null,null,null,9.9999999976716936E-2,1,1,0.58333333331393078,44,44,4.2500000000582077,0,0,null,null,null,null,null,"","","","","","","","",""]
[146,"x","-","Incident tehnic pe conducta 4\" racord SRM Bogatu Roman, zona Bogatu Roman",145266,"Presaca","Sibiu",414493.32,498285.07,414493.32,498285.07,"-","-","SM0754D0","Presaca","-","-","-","-","SM-SD001","Aderro GP, Nova Power, Cez Vânzare, Cis Gaz, Conef Gaz, CPL Concordia, Crest Energy, Energy Trade, Design Proiect, Distrigaz Vest, Engie, E.on Energie, Electrica Furnizare, Electric Planners, Electric&Gas, Energy Distribution, Enel Energie, Enel Muntenia, Gas&Power, Entrex, Premier Energy Trading, Gaz Est, Hargaz, Gazmir, Gaz Vest, Mihoc Oil, Met România, Monsson, Next Energy Distribution, Next Energy Partners, Pado Group, Premier Energy, Petrom, Prisma Serv, Gas Provider, Renovatio, Res Energy Solutions, Restart Energy, RWE Supply, SST Grup, Tetarom, Tinmar, Veolia, Wiee","Delgaz Grid","-","2021-03-17","16:45:00","2021-03-17","20:00:00","Mediaș","Efectuată",null,"2021-03-17","16:45:00","2021-03-17","21:00:00","2021-03-17","17:20:00","2021-03-17","16:51:00","-","DA",null,null,null,9.9999999976716936E-2,1,1,0.58333333331393078,44,44,4.2500000000582077,0,0,null,null,null,null,null,"","","","","","","","",""]
[147,"x","-","Incident tehnic pe conducta 4\" racord SRM Bogatu Roman, zona Bogatu Roman",144820,"Armeni","Sibiu",418496.58,500170.58,418496.58,500170.58,"-","-","-","-","-","-","PM0304","Armeni","VPM04","Romgaz","Romgaz","-","2021-03-17","16:45:00","2021-03-17","20:00:00","Mediaș","Efectuată",null,"2021-03-17","16:45:00","2021-03-17","21:00:00","2021-03-17","16:57:00","2021-03-17","17:17:00","-","DA",null,null,null,0.53333333332557231,1,1,0.20000000012805685,1,1,4.2500000000582077,0,0,null,null,null,null,null,"","","","","","","","",""]
[148,"-","x","Înlocuire robinet 20” cuplare racord SRM Balotești",100978,"Balotești ","Ilfov",589605.26,346450.65,589605.26,346450.65,"-","-","SM0198D0","Balotești ","-","-","-","-","SM-SD001",null,"SC Megaconstruct SA","iulie - septembrie 2021\nanul gazier 2021 - 2022",null,null,null,null,"București",null,"Întârzieri în aprovizionarea cu materialele necesare",null,null,null,null,null,null,null,null,null,null,null,"Plan lucrări SM 2021, cap.A",null,"","","","","","","","","",null,null,null,null,null,"Afectat sau NU?","-","-","Afectat sau NU?","-","-","Afectat sau NU?","-","-"]
[149,"-","x","Înlocuire robinet 20” cuplare racord SRM Balotești",105179,"Snagov","Ilfov",589606.49,346458.63,589606.49,346458.63,"-","-","SM0922D0","Snagov","-","-","-","-","SM-SD001",null,"SC Premier Energy SRL","iulie - septembrie 2021\nanul gazier 2021 - 2022",null,null,null,null,"București",null,"Întârzieri în aprovizionarea cu materialele necesare",null,null,null,null,null,null,null,null,null,null,null,"Plan lucrări SM 2021, cap.A",null,"","","","","","","","","",null,null,null,null,null,"Afectat sau NU?","-","-","Afectat sau NU?","-","-","Afectat sau NU?","-","-"]
[150,"-","x","Înlocuire robinet 20” cuplare racord SRM Balotești",102179,"Corbeanca","Ilfov",582902.09,344014.84,582902.09,344014.84,"-","-","SM0148D0","Corbeanca","-","-","-","-","SM-SD001",null," Distrigaz Sud Rețele","iulie - septembrie 2021\nanul gazier 2021 - 2022",null,null,null,null,"București",null,"Întârzieri în aprovizionarea cu materialele necesare",null,null,null,null,null,null,null,null,null,null,null,"Plan lucrări SM 2021, cap.A",null,"","","","","","","","","",null,null,null,null,null,"Afectat sau NU?","-","-","Afectat sau NU?","-","-","Afectat sau NU?","-","-"]
[151,"-","x","Modernizare/Sistematizare instalație tehnologică SRM Tunari",105589,"Tunari","Ilfov",590882.06000000006,338200.31,590882.06000000006,338200.31,"-","-","SM0168D0","București Tunari","-","-","-","-","SM-SD001",null," Distrigaz Sud Rețele","iulie - septembrie 2021\nanul gazier 2021 - 2022",null,null,null,null,"București",null,"Întârzieri în aprovizionarea cu materialele necesare",null,null,null,null,null,null,null,null,null,null,null,"Plan lucrări SM 2021, cap.A",null,"","","","","","","","","",null,null,null,null,null,"Afectat sau NU?","-","-","Afectat sau NU?","-","-","Afectat sau NU?","-","-"]
[152,"-","x","Modernizare/Sistematizare instalație tehnologică SRM Tunari",105589,"Tunari","Ilfov",590882.06000000006,338200.31,590882.06000000006,338200.31,"-","-","SM0168D1","Cartier Pipera","-","-","-","-","SM-SD001",null,"SC Premier Energy SRL","iulie - septembrie 2021\nanul gazier 2021 - 2022",null,null,null,null,"București",null,"Întârzieri în aprovizionarea cu materialele necesare",null,null,null,null,null,null,null,null,null,null,null,"Plan lucrări SM 2021, cap.A",null,"","","","","","","","","",null,null,null,null,null,"Afectat sau NU?","-","-","Afectat sau NU?","-","-","Afectat sau NU?","-","-"]
[153,"-","x","Adaptare panouri de măsurăre gaze SRM Ștefăneștii de Jos",105428,"Ștefăneștii de Jos","Ilfov",595033.81999999995,336741.93,595033.81999999995,336741.93,"-","-","SM1072D0","Ștefăneștii de Jos","-","-","-","-","SM-SD001",null," Distrigaz Sud Rețele","mai - iunie 2021\n12 iulie - septembrie 2021",null,null,null,null,"București",null,"Întârzieri în aprovizionarea cu materialele necesare",null,null,null,null,null,null,null,null,null,null,null,"Forțe proprii",null,"","","","","","","","","",null,null,null,null,null,"Afectat sau NU?","-","-","Afectat sau NU?","-","-","Afectat sau NU?","-","-"]
[154,"-","x","Montare flanșă electroizolantă pe racord SRM Videle",151914,"Videle ","Teleorman",543275.88,310029.43,543275.88,310029.43,"-","-","SM1111D0","Videle ","-","-","-","-","SM-SD001",null,"SC Premier Energy SRL","iulie - septembrie 2021\nanul gazier 2021 - 2022",null,null,null,null,"București",null,"Întârzieri în aprovizionarea cu materialele necesare",null,null,null,null,null,null,null,null,null,null,null,"Forțe proprii",null,"","","","","","","","","",null,null,null,null,null,"Afectat sau NU?","-","-","Afectat sau NU?","-","-","Afectat sau NU?","-","-"]
[155,"-","x","Curățire interioara cu PIG a conductei 12” racord SRM Videle",151914,"Videle ","Teleorman",543275.88,310029.43,543275.88,310029.43,"-","-","SM1111D0","Videle ","-","-","-","-","SM-SD001",null,"SC Premier Energy SRL","iulie - septembrie 2021\nanul gazier 2021 - 2022",null,null,null,null,"București",null,"Întârzieri în aprovizionarea cu materialele necesare",null,null,null,null,null,null,null,null,null,null,null,"Forțe proprii",null,"","","","","","","","","",null,null,null,null,null,"Afectat sau NU?","-","-","Afectat sau NU?","-","-","Afectat sau NU?","-","-"]
[156,"-","x","Curățire interioara cu PIG a conductei 12” racord SRM Videle",104234,"Mârșa ","Giurgiu",543811.16,313253.82,543811.16,313253.82,"-","-","SM1165D0","Depozit 160 Videle","-","-","-","-","SM-CF001",null,"PETROM","iulie - septembrie 2021\nanul gazier 2021 - 2022",null,null,null,null,"București",null,"Întârzieri în aprovizionarea cu materialele necesare",null,null,null,null,null,null,null,null,null,null,null,"Forțe proprii",null,"","","","","","","","","",null,null,null,null,null,"Afectat sau NU?","-","-","Afectat sau NU?","-","-","Afectat sau NU?","-","-"]
[157,"-","x","Mentenanță SRM 16 Februarie",403,"București","București",580043.31999999995,331375.90000000002,580043.31999999995,331375.90000000002,"-","-","SM0144D0"," București 16 Februarie","-","-","-","-","SM-SD001","Aderro GP, Alpha Metal, Nova Power, Cez Vânzare, Cis Gaz, Conef Gaz, Crest Energy, Energy Trade, Distrigaz Vest, Engie, E.On Energie, Electrocentrale București, Electrocentrale Constanța, Electrica Furnizare, Electric Planners, Electric&Gas, Energy Distribution, Enel, Enel Muntenia, Gas&Power, Entrex, Euro Seven Industry, Premier Energy Trading, Gaz Est, Hargaz, Gaz&Energy Distributie, Gaz Vest, Gecabuild, Getica 95, Megaconstruct, Met România, Monsson, Next Energy Distribution, Next Energy Partners, Nord Gaz, Oligopol, Premier Energy, Petrom, Progaz, Energy Gas Provider, Renovatio, Res Energy, Restart Energy, Romgaz, RWE Supply, Tinmar, Transenergo, Veolia, WIEE, With Us","Distrigaz Sud Rețele","mai - septembrie 2021","2021-05-19","10:00:00","2021-06-07","10:00:00","București","Efectuată",null,"2021-05-19","10:45:00","2021-06-07","09:55:00","2021-05-11","11:08:00","2021-05-11","10:56:00","37778/17.05.2021","NU",null,"Plan lucrări SM 2021, cap.A",null,"","","","","","","","","",null,null,null,null,null,"Nu a fost afectat producator/consumator","-","-","Nu a fost afectat producator/consumator","-","-","Nu a fost afectat producator/consumator","-","-"]
[158,"-","x","Mentenanță SRM Cet Vest",179258,"București","București",577613.28,325145.01,577613.28,325145.01,"-","-","SM0151D0"," București Cet Vest","-","-","-","-","SM-SD001","Aderro GP, Alpha Metal, Nova Power, Cez Vânzare, Cis Gaz, Conef Gaz, Crest Energy, MVM Energy Trade, Distrigaz Vest, Engie, E.on Energie, Electrocentrale București, Electrocentrale Constanța, Electrica Furnizare, Electric Planners, Electric&Gas, Energy Distribution, Enel Energie, Enel Muntenia, Gas&Power, Entrex, Euro Seven, Premier Energy Trading, Gaz Est, Hargaz, Gaz&Energy Distributie, Gaz Vest, Gecabuild, Getica 95, Macin Gaz, Megaconstruct, Met România, Monsson, Next Energy Distribution, Next Energy Partners, Nord Gaz, Oligopol, Premier Energy, Petrom, Progaz, Gas Provider, Renovatio, Res Energy, Restart Energy, Romgaz, RWE Supply, Tinmar, Transenergo, Veolia, Wiee, With Us"," Distrigaz Sud Rețele","mai - septembrie 2021","2021-08-24","10:00:00","2021-09-20","10:00:00","București","Efectuată",null,"2021-08-24","10:00:00","2021-09-20","09:46:00","2021-08-16","09:49:00","2021-08-16","09:36:00","62722/19.08.2021","NU",null,"Forțe proprii",null,"","","","","","","","","",null,null,null,null,null,"Nu a fost afectat producator/consumator","-","-","Nu a fost afectat producator/consumator","-","-","Nu a fost afectat producator/consumator","-","-"]
[159,"-","x","Mentenanță SRM Măgurele",179418,"Măgurele","Ilfov",583333.36,319855.82,583333.36,319855.82,"-","-","SM0252D0","Măgurele București","-","-","-","-","SM-SD001","Aderro GP, Alpha Metal, Nova Power, Cez Vânzare, Cis Gaz, Conef Gaz, Crest Energy, Energy Trade, Distrigaz Vest, Engie, E.On Energie, Electrocentrale București, Electrocentrale Constanța, Electrica Furnizare, Electric Planners, Electric&Gas, Energy Distribution, Enel, Enel Muntenia, Gas&Power, Entrex, Euro Seven Industry, Premier Energy Trading, Gaz Est, Hargaz, Gaz&Energy Distributie, Gaz Vest, Gecabuild, Getica 95, Macin Gaz, Megaconstruct, Met România, Monsson, Next Energy Distribution, Next Energy Partners, Nord Gaz, Oligopol, Premier Energy, Petrom, Progaz, Energy Gas Provider, Renovatio, Res Energy, Restart Energy, Romgaz, RWE Supply, Tinmar, Transenergo, Veolia, WIEE, Aprovi Energy"," Distrigaz Sud Rețele","mai - septembrie 2021","2021-06-09","10:00:00","2021-07-26","10:00:00","București","Efectuată",null,"2021-06-09","10:00:00","2021-07-26","10:00:00","2021-05-27","09:01:00","2021-05-27","08:48:00","42996/04.06.2021","nu",null,"Plan lucrări SM 2021, cap.A",null,"","","","","","","","","",null,null,null,null,null,"Nu a fost afectat producator/consumator","-","-","Nu a fost afectat producator/consumator","-","-","Nu a fost afectat producator/consumator","-","-"]
[160,"-","x","Mentenanță SRM Titan",403,"București","București",594982.35,325100.93,594982.35,325100.93,"-","-","SM0157D0","București Titan","-","-","-","-","SM-SD001",null," Distrigaz Sud Rețele","mai - septembrie 2021",null,null,null,null,"București","Efectuată (Lucrarea a fost executată în perioada 27.07.2021 - 23.08.2021 fără a mai fi necesară întreruperea)",null,null,null,null,null,null,null,null,null,null,null,null,"Forțe proprii",null,"","","","","","","","","",null,null,null,null,null,"Afectat sau NU?","-","-","Afectat sau NU?","-","-","Afectat sau NU?","-","-"]
[161,"-","x","Interconectare 32\" Moșu - Podișor cu 16\" Gura Șuții, zona Slobozia Moara și relocare Rv16 cu refulator.",68636,"Răcari","Dâmbovița",557141.14,348301.15,557141.14,348301.15,"-","-","SM0145D0","Răcari","-","-","-","-","SM-SD001",null," Distrigaz Sud Rețele","iunie - septembrie 2021\nanul gazier 2021 - 2022",null,null,null,null,"București",null,"Lucrarea aflată în faza de proiect",null,null,null,null,null,null,null,null,null,null,null,"Forțe proprii/SM",null,"","","","","","","","","",null,null,null,null,null,"Afectat sau NU?","-","-","Afectat sau NU?","-","-","Afectat sau NU?","-","-"]
[162,"-","x","Interconectare 32\" Moșu - Podișor cu 16\" Gura Șuții, zona Slobozia Moara și relocare Rv16 cu refulator.",105543,"Tărtășești","Dâmbovița",564729.06000000006,341811.75,564729.06000000006,341811.75,"-","-","SM0112D0","Tărtășești","-","-","-","-","SM-SD001",null,"SC Premier Energy SRL","iunie - septembrie 2021\nanul gazier 2021 - 2022",null,null,null,null,"București",null,"Lucrarea aflată în faza de proiect",null,null,null,null,null,null,null,null,null,null,null,"Forțe proprii/SM",null,"","","","","","","","","",null,null,null,null,null,"Afectat sau NU?","-","-","Afectat sau NU?","-","-","Afectat sau NU?","-","-"]
[163,"-","x","Interconectare 32\" Moșu - Podișor cu 16\" Gura Șuții, zona Slobozia Moara și relocare Rv16 cu refulator.",104038,"Săbăreni","Giurgiu",569107.28,334140.34999999998,569107.28,334140.34999999998,"-","-","SM1086D0","Joița","-","-","-","-","SM-SD001",null,"Euro Seven Industry","iunie - septembrie 2021\nanul gazier 2021 - 2022",null,null,null,null,"București",null,"Lucrarea aflată în faza de proiect",null,null,null,null,null,null,null,null,null,null,null,"Forțe proprii/SM",null,"","","","","","","","","",null,null,null,null,null,"Afectat sau NU?","-","-","Afectat sau NU?","-","-","Afectat sau NU?","-","-"]
[164,"-","x","Înlocuit robinet R4 Inel București, zona Chiajna",179258,"Chiajna","Ilfov",576624.93999999994,327167.40999999997,576624.93999999994,327167.40999999997,"-","-","SM0170D0","SC Complex Carrefour Chiajna","-","-","-","-","SM-SD001",null,"Distrigaz Sud Rețele","iunie - septembrie 2021\nanul gazier 2021 - 2022",null,null,null,null,"București",null,"Întârzieri în aprovizionarea cu materialele necesare",null,null,null,null,null,null,null,null,null,null,null,"Forțe proprii",null,"","","","","","","","","",null,null,null,null,null,"Afectat sau NU?","-","-","Afectat sau NU?","-","-","Afectat sau NU?","-","-"]
[165,"-","x","Înlocuit robinet R4 Inel București, zona Chiajna",179258,"Chiajna","Ilfov",576726.56999999995,326494.11,576726.56999999995,326494.11,"-","-","SM0154D0","SC Linde Gaz București","-","-","-","-","SM-SD001",null,"Distrigaz Sud Rețele","iunie - septembrie 2021\nanul gazier 2021 - 2022",null,null,null,null,"București",null,"Întârzieri în aprovizionarea cu materialele necesare",null,null,null,null,null,null,null,null,null,null,null,"Forțe proprii",null,"","","","","","","","","",null,null,null,null,null,"Afectat sau NU?","-","-","Afectat sau NU?","-","-","Afectat sau NU?","-","-"]
[166,"-","x","Înlocuire tronson conductă 32\" pe conducta de transport 28\" Platou Izvor Sinaia - Filipești, Fir II, zona Drăgăneasa",134069,"Măgureni","Prahova",558808.02,394539.73,558808.02,394539.73,"-","-","SM0506D0","Măgureni","-","-","-","-","SM-SD001",null,"MMDATA","mai - septembrie 2021",null,null,null,null,"București","Efectuată (Lucrarea a fost executată în perioada 29.06 - 30.06.2021 fără a mai fi necesară întreruperea)",null,null,null,null,null,null,null,null,null,null,null,null,"PRRASM_IA6_Anexa 1",null,"","","","","","","","","",null,null,null,null,null,"Afectat sau NU?","-","-","Afectat sau NU?","-","-","Afectat sau NU?","-","-"]
[167,"-","x","Adapare panou măsură si eliminare instalație odorizare veche SRM Măgureni",134069,"Măgureni","Prahova",558807.9,394540.02,558807.9,394540.02,"-","-","SM0506D0","Măgureni","-","-","-","-","SM-SD001",null,"MMDATA","iunie - septembrie 2021\nanul gazier 2021 - 2022",null,null,null,null,"București",null,"Întârzieri în aprovizionarea cu materialele necesare",null,null,null,null,null,null,null,null,null,null,null,"Forțe proprii",null,"","","","","","","","","",null,null,null,null,null,"Afectat sau NU?","-","-","Afectat sau NU?","-","-","Afectat sau NU?","-","-"]
[168,"-","x","Înlocuire robinet R33 pe conducta 28” Stâlp89 - Filipești, zona Talea",131121,"Breaza de Sus ","Prahova",551059.15,410660.89,551059.15,410660.89,"-","-","SM0085D1","Breaza PH","-","-","-","-","SM-SD001",null,"Distrigaz Sud Rețele","iunie - septembrie 2021\nanul gazier 2021 - 2022",null,null,null,null,"București",null,"Întârzieri în aprovizionarea cu materialele necesare",null,null,null,null,null,null,null,null,null,null,null,"Plan lucrări SM 2021, cap.A",null,"","","","","","","","","",null,null,null,null,null,"Afectat sau NU?","-","-","Afectat sau NU?","-","-","Afectat sau NU?","-","-"]
[169,"-","x","Înlocuire robinet R33 pe conducta 28” Stâlp89 - Filipești, zona Talea",131121,"Breaza de Sus ","Prahova",551059.15,410660.89,551059.15,410660.89,"-","-","SM0085D2","SC Parc Industrial Breaza","-","-","-","-","SM-CF001",null,"SC Parc Industrial Breaza SRL","iunie - septembrie 2021\nanul gazier 2021 - 2022",null,null,null,null,"București",null,"Întârzieri în aprovizionarea cu materialele necesare",null,null,null,null,null,null,null,null,null,null,null,"Plan lucrări SM 2021, cap.A",null,"","","","","","","","","",null,null,null,null,null,"Afectat sau NU?","-","-","Afectat sau NU?","-","-","Afectat sau NU?","-","-"]
[170,"-","x","Înlocuire robinet R98 pe conducta 28” Stâlp89 - Filipești, zona Provița",134862,"Provița de Jos","Prahova",552168.05000000005,402387.58,552168.05000000005,402387.58,"-","-","SM0096D0","Provița de Jos","-","-","-","-","SM-SD001",null,"Distrigaz Sud Rețele","iunie - septembrie 2021\nanul gazier 2021 - 2022",null,null,null,null,"București",null,"Întârzieri în aprovizionarea cu materialele necesare",null,null,null,null,null,null,null,null,null,null,null,"Plan lucrări SM 2021, cap.A",null,"","","","","","","","","",null,null,null,null,null,"Afectat sau NU?","-","-","Afectat sau NU?","-","-","Afectat sau NU?","-","-"]
[171,"-","x","Înlocuire sistem reglare SRM Izvorul Rece ",131158,"Nistorești","Prahova",552081.85,411912.9,552081.85,411912.9,"-","-","SM0087D0"," SC Izvorul Rece Nistorești","-","-","-","-","SM-CF001",null,"Izvorul Rece Nistoresti","mai - septembrie 2021\ndecembrie 2021",null,null,null,null,"București",null,"Relocare SRM pe procedura de acord ATR-DGSR-Cartier Nistorești",null,null,null,null,null,null,null,null,null,null,null,"Forțe proprii",null,"","","","","","","","","",null,null,null,null,null,"Afectat sau NU?","-","-","Afectat sau NU?","-","-","Afectat sau NU?","-","-"]
[172,"-","x","Mentenanță si reabilitare SRM Răzvad ",65440,"Târgoviște ","Dâmbovița",542880.01,380147.11,542880.01,380147.11,"-","-","SM0105D0","Răzvad ","-","-","-","-","SM-SD001",null,"Distrigaz Sud Rețele","iunie - septembrie 2021\nanul gazier 2021 - 2022",null,null,null,null,"București",null,"Întârzieri în aprovizionarea cu materialele necesare",null,null,null,null,null,null,null,null,null,null,null,"Plan lucrări SM 2021, cap.A",null,"","","","","","","","","",null,null,null,null,null,"Afectat sau NU?","-","-","Afectat sau NU?","-","-","Afectat sau NU?","-","-"]
[173,"-","x","Adaptare sistem de măsură SRM Comarnic",131345,"Comarnic","Prahova",549781.52,415513.83,549781.52,415513.83,"-","-","SM0084D1","Comarnic","-","-","-","-","SM-SD001",null,"Distrigaz Sud Rețele","iunie - septembrie 2021\nanul gazier 2021 - 2022",null,null,null,null,"București",null,"Întârzieri în aprovizionarea cu materialele necesare",null,null,null,null,null,null,null,null,null,null,null,"Forțe proprii",null,"","","","","","","","","",null,null,null,null,null,"Afectat sau NU?","-","-","Afectat sau NU?","-","-","Afectat sau NU?","-","-"]
[174,"-","x","Adaptare sistem de măsură SRM Comarnic",131345,"Comarnic","Prahova",549781.52,415513.83,549781.52,415513.83,"-","-","SM0084D2","SC Vulturul Comarnic","-","-","-","-","SM-CF001",null,"SC Vulturul SA","iunie - septembrie 2021\nanul gazier 2021 - 2022",null,null,null,null,"București",null,"Întârzieri în aprovizionarea cu materialele necesare",null,null,null,null,null,null,null,null,null,null,null,"Forțe proprii",null,"","","","","","","","","",null,null,null,null,null,"Afectat sau NU?","-","-","Afectat sau NU?","-","-","Afectat sau NU?","-","-"]
[175,"-","x","Înlocuire robinet R15 în SRM Posada și eliminare R7 pe conducta 28” Coroi - București, zona Posada",131381,"Posada","Prahova",548893.69999999995,420137.21,548893.69999999995,420137.21,"-","-","SM0081D0","Posada","-","-","-","-","SM-SD001",null,"Distrigaz Sud Rețele","iunie - septembrie 2021\nanul gazier 2021 - 2022",null,null,null,null,"București",null,"Întârzieri în aprovizionarea cu materialele necesare",null,null,null,null,null,null,null,null,null,null,null,"Plan lucrări SM 2021, cap.A + forțe proprii",null,"","","","","","","","","",null,null,null,null,null,"Afectat sau NU?","-","-","Afectat sau NU?","-","-","Afectat sau NU?","-","-"]
[176,"-","x","Modernizare alimentare cu gaze Municipiul Ploiești ",130856,"Păulești","Prahova",578743.81000000006,387259.08,578743.81000000006,387259.08,"-","-","SM0110D0","Păulești","-","-","-","-","SM-SD001",null,"Distrigaz Sud Rețele","mai - septembrie 2021",null,null,null,null,"București",null,null,null,null,null,null,null,null,null,null,null,null,null,"Plan lucrări SM 2021, cap.A",null,"","","","","","","","","",null,null,null,null,null,"Afectat sau NU?","-","-","Afectat sau NU?","-","-","Afectat sau NU?","-","-"]
[177,"-","x","Modernizare alimentare cu gaze Municipiul Ploiești ",130543,"Ploiești","Prahova",576786.91,384819.6,576786.91,384819.6,"-","-","SM0109D0","Ploiești Km 65","-","-","-","-","SM-SD001",null,"Distrigaz Sud Rețele","mai - septembrie 2021",null,null,null,null,"București",null,null,null,null,null,null,null,null,null,null,null,null,null,"Plan lucrări SM 2021, cap.A",null,"","","","","","","","","",null,null,null,null,null,"Afectat sau NU?","-","-","Afectat sau NU?","-","-","Afectat sau NU?","-","-"]
[178,"-","x","Modernizare alimentare cu gaze Municipiul Ploiești ",130909,"Strejnicu","Prahova",576668.51,380637.18,576668.51,380637.18,"-","-","SM0124D0","Strejnic","-","-","-","-","SM-SD001",null,"Distrigaz Sud Rețele","mai - septembrie 2021",null,null,null,null,"București",null,null,null,null,null,null,null,null,null,null,null,null,null,"Plan lucrări SM 2021, cap.A",null,"","","","","","","","","",null,null,null,null,null,"Afectat sau NU?","-","-","Afectat sau NU?","-","-","Afectat sau NU?","-","-"]
[179,"-","x","Modernizare alimentare cu gaze Municipiul Ploiești ",130543,"Ploiești","Prahova",572872.16,380999.88,572872.16,380999.88,"-","-","SM0122D0","Crângul Lui Bot","-","-","-","-","SM-SD001",null,"Distrigaz Sud Rețele","mai - septembrie 2021",null,null,null,null,"București",null,null,null,null,null,null,null,null,null,null,null,null,null,"Plan lucrări SM 2021, cap.A",null,"","","","","","","","","",null,null,null,null,null,"Afectat sau NU?","-","-","Afectat sau NU?","-","-","Afectat sau NU?","-","-"]
[180,"-","x","Modernizare alimentare cu gaze Municipiul Ploiești ",132119,"Stoenești","Prahova",567818.39,381275.49,567818.39,381275.49,"-","-","SM0121D0","Stoienești","-","-","-","-","SM-SD001",null,"Distrigaz Sud Rețele","mai - septembrie 2021",null,null,null,null,"București",null,null,null,null,null,null,null,null,null,null,null,null,null,"Plan lucrări SM 2021, cap.A",null,"","","","","","","","","",null,null,null,null,null,"Afectat sau NU?","-","-","Afectat sau NU?","-","-","Afectat sau NU?","-","-"]
[181,"-","x","Modernizare alimentare cu gaze Municipiul Ploiești ",130543,"Ploiești ","Prahova",581446.93000000005,385348.31,581446.93000000005,385348.31,"-","-","SM0130D2","Ploiești Nord Colonie","-","-","-","-","SM-SD001",null,"Distrigaz Sud Rețele","mai - septembrie 2021",null,null,null,null,"București",null,null,null,null,null,null,null,null,null,null,null,null,null,"Plan lucrări SM 2021, cap.A",null,"","","","","","","","","",null,null,null,null,null,"Afectat sau NU?","-","-","Afectat sau NU?","-","-","Afectat sau NU?","-","-"]
[182,"-","x","Modernizare alimentare cu gaze Municipiul Ploiești ",130543,"Ploiești ","Prahova",581446.93000000005,385348.31,581446.93000000005,385348.31,"-","-","SM0130D1","SC Vega Ploiești","-","-","-","-","SM-CF001",null,"Rompetrol Vega Ploiești","iunie - septembrie 2021\nanul gazier 2021 - 2022",null,null,null,null,"București",null,"Refacere proiect (DD, DCP)",null,null,null,null,null,null,null,null,null,null,null,"Plan lucrări SM 2021, cap.A",null,"","","","","","","","","",null,null,null,null,null,"Afectat sau NU?","-","-","Afectat sau NU?","-","-","Afectat sau NU?","-","-"]
[183,"-","x","Înlocuire flanșă electroizolantă pe conducta 4” racord SRM Cornești II Crivățu",67069,"Crivățu","Dâmbovița",571928,361161.04,571928,361161.04,"-","-","SM0908D0","Cornești 2 Crivățu","-","-","-","-","SM-SD001",null,"Distrigaz Sud Rețele","iunie - septembrie 2021",null,null,null,null,"București",null,null,null,null,null,null,null,null,null,null,null,null,null,"Forțe proprii",null,"","","","","","","","","",null,null,null,null,null,"Afectat sau NU?","-","-","Afectat sau NU?","-","-","Afectat sau NU?","-","-"]
[184,"-","x","Lucrări de mentenanță în SRM Valea Călugărească  ",135958,"Valea Călugărească ","Prahova",591730.05000000005,384301.09,591730.05000000005,384301.09,"-","-","SM0136D1","Valea Călugărească ","-","-","-","-","SM-SD001",null,"Distrigaz Sud Rețele","august - septembrie 2021",null,null,null,null,"București",null,null,null,null,null,null,null,null,null,null,null,null,null,"Plan lucrări SM 2021, cap.A",null,"","","","","","","","","",null,null,null,null,null,"Afectat sau NU?","-","-","Afectat sau NU?","-","-","Afectat sau NU?","-","-"]
[185,"-","x","Lucrări de mentenanță în SRM Valea Călugărească  ",135958,"Valea Călugărească","Prahova",591722.69999999995,384288.61,591722.69999999995,384288.61,"-","-","SM1112D0","Urlați","-","-","-","-","SM-SD001",null,"Distrigaz Sud Rețele","august - septembrie 2021",null,null,null,null,"București",null,null,null,null,null,null,null,null,null,null,null,null,null,"Plan lucrări SM 2021, cap.A",null,"","","","","","","","","",null,null,null,null,null,"Afectat sau NU?","-","-","Afectat sau NU?","-","-","Afectat sau NU?","-","-"]
[186,"-","x","Înlocuire instalație tehnologică la SRM Stăncești ",130918,"Stăncești","Prahova",571593.47,373696.68,571593.47,373696.68,"-","-","SM0140D0","Stăncești","-","-","-","-","SM-SD001",null,"Distrigaz Sud Rețele","aprilie - iulie 2021\naugust - septembrie 2021","2021-09-30","09:00:00","2021-09-30","15:00:00","București",null,"Întârzieri în aprovizionarea cu materialele necesare","2021-09-30","09:00:00","2021-09-30",null,"2021-09-30","11:09:00","2021-09-30","10:45:00",null,null,null,"Forțe proprii",null,"","","","","","","","","",null,null,null,null,null,"Afectat sau NU?","-","-","Afectat sau NU?","-","-","Afectat sau NU?","-","-"]
[187,"-","x","Înlocuire racord 4” SRM Brănesti și cuplare în conducta 20” Afumați - Oltenița",101305,"Brănești","Ilfov",606683.15,330784.01,606683.15,330784.01,"-","-","SM0941D0","Brănești","-","-","-","-","SM-SD001","Aderro GP, Nova Power, Cez Vânzare, Cis Gaz, Conef Gaz, Crest Energy, Distrigaz Vest, Engie, E.on Energie, Electrica Furnizare, Electric Planners, Electric&Gas, Energy Distribution, Enel Energie, Enel Muntenia, Gas&Power, Premier Energy Trading, Gaz Est, Gaz Vest, Megaconstruct, Mehedinți Gaz, Met România, Monsson, Next Energy Distribution, Nord Gaz, Premier Energy, Petrom, Gas Provider, Renovatio, Res Energy, Restart Energy, Tinmar, Transenergo, Veolia, Wiee, With Us","SC Premier Energy SRL","mai - septembrie 2021","2021-05-18","09:00:00","2021-05-18","15:00:00","București","Efectuată",null,"2021-05-18","09:07:00","2021-05-18","14:57:00","2021-05-10","08:59:00","2021-05-10","08:48:00","37442/14.05.2021","DA",null,"Terți (SC Makita SRL)",null,"","","","","","","","","",null,null,null,null,null,5,1,1,5,36,36,-4.9999999988358468E-2,37,37]
[188,"-","x","Înlocuire racord 4” SRM Brănesti și cuplare în conducta 20” Afumați - Oltenița",101305,"Brănești","Ilfov",610826.5,331231.98,610826.5,331231.98,"-","-","SM0163D0","SIE Brănești","-","-","-","-","SM-CF001",null,"SIE Brănești","mai - septembrie 2021",null,null,null,null,"București",null,null,null,null,null,null,null,null,null,null,null,null,null,"Terți (SC Makita SRL)",null,"","","","","","","","","",null,null,null,null,null,"Afectat sau NU?","-","-","Afectat sau NU?","-","-","Afectat sau NU?","-","-"]
[189,"-","x","Înlocuire racord 4” SRM Brănesti și cuplare în conducta 20” Afumați - Oltenița",101092,"Belciugatele ","Călărași",611888.9,330669.39,611888.9,330669.39,"-","-","SM0164D0"," SC SDE Belciugatele","-","-","-","-","SM-CF001",null,"SDE Belciugatele","mai - septembrie 2021",null,null,null,null,"București",null,null,null,null,null,null,null,null,null,null,null,null,null,"Terți (SC Makita SRL)",null,"","","","","","","","","",null,null,null,null,null,"Afectat sau NU?","-","-","Afectat sau NU?","-","-","Afectat sau NU?","-","-"]
[190,"-","x","Înlocuire racord 4” SRM Brănesti și cuplare în conducta 20” Afumați - Oltenița",103041,"Fundulea ","Călărași",621333.44999999995,329233.25,621333.44999999995,329233.25,"-","-","SM0166D0","INCDA Fundulea","-","-","-","-","SM-CF001",null,"INCDA Fundulea","mai - septembrie 2021",null,null,null,null,"București",null,null,null,null,null,null,null,null,null,null,null,null,null,"Terți (SC Makita SRL)",null,"","","","","","","","","",null,null,null,null,null,"Afectat sau NU?","-","-","Afectat sau NU?","-","-","Afectat sau NU?","-","-"]
[191,"-","x","Înlocuire racord 4” SRM Brănesti și cuplare în conducta 20” Afumați - Oltenița",105525,"Tămădău Mic","Călărași",625982.49,329231.21000000002,625982.49,329231.21000000002,"-","-","SM1148D0","Călăreți","-","-","-","-","SM-SD001",null,"SC Premier Energy SRL","mai - septembrie 2021",null,null,null,null,"București",null,null,null,null,null,null,null,null,null,null,null,null,null,"Terți (SC Makita SRL)",null,"","","","","","","","","",null,null,null,null,null,"Afectat sau NU?","-","-","Afectat sau NU?","-","-","Afectat sau NU?","-","-"]
[192,"-","x","Punere în siguranță a conductei 6” racord SRM Măgureni, zona Măgureni",134069,"Măgureni","Prahova",558807.9,394540.02,558807.9,394540.02,"-","-","SM0506D0","Măgureni","-","-","-","-","SM-SD001",null,"MMDATA","august - septembrie 2021",null,null,null,null,"București",null,null,null,null,null,null,null,null,null,null,null,null,null,"PRRASM_IA7_Anexa 1",null,{"$f":"IF(B208=\"X\",IF(AN208=\"\",\"Afectat sau NU?\",IF(AN208=\"DA\",IF(((AK208+AL208)-(AE208+AF208))*24<-720,\"Neinformat\",((AK208+AL208)-(AE208+AF208))*24),\"Nu a fost afectat producator/consumator\")),\"\")","v":""},{"$f":"IF(B208=\"X\",IF(AN208=\"DA\",IF(AR208<6,LEN(TRIM(V208))-LEN(SUBSTITUTE(V208,CHAR(44),\"\"))+1,0),\"-\"),\"\")","v":""},{"$f":"IF(B208=\"X\",IF(AN208=\"DA\",LEN(TRIM(V208))-LEN(SUBSTITUTE(V208,CHAR(44),\"\"))+1,\"-\"),\"\")","v":""},{"$f":"IF(B208=\"X\",IF(AN208=\"\",\"Afectat sau NU?\",IF(AN208=\"DA\",IF(((AI208+AJ208)-(AE208+AF208))*24<-720,\"Neinformat\",((AI208+AJ208)-(AE208+AF208))*24),\"Nu a fost afectat producator/consumator\")),\"\")","v":""},{"$f":"IF(B208=\"X\",IF(AN208=\"DA\",IF(AU208<6,LEN(TRIM(U208))-LEN(SUBSTITUTE(U208,CHAR(44),\"\"))+1,0),\"-\"),\"\")","v":""},{"$f":"IF(B208=\"X\",IF(AN208=\"DA\",LEN(TRIM(U208))-LEN(SUBSTITUTE(U208,CHAR(44),\"\"))+1,\"-\"),\"\")","v":""},{"$f":"IF(B208=\"X\",IF(AN208=\"\",\"Afectat sau NU?\",IF(AN208=\"DA\",((AG208+AH208)-(AE208+AF208))*24,\"Nu a fost afectat producator/consumator\")),\"\")","v":""},{"$f":"IF(B208=\"X\",IF(AN208=\"DA\",IF(AX208>24,IF(BA208=\"NU\",0,LEN(TRIM(V208))-LEN(SUBSTITUTE(V208,CHAR(44),\"\"))+1),0),\"-\"),\"\")","v":""},{"$f":"IF(B208=\"X\",IF(AN208=\"DA\",IF(AX208>24,LEN(TRIM(V208))-LEN(SUBSTITUTE(V208,CHAR(44),\"\"))+1,0),\"-\"),\"\")","v":""},null,null,null,null,null,{"$f":"IF(C208=\"X\",IF(AN208=\"\",\"Afectat sau NU?\",IF(AN208=\"DA\",IF(AK208=\"\",\"Neinformat\",NETWORKDAYS(AK208+AL208,AE208+AF208,$BS$2:$BS$14)-2),\"Nu a fost afectat producator/consumator\")),\"\")","v":"Afectat sau NU?"},{"$f":"IF(C208=\"X\",IF(AN208=\"DA\",IF(AND(BF208>=5,AK208<>\"\"),LEN(TRIM(V208))-LEN(SUBSTITUTE(V208,CHAR(44),\"\"))+1,0),\"-\"),\"\")","v":"-"},{"$f":"IF(C208=\"X\",IF(AN208=\"DA\",LEN(TRIM(V208))-LEN(SUBSTITUTE(V208,CHAR(44),\"\"))+1,\"-\"),\"\")","v":"-"},{"$f":"IF(C208=\"X\",IF(AN208=\"\",\"Afectat sau NU?\",IF(AN208=\"DA\",IF(AI208=\"\",\"Neinformat\",NETWORKDAYS(AI208+AJ208,AE208+AF208,$BS$2:$BS$14)-2),\"Nu a fost afectat producator/consumator\")),\"\")","v":"Afectat sau NU?"},{"$f":"IF(C208=\"X\",IF(AN208=\"DA\",IF(AND(BI208>=5,AI208<>\"\"),LEN(TRIM(U208))-LEN(SUBSTITUTE(U208,CHAR(44),\"\"))+1,0),\"-\"),\"\")","v":"-"},{"$f":"IF(C208=\"X\",IF(AN208=\"DA\",LEN(TRIM(U208))-LEN(SUBSTITUTE(U208,CHAR(44),\"\"))+1,\"-\"),\"\")","v":"-"},"Afectat sau NU?",{"$f":"IF(C208=\"X\",IF(AN208<>\"DA\",\"-\",IF(AND(AN208=\"DA\",BL208<=0),LEN(TRIM(V208))-LEN(SUBSTITUTE(V208,CHAR(44),\"\"))+1+LEN(TRIM(U208))-LEN(SUBSTITUTE(U208,CHAR(44),\"\"))+1,0)),\"\")","v":"-"},{"$f":"IF(C208=\"X\",IF(AN208=\"DA\",LEN(TRIM(V208))-LEN(SUBSTITUTE(V208,CHAR(44),\"\"))+1+LEN(TRIM(U208))-LEN(SUBSTITUTE(U208,CHAR(44),\"\"))+1,\"-\"),\"\")","v":"-"}]
[193,"x","-","Înlocuire robinet blocat în SRM Donalam",92578,"Călărași","Călărași",684827.36,306820.24,684827.36,306820.24,"-","-","SM1121D0","SC Donalam Călărași","-","-","-","-","SM-CF001","Conef Gaz","SC Donalam SRL","-","2021-03-22","08:00:00","2021-03-22","10:00:00","Brăila","Efectuată",null,"2021-03-22","08:00:00","2021-03-22","08:50:00","2021-03-22","08:24:00","2021-03-22","08:04:00","21442/19.03.2021","DA",null,"-",null,6.6666666534729302E-2,1,1,0.39999999990686774,1,1,0.83333333325572312,0,0,null,null,null,null,null,"","","","","","","","",""]
[194,"x","-","Remediere defect apărut pe conducta 8” racord PM Alămor",144811,"Alămor","Sibiu",420533.37,493520.71,420533.37,493520.71,"-","-","-","-","PM0140","Alămor","-","-","PM-PP001","Romgaz","Romgaz","-","2021-03-25","17:10:00","2021-03-25","22:00:00","Mediaș","Efectuată",null,"2021-03-25","17:10:00","2021-03-25","19:30:00","2021-03-25","17:33:00","2021-03-25","17:26:00","-","DA",null,"-",null,0.26666666666278616,1,1,0.38333333318587393,1,1,2.3333333332557231,0,0,null,null,null,null,null,"","","","","","","","",""]
[195,"-","x","Montare îmbinare electroizolantă pe conducta 10\" racord PM Șoala",144143,"Șoala","Sibiu",440735.33,507868.66,440735.33,507868.66,"-","-","-","-","-","-","PM0141","Șoala","PM-PP001",null,"Romgaz","mai - iulie 2021\nseptembrie 2021",null,null,null,null,"Mediaș",null,"Întârzieri în aprovizionarea cu materialele necesare",null,null,null,null,null,null,null,null,null,null,null,"Forțe proprii",null,"","","","","","","","","",null,null,null,null,null,"Afectat sau NU?","-","-","Afectat sau NU?","-","-","Afectat sau NU?","-","-"]
[196,"-","x","Refacere cuplare conductă 2” racord SRM Șoroștin în conducta 20” Lunca - Sibiu",145756,"Șoroștin","Sibiu",440735.33,507868.66,440735.33,507868.66,"-","-","SM0758D0","Șoroștin","-","-","-","-","SM-SD001",null,"Delgaz Grid","mai - iunie 2021\nseptembrie 2021",null,null,null,null,"Mediaș",null,"Întârzieri în aprovizionarea cu materialele necesare",null,null,null,null,null,null,null,null,null,null,null,"Forțe proprii",null,"","","","","","","","","",null,null,null,null,null,"Afectat sau NU?","-","-","Afectat sau NU?","-","-","Afectat sau NU?","-","-"]
[197,"-","x","Inlocuire teu pe conducta 4” racord SRM Bogatu Român",145248,"Bogatu Român","Sibiu",417933.66,500204.42,417933.66,500204.42,"-","-","SM0752D0","Bogatu Român","-","-","-","-","SM-SD001",null,"Delgaz Grid","mai - iunie 2021\nseptembrie 2021",null,null,null,null,"Mediaș",null,"Întârzieri în aprovizionarea cu materialele necesare",null,null,null,null,null,null,null,null,null,null,null,"Forțe proprii",null,"","","","","","","","","",null,null,null,null,null,"Afectat sau NU?","-","-","Afectat sau NU?","-","-","Afectat sau NU?","-","-"]
[198,"-","x","Inlocuire teu pe conducta 4” racord SRM Bogatu Român",145239,"Păuca","Sibiu",414787.47,501461.26,414787.47,501461.26,"-","-","SM0753D0","Păuca","-","-","-","-","SM-SD001",null,"Delgaz Grid","mai - iunie 2021\nseptembrie 2021",null,null,null,null,"Mediaș",null,"Întârzieri în aprovizionarea cu materialele necesare",null,null,null,null,null,null,null,null,null,null,null,"Forțe proprii",null,"","","","","","","","","",null,null,null,null,null,"Afectat sau NU?","-","-","Afectat sau NU?","-","-","Afectat sau NU?","-","-"]
[199,"-","x","Inlocuire teu pe conducta 4” racord SRM Bogatu Român",145266,"Presaca","Sibiu",414493.32,498285.07,414493.32,498285.07,"-","-","SM0754D0","Presaca","-","-","-","-","SM-SD001",null,"Delgaz Grid","mai - iunie 2021\nseptembrie 2021",null,null,null,null,"Mediaș",null,"Întârzieri în aprovizionarea cu materialele necesare",null,null,null,null,null,null,null,null,null,null,null,"Forțe proprii",null,"","","","","","","","","",null,null,null,null,null,"Afectat sau NU?","-","-","Afectat sau NU?","-","-","Afectat sau NU?","-","-"]
[200,"-","x","Inlocuire teu pe conducta 4” racord SRM Bogatu Român",144820,"Armeni","Sibiu",418496.58,500170.58,418496.58,500170.58,"-","-","-","-","-","-","PM0304","Armeni","VPM04",null,"Romgaz","mai - iunie 2021\nseptembrie 2021",null,null,null,null,"Mediaș",null,"Întârzieri în aprovizionarea cu materialele necesare",null,null,null,null,null,null,null,null,null,null,null,"Forțe proprii",null,"","","","","","","","","",null,null,null,null,null,"Afectat sau NU?","-","-","Afectat sau NU?","-","-","Afectat sau NU?","-","-"]
[{"$f":"SUM(1,A216)","v":201},"-","x","Montare baterie filtre în SRM Tălmaciu",145836,"Tălmaciu","Sibiu",441989.98,463883.4,441989.98,463883.4,"-","-","SM0733D1","SC Romanofir Tălmaciu","-","-","-","-","SM-CF001","E.on Energie","SC Romanofir SA","mai - iulie 2021","2021-07-30","09:00:00","2021-07-30","18:00:00","Mediaș","Efectuată",null,"2021-07-30","09:00:00","2021-07-30","17:00:00","2021-07-20","14:10:00","2021-07-20","13:38:00","2253/27.02.2021","da",null,"Forțe proprii",null,"","","","","","","","","",null,null,null,null,null,7,1,1,7,1,1,-0.99999999994179234,2,2]
[202,"-","x","Montare baterie filtre în SRM Tălmaciu",145836,"Tălmaciu","Sibiu",441989.98,463883.4,441989.98,463883.4,"-","-","SM0733D2","Tălmaciu","-","-","-","-","SM-SD001","Aderro GP, Nova Power, Cez Vânzare, Cis Gaz, Conef Gaz, CPL Concordia, Crest Energy, Energy Trade, Design Proiect, Distrigaz Vest, Engie, E.on Energie, Electrica Furnizare, Electric Planners, Electric&Gas, Energy Distribution, Enel Energie, Enel Muntenia, Gas&Power, Entrex, Premier Energy Trading, Gaz Est, Hargaz, Gazmir, Gaz Vest, Mihoc Oil, Met România, Monsson, Next Energy Distribution, Next Energy Partners, Pado Group, Premier Energy, Petrom, Prisma Serv, Gas Provider, Renovatio, Res Energy Solutions, Restart Energy, RWE Supply, SST Grup, Tetarom, Tinmar, Veolia, Wiee, Arovi Energy","Delgaz Grid","mai - iulie 2021","2021-07-30","09:00:00","2021-07-30","18:00:00","Mediaș","Efectuată",null,"2021-07-30","09:00:00","2021-07-30","17:00:00","2021-07-20","13:53:00","2021-07-20","13:40:00","2253/27.07.2021","da",null,"Forțe proprii",null,"","","","","","","","","",null,null,null,null,null,7,1,1,7,45,45,-0.99999999994179234,46,46]
[203,"-","x","Înlocuire robinete în SRM Blaj II",1357,"Blaj","Alba",413875.15,519877.62,413875.15,519877.62,"-","-","SM0270D0","Blaj II","-","-","-","-","SM-SD001","Aderro GP, Nova Power, Cez Vânzare, Cis Gaz, Conef Gaz, CPL Concordia, Crest Energy, Energy Trade, Design Proiect, Distrigaz Vest, Engie, E.on Energie, Electrica Furnizare, Electric Planners, Electric&Gas, Energy Distribution, Enel Energie, Enel Muntenia, Gas&Power, Entrex, Premier Energy Trading, Gaz Est, Hargaz, Gazmir, Gaz Vest, Mihoc Oil, Met România, Monsson, Next Energy Distribution, Next Energy Partners, Pado Group, Premier Energy, Petrom, Prisma Serv, Gas Provider, Renovatio, Res Energy Solutions, Restart Energy, RWE Supply, SST Grup, Tetarom, Tinmar, Veolia, Wiee, Arovi Energy","Delgaz Grid","mai - iulie 2021","2021-07-19","09:00:00","2021-07-19","16:00:00","Mediaș","Efectuată",null,"2021-07-19","09:00:00","2021-07-19","13:30:00","2021-07-08","09:33:00","2021-07-08","09:28:00","2122/16.07.2021","DA",null,"Forțe proprii",null,"","","","","","","","","",null,null,null,null,null,6,1,1,6,45,45,-2.4999999999417923,46,46]
[204,"-","x","Înlocuire robinete în SRM Vințu de Jos",8835,"Vințu de Jos","Alba",384208.39,500202.57,384208.39,500202.57,"-","-","SM0284D0","Vințu de Jos","-","-","-","-","SM-SD001",null,"Delgaz Grid","mai - iulie 2021",null,null,null,null,"Mediaș","Efectuată (Lucrarea a fost executată în data de 12.07.2021 fără a mai fi necesară întreruperea)",null,null,null,null,null,null,null,null,null,null,null,null,"Forțe proprii",null,"","","","","","","","","",null,null,null,null,null,"Afectat sau NU?","-","-","Afectat sau NU?","-","-","Afectat sau NU?","-","-"]
[205,"-","x","Montare baterie filtre în SRM Gănești - Seuca",120566,"Seuca","Mureș",447762.45,535605.24,447762.45,535605.24,"-","-","SM0664D0","Gănești - Seuca","-","-","-","-","SM-SD001",null,"Delgaz Grid","iunie - august 2021",null,null,null,null,"Mediaș","Efectuată (Nu mai este necesară întreruperea)","S-a efectuat odată cu execuția lucrării de la poziția 239",null,null,null,null,null,null,null,null,null,null,null,"Forțe proprii",null,"","","","","","","","","",null,null,null,null,null,"Afectat sau NU?","-","-","Afectat sau NU?","-","-","Afectat sau NU?","-","-"]
[206,"-","x","Înlocuire robinete în SRM Ciugud",1080,"Ciugud","Alba",392105.69,506483.01,392105.69,506483.01,"-","-","SM0280D0","Ciugud","-","-","-","-","SM-SD001",null,"Delgaz Grid","iulie - septembrie 2021",null,null,null,null,"Mediaș",null,null,null,null,null,null,null,null,null,null,null,null,null,"Forțe proprii",null,"","","","","","","","","",null,null,null,null,null,"Afectat sau NU?","-","-","Afectat sau NU?","-","-",{"$f":"IF(C222=\"X\",IF(AN222=\"\",\"Afectat sau NU?\",IF(AN222=\"DA\",((AG222+AH222)-(Z222+AA222))*24,\"Nu a fost afectat producator/consumator\")),\"\")","v":"Afectat sau NU?"},"-","-"]
[207,"x","-","Lucrări de mentenanță în SRM Zlatna",1945,"Zlatna","Alba",364259.01,513275.46,364259.01,513275.46,"-","-","SM0287D0","Zlatna","-","-","-","-","SM-SD001","Aderro GP, Nova Power, Cez Vânzare, Cis Gaz, Conef Gaz, CPL Concordia, Crest Energy, Energy Trade, Design Proiect, Distrigaz Vest, Engie, E.on Energie, Electrica Furnizare, Electric Planners, Electric&Gas, Energy Distribution, Enel Energie, Enel Muntenia, Gas&Power, Entrex, Premier Energy Trading, Gaz Est, Hargaz, Gazmir, Gaz Vest, Mihoc Oil, Met România, Monsson, Next Energy Distribution, Next Energy Partners, Pado Group, Premier Energy, Petrom, Prisma Serv, Gas Provider, Renovatio, Res Energy Solutions, Restart Energy, RWE Supply, SST Grup, Tetarom, Tinmar, Veolia, Wiee","Delgaz Grid","-","2021-03-31","08:00:00","2021-03-31","12:00:00","Mediaș","Efectuată",null,"2021-03-31","08:00:00","2021-03-31","12:00:00","2021-03-31","08:18:00","2021-03-31","08:09:00","24088/30.03.2021","DA",null,"-",null,0.1499999999650754,1,1,0.29999999993015081,44,44,3.9999999999417923,0,0,null,null,null,null,null,"","","","","","","","",""]
[208,"x","-","Remediere defect pe conducta 16” Ghercești - Pielești, zona Pielești",73638,"Pielești","Dolj",414077.27,316502.84999999998,414077.27,316502.84999999998,"-","-","SM1187D0","Pielești","-","-","-","-","SM-SD001","Aderro GP, Nova Power, Cez Vânzare, Engie, E.on Energie, Electrica Furnizare, Energy Distribution, Enel Energie, Enel Muntenia, Gas&Power, Entrex, Premier Energy Trading, Gaz Vest, Megaconstruct, Met România, Premier Energy, Petrom, Gas Provider, Renovatio, Restart Energy, Tinmar","SC Megaconstruct SA","-","2021-04-01","09:30:00","2021-04-01","18:00:00","Craiova","Efectuată",null,"2021-04-01","09:30:00","2021-04-01","12:30:00","2021-04-01","09:48:00","2021-04-01","09:42:00","24788/31.03.2021","DA",null,"-",null,0.19999999995343387,1,1,0.29999999993015081,21,21,3,0,0,null,null,null,null,null,"","","","","","","","",""]
[209,"x","-","Întrerupere accidentală SRM Cerghid datorită ruperii unei conducte din sistemul de distribuție, urmată de blocarea contorului cu pistoane",119910,"Cerghid","Mureș",457317.75,546240.65,457317.75,546240.65,"-","-","SM0708D0","Cerghid","-","-","-","-","SM-SD001","Aderro GP, Nova Power, Cez Vânzare, Cis Gaz, Conef Gaz, CPL Concordia, Crest Energy, Energy Trade, Design Proiect, Distrigaz Vest, Engie, E.on Energie, Electrica Furnizare, Electric Planners, Electric&Gas, Energy Distribution, Enel Energie, Enel Muntenia, Gas&Power, Entrex, Premier Energy Trading, Gaz Est, Hargaz, Gazmir, Gaz Vest, Mihoc Oil, Met România, Monsson, Next Energy Distribution, Next Energy Partners, Pado Group, Premier Energy, Petrom, Prisma Serv, Gas Provider, Renovatio, Res Energy Solutions, Restart Energy, RWE Supply, SST Grup, Tetarom, Tinmar, Veolia, Wiee","Delgaz Grid","-","2021-04-05","11:00:00","2021-04-05","15:00:00","Mediaș","Efectuată",null,"2021-04-05","11:00:00","2021-04-05","15:00:00","2021-04-05","12:09:00","2021-04-05","11:59:00","-","DA",null,"-",null,0.98333333322079852,1,1,1.1499999999068677,44,44,3.9999999999417923,0,0,null,null,null,null,null,"","","","","","","","",""]
[210,"x","-","Înlocuire robinet defect pe conducta 4” racord SRM Schela",77162,"Schela","Galați",721095.5,446809.61,721095.5,446809.61,"-","-","SM0522D0","Schela","-","-","-","-","SM-SD001","Aderro GP, Alpha Metal, Nova Power, Cez Vânzare, Cis Gaz, Conef Gaz, Crest Energy, Energy Trade, Distrigaz Vest, Engie, E.On Energie, Electrocentrale București, Electrocentrale Constanța, Electrica Furnizare, Electric Planners, Electric&Gas, Energy Distribution, Enel, Enel Muntenia, Gas&Power, Entrex, Euro Seven Industry, Premier Energy Trading, Gaz Est, Hargaz, Gaz Vest, Getica 95, Megaconstruct, Met România, Monsson, Next Energy Distribution, Next Energy Partners, Nord Gaz, Oligopol, Premier Energy, Petrom, Progaz, Energy Gas Provider, Renovatio, Res Energy, Restart Energy, Romgaz, RWE Supply, Tinmar, Transenergo, Vega 93, Veolia, WIEE","Distrigaz Sud Rețele","-","2021-04-06","07:42:00","2021-04-06","14:00:00","Brăila","Efectuată",null,"2021-04-06","07:42:00","2021-04-06","13:00:00","2021-04-06","07:54:00","2021-04-06","07:45:00","26103/05.04.2021","DA",null,"-",null,4.9999999988358468E-2,1,1,0.20000000012805685,48,48,5.2999999999883585,0,0,null,null,null,null,null,"","","","","","","","",""]
[211,"-","x","Dublare robinet de pe ocolitorul exterior la SRM Lutița",85190,"Lutița","Harghita",514498.48,528362.56999999995,514498.48,528362.56999999995,"-","-","SM0384D0","Lutița","-","-","-","-","SM-SD001",null,"Delgaz Grid","iulie - septembrie 2021",null,null,null,null,"Brașov",null,null,null,null,null,null,null,null,null,null,null,null,null,"forțe proprii",null,"","","","","","","","","",null,null,null,null,null,"Afectat sau NU?","-","-","Afectat sau NU?","-","-","Afectat sau NU?","-","-"]
[212,"-","x","Dublare robinet de pe ocolitorul exterior la SRM Tușnad",86197,"Tușnad","Harghita",566491.56999999995,515633.51,566491.56999999995,515633.51,"-","-","SM0397D0","Tușnad","-","-","-","-","SM-SD001",null,"Delgaz Grid","iulie - septembrie 2021",null,null,null,null,"Brașov",null,null,null,null,null,null,null,null,null,null,null,null,null,"forțe proprii",null,"","","","","","","","","",null,null,null,null,null,"Afectat sau NU?","-","-","Afectat sau NU?","-","-","Afectat sau NU?","-","-"]
[213,"-","x","Dublare robinet de pe ocolitorul exterior la SRM Turia",64880,"Turia","Covasna",580826.56000000006,506856.89,580826.56000000006,506856.89,"-","-","SM0400D0","Turia","-","-","-","-","SM-SD001",null,"Distrigaz Sud Rețele","iulie - septembrie 2021",null,null,null,null,"Brașov",null,null,null,null,null,null,null,null,null,null,null,null,null,"forțe proprii",null,"","","","","","","","","",null,null,null,null,null,"Afectat sau NU?","-","-","Afectat sau NU?","-","-","Afectat sau NU?","-","-"]
[214,"x","-","Înlocuire garnitură la flanșa electroizolantă de la SRM Mihăești AG",17263,"Mihăești","Argeș",500598.14,401110.15,500598.14,401110.15,"-","-","SM1243D0","Mihăești AG","-","-","-","-","SM-SD001","Aderro GP, Alpha Metal, Nova Power, Cez Vânzare, Cis Gaz, Conef Gaz, Crest Energy, Energy Trade, Distrigaz Vest, Engie, E.On Energie, Electrocentrale București, Electrocentrale Constanța, Electrica Furnizare, Electric Planners, Electric&Gas, Energy Distribution, Enel, Enel Muntenia, Gas&Power, Entrex, Euro Seven Industry, Premier Energy Trading, Gaz Est, Hargaz, Gaz Vest, Getica 95, Megaconstruct, Met România, Monsson, Next Energy Distribution, Next Energy Partners, Nord Gaz, Oligopol, Premier Energy, Petrom, Progaz, Energy Gas Provider, Renovatio, Res Energy, Restart Energy, Romgaz, RWE Supply, Tinmar, Transenergo, Vega 93, Veolia, WIEE","Distrigaz Sud Rețele","-","2021-04-15","09:17:00","2021-04-15","13:00:00","Craiova","Efectuată",null,"2021-04-15","09:17:00","2021-04-15","10:38:00","2021-04-15","11:42:00","2021-04-15","09:40:00","28920/14.04.2021","DA",null,"-",null,0.38333333336049691,1,1,2.4166666666860692,48,48,1.3500000000349246,0,0,null,null,null,null,null,"","","","","","","","",""]
[215,"x","-","Deviere conductă 20\" Ardeal Fir I, tronson NT Buciumeni - 16 Februarie",179294,"Chitila","Ilfov",578443.07999999996,332298.28000000003,578443.07999999996,332298.28000000003,"-","-","SM1225D0","SC Oprea Edil Construct","-","-","-","-","SM-CF001","Engie","SC Oprea Edil Construct SRL","-","2021-04-16","07:04:00","2021-04-16","19:00:00","București","Efectuată",null,"2021-04-16","07:04:00","2021-04-16","18:55:00","2021-04-16","07:26:00","2021-04-16","07:19:00","29463/15.04.2021","DA",null,"-",null,0.24999999994179234,1,1,0.36666666663950309,1,1,11.850000000034925,0,0,null,null,null,null,null,"","","","","","","","",""]
[216,"x","-","Incident tehnic pe conducta 20\" Secuieni -  Gheraiesti, Fir I",120913,"Simionești","Neamț",642886.71,610114.07999999996,642886.71,610114.07999999996,"-","-","SM1097D0","Tămășeni","-","-","-","-","SM-SD001","Nova Power, Cez Vânzare, Cis Gaz, Engie, E.on Energie, Electric&Gas, Enel Energie, Enel Muntenia, Mihoc Oil, Met România, Restart Energy","Mihoc Oil","-","2021-04-17","12:52:00","2021-04-17","21:00:00","Bacău","Efectuată",null,"2021-04-17","12:52:00","2021-04-17","18:45:00","2021-04-17","13:22:00","2021-04-17","13:15:00","-","DA",null,"-",null,0.38333333336049691,1,1,0.49999999988358468,11,11,5.8833333333022892,0,0,null,null,null,null,null,"","","","","","","","",""]
[217,"x","-","Incident tehnic pe conducta 20\" Secuieni -  Gheraiesti, Fir I",120897,"Săbăoani","Neamț",640933.06000000006,613500.82999999996,640933.06000000006,613500.82999999996,"-","-","SM0925D0","Săbăoani","-","-","-","-","SM-SD001","Nova Power, Cez Vânzare, Cordun Gaz, Engie, E.on Energie, Enel Energie, Enel Muntenia, Gas&Power, Premier Energy, Gaz Est, Met România, Petrom, Restart Energy, Tinmar","Cordun Gaz","-","2021-04-17","13:11:00","2021-04-17","21:00:00","Bacău","Efectuată",null,"2021-04-17","13:11:00","2021-04-17","18:11:00","2021-04-17","13:29:00","2021-04-17","13:34:00","-","DA",null,"-",null,0.38333333336049691,1,1,0.29999999993015081,14,14,5.0000000000582077,0,0,null,null,null,null,null,"","","","","","","","",""]
[218,"x","-","Incident tehnic pe conducta 20\" Secuieni -  Gheraiesti, Fir I",124224,"Traian","Neamț",645715.12,611115.03,645715.12,611115.03,"-","-","SM0466D0","SC Suinprod Roman","-","-","-","-","SM-CF001","Petrom","Suinprod SA","-","2021-04-17","13:44:00","2021-04-17","21:00:00","Bacău","Efectuată",null,"2021-04-17","13:44:00","2021-04-17","18:55:00","2021-04-17","14:05:00","2021-04-17","13:53:00","-","DA",null,"-",null,0.1499999999650754,1,1,0.34999999991850927,1,1,5.1833333332906477,0,0,null,null,null,null,null,"","","","","","","","",""]
[219,"x","-","Înlocuire linie de masurare pentru debite mici la SRM Chișineu Criș I",9468,"Chișineu-Criș","Arad",233939.75,564386.76,233939.75,564386.76,"-","-","SM0357D0","Chișineu-Criș I","-","-","-","-","SM-SD001","Aderro GP, Nova Power, Cez Vânzare, Cis Gaz, Conef Gaz, CPL Concordia, Crest Energy, Energy Trade, Design Proiect, Distrigaz Vest, Engie, E.on Energie, Electrica Furnizare, Electric Planners, Electric&Gas, Energy Distribution, Enel Energie, Enel Muntenia, Gas&Power, Entrex, Premier Energy Trading, Gaz Est, Hargaz, Gazmir, Gaz Vest, Mihoc Oil, Met România, Monsson, Next Energy Distribution, Next Energy Partners, Pado Group, Premier Energy, Petrom, Prisma Serv, Gas Provider, Renovatio, Res Energy Solutions, Restart Energy, RWE Supply, SST Grup, Tetarom, Tinmar, Veolia, Wiee","Delgaz Grid","-","2021-04-19","10:15:00","2021-04-21","14:00:00","Arad","Efectuată",null,"2021-04-19","10:15:00","2021-04-21","14:00:00","2021-04-19","10:56:00","2021-04-19","10:48:00","29913/16.04.2021","NU",null,"-",null,"Nu a fost afectat producator/consumator","-","-","Nu a fost afectat producator/consumator","-","-","Nu a fost afectat producator/consumator","-","-",null,null,null,null,null,"","","","","","","","",""]
[220,"x","-","Realizare dublă alimentare a obiectivului SRM Universal Alloy Corporațion Tăuții Magherăuș",106452,"Săsar","Maramureș",387367.04,684745.12,387367.04,684745.12,"-","-","SM0578D0","Săsar II (Recea)","-","-","-","-","SM-SD001","Aderro GP, Nova Power, Cez Vânzare, Cis Gaz, Conef Gaz, CPL Concordia, Crest Energy, Energy Trade, Design Proiect, Distrigaz Vest, Engie, E.on Energie, Electrica Furnizare, Electric Planners, Electric&Gas, Energy Distribution, Enel Energie, Enel Muntenia, Gas&Power, Entrex, Premier Energy Trading, Gaz Est, Hargaz, Gazmir, Gaz Vest, Mihoc Oil, Met România, Monsson, Next Energy Distribution, Next Energy Partners, Pado Group, Premier Energy, Petrom, Prisma Serv, Gas Provider, Renovatio, Res Energy Solutions, Restart Energy, RWE Supply, SST Grup, Tetarom, Tinmar, Veolia, Wiee","Delgaz Grid","-","2021-04-20","08:25:00","2021-04-20","20:00:00","Cluj","Efectuată",null,"2021-04-20","08:25:00","2021-04-20","20:00:00","2021-04-20","08:57:00","2021-04-20","08:27:00","30302/19.04.2021","DA",null,"-",null,3.3333333267364651E-2,1,1,0.53333333332557231,44,44,11.583333333372138,0,0,null,null,null,null,null,"","","","","","","","",""]
[221,"x","-","Lucrări de mentenanță în SRM Wienerberger I și II",143469,"Sibiu","Sibiu",437355.63,478699.91,437355.63,478699.91,"-","-","SM0991D1","SC Wienerberger Sibiu","-","-","-","-","SM-CF001","Petrom","SC Wienerberger","-","2021-05-10","09:00:00","2021-05-10","12:00:00","Mediaș","Efectuată",null,"2021-05-10","09:00:00","2021-05-10","11:15:00","2021-05-10","09:48:00","2021-05-10","09:40:00","1252/10.05.2021","DA",null,"-",null,0.66666666674427688,1,1,0.79999999998835847,1,1,2.25,0,0,null,null,null,null,null,"","","","","","","","",""]
[222,"x","-","Lucrări de mentenanță în SRM Wienerberger I și II",143469,"Sibiu","Sibiu",437355.63,478699.91,437355.63,478699.91,"-","-","SM0991D2","SC Wienerberger II Sibiu","-","-","-","-","SM-SD001","Petrom","SC Wienerberger","-","2021-05-10","09:00:00","2021-05-10","12:00:00","Mediaș","Efectuată",null,"2021-05-10","09:00:00","2021-05-10","11:15:00","2021-05-10","09:48:00","2021-05-10","09:40:00","1252/10.05.2021","DA",null,"-",null,0.66666666674427688,1,1,0.79999999998835847,1,1,2.25,0,0,null,null,null,null,null,"","","","","","","","",""]
[223,"-","x","Adaptare la teren a liniilor de măsură ce urmează a fi instalate prin programul SCADA în NT Racova",20787,"Buhuși","Bacău",629697.71,580292.79,629697.71,580292.79,"-","-","SM0446D0","Buhuși","-","-","-","-","SM-SD001","Aderro GP, Nova Power, Cez Vânzare, Cis Gaz, Conef Gaz, CPL Concordia, Crest Energy, Energy Trade, Design Proiect, Distrigaz Vest, Engie, E.on Energie, Electrica Furnizare, Electric Planners, Electric&Gas, Energy Distribution, Enel Energie, Enel Muntenia, Gas&Power, Entrex, Premier Energy Trading, Gaz Est, Hargaz, Gazmir, Gaz Vest, Mihoc Oil, Met România, Monsson, Next Energy Distribution, Next Energy Partners, Pado Group, Premier Energy, Petrom, Prisma Serv, Gas Provider, Renovatio, Res Energy Solutions, Restart Energy, RWE Supply, SST Grup, Tetarom, Tinmar, Veolia, Wiee","Delgaz Grid","iulie - septembrie 2021",null,null,null,null,"Bacău",null,null,null,null,null,null,null,null,null,null,null,null,null,"PMDI 2021_1_Anexa 1",null,"","","","","","","","","",null,null,null,null,null,"Afectat sau NU?","-","-","Afectat sau NU?","-","-","Afectat sau NU?","-","-"]
[224,"-","x","Adaptare la teren a liniilor de măsură ce urmează a fi instalate prin programul SCADA în NT Racova",21515,"Blăgești","Bacău",627457.13,580467.25,627457.13,580467.25,"-","-","SM1167D0","SC Rustrans Blăgești","-","-","-","-","SM-CF001","Next Energy Distribution","SC Rustrans SRL","iulie - septembrie 2021",null,null,null,null,"Bacău",null,null,null,null,null,null,null,null,null,null,null,null,null,"PMDI 2021_1_Anexa 1",null,"","","","","","","","","",null,null,null,null,null,"Afectat sau NU?","-","-","Afectat sau NU?","-","-","Afectat sau NU?","-","-"]
[225,"x","-","Deviere conductă Dn400 Urechești - Bacău II Sofert afectată de construcția centurii Bacău.",20304,"Bacău","Bacău",649064.16,558509.76,649064.16,558509.76,"-","-","SM0507D2","Bacău II","-","-","-","-","SM-SD001","Aderro GP, Nova Power, Cez Vânzare, Cis Gaz, Conef Gaz, CPL Concordia, Crest Energy, Energy Trade, Design Proiect, Distrigaz Vest, Engie, E.on Energie, Electrica Furnizare, Electric Planners, Electric&Gas, Energy Distribution, Enel Energie, Enel Muntenia, Gas&Power, Entrex, Premier Energy Trading, Gaz Est, Hargaz, Gazmir, Gaz Vest, Mihoc Oil, Met România, Monsson, Next Energy Distribution, Next Energy Partners, Pado Group, Premier Energy, Petrom, Prisma Serv, Gas Provider, Renovatio, Res Energy Solutions, Restart Energy, RWE Supply, SST Grup, Tetarom, Tinmar, Veolia, Wiee, With Us","Delgaz Grid","-","2021-05-25","08:15:00","2021-05-25","20:30:00","Bacău","Efectuată",null,"2021-05-25","08:15:00","2021-05-25","17:44:00","2021-05-25","08:35:00","2021-05-25","08:22:00","39063/20.05.2021","DA",null,"-",null,0.11666666669771075,1,1,0.33333333337213844,45,45,9.4833333333372138,0,0,null,null,null,null,null,"","","","","","","","",""]
[226,"x","-","Înlocuire robinet defect în SRM Buciumeni Mănăstire",75828,"Buciumeni","Galați",677419.66,506159.21,677419.66,506159.21,"-","-","SM0515D0","Buciumeni Mănăstire","-","-","-","-","SM-SD001","Aderro GP, Alpha Metal, Nova Power, Cez Vânzare, Cis Gaz, Conef Gaz, Crest Energy, Energy Trade, Distrigaz Vest, Engie, E.On Energie, Electrocentrale București, Electrocentrale Constanța, Electrica Furnizare, Electric Planners, Electric&Gas, Energy Distribution, Enel, Enel Muntenia, Gas&Power, Entrex, Euro Seven Industry, Premier Energy Trading, Gaz Est, Hargaz, Gaz&Energy Distributie, Gaz Vest, Gecabuild, Getica 95, Megaconstruct, Met România, Monsson, Next Energy Distribution, Next Energy Partners, Nord Gaz, Oligopol, Premier Energy, Petrom, Progaz, Energy Gas Provider, Renovatio, Res Energy, Restart Energy, Romgaz, RWE Supply, Tinmar, Transenergo, Veolia, WIEE, With Us","Distrigaz Sud Rețele","-","2021-05-27","08:10:00","2021-05-27","15:00:00","Brăila","Efectuată",null,"2021-05-27","08:10:00","2021-05-27","14:30:00","2021-05-27","08:28:00","2021-05-27","08:20:00","39892/25.05.2021","DA",null,"-",null,0.16666666651144624,1,1,0.29999999993015081,50,50,6.3333333331975155,0,0,null,null,null,null,null,"","","","","","","","",""]
[227,"x","-","Punere în funcțiune NT Racova proiectat și executat conform PT 608/2012/2018",20787,"Buhuși","Bacău",629697.71,580292.79,629697.71,580292.79,"-","-","SM0446D0","Buhuși","-","-","-","-","SM-SD001","Aderro GP, Nova Power, Cez Vânzare, Cis Gaz, Conef Gaz, CPL Concordia, Crest Energy, Energy Trade, Design Proiect, Distrigaz Vest, Engie, E.on Energie, Electrica Furnizare, Electric Planners, Electric&Gas, Energy Distribution, Enel Energie, Enel Muntenia, Gas&Power, Entrex, Premier Energy Trading, Gaz Est, Hargaz, Gazmir, Gaz Vest, Mihoc Oil, Met România, Monsson, Next Energy Distribution, Next Energy Partners, Pado Group, Premier Energy, Petrom, Prisma Serv, Gas Provider, Renovatio, Res Energy Solutions, Restart Energy, RWE Supply, SST Grup, Tetarom, Tinmar, Veolia, Wiee, With Us","Delgaz Grid","-","2021-05-27","09:00:00","2021-05-27","19:00:00","Bacău","Efectuată",null,"2021-05-27","09:00:00","2021-05-27","18:00:00","2021-05-27","09:33:00","2021-05-27","09:08:00","39069/20.05.2021","DA",null,"-",null,0.13333333341870457,1,1,0.55000000004656613,45,45,9,0,0,null,null,null,null,null,"","","","","","","","",""]
[228,"x","-","Remediere defect apărut pe conducta 8” racord PM Alămor",144811,"Alămor","Sibiu",420533.37,493520.71,420533.37,493520.71,"-","-","-","-","-","-","PM0140","Alămor","PM-PP001","Romgaz","Romgaz","-","2021-05-27","17:18:00","2021-05-27","18:30:00","Mediaș","Efectuată","-","2021-05-27","17:18:00","2021-05-27","18:15:00","2021-05-27","17:57:00","2021-05-27","17:27:00","-","DA",null,"-",null,0.1499999999650754,1,1,0.65000000002328306,1,1,0.94999999995343387,0,0,null,null,null,null,null,"","","","","","","","",""]
[229,"x","-","Remediere defect apărut pe conducta 8” racord PM Alămor",144811,"Alămor","Sibiu",422864.33,492914.95,422864.33,492914.95,"-","-","SM0748D0","Alămor","-","-","-","-","SM-SD001","Aderro GP, Nova Power, Cez Vânzare, Cis Gaz, Conef Gaz, CPL Concordia, Crest Energy, MVM Energy Trade, Design Proiect, Distrigaz Vest, Engie, E.on Energie, Electrica Furnizare, Electric Planners, Electric&Gas, Energy Distribution, Enel Energie, Enel Muntenia, Gas&Power, Entrex, Premier Energy Trading, Gaz Est, Hargaz, Gazmir, Gaz Vest, Mihoc Oil, Met România, Monsson, Next Energy Distribution, Next Energy Partners, Pado Group, Premier Energy, Petrom, Prisma Serv, Gas Provider, Renovatio, Res Energy, Restart Energy, RWE Supply, SST Grup, Tetarom, Tinmar, Veolia, Wiee, With Us","Delgaz Grid","-","2021-05-27","17:18:00","2021-05-27","18:30:00","Mediaș","Efectuată","-","2021-05-27","17:18:00","2021-05-27","18:15:00","2021-05-27","17:30:00","2021-05-27","17:24:00","-","DA",null,"-",null,9.9999999976716936E-2,1,1,0.19999999995343387,45,45,0.94999999995343387,0,0,null,null,null,null,null,"","","","","","","","",""]
[230,"x","-","Întrerupere accidentală  SRM Berceni IF datorită unor probleme tehnice apărute în instalația tehnologică",101154,"Berceni IF","Ilfov",593357.13,315818.77,593357.13,315818.77,"-","-","SM0907D0","Berceni IF","-","-","-","-","SM-SD001","Nova Power, Cez Vânzare, Engie, Electrica Furnizare, Enel Energie, Enel Muntenia, Premier Energy Trading, Gaz Vest, Met România, Nord Gaz, Premier Energy, Progaz, Energy gas Provider, Restart Energy, Tinmar","Progaz","-","2021-06-09","14:05:00","2021-06-09","17:00:00","București","Efectuată","-","2021-06-09","14:05:00","2021-06-09","15:25:00","2021-06-09","15:11:00","2021-06-09","15:04:00","-","DA",null,"-",null,0.9833333333954215,1,1,1.1000000000931323,15,15,1.3333333333139308,0,0,null,null,null,null,null,"","","","","","","","",""]
[231,"-","x","Refacere ocolitor exterior și montare îmbinare electroizolantă",116812,"Bordoșiu","Mureș",483817.04,543327.49,483817.04,543327.49,"-","-","SM0377D0","Bordoșiu","-","-","-","-","SM-SD001",null,"Delgaz Grid","august - septembrie 2021",null,null,null,null,"Brașov",null,"-",null,null,null,null,null,null,null,null,null,null,null,"Forțe proprii",null,"","","","","","","","","",null,null,null,null,null,"Afectat sau NU?","-","-","Afectat sau NU?","-","-","Afectat sau NU?","-","-"]
[232,"-","x","Refacere ocolitor exterior",85216,"Porumbenii Mari","Harghita",510974.58,529794.75,510974.58,529794.75,"-","-","SM0383D0","Porumbenii Mari","-","-","-","-","SM-SD001","Nova Power, CIS Gaz, MVM Energy, Engie, E.On Energie, Electrica Furnizare, Electric&Gas, Enel Energie, Enel Muntenia, Premier Energy Trading, Gaz Est, Hargaz, Petrom, Renovatio, Restart Energy, Tinmar","Hargaz","august - septembrie 2021","2021-09-08","09:00:00","2021-09-08","16:00:00","Brașov","Efectuată","-","2021-09-08","09:00:00","2021-09-08","11:45:00","2021-08-31","09:29:00","2021-08-31","09:21:00","1801/08.09.2021","DA",null,"Forțe proprii",null,"","","","","","","","","",null,null,null,null,null,5,1,1,5,16,16,-4.2499999998835847,17,17]
[233,"-","x","Refacere ocolitor exterior",120263,"Vânători","Mureș",494351.98,527481.18000000005,494351.98,527481.18000000005,"-","-","SM0375D0","Vânători","-","-","-","-","SM-SD001","Aderro GP, Nova Power, Cez Vânzare, Cis Gaz, Conef Gaz, CPL Concordia, Crest Energy, Energy Trade, Design Proiect, Distrigaz Vest, Engie, E.on Energie, Electrica Furnizare, Electric Planners, Electric&Gas, Energy Distribution, Enel Energie, Enel Muntenia, Gas&Power, Entrex, Premier Energy Trading, Gaz Est, Hargaz, Gazmir, Gaz Vest, Mihoc Oil, Met România, Monsson, Next Energy Distribution, Next Energy Partners, Pado Group, Premier Energy, Petrom, Prisma Serv, Gas Provider, Renovatio, Res Energy Solutions, Restart Energy, Romgaz, RWE Supply, SST Grup, Sun Wave, Tetarom, Tinmar, Veolia, Wiee, Arovi Energy","Delgaz Grid","august - septembrie 2021","2021-09-22","09:00:00","2021-09-22","15:00:00","Brașov","Efectuată","-","2021-09-22","09:00:00","2021-09-22","15:00:00","2021-09-13","07:52:00","2021-09-13","07:45:00","1881/21.09.2021","DA",null,"Forțe proprii",null,"","","","","","","","","",null,null,null,null,null,6,1,1,6,47,47,0,48,48]
[234,"-","x","Dublare robinet de pe ocolitorul exterior și înlocuire regulator",41630,"Poiana Mărului","Brașov",523056.64000000001,457084.35,523056.64000000001,457084.35,"-","-","SM0212D0","Poiana Mărului","-","-","-","-","SM-SD001",null,"Distrigaz Sud Rețele","august - septembrie 2021",null,null,null,null,"Brașov",null,"-",null,null,null,null,null,null,null,null,null,null,null,"Forțe proprii",null,"","","","","","","","","",null,null,null,null,null,"Afectat sau NU?","-","-","Afectat sau NU?","-","-","Afectat sau NU?","-","-"]
[235,"-","x","Dublare robinet de pe ocolitorul exterior",18536,"Rucăr","Argeș",514200.63,431834.68,514200.63,431834.68,"-","-","SM0938D0","Rucăr","-","-","-","-","SM-SD001",null,"Distrigaz Sud Rețele","august - septembrie 2021",null,null,null,null,"Brașov",null,"-",null,null,null,null,null,null,null,null,null,null,null,"Forțe proprii",null,"","","","","","","","","",null,null,null,null,null,"Afectat sau NU?","-","-","Afectat sau NU?","-","-","Afectat sau NU?","-","-"]
[236,"x","-","Înlocuire priză injecție etilmercaptan și aparat de măsurare gaze",5719,"Mihalț","Alba",403394.62,519610.83,403394.62,519610.83,"-","-","SM0274D0","Mihalț","-","-","-","-","SM-SD001","Aderro GP, Nova Power, Cez Vânzare, Cis Gaz, Conef Gaz, CPL Concordia, Crest Energy, Energy Trade, Design Proiect, Distrigaz Vest, Engie, E.on Energie, Electrica Furnizare, Electric Planners, Electric&Gas, Energy Distribution, Enel Energie, Enel Muntenia, Gas&Power, Entrex, Premier Energy Trading, Gaz Est, Hargaz, Gazmir, Gaz Vest, Mihoc Oil, Met România, Monsson, Next Energy Distribution, Next Energy Partners, Pado Group, Premier Energy, Petrom, Prisma Serv, Gas Provider, Renovatio, Res Energy Solutions, Restart Energy, RWE Supply, SST Grup, Tetarom, Tinmar, Veolia, Wiee, With Us","Delgaz Grid","-","2021-06-24","09:00:00","2021-06-24","14:00:00","Mediaș","Efectuată","-","2021-06-24","09:00:00","2021-06-24","14:00:00","2021-06-24","09:18:00","2021-06-24","09:09:00","1834/23.06.2021","DA",null,"-",null,0.1499999999650754,1,1,0.29999999993015081,45,45,5.0000000000582077,0,0,null,null,null,null,null,"","","","","","","","",""]
[237,"x","-","Remediere fisură la refulator pe racord SRM Vulcan",42405,"Vulcan","Brașov",533367.36,459457.65,533367.36,459457.65,"-","-","SM0056D0","Vulcan","-","-","-","-","SM-SD001","Aderro GP, Alpha Metal, Nova Power, Cez Vânzare, Cis Gaz, Conef Gaz, Crest Energy, MVM Energy Trade, Distrigaz Vest, Engie, E.on Energie, Electrocentrale București, Electrocentrale Constanța, Electrica Furnizare, Electric Planners, Electric&Gas, Energy Distribution, Enel Energie, Enel Muntenia, Gas&Power, Entrex, Euro Seven, Premier Energy Trading, Gaz Est, Hargaz, Gaz&Energy Distributie, Gaz Vest, Gecabuild, Getica 95, Megaconstruct, Met România, Monsson, Next Energy Distribution, Next Energy Partners, Nord Gaz, Oligopol, Premier Energy, Petrom, Progaz, Gas Provider, Renovatio, Res Energy, Restart Energy, Romgaz, RWE Supply, Tinmar, Transenergo, Veolia, Wiee, With Us","Distrigaz Sud Rețele","-","2021-06-30","14:40:00","2021-06-30","19:00:00","Brașov","Efectuată",null,"2021-06-30","14:40:00","2021-06-30","16:35:00","2021-06-30","15:09:00","2021-06-30","14:58:00","-","DA",null,"-",null,0.30000000010477379,1,1,0.48333333333721384,50,50,1.9166666666278616,0,0,null,null,null,null,null,"","","","","","","","",""]
[238,"x","-","Înlocuire regulator în SRM Trakia Leasing Șelimbăr",143566,"Șelimbăr","Sibiu",435916.05,475000.15,435916.05,475000.15,"-","-","SM0887D0","SC Trakia Auto Șelimbăr","-","-","-","-","SM-CF001","Engie, E.on Energie","SC Trakia Auto SRL","-","2021-07-01","09:00:00","2021-07-01","12:00:00","Mediaș","Efectuată",null,"2021-07-01","09:00:00","2021-07-01","12:00:00","2021-07-01","09:11:00","2021-07-01","09:05:00","-","DA",null,"-",null,8.3333333255723119E-2,1,1,0.18333333340706304,2,2,3,0,0,null,null,null,null,null,"","","","","","","","",""]
[239,"x","-","Înlocuire regulatoare în SRM Gănești - Seuca",120466,"Seuca","Mureș",447762.45,535605.24,447762.45,535605.24,"-","-","SM0664D0","Gănești - Seuca","-","-","-","-","SM-SD001","Aderro GP, Nova Power, Cez Vânzare, Cis Gaz, Conef Gaz, CPL Concordia, Crest Energy, Energy Trade, Design Proiect, Distrigaz Vest, Engie, E.on Energie, Electrica Furnizare, Electric Planners, Electric&Gas, Energy Distribution, Enel Energie, Enel Muntenia, Gas&Power, Entrex, Premier Energy Trading, Gaz Est, Hargaz, Gazmir, Gaz Vest, Mihoc Oil, Met România, Monsson, Next Energy Distribution, Next Energy Partners, Pado Group, Premier Energy, Petrom, Prisma Serv, Gas Provider, Renovatio, Res Energy Solutions, Restart Energy, RWE Supply, SST Grup, Tetarom, Tinmar, Veolia, Wiee, With Us","Delgaz Grid","-","2021-07-01","09:00:00","2021-07-01","16:00:00","Mediaș","Efectuată",null,"2021-07-01","09:00:00","2021-07-01","16:00:00","2021-07-01","09:15:00","2021-07-01","09:07:00","1894/29.06.2021","DA",null,"-",null,0.11666666669771075,1,1,0.24999999994179234,45,45,6.9999999999417923,0,0,null,null,null,null,null,"","","","","","","","",""]
[240,"x","-","Cuplare conductă 28” în Nod Tehnologic Gherăești",97820,"Mircești","Iași",640467.09,618333.38,640467.09,618333.38,"-","-","SM1209D0","Mircești","-","-","-","-","SM-SD001","Cez Vânzare, E.on Energie, Electrica Furnizare, Enel Energie, Premier Energy Trading, Design Proiect, Enel Muntenia, Gaz Nord Est, Nova Power, Restart Energy, Tinmar","SC Design Proiect SRL","-","2021-07-14","08:00:00","2021-07-14","20:00:00","Bacău","Efectuată",null,"2021-07-14","08:00:00","2021-07-14","19:15:00","2021-07-14","08:53:00","2021-07-14","08:10:00","53110/13.07.2021","DA",null,"-",null,0.16666666668606922,1,1,0.88333333324408159,11,11,11.25,0,0,null,null,null,null,null,"","","","","","","","",""]
[241,"x","-","Eliminare separator de lichide din instalația tehnologică SRM Sântana",12108,"Sântana","Arad",229690.83,545340.43000000005,229690.83,545340.43000000005,"-","-","SM0352D0","Sântana AR","-","-","-","-","SM-SD001","Aderro GP, Nova Power, Cez Vânzare, Cis Gaz, Conef Gaz, CPL Concordia, Crest Energy, Energy Trade, Design Proiect, Distrigaz Vest, Engie, E.on Energie, Electrica Furnizare, Electric Planners, Electric&Gas, Energy Distribution, Enel Energie, Enel Muntenia, Gas&Power, Entrex, Premier Energy Trading, Gaz Est, Hargaz, Gazmir, Gaz Vest, Mihoc Oil, Met România, Monsson, Next Energy Distribution, Next Energy Partners, Pado Group, Premier Energy, Petrom, Prisma Serv, Gas Provider, Renovatio, Res Energy Solutions, Restart Energy, RWE Supply, SST Grup, Tetarom, Tinmar, Veolia, Wiee, With Us","Delgaz Grid","-","2021-07-14","09:00:00","2021-07-14","19:00:00","Arad","Efectuată",null,"2021-07-14","09:00:00","2021-07-14","14:30:00","2021-07-14","10:02:00","2021-07-14","09:27:00","52165/09.07.2021","DA",null,"-",null,0.45000000006984919,1,1,1.03333333338378,45,45,5.4999999999417923,0,0,null,null,null,null,null,"","","","","","","","",""]
[242,"x","-","Reabilitare tronson 20” Racova - Secuieni, fir II",24720,"Racova","Bacău",635949.11,581447.72,635949.11,581447.72,"-","-","SM0447D0","SC Agricola Internațional Bacău","-","-","-","-","SM-CF001","Premier Energy, E.on Energie","SC Agricola Internațional SA","-","2021-07-15","08:00:00","2021-07-15","18:00:00","Bacău","Efectuată",null,"2021-07-15","08:00:00","2021-07-15","17:45:00","2021-07-15","08:46:00","2021-07-15","08:14:00","52441/12.07.2021","DA",null,"-",null,0.23333333322079852,1,1,0.76666666654637083,2,2,9.75,0,0,null,null,null,null,null,"","","","","","","","",""]
[243,"x","-","Eliminare separator de lichide din instalația tehnologică SRM Nădab",9477,"Nădab","Arad",231860.06,559343.42000000004,231860.06,559343.42000000004,"-","-","SM0354D0","Nădab","-","-","-","-","SM-SD001","Nova Power, Cez Vânzare, CIS Gaz, Energy Trade, Distrigaz Vest, Engie, E.On Energie, Electrica Furnizare, Electric&Gas, Energy Distribution, Enel Energie, Enel Muntenia, Gas&Power, Premier Energy Trading, Gaz Est, Gaz Vest, Met România, Premier Energy, Petrom, Energy Gas Provider, Renovatio, Restart Energy, Tinmar, With Us","Gaz Vest","-","2021-07-15","09:00:00","2021-07-15","19:00:00","Arad","Efectuată",null,"2021-07-15","09:00:00","2021-07-15","15:10:00","2021-07-15","09:46:00","2021-07-15","09:41:00","52258/09.07.2021","DA",null,"-",null,0.68333333329064772,1,1,0.76666666672099382,24,24,6.1666666666860692,0,0,null,null,null,null,null,"","","","","","","","",""]
[244,"x","-","Eliminare emanații de gaze la separatorul de lichide din SRM Mesteacăn",109407,"Mesteacăn","Maramureș",387677.11,654135.31999999995,387677.11,654135.31999999995,"-","-","SM0681D0","Mesteacăn","-","-","-","-","SM-SD001","Aderro GP, Nova Power, Cez Vânzare, Cis Gaz, Conef Gaz, CPL Concordia, Crest Energy, Energy Trade, Design Proiect, Distrigaz Vest, Engie, E.on Energie, Electrica Furnizare, Electric Planners, Electric&Gas, Energy Distribution, Enel Energie, Enel Muntenia, Gas&Power, Entrex, Premier Energy Trading, Gaz Est, Hargaz, Gazmir, Gaz Vest, Mihoc Oil, Met România, Monsson, Next Energy Distribution, Next Energy Partners, Pado Group, Premier Energy, Petrom, Prisma Serv, Gas Provider, Renovatio, Res Energy Solutions, Restart Energy, RWE Supply, SST Grup, Tetarom, Tinmar, Veolia, Wiee, With Us","Delgaz Grid","-","2021-07-15","10:40:00","2021-07-15","15:00:00","Cluj","Efectuată",null,"2021-07-15","10:40:00","2021-07-15","12:00:00","2021-07-15","10:55:00","2021-07-15","10:42:00","53661/15.07.2021","NU",null,"-",null,"Nu a fost afectat producator/consumator","-","-","Nu a fost afectat producator/consumator","-","-","Nu a fost afectat producator/consumator","-","-",null,null,null,null,null,"","","","","","","","",""]
[245,"x","-","Montare regulator în SRM Vădeni",77821,"Tg. Jiu","Gorj",367223.91,398374.32,367223.91,398374.32,"-","-","SM0197D0","Vădeni","-","-","-","-","SM-SD001","Aderro GP, Alpha Metal, Nova Power, Cez Vânzare, Cis Gaz, Conef Gaz, Crest Energy, MVM Energy Trade, Distrigaz Vest, Engie, E.on Energie, Electrocentrale București, Electrocentrale Constanța, Electrica Furnizare, Electric Planners, Electric&Gas, Energy Distribution, Enel Energie, Enel Muntenia, Gas&Power, Entrex, Euro Seven, Premier Energy Trading, Gaz Est, Hargaz, Gaz&Energy Distributie, Gaz Vest, Gecabuild, Getica 95, Macin Gaz, Megaconstruct, Met România, Monsson, Next Energy Distribution, Next Energy Partners, Nord Gaz, Oligopol, Premier Energy, Petrom, Progaz, Gas Provider, Renovatio, Res Energy, Restart Energy, Romgaz, RWE Supply, Tinmar, Transenergo, Veolia, Wiee, With Us","Distrigaz Sud Rețele","-","2021-07-16","09:15:00","2021-07-16","14:00:00","Craiova","Efectuată",null,"2021-07-16","09:15:00","2021-07-16","13:50:00","2021-07-16","09:31:00","2021-07-16","09:23:00","53977/16.07.2021","NU",null,"-",null,"Nu a fost afectat producator/consumator","-","-","Nu a fost afectat producator/consumator","-","-","Nu a fost afectat producator/consumator","-","-",null,null,null,null,null,"","","","","","","","",""]
[246,"x","-","Înlocuire regulator în SRM Hălchiu",41042,"Hălchiu","Brașov",543099.97,473349.94,543099.97,473349.94,"-","-","SM0041D0","Hălchiu","-","-","-","-","SM-SD001","Aderro GP, Alpha Metal, Nova Power, Cez Vânzare, Cis Gaz, Conef Gaz, Crest Energy, MVM Energy Trade, Distrigaz Vest, Engie, E.on Energie, Electrocentrale București, Electrocentrale Constanța, Electrica Furnizare, Electric Planners, Electric&Gas, Energy Distribution, Enel Energie, Enel Muntenia, Gas&Power, Entrex, Euro Seven, Premier Energy Trading, Gaz Est, Hargaz, Gaz&Energy Distributie, Gaz Vest, Gecabuild, Getica 95, Macin Gaz, Megaconstruct, Met România, Monsson, Next Energy Distribution, Next Energy Partners, Nord Gaz, Oligopol, Premier Energy, Petrom, Progaz, Gas Provider, Renovatio, Res Energy, Restart Energy, Romgaz, RWE Supply, Tinmar, Transenergo, Veolia, Wiee, With Us","Distrigaz Sud Rețele","-","2021-07-16","09:05:00","2021-07-16","15:00:00","Brașov","Efectuată",null,"2021-07-16","09:05:00","2021-07-16","14:40:00","2021-07-16","09:24:00","2021-07-16","09:16:00","1483/14.07.2021","DA",null,"-",null,0.18333333340706304,1,1,0.31666666682576761,51,51,5.5833333333721384,0,0,null,null,null,null,null,"","","","","","","","",""]
[247,"x","-","Eliminare separator de lichide în SRM Zimandu Nou",12885,"Zimandu Nou","Arad",222116.55,536871.11,222116.55,536871.11,"-","-","SM0355D0","Zimandu Nou","-","-","-","-","SM-SD001","Nova Power, Cez Vânzare, CIS Gaz, MVM Energy, Distrigaz Vest, Engie, E.On Energie, Electrica Furnizare, Electric&Gas, Energy Distribution, Enel Energie, Enel Muntenia, Gas&Power, Premier Energy Trading, Gaz Est, Gaz Vest, Met România, Premier Energy, Petrom, Energy Gas Provider, Renovatio, Restart Energy, Tinmar, Arovi Energy","Gaz Vest","-","2021-07-21","08:30:00","2021-07-21","19:00:00","Arad","Efectuată",null,"2021-07-21","08:30:00","2021-07-21","14:40:00","2021-07-21","09:44:00","2021-07-21","09:27:00","54441/19.07.2021","DA",null,"-",null,0.95000000012805685,1,1,1.2333333333372138,24,24,6.1666666666860692,0,0,null,null,null,null,null,"","","","","","","","",""]
[248,"x","-","Eliminare separator de lichide în SRM Orțișoara",158029,"Orțișoara","Timiș",206232.48,502973.8,206232.48,502973.8,"-","-","SM0116D0","Orțișoara","-","-","-","-","SM-SD001","Nova Power, Cez Vânzare, CIS Gaz, MVM Energy, Distrigaz Vest, Engie, E.On Energie, Electrica Furnizare, Electric&Gas, Energy Distribution, Enel Energie, Enel Muntenia, Gas&Power, Premier Energy Trading, Gaz Est, Gaz Vest, Met România, Premier Energy, Petrom, Energy Gas Provider, Renovatio, Restart Energy, Tinmar, Arovi Energy","Gaz Vest","-","2021-07-22","09:00:00","2021-07-22","19:00:00","Arad","Efectuată",null,"2021-07-22","09:00:00","2021-07-22","14:30:00","2021-07-22","10:10:00","2021-07-22","09:55:00","54444/19.07.2021","DA",null,"-",null,0.91666666668606922,1,1,1.1666666666278616,24,24,5.4999999999417923,0,0,null,null,null,null,null,"","","","","","","","",""]
[249,"x","-","Dezafectare instalatie de odorizare la SRM Eurial Invest",158029,"Orțișoara","Ilfov",585204.41,338698.66,585204.41,338698.66,"-","-","SM0169D0","SC Eurial Invest ","-","-","-","-","SM-CF001","Engie","SC Eurial Invest","-","2021-08-02","09:16:00","2021-08-02","12:00:00","București","Efectuată",null,"2021-08-02","09:16:00","2021-08-02","11:35:00","2021-08-02","10:34:00","2021-08-02","09:59:00","57318/30.07.2021","DA",null,"-",null,0.71666666673263535,1,1,1.3000000000465661,1,1,2.3166666667093523,0,0,null,null,null,null,null,"","","","","","","","",""]
[250,"x","-","Reabilitare conducte 20\" Helegiu - Racova, fir I și 16\" Luncani - Bacău",20493,"Luncani","Bacău",633732.09,569097.66,633732.09,569097.66,"-","-","SM0442D0","Luncani","-","-","-","-","SM-SD001","Aderro GP, Nova Power, Cez Vânzare, Cis Gaz, Conef Gaz, CPL Concordia, Crest Energy, Energy Trade, Design Proiect, Distrigaz Vest, Engie, E.on Energie, Electrica Furnizare, Electric Planners, Electric&Gas, Energy Distribution, Enel Energie, Enel Muntenia, Gas&Power, Entrex, Premier Energy Trading, Gaz Est, Hargaz, Gazmir, Gaz Vest, Mihoc Oil, Met România, Monsson, Next Energy Distribution, Next Energy Partners, Pado Group, Premier Energy, Petrom, Prisma Serv, Gas Provider, Renovatio, Restart Energy, RWE Supply, SST Grup, Tetarom, Tinmar, Veolia, Wiee, Arovi Energy","Delgaz Grid","-","2021-08-03","08:00:00","2021-08-06","15:00:00","Bacău","Efectuată",null,"2021-08-03","08:00:00","2021-08-06","14:20:00","2021-08-03","08:37:00","2021-08-03","08:13:00","57554/30.07.2021","DA",null,null,null,0.21666666667442769,1,1,0.61666666658129543,44,44,78.333333333197515,1,1,"DA",null,null,null,null,"","","","","","","","",""]
[251,"x","-","Reabilitare conducte 20\" Helegiu - Racova, fir I și 16\" Luncani - Bacău",20304,"Bacău","Bacău",644131.48,564958.99,644131.48,564958.99,"-","-","SN0443D0","Bacău I","-","-","-","-","SM-SD001","Aderro GP, Nova Power, Cez Vânzare, Cis Gaz, Conef Gaz, CPL Concordia, Crest Energy, Energy Trade, Design Proiect, Distrigaz Vest, Engie, E.on Energie, Electrica Furnizare, Electric Planners, Electric&Gas, Energy Distribution, Enel Energie, Enel Muntenia, Gas&Power, Entrex, Premier Energy Trading, Gaz Est, Hargaz, Gazmir, Gaz Vest, Mihoc Oil, Met România, Monsson, Next Energy Distribution, Next Energy Partners, Pado Group, Premier Energy, Petrom, Prisma Serv, Gas Provider, Renovatio, Restart Energy, RWE Supply, SST Grup, Tetarom, Tinmar, Veolia, Wiee, Arovi Energy","Delgaz Grid","-","2021-08-03","08:00:00","2021-08-06","15:00:00","Bacău","Efectuată",null,"2021-08-03","08:00:00","2021-08-06","14:50:00","2021-08-03","08:37:00","2021-08-03","08:13:00","57554/30.07.2021","NU",null,null,null,"Nu a fost afectat producator/consumator","-","-","Nu a fost afectat producator/consumator","-","-","Nu a fost afectat producator/consumator","-","-",null,null,null,null,null,"","","","","","","","",""]
[252,"x","-","Reabilitare conducte 20\" Helegiu - Racova, fir I și 16\" Luncani - Bacău",20509,"Pădureni","Bacău",640677.75,566555.03,640677.75,566555.03,"-","-","SM0444D0","Pădureni BC","-","-","-","-","SM-SD001","Aderro GP, Nova Power, Cez Vânzare, Cis Gaz, Conef Gaz, CPL Concordia, Crest Energy, Energy Trade, Design Proiect, Distrigaz Vest, Engie, E.on Energie, Electrica Furnizare, Electric Planners, Electric&Gas, Energy Distribution, Enel Energie, Enel Muntenia, Gas&Power, Entrex, Premier Energy Trading, Gaz Est, Hargaz, Gazmir, Gaz Vest, Mihoc Oil, Met România, Monsson, Next Energy Distribution, Next Energy Partners, Pado Group, Premier Energy, Petrom, Prisma Serv, Gas Provider, Renovatio, Restart Energy, RWE Supply, SST Grup, Tetarom, Tinmar, Veolia, Wiee, Arovi Energy","Delgaz Grid","-","2021-08-03","08:00:00","2021-08-06","15:00:00","Bacău","Efectuată",null,"2021-08-03","08:00:00","2021-08-06","14:39:00","2021-08-03","08:37:00","2021-08-03","08:13:00","57554/30.07.2021","NU",null,null,null,"Nu a fost afectat producator/consumator","-","-","Nu a fost afectat producator/consumator","-","-","Nu a fost afectat producator/consumator","-","-",null,null,null,null,null,"","","","","","","","",""]
[253,"x","-","Cuplare deviere conductă 10 3/4” Suceava - Rădăuți",164437,"Rădăuți","Suceava",569839.81000000006,705208.03,569839.81000000006,705208.03,"SM0498D0","Rădăuți","-","-","-","-","-","-","SM-SD001","Aderro GP, Nova Power, Cez Vânzare, Cis Gaz, Engie, E.on Energie, Electrica Furnizare, Electric&Gas, Enel Energie, Enel Muntenia, Gas&Power, Premier Energy Trading, Gaz Vest, Nord Gaz, Premier Energy, Petrom, Gas Provider, Restart Energy, Tinmar","Nord Gaz","-","2021-08-04","08:04:00","2021-08-04","20:00:00","Bacău","Efectuată",null,"2021-08-04","08:04:00","2021-08-04","16:46:00","2021-08-04","08:30:00","2021-08-04","08:21:00","57661/02.08.2021","DA",null,null,null,0.28333333338377997,1,1,0.43333333334885538,19,19,8.7000000000698492,0,0,null,null,null,null,null,"","","","","","","","",""]
[254,"x","-","Cuplare deviere conductă 10 3/4” Suceava - Rădăuți și racord 8” SRM Egger Rădăuți",164437,"Rădăuți","Suceava",572279.99,706238.11,572279.99,706238.11,"-","-","SM1031D0","SC Egger Rădăuți","-","-","-","-","SM-CF001","Romgaz","SC Egger România SRL","-","2021-08-04","08:41:00","2021-08-05","16:00:00","Bacău","Efectuată",null,"2021-08-04","08:41:00","2021-08-04","17:19:00","2021-08-04","08:50:00","2021-08-04","08:43:00","57661/02.08.2021","DA",null,null,null,3.3333333267364651E-2,1,1,0.1499999999650754,1,1,8.6333333333604969,0,0,null,null,null,null,null,"","","","","","","","",""]
[255,"x","-","Reparație definitivă a unui defect apărut pe conducta 4” racord SRM Simionesti",120913,"Simionești","Neamț",641447.97,609975.43999999994,641447.97,609975.43999999994,"-","-","SM0957D0","Simionești","-","-","-","-","SM-SD001","Nova Power, Cez Vânzare, Cordun Gaz, Engie, E.on Energie, Electrica Furnizare, Enel Energie, Enel Muntenia, Gas&Power, Premier Energy, Gaz Est, Met România, Petrom, Restart Energy, Tinmar","Cordun Gaz","-","2021-08-11","09:00:00","2021-08-11","15:00:00","Bacău","Efectuată",null,"2021-08-11","09:00:00","2021-08-11","11:57:00","2021-08-11","09:09:00","2021-08-11","09:08:00","59879/09.08.2021","NU",null,null,null,"Nu a fost afectat producator/consumator","-","-","Nu a fost afectat producator/consumator","-","-","Nu a fost afectat producator/consumator","-","-",null,null,null,null,null,"","","","","","","","",""]
[256,"x","-","Reparație definitivă a unui defect apărut pe conducta 4” racord SRM Simionesti",120913,"Simionești","Neamț",641447.97,609975.43999999994,641447.97,609975.43999999994,"-","-","SM0957D1","Simionești II","-","-","-","-","SM-SD001","Nova Power, Cez Vânzare, Cordun Gaz, Engie, E.on Energie, Electrica Furnizare, Enel Energie, Enel Muntenia, Gas&Power, Premier Energy, Gaz Est, Met România, Petrom, Restart Energy, Tinmar","Cordun Gaz","-","2021-08-11","09:00:00","2021-08-11","15:00:00","Bacău","Efectuată",null,"2021-08-11","09:00:00","2021-08-11","11:57:00","2021-08-11","09:09:00","2021-08-11","09:08:00","59879/09.08.2021","DA",null,null,null,{"$f":"IF(B272=\"X\",IF(AN272=\"\",\"Afectat sau NU?\",IF(AN272=\"DA\",IF(((AK272+AL272)-(AE272+AF272))*24<-720,\"Neinformat\",((AK272+AL272)-(AE272+AF272))*24),\"Nu a fost afectat producator/consumator\")),\"\")","v":0.13333333341870457},{"$f":"IF(B272=\"X\",IF(AN272=\"DA\",IF(AR272<6,LEN(TRIM(V272))-LEN(SUBSTITUTE(V272,CHAR(44),\"\"))+1,0),\"-\"),\"\")","v":1},{"$f":"IF(B272=\"X\",IF(AN272=\"DA\",LEN(TRIM(V272))-LEN(SUBSTITUTE(V272,CHAR(44),\"\"))+1,\"-\"),\"\")","v":1},{"$f":"IF(B272=\"X\",IF(AN272=\"\",\"Afectat sau NU?\",IF(AN272=\"DA\",IF(((AI272+AJ272)-(AE272+AF272))*24<-720,\"Neinformat\",((AI272+AJ272)-(AE272+AF272))*24),\"Nu a fost afectat producator/consumator\")),\"\")","v":0.1499999999650754},{"$f":"IF(B272=\"X\",IF(AN272=\"DA\",IF(AU272<6,LEN(TRIM(U272))-LEN(SUBSTITUTE(U272,CHAR(44),\"\"))+1,0),\"-\"),\"\")","v":15},{"$f":"IF(B272=\"X\",IF(AN272=\"DA\",LEN(TRIM(U272))-LEN(SUBSTITUTE(U272,CHAR(44),\"\"))+1,\"-\"),\"\")","v":15},{"$f":"IF(B272=\"X\",IF(AN272=\"\",\"Afectat sau NU?\",IF(AN272=\"DA\",((AG272+AH272)-(AE272+AF272))*24,\"Nu a fost afectat producator/consumator\")),\"\")","v":2.9500000000116415},{"$f":"IF(B272=\"X\",IF(AN272=\"DA\",IF(AX272>24,IF(BA272=\"NU\",0,LEN(TRIM(V272))-LEN(SUBSTITUTE(V272,CHAR(44),\"\"))+1),0),\"-\"),\"\")","v":0},{"$f":"IF(B272=\"X\",IF(AN272=\"DA\",IF(AX272>24,LEN(TRIM(V272))-LEN(SUBSTITUTE(V272,CHAR(44),\"\"))+1,0),\"-\"),\"\")","v":0},null,null,null,null,null,{"$f":"IF(C272=\"X\",IF(AN272=\"\",\"Afectat sau NU?\",IF(AN272=\"DA\",IF(AK272=\"\",\"Neinformat\",NETWORKDAYS(AK272+AL272,AE272+AF272,$BS$2:$BS$14)-2),\"Nu a fost afectat producator/consumator\")),\"\")","v":""},{"$f":"IF(C272=\"X\",IF(AN272=\"DA\",IF(AND(BF272>=5,AK272<>\"\"),LEN(TRIM(V272))-LEN(SUBSTITUTE(V272,CHAR(44),\"\"))+1,0),\"-\"),\"\")","v":""},{"$f":"IF(C272=\"X\",IF(AN272=\"DA\",LEN(TRIM(V272))-LEN(SUBSTITUTE(V272,CHAR(44),\"\"))+1,\"-\"),\"\")","v":""},{"$f":"IF(C272=\"X\",IF(AN272=\"\",\"Afectat sau NU?\",IF(AN272=\"DA\",IF(AI272=\"\",\"Neinformat\",NETWORKDAYS(AI272+AJ272,AE272+AF272,$BS$2:$BS$14)-2),\"Nu a fost afectat producator/consumator\")),\"\")","v":""},{"$f":"IF(C272=\"X\",IF(AN272=\"DA\",IF(AND(BI272>=5,AI272<>\"\"),LEN(TRIM(U272))-LEN(SUBSTITUTE(U272,CHAR(44),\"\"))+1,0),\"-\"),\"\")","v":""},{"$f":"IF(C272=\"X\",IF(AN272=\"DA\",LEN(TRIM(U272))-LEN(SUBSTITUTE(U272,CHAR(44),\"\"))+1,\"-\"),\"\")","v":""},"",{"$f":"IF(C272=\"X\",IF(AN272<>\"DA\",\"-\",IF(AND(AN272=\"DA\",BL272<=0),LEN(TRIM(V272))-LEN(SUBSTITUTE(V272,CHAR(44),\"\"))+1+LEN(TRIM(U272))-LEN(SUBSTITUTE(U272,CHAR(44),\"\"))+1,0)),\"\")","v":""},{"$f":"IF(C272=\"X\",IF(AN272=\"DA\",LEN(TRIM(V272))-LEN(SUBSTITUTE(V272,CHAR(44),\"\"))+1+LEN(TRIM(U272))-LEN(SUBSTITUTE(U272,CHAR(44),\"\"))+1,\"-\"),\"\")","v":""}]
[257,"x","-","Lucrări de mentenanță în SRM Săliște",145505,"Săliște","Sibiu",413773.7,478820.34,413773.7,478820.34,"-","-","SM1030D0","Săliște","-","-","-","-","SM-SD001","Aderro GP, Nova Power, Cez Vânzare, Cis Gaz, Conef Gaz, CPL Concordia, Crest Energy, Energy Trade, Design Proiect, Distrigaz Vest, Engie, E.on Energie, Electrica Furnizare, Electric Planners, Electric&Gas, Energy Distribution, Enel Energie, Enel Muntenia, Gas&Power, Entrex, Premier Energy Trading, Gaz Est, Hargaz, Gazmir, Gaz Vest, Mihoc Oil, Met România, Monsson, Next Energy Distribution, Next Energy Partners, Pado Group, Premier Energy, Petrom, Prisma Serv, Gas Provider, Renovatio, Res Energy, Restart Energy, RWE Supply, SST Grup, Tetarom, Tinmar, Veolia, Wiee, Arovi Energy","Delgaz Grid","-","2021-08-11","09:00:00","2021-08-11","16:00:00","Mediaș","Efectuată",null,"2021-08-11","09:00:00","2021-08-11","16:00:00","2021-08-11","09:41:00","2021-08-11","09:33:00","2394/10.08.2021","DA",null,null,null,0.55000000004656613,1,1,0.68333333329064772,45,45,6.9999999999417923,0,0,null,null,null,null,null,"","","","","","","","",""]
[258,"x","-","Lucrări de mentenanță în SRM Săliște",145505,"Săliște","Sibiu",413773.7,478820.34,413773.7,478820.34,"-","-","SM1030D1","Săcel","-","-","-","-","SM-SD001","Aderro GP, Nova Power, Cez Vânzare, Cis Gaz, Conef Gaz, CPL Concordia, Crest Energy, Energy Trade, Design Proiect, Distrigaz Vest, Engie, E.on Energie, Electrica Furnizare, Electric Planners, Electric&Gas, Energy Distribution, Enel Energie, Enel Muntenia, Gas&Power, Entrex, Premier Energy Trading, Gaz Est, Hargaz, Gazmir, Gaz Vest, Mihoc Oil, Met România, Monsson, Next Energy Distribution, Next Energy Partners, Pado Group, Premier Energy, Petrom, Prisma Serv, Gas Provider, Renovatio, Res Energy, Restart Energy, RWE Supply, SST Grup, Tetarom, Tinmar, Veolia, Wiee, Arovi Energy","Delgaz Grid","-","2021-08-11","09:00:00","2021-08-11","16:00:00","Mediaș","Efectuată",null,"2021-08-11","09:00:00","2021-08-11","16:00:00","2021-08-11","09:41:00","2021-08-11","09:33:00","2394/10.08.2021","DA",null,null,null,0.55000000004656613,1,1,0.68333333329064772,45,45,6.9999999999417923,0,0,null,null,null,null,null,"","","","","","","","",""]
[259,"x","-","Cuplare deviere conductă 8” Foeni - Timișoara",158788,"Șag","Timiș",200431.79,468711.36,200431.79,468711.36,"-","-","SM0881D0","Șag","-","-","-","-","SM-SD001","Nova Power, Cez Vânzare, CIS Gaz, MVM Energy, Distrigaz Vest, Engie, E.On Energie, Electrica Furnizare, Electric&Gas, Energy Distribution, Enel Energie, Enel Muntenia, Gas&Power, Premier Energy Trading, Gaz Est, Gaz Vest, Met România, Premier Energy, Petrom, Energy Gas Provider, Renovatio, Restart Energy, Tinmar, Arovi Energy","Gaz Vest","-","2021-08-17","08:15:00","2021-08-17","18:00:00","Arad","Efectuată",null,"2021-08-17","08:15:00","2021-08-17","13:35:00","2021-08-17","08:59:00","2021-08-17","08:46:00","61183/13.08.2021","DA",null,null,null,0.5166666666045785,1,1,0.73333333327900618,24,24,5.3333333332557231,0,0,null,null,null,null,null,"","","","","","","","",""]
[260,"x","-","Cuplare deviere conductă 8” Foeni - Timișoara",158074,"Peciu Nou","Timiș",193049.58,463240.68,193049.58,463240.68,"-","-","SM0335D0","Peciu Nou","-","-","-","-","SM-SD001","Nova Power, Cez Vânzare, CIS Gaz, MVM Energy, Distrigaz Vest, Engie, E.On Energie, Electrica Furnizare, Electric&Gas, Energy Distribution, Enel Energie, Enel Muntenia, Gas&Power, Premier Energy Trading, Gaz Est, Gaz Vest, Met România, Premier Energy, Petrom, Energy Gas Provider, Renovatio, Restart Energy, Tinmar, Arovi Energy","Gaz Vest","-","2021-08-17","08:15:00","2021-08-17","18:00:00","Arad","Efectuată",null,"2021-08-17","08:15:00","2021-08-17","13:30:00","2021-08-17","08:59:00","2021-08-17","08:46:00","61183/13.08.2021","DA",null,null,null,0.5166666666045785,1,1,0.73333333327900618,24,24,5.25,0,0,null,null,null,null,null,"","","","","","","","",""]
[261,"x","-","Cuplare deviere conductă 8” Foeni - Timișoara",157013,"Foeni","Timiș",175362.53,453811.08,175362.53,453811.08,"-","-","SM1143D0","Foeni-Petrom","-","-","-","-","SM-CF001","Nova Power, Cez Vânzare, Engie, E.on Energie, Electric&Gas, Enel, Enel Muntenia, Premier Energy Trading, Gaz Est, Premier Energy, Petrom, Restart Energy, Tinmar","PETROM","-","2021-08-17","08:10:00","2021-08-17","18:00:00","Arad","Efectuată",null,"2021-08-17","08:10:00","2021-08-17","13:30:00","2021-08-17","08:56:00","2021-08-17","08:40:00","61183/13.08.2021","DA",null,null,null,0.49999999988358468,1,1,0.76666666654637083,13,13,5.3333333332557231,0,0,null,null,null,null,null,"","","","","","","","",""]
[262,"x","-","Reabilitare conductă 28” zona Cristur",85225,"Porumbenii Mici","Harghita",508387.89,530077.56999999995,508387.89,530077.56999999995,"-","-","SM0382D0","Porumbenii Mici","-","-","-","-","SM-SD001","Nova Power, CIS Gaz, MVM Energy, Engie, E.On Energie, Electrica Furnizare, Electric&Gas, Enel Energie, Enel Muntenia, Premier Energy Trading, Gaz Est, Hargaz, Petrom, Renovatio, Restart Energy, Tinmar","Hargaz","-","2021-08-17","10:00:00","2021-08-17","13:00:00","Brașov","Efectuată",null,"2021-08-17","10:00:00","2021-08-17","12:30:00","2021-08-17","10:34:00","2021-08-17","10:17:00","1651/16.08.2021","NU",null,null,null,"Nu a fost afectat producator/consumator","-","-","Nu a fost afectat producator/consumator","-","-","Nu a fost afectat producator/consumator","-","-",null,null,null,null,null,"","","","","","","","",""]
[263,"x","-","Inlocuire linie de reglare la SRM Somart si montare robinet DN50 pe racordul SRM-ului",144447,"Târnava","Sibiu",447307.58,514435.09,447307.58,514435.09,"-","-","SM0865D0","Târnava Somard","-","-","-","-","SM-SD001","Aderro GP, Nova Power, Cez Vânzare, Cis Gaz, Conef Gaz, CPL Concordia, Crest Energy, Energy Trade, Design Proiect, Distrigaz Vest, Engie, E.on Energie, Electrica Furnizare, Electric Planners, Electric&Gas, Energy Distribution, Enel Energie, Enel Muntenia, Gas&Power, Entrex, Premier Energy Trading, Gaz Est, Hargaz, Gazmir, Gaz Vest, Mihoc Oil, Met România, Monsson, Next Energy Distribution, Next Energy Partners, Pado Group, Premier Energy, Petrom, Prisma Serv, Gas Provider, Renovatio, Res Energy Solutions, Res Energy, Restart Energy, RWE Supply, SST Grup, Tetarom, Tinmar, Veolia, Wiee, Arovi Energy","Delgaz Grid","-","2021-08-18","09:00:00","2021-08-18","16:00:00","Mediaș","Efectuată",null,"2021-08-18","09:00:00","2021-08-18","15:30:00","2021-08-18","10:11:00","2021-08-18","10:01:00","2455/17.08.2021","DA",null,null,null,1.0166666666627862,1,1,1.1833333333488554,46,46,6.5000000000582077,0,0,null,null,null,null,null,"","","","","","","","",""]
[264,"x","-","Cuplare deviere conductă 8” Dumbrăvița - Timișoara I",157255,"Giarmata Mare","Timiș",213459.45,487919.34,213459.45,487919.34,"-","-","SM0347D0","Giarmata ","-","-","-","-","SM-SD001","Nova Power, Cez Vânzare, CIS Gaz, MVM Energy, Distrigaz Vest, Engie, E.On Energie, Electrica Furnizare, Electric&Gas, Energy Distribution, Enel Energie, Enel Muntenia, Gas&Power, Premier Energy Trading, Gaz Est, Gaz Vest, Met România, Premier Energy, Petrom, Energy Gas Provider, Renovatio, Restart Energy, Tinmar, Arovi Energy","Gaz Vest","-","2021-08-19","08:00:00","2021-08-19","20:00:00","Arad","Efectuată",null,"2021-08-19","08:00:00","2021-08-19","18:00:00","2021-08-19","08:25:00","2021-08-19","08:16:00","61849/17.08.2021","DA",null,null,null,0.26666666666278616,1,1,0.41666666662786156,24,24,9.9999999999417923,0,0,null,null,null,null,null,"","","","","","","","",""]
[{"$f":"SUM(1,A280)","v":265},"x","-","Cuplare deviere conductă 8” Dumbrăvița - Timișoara I",155305,"Giarmata-Vii","Timiș",211961.9,484303.83,211961.9,484303.83,"-","-","SM0346D0","Giarmata-Vii","-","-","-","-","SM-SD001","Aderro GP, Nova Power, Cez Vânzare, Cis Gaz, Conef Gaz, CPL Concordia, Crest Energy, Energy Trade, Design Proiect, Distrigaz Vest, Engie, E.on Energie, Electrica Furnizare, Electric Planners, Electric&Gas, Energy Distribution, Enel Energie, Enel Muntenia, Gas&Power, Entrex, Premier Energy Trading, Gaz Est, Hargaz, Gazmir, Gaz Vest, Mihoc Oil, Met România, Monsson, Next Energy Distribution, Next Energy Partners, Pado Group, Premier Energy, Petrom, Prisma Serv, Gas Provider, Renovatio, Res Energy Solutions, Restart Energy, RWE Supply, SST Grup, Sun Wave, Tetarom, Tinmar, Veolia, Wiee, Arovi Energy","Delgaz Grid","-","2021-08-19","08:00:00","2021-08-19","20:00:00","Arad","Efectuată",null,"2021-08-19","08:00:00","2021-08-19","18:52:00","2021-08-19","08:28:00","2021-08-19","08:19:00","61849/17.08.2021","DA",null,null,null,0.31666666665114462,1,1,0.46666666661622003,46,46,10.866666666639503,0,0,null,null,null,null,null,"","","","","","","","",""]
[266,"x","-","Cuplare deviere conductă 8” Dumbrăvița - Timișoara I",15525,"Timișoara","Timiș",214005.13,485720.82,214005.13,485720.82,"-","-","SM0340D0","SC Aeroportul Internațional Timișoara","-","-","-","-","SM-CF001","Premier Energy Trading","SN Aeroportul Internațional Timișoara Traian Vuia","-","2021-08-19","08:17:00","2021-08-19","20:00:00","Arad","Efectuată",null,"2021-08-19","08:17:00","2021-08-19","19:15:00","2021-08-19","08:36:00","2021-08-19","08:28:00","61849/17.08.2021","DA",null,null,null,0.18333333340706304,1,1,0.31666666665114462,1,1,10.966666666790843,0,0,null,null,null,null,null,"","","","","","","","",""]
[267,"x","-","Cuplare deviere conductă 8” Dumbrăvița - Timișoara I",155270,"Dumbrăvița","Timiș",211286.24,484424.69,211286.24,484424.69,"-","-","SM0294D0","Dumbrăvița TM","-","-","-","-","SM-SD001","Aderro GP, Nova Power, Cez Vânzare, Cis Gaz, Conef Gaz, CPL Concordia, Crest Energy, Energy Trade, Design Proiect, Distrigaz Vest, Engie, E.on Energie, Electrica Furnizare, Electric Planners, Electric&Gas, Energy Distribution, Enel Energie, Enel Muntenia, Gas&Power, Entrex, Premier Energy Trading, Gaz Est, Hargaz, Gazmir, Gaz Vest, Mihoc Oil, Met România, Monsson, Next Energy Distribution, Next Energy Partners, Pado Group, Premier Energy, Petrom, Prisma Serv, Gas Provider, Renovatio, Res Energy Solutions, Restart Energy, RWE Supply, SST Grup, Sun Wave, Tetarom, Tinmar, Veolia, Wiee, Arovi Energy","Delgaz Grid","-","2021-08-19","08:20:00","2021-08-19","20:00:00","Arad","Efectuată",null,"2021-08-19","08:20:00","2021-08-19","18:25:00","2021-08-19","08:53:00","2021-08-19","08:46:00","61849/17.08.2021","DA",null,null,null,0.43333333334885538,1,1,0.55000000004656613,46,46,10.083333333372138,0,0,null,null,null,null,null,"","","","","","","","",""]
[268,"x","-","Cuplare deviere conductă 8” Dumbrăvița - Timișoara I",155252,"Timișoara","Timiș",214955.96,484273.94,214955.96,484273.94,"-","-","SM0339D0","Timișoara IV- Aeroportul Militar","-","-","-","-","SM-SD001","Aderro GP, Nova Power, Cez Vânzare, Cis Gaz, Conef Gaz, CPL Concordia, Crest Energy, Energy Trade, Design Proiect, Distrigaz Vest, Engie, E.on Energie, Electrica Furnizare, Electric Planners, Electric&Gas, Energy Distribution, Enel Energie, Enel Muntenia, Gas&Power, Entrex, Premier Energy Trading, Gaz Est, Hargaz, Gazmir, Gaz Vest, Mihoc Oil, Met România, Monsson, Next Energy Distribution, Next Energy Partners, Pado Group, Premier Energy, Petrom, Prisma Serv, Gas Provider, Renovatio, Res Energy Solutions, Restart Energy, RWE Supply, SST Grup, Sun Wave, Tetarom, Tinmar, Veolia, Wiee, Arovi Energy","Delgaz Grid","-","2021-08-19","08:25:00","2021-08-19","20:00:00","Arad","Efectuată",null,"2021-08-19","08:25:00","2021-08-19","18:12:00","2021-08-19","08:39:00","2021-08-19","08:30:00","61849/17.08.2021","DA",null,null,null,8.3333333255723119E-2,1,1,0.2333333333954215,46,46,9.7833333332673647,0,0,null,null,null,null,null,"","","","","","","","",""]
[269,"x","-","Cuplare deviere conductă 8” Dumbrăvița - Timișoara I",155270,"Dumbrăvița","Timiș",211286.24,484424.69,211286.24,484424.69,"-","-","SM1168D0","Dumbrăvița II","-","-","-","-","SM-SD001","Aderro GP, Nova Power, Cez Vânzare, Cis Gaz, Conef Gaz, CPL Concordia, Crest Energy, Energy Trade, Design Proiect, Distrigaz Vest, Engie, E.on Energie, Electrica Furnizare, Electric Planners, Electric&Gas, Energy Distribution, Enel Energie, Enel Muntenia, Gas&Power, Entrex, Premier Energy Trading, Gaz Est, Hargaz, Gazmir, Gaz Vest, Mihoc Oil, Met România, Monsson, Next Energy Distribution, Next Energy Partners, Pado Group, Premier Energy, Petrom, Prisma Serv, Gas Provider, Renovatio, Res Energy Solutions, Restart Energy, RWE Supply, SST Grup, Sun Wave, Tetarom, Tinmar, Veolia, Wiee, Arovi Energy","Delgaz Grid","-","2021-08-19","08:40:00","2021-08-19","20:00:00","Arad","Efectuată",null,"2021-08-19","08:40:00","2021-08-19","18:55:00","2021-08-19","09:02:00","2021-08-19","08:51:00","61849/17.08.2021","DA",null,null,null,0.18333333340706304,1,1,0.36666666663950309,46,46,10.250000000058208,0,0,null,null,null,null,null,"","","","","","","","",""]
[270,"x","-","Cuplare deviere conductă 8” Dumbrăvița - Timișoara I",155298,"Ghiroda","Timiș",213312.19,480706.64,213312.19,480706.64,"-","-","SM0344D0","Ghiroda","-","-","-","-","SM-SD001","Aderro GP, Nova Power, Cez Vânzare, Cis Gaz, Conef Gaz, CPL Concordia, Crest Energy, Energy Trade, Design Proiect, Distrigaz Vest, Engie, E.on Energie, Electrica Furnizare, Electric Planners, Electric&Gas, Energy Distribution, Enel Energie, Enel Muntenia, Gas&Power, Entrex, Premier Energy Trading, Gaz Est, Hargaz, Gazmir, Gaz Vest, Mihoc Oil, Met România, Monsson, Next Energy Distribution, Next Energy Partners, Pado Group, Premier Energy, Petrom, Prisma Serv, Gas Provider, Renovatio, Res Energy Solutions, Restart Energy, RWE Supply, SST Grup, Sun Wave, Tetarom, Tinmar, Veolia, Wiee, Arovi Energy","Delgaz Grid","-","2021-08-19","08:50:00","2021-08-19","20:00:00","Arad","Efectuată",null,"2021-08-19","08:50:00","2021-08-19","19:35:00","2021-08-19","09:05:00","2021-08-19","08:56:00","61849/17.08.2021","DA",null,null,null,9.9999999976716936E-2,1,1,0.24999999994179234,46,46,10.749999999941792,0,0,null,null,null,null,null,"","","","","","",{"$f":"IF(C286=\"X\",IF(AN286=\"\",\"Afectat sau NU?\",IF(AN286=\"DA\",((AG286+AH286)-(Z286+AA286))*24,\"Nu a fost afectat producator/consumator\")),\"\")","v":""},"",""]
[271,"x","-","Cuplare deviere conductă 8” Timișoara I - Timișoara II",158724,"Utvin","Timiș",199343.56,475200,199343.56,475200,"-","-","SM1021D0","Utvin","-","-","-","-","SM-SD001","Aderro GP, Nova Power, Cez Vânzare, Cis Gaz, Conef Gaz, Crest Energy, Distrigaz Vest, Engie, E.on Energie, Electrica Furnizare, Electric Planners, Electric&Gas, Energy Distribution, Enel Energie, Enel Muntenia, Gas&Power, Premier Energy Trading, Gaz Est, Gaz vest, Megaconstruct, Mehedinți Gaz, Met România, Monsson, Next Energy, Nord Gaz, Premier Energy, Petrom, Energy Gas Provider, Renovatio, Res Energy Solutions, Restart Energy, Tinmar, Transenergo, Veolia, WIEE, Arovi Energy","Premier Energy","-","2021-08-24","08:05:00","2021-08-24","18:00:00","Arad","Efectuată",null,"2021-08-24","08:05:00","2021-08-24","12:40:00","2021-08-24","08:53:00","2021-08-24","08:26:00","62604/19.08.2021","DA",null,null,null,0.35000000009313226,1,1,0.79999999998835847,36,36,4.5833333334303461,0,0,null,null,null,null,null,"","","","","","","","",""]
[272,"x","-","Cuplare deviere conductă 8” Timișoara I - Timișoara II",155252,"Timișoara","Timiș",201059.01,477033.06,201059.01,477033.06,"-","-","SM0338D0","Timișoara III","-","-","-","-","SM-SD001","Aderro GP, Nova Power, Cez Vânzare, Cis Gaz, Conef Gaz, CPL Concordia, Crest Energy, Energy Trade, Design Proiect, Distrigaz Vest, Engie, E.on Energie, Electrica Furnizare, Electric Planners, Electric&Gas, Energy Distribution, Enel Energie, Enel Muntenia, Gas&Power, Entrex, Premier Energy Trading, Gaz Est, Hargaz, Gazmir, Gaz Vest, Mihoc Oil, Met România, Monsson, Next Energy Distribution, Next Energy Partners, Pado Group, Premier Energy, Petrom, Prisma Serv, Gas Provider, Renovatio, Res Energy Solutions, Restart Energy, RWE Supply, SST Grup, Sun Wave, Tetarom, Tinmar, Veolia, Wiee, Arovi Energy","Delgaz Grid","-","2021-08-24","08:00:00","2021-08-24","18:00:00","Arad","Efectuată",null,"2021-08-24","08:00:00","2021-08-24","13:00:00","2021-08-24","08:51:00","2021-08-24","08:24:00","62604/19.08.2021","DA",null,null,null,0.39999999990686774,1,1,0.84999999997671694,46,46,4.9999999998835847,0,0,null,null,null,null,null,"","","","","","","","",""]
[273,"x","-","Cuplare deviere conductă 8” Timișoara I - Timișoara II",157373,"Săcălaz","Timiș",196586.45,479174.93,196586.45,479174.93,"-","-","SM1028D0","Săcălaz","-","-","-","-","SM-SD001","Nova Power, Cez Vânzare, CIS Gaz, MVM Energy, Distrigaz Vest, Engie, E.On Energie, Electrica Furnizare, Electric&Gas, Energy Distribution, Enel Energie, Enel Muntenia, Gas&Power, Premier Energy Trading, Gaz Est, Gaz Vest, Met România, Premier Energy, Petrom, Energy Gas Provider, Renovatio, Restart Energy, Tinmar, Arovi Energy","Gaz Vest","-","2021-08-24","08:15:00","2021-08-24","18:00:00","Arad","Efectuată",null,"2021-08-24","08:15:00","2021-08-24","12:30:00","2021-08-24","08:57:00","2021-08-24","08:33:00","62604/19.08.2021","DA",null,null,null,0.29999999993015081,1,1,0.70000000001164153,24,24,4.2500000000582077,0,0,null,null,null,null,null,"","","","","","","","",""]
[274,"x","-","Înlocuire tronsone de 10\" pe conducta de 10\" racord SRM Focșani și eliminare robinet defect în SRM Focșani",174753,"Focșani","Vrancea",668732.43000000005,471274,668732.43000000005,471274,"-","-","SM0512D0","Focșani","-","-","-","-","SM-SD001","Aderro GP, Alpha Metal, Nova Power, Cez Vânzare, Cis Gaz, Conef Gaz, Crest Energy, Energy Trade, Distrigaz Vest, Engie, E.on Energie, Electrocentrale București, Electrocentrale Constanța, Electrica Furnizare, Electric Planners, Electric&Gas, Energy Distribution, Enel Energie, Enel Muntenia, Gas&Power, Entrex, Euro Seven Industry, Premier Energy Trading, Gaz Est, Gaz&Energy Distributie, Hargaz, Gaz Vest, Gecabuild, Getica 95, Macin Gaz, Megaconstruct, Met România, Monsson, Next Energy Distribution, Next Energy Partners, Nord Gaz, Oligopol, Premier Energy, Petrom, Progaz, Gas Provider, Renovatio, Res Energy Solutions, Restart Energy, Romgaz, RWE Supply, Tinmar, Transenergo, Veolia, Wiee, Arovi Energy","Gazmir Iași","-","2021-08-25","05:41:00","2021-08-25","16:30:00","Brăila","Efectuată",null,"2021-08-25","05:41:00","2021-08-25","16:15:00","2021-08-25","06:02:00","2021-08-25","05:45:00","63729/24.08.2021","DA",null,null,null,6.6666666709352285E-2,1,1,0.34999999991850927,51,51,10.566666666709352,0,0,null,null,null,null,null,"","","","","","","","",""]
[275,"x","-","Înlocuire tronsone de 10\" pe conducta de 10\" racord SRM Focșani și eliminare robinet defect în SRM Focșani",175064,"Panciu","Vrancea",664854.73,487960.32000000001,664854.73,487960.32000000001,"-","-","SM1109D0","Panciu","-","-","-","-","SM-SD001","Aderro GP, Cez Vânzare, Cis Gaz, Engie, E.on Energie, Electrica Furnizare, Electric&Gas, Euro Seven Industry, Energy Distribution, Enel Energie, Enel Muntenia, Gas&Power, Premier Energy Trading, Gazmir, Met România, Premier Energy, Petrom, Restart Energy, Tinmar, Arovi Energy","Gazmir Iași","-","2021-08-25","05:38:00","2021-08-25","16:30:00","Brăila","Efectuată",null,"2021-08-25","05:38:00","2021-08-25","16:15:00","2021-08-25","06:05:00","2021-08-25","05:45:00","63729/24.08.2021","DA",null,null,null,0.11666666669771075,1,1,0.44999999989522621,20,20,10.616666666697711,0,0,null,null,null,null,null,"","","","","","","","",""]
[276,"x","-","Înlocuire tronsone de 10\" pe conducta de 10\" racord SRM Focșani și eliminare robinet defect în SRM Focșani",174753,"Focșani","Vrancea",668725.94999999995,471267.39,668725.94999999995,471267.39,"-","-","SM1110D0","Odobești","-","-","-","-","SM-SD001","Aderro GP, Cez Vânzare, Cis Gaz, Engie, E.on Energie, Electrica Furnizare, Electric&Gas, Euro Seven Industry, Energy Distribution, Enel Energie, Enel Muntenia, Gas&Power, Premier Energy Trading, Gazmir, Met România, Premier Energy, Petrom, Restart Energy, Tinmar, Arovi Energy","Gazmir Iași","-","2021-08-25","05:38:00","2021-08-25","16:30:00","Brăila","Efectuată",null,"2021-08-25","05:38:00","2021-08-25","16:15:00","2021-08-25","06:05:00","2021-08-25","06:05:00","63729/24.08.2021","DA",null,null,null,0.44999999989522621,1,1,0.44999999989522621,20,20,10.616666666697711,0,0,null,null,null,null,null,"","","","","","","","",""]
[277,"x","-","Înlocuire regulator de presiune în SRM Căpâlnița și montere robinet pe ocolitorul exterior",83972,"Căpâlnița","Harghita",539156.03,539680.88,539156.03,539680.88,"-","-","SM0414D0","Căpâlnița","-","-","-","-","SM-SD001","Nova Power, CIS Gaz, MVM Energy, Engie, E.On Energie, Electrica Furnizare, Electric&Gas, Enel Energie, Enel Muntenia, Premier Energy Trading, Gaz Est, Hargaz, Petrom, Renovatio, Restart Energy, Tinmar","Hargaz","-","2021-08-26","09:20:00","2021-08-26","17:00:00","Brașov","Efectuată",null,"2021-08-26","09:20:00","2021-08-26","15:00:00","2021-08-26","09:46:00","2021-08-26","09:39:00","1716/25.08.2021","DA",null,null,null,{"$f":"IF(B293=\"X\",IF(AN293=\"\",\"Afectat sau NU?\",IF(AN293=\"DA\",IF(((AK293+AL293)-(AE293+AF293))*24<-720,\"Neinformat\",((AK293+AL293)-(AE293+AF293))*24),\"Nu a fost afectat producator/consumator\")),\"\")","v":0.31666666665114462},{"$f":"IF(B293=\"X\",IF(AN293=\"DA\",IF(AR293<6,LEN(TRIM(V293))-LEN(SUBSTITUTE(V293,CHAR(44),\"\"))+1,0),\"-\"),\"\")","v":1},{"$f":"IF(B293=\"X\",IF(AN293=\"DA\",LEN(TRIM(V293))-LEN(SUBSTITUTE(V293,CHAR(44),\"\"))+1,\"-\"),\"\")","v":1},{"$f":"IF(B293=\"X\",IF(AN293=\"\",\"Afectat sau NU?\",IF(AN293=\"DA\",IF(((AI293+AJ293)-(AE293+AF293))*24<-720,\"Neinformat\",((AI293+AJ293)-(AE293+AF293))*24),\"Nu a fost afectat producator/consumator\")),\"\")","v":0.43333333334885538},{"$f":"IF(B293=\"X\",IF(AN293=\"DA\",IF(AU293<6,LEN(TRIM(U293))-LEN(SUBSTITUTE(U293,CHAR(44),\"\"))+1,0),\"-\"),\"\")","v":16},{"$f":"IF(B293=\"X\",IF(AN293=\"DA\",LEN(TRIM(U293))-LEN(SUBSTITUTE(U293,CHAR(44),\"\"))+1,\"-\"),\"\")","v":16},{"$f":"IF(B293=\"X\",IF(AN293=\"\",\"Afectat sau NU?\",IF(AN293=\"DA\",((AG293+AH293)-(AE293+AF293))*24,\"Nu a fost afectat producator/consumator\")),\"\")","v":5.6666666666278616},{"$f":"IF(B293=\"X\",IF(AN293=\"DA\",IF(AX293>24,IF(BA293=\"NU\",0,LEN(TRIM(V293))-LEN(SUBSTITUTE(V293,CHAR(44),\"\"))+1),0),\"-\"),\"\")","v":0},{"$f":"IF(B293=\"X\",IF(AN293=\"DA\",IF(AX293>24,LEN(TRIM(V293))-LEN(SUBSTITUTE(V293,CHAR(44),\"\"))+1,0),\"-\"),\"\")","v":0},null,null,null,null,null,{"$f":"IF(C293=\"X\",IF(AN293=\"\",\"Afectat sau NU?\",IF(AN293=\"DA\",IF(AK293=\"\",\"Neinformat\",NETWORKDAYS(AK293+AL293,AE293+AF293,$BS$2:$BS$14)-2),\"Nu a fost afectat producator/consumator\")),\"\")","v":""},{"$f":"IF(C293=\"X\",IF(AN293=\"DA\",IF(AND(BF293>=5,AK293<>\"\"),LEN(TRIM(V293))-LEN(SUBSTITUTE(V293,CHAR(44),\"\"))+1,0),\"-\"),\"\")","v":""},{"$f":"IF(C293=\"X\",IF(AN293=\"DA\",LEN(TRIM(V293))-LEN(SUBSTITUTE(V293,CHAR(44),\"\"))+1,\"-\"),\"\")","v":""},{"$f":"IF(C293=\"X\",IF(AN293=\"\",\"Afectat sau NU?\",IF(AN293=\"DA\",IF(AI293=\"\",\"Neinformat\",NETWORKDAYS(AI293+AJ293,AE293+AF293,$BS$2:$BS$14)-2),\"Nu a fost afectat producator/consumator\")),\"\")","v":""},{"$f":"IF(C293=\"X\",IF(AN293=\"DA\",IF(AND(BI293>=5,AI293<>\"\"),LEN(TRIM(U293))-LEN(SUBSTITUTE(U293,CHAR(44),\"\"))+1,0),\"-\"),\"\")","v":""},{"$f":"IF(C293=\"X\",IF(AN293=\"DA\",LEN(TRIM(U293))-LEN(SUBSTITUTE(U293,CHAR(44),\"\"))+1,\"-\"),\"\")","v":""},"",{"$f":"IF(C293=\"X\",IF(AN293<>\"DA\",\"-\",IF(AND(AN293=\"DA\",BL293<=0),LEN(TRIM(V293))-LEN(SUBSTITUTE(V293,CHAR(44),\"\"))+1+LEN(TRIM(U293))-LEN(SUBSTITUTE(U293,CHAR(44),\"\"))+1,0)),\"\")","v":""},{"$f":"IF(C293=\"X\",IF(AN293=\"DA\",LEN(TRIM(V293))-LEN(SUBSTITUTE(V293,CHAR(44),\"\"))+1+LEN(TRIM(U293))-LEN(SUBSTITUTE(U293,CHAR(44),\"\"))+1,\"-\"),\"\")","v":""}]
[278,"x","-","Înlocuire contor cu turbină DN80 cu unul rotativ DN50 ăn SRM Tălmăcel",145890,"Tălmacel ","Sibiu",441290.5,461208.57,441290.5,461208.57,"-","-","SM0735D0","Tălmăcel","-","-","-","-","SM-SD001","Aderro GP, Nova Power, Cez Vânzare, Cis Gaz, Conef Gaz, CPL Concordia, Crest Energy, Energy Trade, Design Proiect, Distrigaz Vest, Engie, E.on Energie, Electrica Furnizare, Electric Planners, Electric&Gas, Energy Distribution, Enel Energie, Enel Muntenia, Gas&Power, Entrex, Premier Energy Trading, Gaz Est, Hargaz, Gazmir, Gaz Vest, Mihoc Oil, Met România, Monsson, Next Energy Distribution, Next Energy Partners, Pado Group, Premier Energy, Petrom, Prisma Serv, Gas Provider, Renovatio, Res Energy Solutions, Restart Energy, RWE Supply, SST Grup, Sun Wave, Tetarom, Tinmar, Veolia, Wiee, Arovi Energy","Delgaz Grid","-","2021-08-31","09:00:00","2021-08-31","12:00:00","Mediaș","Efectuată",null,"2021-08-31","09:00:00","2021-08-31","12:00:00","2021-08-31","09:25:00","2021-08-31","09:05:00","2576/30.08.2021","DA",null,null,null,{"$f":"IF(B294=\"X\",IF(AN294=\"\",\"Afectat sau NU?\",IF(AN294=\"DA\",IF(((AK294+AL294)-(AE294+AF294))*24<-720,\"Neinformat\",((AK294+AL294)-(AE294+AF294))*24),\"Nu a fost afectat producator/consumator\")),\"\")","v":8.3333333255723119E-2},{"$f":"IF(B294=\"X\",IF(AN294=\"DA\",IF(AR294<6,LEN(TRIM(V294))-LEN(SUBSTITUTE(V294,CHAR(44),\"\"))+1,0),\"-\"),\"\")","v":1},{"$f":"IF(B294=\"X\",IF(AN294=\"DA\",LEN(TRIM(V294))-LEN(SUBSTITUTE(V294,CHAR(44),\"\"))+1,\"-\"),\"\")","v":1},{"$f":"IF(B294=\"X\",IF(AN294=\"\",\"Afectat sau NU?\",IF(AN294=\"DA\",IF(((AI294+AJ294)-(AE294+AF294))*24<-720,\"Neinformat\",((AI294+AJ294)-(AE294+AF294))*24),\"Nu a fost afectat producator/consumator\")),\"\")","v":0.41666666662786156},{"$f":"IF(B294=\"X\",IF(AN294=\"DA\",IF(AU294<6,LEN(TRIM(U294))-LEN(SUBSTITUTE(U294,CHAR(44),\"\"))+1,0),\"-\"),\"\")","v":46},{"$f":"IF(B294=\"X\",IF(AN294=\"DA\",LEN(TRIM(U294))-LEN(SUBSTITUTE(U294,CHAR(44),\"\"))+1,\"-\"),\"\")","v":46},{"$f":"IF(B294=\"X\",IF(AN294=\"\",\"Afectat sau NU?\",IF(AN294=\"DA\",((AG294+AH294)-(AE294+AF294))*24,\"Nu a fost afectat producator/consumator\")),\"\")","v":3},{"$f":"IF(B294=\"X\",IF(AN294=\"DA\",IF(AX294>24,IF(BA294=\"NU\",0,LEN(TRIM(V294))-LEN(SUBSTITUTE(V294,CHAR(44),\"\"))+1),0),\"-\"),\"\")","v":0},{"$f":"IF(B294=\"X\",IF(AN294=\"DA\",IF(AX294>24,LEN(TRIM(V294))-LEN(SUBSTITUTE(V294,CHAR(44),\"\"))+1,0),\"-\"),\"\")","v":0},null,null,null,null,null,{"$f":"IF(C294=\"X\",IF(AN294=\"\",\"Afectat sau NU?\",IF(AN294=\"DA\",IF(AK294=\"\",\"Neinformat\",NETWORKDAYS(AK294+AL294,AE294+AF294,$BS$2:$BS$14)-2),\"Nu a fost afectat producator/consumator\")),\"\")","v":""},{"$f":"IF(C294=\"X\",IF(AN294=\"DA\",IF(AND(BF294>=5,AK294<>\"\"),LEN(TRIM(V294))-LEN(SUBSTITUTE(V294,CHAR(44),\"\"))+1,0),\"-\"),\"\")","v":""},{"$f":"IF(C294=\"X\",IF(AN294=\"DA\",LEN(TRIM(V294))-LEN(SUBSTITUTE(V294,CHAR(44),\"\"))+1,\"-\"),\"\")","v":""},{"$f":"IF(C294=\"X\",IF(AN294=\"\",\"Afectat sau NU?\",IF(AN294=\"DA\",IF(AI294=\"\",\"Neinformat\",NETWORKDAYS(AI294+AJ294,AE294+AF294,$BS$2:$BS$14)-2),\"Nu a fost afectat producator/consumator\")),\"\")","v":""},{"$f":"IF(C294=\"X\",IF(AN294=\"DA\",IF(AND(BI294>=5,AI294<>\"\"),LEN(TRIM(U294))-LEN(SUBSTITUTE(U294,CHAR(44),\"\"))+1,0),\"-\"),\"\")","v":""},{"$f":"IF(C294=\"X\",IF(AN294=\"DA\",LEN(TRIM(U294))-LEN(SUBSTITUTE(U294,CHAR(44),\"\"))+1,\"-\"),\"\")","v":""},{"$f":"IF(C294=\"X\",IF(AN294=\"\",\"Afectat sau NU?\",IF(AN294=\"DA\",((AG294+AH294)-(Z294+AA294))*24,\"Nu a fost afectat producator/consumator\")),\"\")","v":""},{"$f":"IF(C294=\"X\",IF(AN294<>\"DA\",\"-\",IF(AND(AN294=\"DA\",BL294<=0),LEN(TRIM(V294))-LEN(SUBSTITUTE(V294,CHAR(44),\"\"))+1+LEN(TRIM(U294))-LEN(SUBSTITUTE(U294,CHAR(44),\"\"))+1,0)),\"\")","v":""},{"$f":"IF(C294=\"X\",IF(AN294=\"DA\",LEN(TRIM(V294))-LEN(SUBSTITUTE(V294,CHAR(44),\"\"))+1+LEN(TRIM(U294))-LEN(SUBSTITUTE(U294,CHAR(44),\"\"))+1,\"-\"),\"\")","v":""}]
[279,"x","-","Eliminare emanații gaze la îmbinarea electroizolantă cu flanșe montată la intrare în SRM Mintiu Gherlii",58561,"Mintiu Gherlii","Cluj",418711.87,617111.80000000005,418711.87,617111.80000000005,"-","-","SM0428D0","Mintiu Gherlii","-","-","-","-","SM-SD001","Aderro GP, Nova Power, Cez Vânzare, Cis Gaz, CPL Concordia, MVM Energy, Engie, E.on Energie, Electrica Furnizare, Electric&Gas, Energy Distribution, Enel Energie, Enel Muntenia, Gas&Power, Premier Energy Trading, Gaz Est, Gaz Vest, Met România, Premier Energy, Petrom, Gas Provider, Renovatio, Restart Energy, Tinmar, Arovi Energy","Concordia Filiala Cluj","-","2021-08-31","09:00:00","2021-08-31","12:00:00","Cluj","Efectuată",null,"2021-08-31","09:00:00","2021-08-31","09:30:00","2021-08-31","09:35:00","2021-08-31","09:27:00","64349/26.08.2021","NU",null,null,null,{"$f":"IF(B295=\"X\",IF(AN295=\"\",\"Afectat sau NU?\",IF(AN295=\"DA\",IF(((AK295+AL295)-(AE295+AF295))*24<-720,\"Neinformat\",((AK295+AL295)-(AE295+AF295))*24),\"Nu a fost afectat producator/consumator\")),\"\")","v":"Nu a fost afectat producator/consumator"},{"$f":"IF(B295=\"X\",IF(AN295=\"DA\",IF(AR295<6,LEN(TRIM(V295))-LEN(SUBSTITUTE(V295,CHAR(44),\"\"))+1,0),\"-\"),\"\")","v":"-"},{"$f":"IF(B295=\"X\",IF(AN295=\"DA\",LEN(TRIM(V295))-LEN(SUBSTITUTE(V295,CHAR(44),\"\"))+1,\"-\"),\"\")","v":"-"},{"$f":"IF(B295=\"X\",IF(AN295=\"\",\"Afectat sau NU?\",IF(AN295=\"DA\",IF(((AI295+AJ295)-(AE295+AF295))*24<-720,\"Neinformat\",((AI295+AJ295)-(AE295+AF295))*24),\"Nu a fost afectat producator/consumator\")),\"\")","v":"Nu a fost afectat producator/consumator"},{"$f":"IF(B295=\"X\",IF(AN295=\"DA\",IF(AU295<6,LEN(TRIM(U295))-LEN(SUBSTITUTE(U295,CHAR(44),\"\"))+1,0),\"-\"),\"\")","v":"-"},{"$f":"IF(B295=\"X\",IF(AN295=\"DA\",LEN(TRIM(U295))-LEN(SUBSTITUTE(U295,CHAR(44),\"\"))+1,\"-\"),\"\")","v":"-"},{"$f":"IF(B295=\"X\",IF(AN295=\"\",\"Afectat sau NU?\",IF(AN295=\"DA\",((AG295+AH295)-(AE295+AF295))*24,\"Nu a fost afectat producator/consumator\")),\"\")","v":"Nu a fost afectat producator/consumator"},{"$f":"IF(B295=\"X\",IF(AN295=\"DA\",IF(AX295>24,IF(BA295=\"NU\",0,LEN(TRIM(V295))-LEN(SUBSTITUTE(V295,CHAR(44),\"\"))+1),0),\"-\"),\"\")","v":"-"},{"$f":"IF(B295=\"X\",IF(AN295=\"DA\",IF(AX295>24,LEN(TRIM(V295))-LEN(SUBSTITUTE(V295,CHAR(44),\"\"))+1,0),\"-\"),\"\")","v":"-"},null,null,null,null,null,{"$f":"IF(C295=\"X\",IF(AN295=\"\",\"Afectat sau NU?\",IF(AN295=\"DA\",IF(AK295=\"\",\"Neinformat\",NETWORKDAYS(AK295+AL295,AE295+AF295,$BS$2:$BS$14)-2),\"Nu a fost afectat producator/consumator\")),\"\")","v":""},{"$f":"IF(C295=\"X\",IF(AN295=\"DA\",IF(AND(BF295>=5,AK295<>\"\"),LEN(TRIM(V295))-LEN(SUBSTITUTE(V295,CHAR(44),\"\"))+1,0),\"-\"),\"\")","v":""},{"$f":"IF(C295=\"X\",IF(AN295=\"DA\",LEN(TRIM(V295))-LEN(SUBSTITUTE(V295,CHAR(44),\"\"))+1,\"-\"),\"\")","v":""},{"$f":"IF(C295=\"X\",IF(AN295=\"\",\"Afectat sau NU?\",IF(AN295=\"DA\",IF(AI295=\"\",\"Neinformat\",NETWORKDAYS(AI295+AJ295,AE295+AF295,$BS$2:$BS$14)-2),\"Nu a fost afectat producator/consumator\")),\"\")","v":""},{"$f":"IF(C295=\"X\",IF(AN295=\"DA\",IF(AND(BI295>=5,AI295<>\"\"),LEN(TRIM(U295))-LEN(SUBSTITUTE(U295,CHAR(44),\"\"))+1,0),\"-\"),\"\")","v":""},{"$f":"IF(C295=\"X\",IF(AN295=\"DA\",LEN(TRIM(U295))-LEN(SUBSTITUTE(U295,CHAR(44),\"\"))+1,\"-\"),\"\")","v":""},{"$f":"IF(C295=\"X\",IF(AN295=\"\",\"Afectat sau NU?\",IF(AN295=\"DA\",((AG295+AH295)-(Z295+AA295))*24,\"Nu a fost afectat producator/consumator\")),\"\")","v":""},{"$f":"IF(C295=\"X\",IF(AN295<>\"DA\",\"-\",IF(AND(AN295=\"DA\",BL295<=0),LEN(TRIM(V295))-LEN(SUBSTITUTE(V295,CHAR(44),\"\"))+1+LEN(TRIM(U295))-LEN(SUBSTITUTE(U295,CHAR(44),\"\"))+1,0)),\"\")","v":""},{"$f":"IF(C295=\"X\",IF(AN295=\"DA\",LEN(TRIM(V295))-LEN(SUBSTITUTE(V295,CHAR(44),\"\"))+1+LEN(TRIM(U295))-LEN(SUBSTITUTE(U295,CHAR(44),\"\"))+1,\"-\"),\"\")","v":""}]
[280,"x","-","Refacere ocolitor exterior și montare robinet pe exterior în SRM Mugeni",85136,"Mugeni","Harghita",517657.73,528153.31999999995,517657.73,528153.31999999995,"-","-","SM0409D0","Mugeni","-","-","-","-","SM-SD001","Nova Power, CIS Gaz, MVM Energy, Engie, E.On Energie, Electrica Furnizare, Electric&Gas, Enel Energie, Enel Muntenia, Premier Energy Trading, Gaz Est, Hargaz, Petrom, Renovatio, Restart Energy, Tinmar","Hargaz","-","2021-08-31","09:15:00","2021-08-31","17:00:00","Brașov","Efectuată",null,"2021-08-31","09:15:00","2021-08-31","16:40:00","2021-08-31","09:32:00","2021-08-31","09:25:00","1735/31.08.2021","NU",null,null,null,{"$f":"IF(B296=\"X\",IF(AN296=\"\",\"Afectat sau NU?\",IF(AN296=\"DA\",IF(((AK296+AL296)-(AE296+AF296))*24<-720,\"Neinformat\",((AK296+AL296)-(AE296+AF296))*24),\"Nu a fost afectat producator/consumator\")),\"\")","v":"Nu a fost afectat producator/consumator"},{"$f":"IF(B296=\"X\",IF(AN296=\"DA\",IF(AR296<6,LEN(TRIM(V296))-LEN(SUBSTITUTE(V296,CHAR(44),\"\"))+1,0),\"-\"),\"\")","v":"-"},{"$f":"IF(B296=\"X\",IF(AN296=\"DA\",LEN(TRIM(V296))-LEN(SUBSTITUTE(V296,CHAR(44),\"\"))+1,\"-\"),\"\")","v":"-"},{"$f":"IF(B296=\"X\",IF(AN296=\"\",\"Afectat sau NU?\",IF(AN296=\"DA\",IF(((AI296+AJ296)-(AE296+AF296))*24<-720,\"Neinformat\",((AI296+AJ296)-(AE296+AF296))*24),\"Nu a fost afectat producator/consumator\")),\"\")","v":"Nu a fost afectat producator/consumator"},{"$f":"IF(B296=\"X\",IF(AN296=\"DA\",IF(AU296<6,LEN(TRIM(U296))-LEN(SUBSTITUTE(U296,CHAR(44),\"\"))+1,0),\"-\"),\"\")","v":"-"},{"$f":"IF(B296=\"X\",IF(AN296=\"DA\",LEN(TRIM(U296))-LEN(SUBSTITUTE(U296,CHAR(44),\"\"))+1,\"-\"),\"\")","v":"-"},{"$f":"IF(B296=\"X\",IF(AN296=\"\",\"Afectat sau NU?\",IF(AN296=\"DA\",((AG296+AH296)-(AE296+AF296))*24,\"Nu a fost afectat producator/consumator\")),\"\")","v":"Nu a fost afectat producator/consumator"},{"$f":"IF(B296=\"X\",IF(AN296=\"DA\",IF(AX296>24,IF(BA296=\"NU\",0,LEN(TRIM(V296))-LEN(SUBSTITUTE(V296,CHAR(44),\"\"))+1),0),\"-\"),\"\")","v":"-"},{"$f":"IF(B296=\"X\",IF(AN296=\"DA\",IF(AX296>24,LEN(TRIM(V296))-LEN(SUBSTITUTE(V296,CHAR(44),\"\"))+1,0),\"-\"),\"\")","v":"-"},null,null,null,null,null,{"$f":"IF(C296=\"X\",IF(AN296=\"\",\"Afectat sau NU?\",IF(AN296=\"DA\",IF(AK296=\"\",\"Neinformat\",NETWORKDAYS(AK296+AL296,AE296+AF296,$BS$2:$BS$14)-2),\"Nu a fost afectat producator/consumator\")),\"\")","v":""},{"$f":"IF(C296=\"X\",IF(AN296=\"DA\",IF(AND(BF296>=5,AK296<>\"\"),LEN(TRIM(V296))-LEN(SUBSTITUTE(V296,CHAR(44),\"\"))+1,0),\"-\"),\"\")","v":""},{"$f":"IF(C296=\"X\",IF(AN296=\"DA\",LEN(TRIM(V296))-LEN(SUBSTITUTE(V296,CHAR(44),\"\"))+1,\"-\"),\"\")","v":""},{"$f":"IF(C296=\"X\",IF(AN296=\"\",\"Afectat sau NU?\",IF(AN296=\"DA\",IF(AI296=\"\",\"Neinformat\",NETWORKDAYS(AI296+AJ296,AE296+AF296,$BS$2:$BS$14)-2),\"Nu a fost afectat producator/consumator\")),\"\")","v":""},{"$f":"IF(C296=\"X\",IF(AN296=\"DA\",IF(AND(BI296>=5,AI296<>\"\"),LEN(TRIM(U296))-LEN(SUBSTITUTE(U296,CHAR(44),\"\"))+1,0),\"-\"),\"\")","v":""},{"$f":"IF(C296=\"X\",IF(AN296=\"DA\",LEN(TRIM(U296))-LEN(SUBSTITUTE(U296,CHAR(44),\"\"))+1,\"-\"),\"\")","v":""},{"$f":"IF(C296=\"X\",IF(AN296=\"\",\"Afectat sau NU?\",IF(AN296=\"DA\",((AG296+AH296)-(Z296+AA296))*24,\"Nu a fost afectat producator/consumator\")),\"\")","v":""},{"$f":"IF(C296=\"X\",IF(AN296<>\"DA\",\"-\",IF(AND(AN296=\"DA\",BL296<=0),LEN(TRIM(V296))-LEN(SUBSTITUTE(V296,CHAR(44),\"\"))+1+LEN(TRIM(U296))-LEN(SUBSTITUTE(U296,CHAR(44),\"\"))+1,0)),\"\")","v":""},{"$f":"IF(C296=\"X\",IF(AN296=\"DA\",LEN(TRIM(V296))-LEN(SUBSTITUTE(V296,CHAR(44),\"\"))+1+LEN(TRIM(U296))-LEN(SUBSTITUTE(U296,CHAR(44),\"\"))+1,\"-\"),\"\")","v":""}]
[281,"x","-","Eliminare emanații gaze la îmbinarea electroizolantă cu flanșe montată la intrare în SRM Câțcău",57323,"Câțcău","Cluj",409419.62,635522.11,409419.62,635522.11,"-","-","SM0043D0","Câțcău","-","-","-","-","SM-SD001","Aderro GP, Nova Power, Cez Vânzare, Cis Gaz, Conef Gaz, CPL Concordia, Crest Energy, Energy Trade, Design Proiect, Distrigaz Vest, Engie, E.on Energie, Electrica Furnizare, Electric Planners, Electric&Gas, Energy Distribution, Enel Energie, Enel Muntenia, Gas&Power, Entrex, Premier Energy Trading, Gaz Est, Hargaz, Gazmir, Gaz Vest, Mihoc Oil, Met România, Monsson, Next Energy Distribution, Next Energy Partners, Pado Group, Premier Energy, Petrom, Prisma Serv, Gas Provider, Renovatio, Res Energy Solutions, Restart Energy, RWE Supply, SST Grup, Sun Wave, Tetarom, Tinmar, Veolia, Wiee, Arovi Energy","Delgaz Grid","-","2021-08-31","12:00:00","2021-08-31","15:00:00","Mediaș","Efectuată",null,"2021-08-31","12:00:00","2021-08-31","12:38:00","2021-08-31","12:04:00","2021-08-31","12:14:00","64947/30.08.2021","NU",null,null,null,"Nu a fost afectat producator/consumator","-","-","Nu a fost afectat producator/consumator","-","-","Nu a fost afectat producator/consumator","-","-",null,null,null,null,null,"","","","","","","","",""]
[282,"x","-","Eliminare emanații gaze la îmbinarea electroizolantă cu flanșe montată la intrare în SRM Căpâlna",141161,"Căpâlna","Sălaj",403867.73,640282.93000000005,403867.73,640282.93000000005,"-","-","SM0548D0","Căpâlna","-","-","-","-","SM-SD001","Aderro GP, Nova Power, Cez Vânzare, Cis Gaz, Conef Gaz, CPL Concordia, Crest Energy, Energy Trade, Design Proiect, Distrigaz Vest, Engie, E.on Energie, Electrica Furnizare, Electric Planners, Electric&Gas, Energy Distribution, Enel Energie, Enel Muntenia, Gas&Power, Entrex, Premier Energy Trading, Gaz Est, Hargaz, Gazmir, Gaz Vest, Mihoc Oil, Met România, Monsson, Next Energy Distribution, Next Energy Partners, Pado Group, Premier Energy, Petrom, Prisma Serv, Gas Provider, Renovatio, Res Energy Solutions, Restart Energy, RWE Supply, SST Grup, Sun Wave, Tetarom, Tinmar, Veolia, Wiee, Arovi Energy","Delgaz Grid","-","2021-09-01","09:01:00","2021-09-01","11:08:00","Cluj","Efectuată",null,"2021-09-01","09:01:00","2021-09-01","11:08:00","2021-09-01","09:14:00","2021-09-01","09:06:00","64952/30.08.2021","NU",null,null,null,{"$f":"IF(B298=\"X\",IF(AN298=\"\",\"Afectat sau NU?\",IF(AN298=\"DA\",IF(((AK298+AL298)-(AE298+AF298))*24<-720,\"Neinformat\",((AK298+AL298)-(AE298+AF298))*24),\"Nu a fost afectat producator/consumator\")),\"\")","v":"Nu a fost afectat producator/consumator"},{"$f":"IF(B298=\"X\",IF(AN298=\"DA\",IF(AR298<6,LEN(TRIM(V298))-LEN(SUBSTITUTE(V298,CHAR(44),\"\"))+1,0),\"-\"),\"\")","v":"-"},{"$f":"IF(B298=\"X\",IF(AN298=\"DA\",LEN(TRIM(V298))-LEN(SUBSTITUTE(V298,CHAR(44),\"\"))+1,\"-\"),\"\")","v":"-"},{"$f":"IF(B298=\"X\",IF(AN298=\"\",\"Afectat sau NU?\",IF(AN298=\"DA\",IF(((AI298+AJ298)-(AE298+AF298))*24<-720,\"Neinformat\",((AI298+AJ298)-(AE298+AF298))*24),\"Nu a fost afectat producator/consumator\")),\"\")","v":"Nu a fost afectat producator/consumator"},{"$f":"IF(B298=\"X\",IF(AN298=\"DA\",IF(AU298<6,LEN(TRIM(U298))-LEN(SUBSTITUTE(U298,CHAR(44),\"\"))+1,0),\"-\"),\"\")","v":"-"},{"$f":"IF(B298=\"X\",IF(AN298=\"DA\",LEN(TRIM(U298))-LEN(SUBSTITUTE(U298,CHAR(44),\"\"))+1,\"-\"),\"\")","v":"-"},{"$f":"IF(B298=\"X\",IF(AN298=\"\",\"Afectat sau NU?\",IF(AN298=\"DA\",((AG298+AH298)-(AE298+AF298))*24,\"Nu a fost afectat producator/consumator\")),\"\")","v":"Nu a fost afectat producator/consumator"},{"$f":"IF(B298=\"X\",IF(AN298=\"DA\",IF(AX298>24,IF(BA298=\"NU\",0,LEN(TRIM(V298))-LEN(SUBSTITUTE(V298,CHAR(44),\"\"))+1),0),\"-\"),\"\")","v":"-"},{"$f":"IF(B298=\"X\",IF(AN298=\"DA\",IF(AX298>24,LEN(TRIM(V298))-LEN(SUBSTITUTE(V298,CHAR(44),\"\"))+1,0),\"-\"),\"\")","v":"-"},null,null,null,null,null,{"$f":"IF(C298=\"X\",IF(AN298=\"\",\"Afectat sau NU?\",IF(AN298=\"DA\",IF(AK298=\"\",\"Neinformat\",NETWORKDAYS(AK298+AL298,AE298+AF298,$BS$2:$BS$14)-2),\"Nu a fost afectat producator/consumator\")),\"\")","v":""},{"$f":"IF(C298=\"X\",IF(AN298=\"DA\",IF(AND(BF298>=5,AK298<>\"\"),LEN(TRIM(V298))-LEN(SUBSTITUTE(V298,CHAR(44),\"\"))+1,0),\"-\"),\"\")","v":""},{"$f":"IF(C298=\"X\",IF(AN298=\"DA\",LEN(TRIM(V298))-LEN(SUBSTITUTE(V298,CHAR(44),\"\"))+1,\"-\"),\"\")","v":""},{"$f":"IF(C298=\"X\",IF(AN298=\"\",\"Afectat sau NU?\",IF(AN298=\"DA\",IF(AI298=\"\",\"Neinformat\",NETWORKDAYS(AI298+AJ298,AE298+AF298,$BS$2:$BS$14)-2),\"Nu a fost afectat producator/consumator\")),\"\")","v":""},{"$f":"IF(C298=\"X\",IF(AN298=\"DA\",IF(AND(BI298>=5,AI298<>\"\"),LEN(TRIM(U298))-LEN(SUBSTITUTE(U298,CHAR(44),\"\"))+1,0),\"-\"),\"\")","v":""},{"$f":"IF(C298=\"X\",IF(AN298=\"DA\",LEN(TRIM(U298))-LEN(SUBSTITUTE(U298,CHAR(44),\"\"))+1,\"-\"),\"\")","v":""},{"$f":"IF(C298=\"X\",IF(AN298=\"\",\"Afectat sau NU?\",IF(AN298=\"DA\",((AG298+AH298)-(Z298+AA298))*24,\"Nu a fost afectat producator/consumator\")),\"\")","v":""},{"$f":"IF(C298=\"X\",IF(AN298<>\"DA\",\"-\",IF(AND(AN298=\"DA\",BL298<=0),LEN(TRIM(V298))-LEN(SUBSTITUTE(V298,CHAR(44),\"\"))+1+LEN(TRIM(U298))-LEN(SUBSTITUTE(U298,CHAR(44),\"\"))+1,0)),\"\")","v":""},{"$f":"IF(C298=\"X\",IF(AN298=\"DA\",LEN(TRIM(V298))-LEN(SUBSTITUTE(V298,CHAR(44),\"\"))+1+LEN(TRIM(U298))-LEN(SUBSTITUTE(U298,CHAR(44),\"\"))+1,\"-\"),\"\")","v":""}]
[283,"x","-","Eliminare emanații gaze la îmbinarea electroizolantă cu flanșe montată la intrare în SRM Gâlgău",141143,"Gâlgău","Sălaj",402222.84,642991.92000000004,402222.84,642991.92000000004,"-","-","SM0549D0","Gâlgău","-","-","-","-","SM-SD001","Aderro GP, Nova Power, Cez Vânzare, Cis Gaz, Conef Gaz, CPL Concordia, Crest Energy, Energy Trade, Design Proiect, Distrigaz Vest, Engie, E.on Energie, Electrica Furnizare, Electric Planners, Electric&Gas, Energy Distribution, Enel Energie, Enel Muntenia, Gas&Power, Entrex, Premier Energy Trading, Gaz Est, Hargaz, Gazmir, Gaz Vest, Mihoc Oil, Met România, Monsson, Next Energy Distribution, Next Energy Partners, Pado Group, Premier Energy, Petrom, Prisma Serv, Gas Provider, Renovatio, Res Energy Solutions, Restart Energy, RWE Supply, SST Grup, Sun Wave, Tetarom, Tinmar, Veolia, Wiee, Arovi Energy","Delgaz Grid","-","2021-09-01","12:00:00","2021-09-01","12:51:00","Cluj","Efectuată",null,"2021-09-01","12:00:00","2021-09-01","12:51:00","2021-09-01","12:31:00","2021-09-01","12:06:00","64953/30.08.2021","NU",null,null,null,{"$f":"IF(B299=\"X\",IF(AN299=\"\",\"Afectat sau NU?\",IF(AN299=\"DA\",IF(((AK299+AL299)-(AE299+AF299))*24<-720,\"Neinformat\",((AK299+AL299)-(AE299+AF299))*24),\"Nu a fost afectat producator/consumator\")),\"\")","v":"Nu a fost afectat producator/consumator"},{"$f":"IF(B299=\"X\",IF(AN299=\"DA\",IF(AR299<6,LEN(TRIM(V299))-LEN(SUBSTITUTE(V299,CHAR(44),\"\"))+1,0),\"-\"),\"\")","v":"-"},{"$f":"IF(B299=\"X\",IF(AN299=\"DA\",LEN(TRIM(V299))-LEN(SUBSTITUTE(V299,CHAR(44),\"\"))+1,\"-\"),\"\")","v":"-"},{"$f":"IF(B299=\"X\",IF(AN299=\"\",\"Afectat sau NU?\",IF(AN299=\"DA\",IF(((AI299+AJ299)-(AE299+AF299))*24<-720,\"Neinformat\",((AI299+AJ299)-(AE299+AF299))*24),\"Nu a fost afectat producator/consumator\")),\"\")","v":"Nu a fost afectat producator/consumator"},{"$f":"IF(B299=\"X\",IF(AN299=\"DA\",IF(AU299<6,LEN(TRIM(U299))-LEN(SUBSTITUTE(U299,CHAR(44),\"\"))+1,0),\"-\"),\"\")","v":"-"},{"$f":"IF(B299=\"X\",IF(AN299=\"DA\",LEN(TRIM(U299))-LEN(SUBSTITUTE(U299,CHAR(44),\"\"))+1,\"-\"),\"\")","v":"-"},{"$f":"IF(B299=\"X\",IF(AN299=\"\",\"Afectat sau NU?\",IF(AN299=\"DA\",((AG299+AH299)-(AE299+AF299))*24,\"Nu a fost afectat producator/consumator\")),\"\")","v":"Nu a fost afectat producator/consumator"},{"$f":"IF(B299=\"X\",IF(AN299=\"DA\",IF(AX299>24,IF(BA299=\"NU\",0,LEN(TRIM(V299))-LEN(SUBSTITUTE(V299,CHAR(44),\"\"))+1),0),\"-\"),\"\")","v":"-"},{"$f":"IF(B299=\"X\",IF(AN299=\"DA\",IF(AX299>24,LEN(TRIM(V299))-LEN(SUBSTITUTE(V299,CHAR(44),\"\"))+1,0),\"-\"),\"\")","v":"-"},null,null,null,null,null,{"$f":"IF(C299=\"X\",IF(AN299=\"\",\"Afectat sau NU?\",IF(AN299=\"DA\",IF(AK299=\"\",\"Neinformat\",NETWORKDAYS(AK299+AL299,AE299+AF299,$BS$2:$BS$14)-2),\"Nu a fost afectat producator/consumator\")),\"\")","v":""},{"$f":"IF(C299=\"X\",IF(AN299=\"DA\",IF(AND(BF299>=5,AK299<>\"\"),LEN(TRIM(V299))-LEN(SUBSTITUTE(V299,CHAR(44),\"\"))+1,0),\"-\"),\"\")","v":""},{"$f":"IF(C299=\"X\",IF(AN299=\"DA\",LEN(TRIM(V299))-LEN(SUBSTITUTE(V299,CHAR(44),\"\"))+1,\"-\"),\"\")","v":""},{"$f":"IF(C299=\"X\",IF(AN299=\"\",\"Afectat sau NU?\",IF(AN299=\"DA\",IF(AI299=\"\",\"Neinformat\",NETWORKDAYS(AI299+AJ299,AE299+AF299,$BS$2:$BS$14)-2),\"Nu a fost afectat producator/consumator\")),\"\")","v":""},{"$f":"IF(C299=\"X\",IF(AN299=\"DA\",IF(AND(BI299>=5,AI299<>\"\"),LEN(TRIM(U299))-LEN(SUBSTITUTE(U299,CHAR(44),\"\"))+1,0),\"-\"),\"\")","v":""},{"$f":"IF(C299=\"X\",IF(AN299=\"DA\",LEN(TRIM(U299))-LEN(SUBSTITUTE(U299,CHAR(44),\"\"))+1,\"-\"),\"\")","v":""},{"$f":"IF(C299=\"X\",IF(AN299=\"\",\"Afectat sau NU?\",IF(AN299=\"DA\",((AG299+AH299)-(Z299+AA299))*24,\"Nu a fost afectat producator/consumator\")),\"\")","v":""},{"$f":"IF(C299=\"X\",IF(AN299<>\"DA\",\"-\",IF(AND(AN299=\"DA\",BL299<=0),LEN(TRIM(V299))-LEN(SUBSTITUTE(V299,CHAR(44),\"\"))+1+LEN(TRIM(U299))-LEN(SUBSTITUTE(U299,CHAR(44),\"\"))+1,0)),\"\")","v":""},{"$f":"IF(C299=\"X\",IF(AN299=\"DA\",LEN(TRIM(V299))-LEN(SUBSTITUTE(V299,CHAR(44),\"\"))+1+LEN(TRIM(U299))-LEN(SUBSTITUTE(U299,CHAR(44),\"\"))+1,\"-\"),\"\")","v":""}]
[284,"x","-","Eliminare emanații gaze la îmbinarea electroizolantă cu flanșe montată la intrare în SRM Glod",141214,"Glod","Sălaj",397991.6,643193.36,397991.6,643193.36,"-","-","SM0550D0","Glod","-","-","-","-","SM-SD001","Aderro GP, Nova Power, Cez Vânzare, Cis Gaz, Conef Gaz, CPL Concordia, Crest Energy, Energy Trade, Design Proiect, Distrigaz Vest, Engie, E.on Energie, Electrica Furnizare, Electric Planners, Electric&Gas, Energy Distribution, Enel Energie, Enel Muntenia, Gas&Power, Entrex, Premier Energy Trading, Gaz Est, Hargaz, Gazmir, Gaz Vest, Mihoc Oil, Met România, Monsson, Next Energy Distribution, Next Energy Partners, Pado Group, Premier Energy, Petrom, Prisma Serv, Gas Provider, Renovatio, Res Energy Solutions, Restart Energy, RWE Supply, SST Grup, Sun Wave, Tetarom, Tinmar, Veolia, Wiee, Arovi Energy","Delgaz Grid","-","2021-09-02","09:00:00","2021-09-02","12:00:00","Cluj","Efectuată",null,"2021-09-02","09:00:00","2021-09-02","10:15:00","2021-09-02","09:12:00","2021-09-02","09:03:00","65494/31.08.2021","NU",null,null,null,{"$f":"IF(B300=\"X\",IF(AN300=\"\",\"Afectat sau NU?\",IF(AN300=\"DA\",IF(((AK300+AL300)-(AE300+AF300))*24<-720,\"Neinformat\",((AK300+AL300)-(AE300+AF300))*24),\"Nu a fost afectat producator/consumator\")),\"\")","v":"Nu a fost afectat producator/consumator"},{"$f":"IF(B300=\"X\",IF(AN300=\"DA\",IF(AR300<6,LEN(TRIM(V300))-LEN(SUBSTITUTE(V300,CHAR(44),\"\"))+1,0),\"-\"),\"\")","v":"-"},{"$f":"IF(B300=\"X\",IF(AN300=\"DA\",LEN(TRIM(V300))-LEN(SUBSTITUTE(V300,CHAR(44),\"\"))+1,\"-\"),\"\")","v":"-"},{"$f":"IF(B300=\"X\",IF(AN300=\"\",\"Afectat sau NU?\",IF(AN300=\"DA\",IF(((AI300+AJ300)-(AE300+AF300))*24<-720,\"Neinformat\",((AI300+AJ300)-(AE300+AF300))*24),\"Nu a fost afectat producator/consumator\")),\"\")","v":"Nu a fost afectat producator/consumator"},{"$f":"IF(B300=\"X\",IF(AN300=\"DA\",IF(AU300<6,LEN(TRIM(U300))-LEN(SUBSTITUTE(U300,CHAR(44),\"\"))+1,0),\"-\"),\"\")","v":"-"},{"$f":"IF(B300=\"X\",IF(AN300=\"DA\",LEN(TRIM(U300))-LEN(SUBSTITUTE(U300,CHAR(44),\"\"))+1,\"-\"),\"\")","v":"-"},{"$f":"IF(B300=\"X\",IF(AN300=\"\",\"Afectat sau NU?\",IF(AN300=\"DA\",((AG300+AH300)-(AE300+AF300))*24,\"Nu a fost afectat producator/consumator\")),\"\")","v":"Nu a fost afectat producator/consumator"},{"$f":"IF(B300=\"X\",IF(AN300=\"DA\",IF(AX300>24,IF(BA300=\"NU\",0,LEN(TRIM(V300))-LEN(SUBSTITUTE(V300,CHAR(44),\"\"))+1),0),\"-\"),\"\")","v":"-"},{"$f":"IF(B300=\"X\",IF(AN300=\"DA\",IF(AX300>24,LEN(TRIM(V300))-LEN(SUBSTITUTE(V300,CHAR(44),\"\"))+1,0),\"-\"),\"\")","v":"-"},null,null,null,null,null,{"$f":"IF(C300=\"X\",IF(AN300=\"\",\"Afectat sau NU?\",IF(AN300=\"DA\",IF(AK300=\"\",\"Neinformat\",NETWORKDAYS(AK300+AL300,AE300+AF300,$BS$2:$BS$14)-2),\"Nu a fost afectat producator/consumator\")),\"\")","v":""},{"$f":"IF(C300=\"X\",IF(AN300=\"DA\",IF(AND(BF300>=5,AK300<>\"\"),LEN(TRIM(V300))-LEN(SUBSTITUTE(V300,CHAR(44),\"\"))+1,0),\"-\"),\"\")","v":""},{"$f":"IF(C300=\"X\",IF(AN300=\"DA\",LEN(TRIM(V300))-LEN(SUBSTITUTE(V300,CHAR(44),\"\"))+1,\"-\"),\"\")","v":""},{"$f":"IF(C300=\"X\",IF(AN300=\"\",\"Afectat sau NU?\",IF(AN300=\"DA\",IF(AI300=\"\",\"Neinformat\",NETWORKDAYS(AI300+AJ300,AE300+AF300,$BS$2:$BS$14)-2),\"Nu a fost afectat producator/consumator\")),\"\")","v":""},{"$f":"IF(C300=\"X\",IF(AN300=\"DA\",IF(AND(BI300>=5,AI300<>\"\"),LEN(TRIM(U300))-LEN(SUBSTITUTE(U300,CHAR(44),\"\"))+1,0),\"-\"),\"\")","v":""},{"$f":"IF(C300=\"X\",IF(AN300=\"DA\",LEN(TRIM(U300))-LEN(SUBSTITUTE(U300,CHAR(44),\"\"))+1,\"-\"),\"\")","v":""},{"$f":"IF(C300=\"X\",IF(AN300=\"\",\"Afectat sau NU?\",IF(AN300=\"DA\",((AG300+AH300)-(Z300+AA300))*24,\"Nu a fost afectat producator/consumator\")),\"\")","v":""},{"$f":"IF(C300=\"X\",IF(AN300<>\"DA\",\"-\",IF(AND(AN300=\"DA\",BL300<=0),LEN(TRIM(V300))-LEN(SUBSTITUTE(V300,CHAR(44),\"\"))+1+LEN(TRIM(U300))-LEN(SUBSTITUTE(U300,CHAR(44),\"\"))+1,0)),\"\")","v":""},{"$f":"IF(C300=\"X\",IF(AN300=\"DA\",LEN(TRIM(V300))-LEN(SUBSTITUTE(V300,CHAR(44),\"\"))+1+LEN(TRIM(U300))-LEN(SUBSTITUTE(U300,CHAR(44),\"\"))+1,\"-\"),\"\")","v":""}]
[285,"x","-","Eliminare emanații gaze la îmbinarea electroizolantă cu flanșe montată la intrare în SRM Surduc",142783,"Surduc","Sălaj",373759.96,639388.94999999995,373759.96,639388.94999999995,"-","-","SM0554D0","Surduc","-","-","-","-","SM-SD001","Aderro GP, Nova Power, Cez Vânzare, Cis Gaz, Conef Gaz, CPL Concordia, Crest Energy, Energy Trade, Design Proiect, Distrigaz Vest, Engie, E.on Energie, Electrica Furnizare, Electric Planners, Electric&Gas, Energy Distribution, Enel Energie, Enel Muntenia, Gas&Power, Entrex, Premier Energy Trading, Gaz Est, Hargaz, Gazmir, Gaz Vest, Mihoc Oil, Met România, Monsson, Next Energy Distribution, Next Energy Partners, Pado Group, Premier Energy, Petrom, Prisma Serv, Gas Provider, Renovatio, Res Energy Solutions, Restart Energy, RWE Supply, SST Grup, Sun Wave, Tetarom, Tinmar, Veolia, Wiee, Arovi Energy","Delgaz Grid","-","2021-09-02","12:03:00","2021-09-02","15:00:00","Cluj","Efectuată",null,"2021-09-02","12:03:00","2021-09-02","13:38:00","2021-09-02","12:20:00","2021-09-02","12:06:00","65496/31.08.2021","NU",null,null,null,{"$f":"IF(B301=\"X\",IF(AN301=\"\",\"Afectat sau NU?\",IF(AN301=\"DA\",IF(((AK301+AL301)-(AE301+AF301))*24<-720,\"Neinformat\",((AK301+AL301)-(AE301+AF301))*24),\"Nu a fost afectat producator/consumator\")),\"\")","v":"Nu a fost afectat producator/consumator"},{"$f":"IF(B301=\"X\",IF(AN301=\"DA\",IF(AR301<6,LEN(TRIM(V301))-LEN(SUBSTITUTE(V301,CHAR(44),\"\"))+1,0),\"-\"),\"\")","v":"-"},{"$f":"IF(B301=\"X\",IF(AN301=\"DA\",LEN(TRIM(V301))-LEN(SUBSTITUTE(V301,CHAR(44),\"\"))+1,\"-\"),\"\")","v":"-"},{"$f":"IF(B301=\"X\",IF(AN301=\"\",\"Afectat sau NU?\",IF(AN301=\"DA\",IF(((AI301+AJ301)-(AE301+AF301))*24<-720,\"Neinformat\",((AI301+AJ301)-(AE301+AF301))*24),\"Nu a fost afectat producator/consumator\")),\"\")","v":"Nu a fost afectat producator/consumator"},{"$f":"IF(B301=\"X\",IF(AN301=\"DA\",IF(AU301<6,LEN(TRIM(U301))-LEN(SUBSTITUTE(U301,CHAR(44),\"\"))+1,0),\"-\"),\"\")","v":"-"},{"$f":"IF(B301=\"X\",IF(AN301=\"DA\",LEN(TRIM(U301))-LEN(SUBSTITUTE(U301,CHAR(44),\"\"))+1,\"-\"),\"\")","v":"-"},{"$f":"IF(B301=\"X\",IF(AN301=\"\",\"Afectat sau NU?\",IF(AN301=\"DA\",((AG301+AH301)-(AE301+AF301))*24,\"Nu a fost afectat producator/consumator\")),\"\")","v":"Nu a fost afectat producator/consumator"},{"$f":"IF(B301=\"X\",IF(AN301=\"DA\",IF(AX301>24,IF(BA301=\"NU\",0,LEN(TRIM(V301))-LEN(SUBSTITUTE(V301,CHAR(44),\"\"))+1),0),\"-\"),\"\")","v":"-"},{"$f":"IF(B301=\"X\",IF(AN301=\"DA\",IF(AX301>24,LEN(TRIM(V301))-LEN(SUBSTITUTE(V301,CHAR(44),\"\"))+1,0),\"-\"),\"\")","v":"-"},null,null,null,null,null,{"$f":"IF(C301=\"X\",IF(AN301=\"\",\"Afectat sau NU?\",IF(AN301=\"DA\",IF(AK301=\"\",\"Neinformat\",NETWORKDAYS(AK301+AL301,AE301+AF301,$BS$2:$BS$14)-2),\"Nu a fost afectat producator/consumator\")),\"\")","v":""},{"$f":"IF(C301=\"X\",IF(AN301=\"DA\",IF(AND(BF301>=5,AK301<>\"\"),LEN(TRIM(V301))-LEN(SUBSTITUTE(V301,CHAR(44),\"\"))+1,0),\"-\"),\"\")","v":""},{"$f":"IF(C301=\"X\",IF(AN301=\"DA\",LEN(TRIM(V301))-LEN(SUBSTITUTE(V301,CHAR(44),\"\"))+1,\"-\"),\"\")","v":""},{"$f":"IF(C301=\"X\",IF(AN301=\"\",\"Afectat sau NU?\",IF(AN301=\"DA\",IF(AI301=\"\",\"Neinformat\",NETWORKDAYS(AI301+AJ301,AE301+AF301,$BS$2:$BS$14)-2),\"Nu a fost afectat producator/consumator\")),\"\")","v":""},{"$f":"IF(C301=\"X\",IF(AN301=\"DA\",IF(AND(BI301>=5,AI301<>\"\"),LEN(TRIM(U301))-LEN(SUBSTITUTE(U301,CHAR(44),\"\"))+1,0),\"-\"),\"\")","v":""},{"$f":"IF(C301=\"X\",IF(AN301=\"DA\",LEN(TRIM(U301))-LEN(SUBSTITUTE(U301,CHAR(44),\"\"))+1,\"-\"),\"\")","v":""},{"$f":"IF(C301=\"X\",IF(AN301=\"\",\"Afectat sau NU?\",IF(AN301=\"DA\",((AG301+AH301)-(Z301+AA301))*24,\"Nu a fost afectat producator/consumator\")),\"\")","v":""},{"$f":"IF(C301=\"X\",IF(AN301<>\"DA\",\"-\",IF(AND(AN301=\"DA\",BL301<=0),LEN(TRIM(V301))-LEN(SUBSTITUTE(V301,CHAR(44),\"\"))+1+LEN(TRIM(U301))-LEN(SUBSTITUTE(U301,CHAR(44),\"\"))+1,0)),\"\")","v":""},{"$f":"IF(C301=\"X\",IF(AN301=\"DA\",LEN(TRIM(V301))-LEN(SUBSTITUTE(V301,CHAR(44),\"\"))+1+LEN(TRIM(U301))-LEN(SUBSTITUTE(U301,CHAR(44),\"\"))+1,\"-\"),\"\")","v":""}]
[286,"x","-","Înlocuire robinet 200 și eliminare robinet 199 pe conducta DN400 Oveselu - Iancu Jianu",125427,"Balș","Olt",431458.8,316702.78000000003,431458.8,316702.78000000003,"-","-","SM0228D2","SC SMR Balș","-","-","-","-","SM-CF001","Cis Gaz","SMR Balș","-","2021-09-02","08:00:00","2021-09-02","20:00:00","Craiova","Efectuată",null,"2021-09-02","08:00:00","2021-09-02","17:48:00",null,null,"2021-09-02","08:21:00","64933/30.08.2021","DA",null,null,null,{"$f":"IF(B302=\"X\",IF(AN302=\"\",\"Afectat sau NU?\",IF(AN302=\"DA\",IF(((AK302+AL302)-(AE302+AF302))*24<-720,\"Neinformat\",((AK302+AL302)-(AE302+AF302))*24),\"Nu a fost afectat producator/consumator\")),\"\")","v":0.34999999991850927},{"$f":"IF(B302=\"X\",IF(AN302=\"DA\",IF(AR302<6,LEN(TRIM(V302))-LEN(SUBSTITUTE(V302,CHAR(44),\"\"))+1,0),\"-\"),\"\")","v":1},{"$f":"IF(B302=\"X\",IF(AN302=\"DA\",LEN(TRIM(V302))-LEN(SUBSTITUTE(V302,CHAR(44),\"\"))+1,\"-\"),\"\")","v":1},{"$f":"IF(B302=\"X\",IF(AN302=\"\",\"Afectat sau NU?\",IF(AN302=\"DA\",IF(((AI302+AJ302)-(AE302+AF302))*24<-720,\"Neinformat\",((AI302+AJ302)-(AE302+AF302))*24),\"Nu a fost afectat producator/consumator\")),\"\")","v":"Neinformat"},{"$f":"IF(B302=\"X\",IF(AN302=\"DA\",IF(AU302<6,LEN(TRIM(U302))-LEN(SUBSTITUTE(U302,CHAR(44),\"\"))+1,0),\"-\"),\"\")","v":0},{"$f":"IF(B302=\"X\",IF(AN302=\"DA\",LEN(TRIM(U302))-LEN(SUBSTITUTE(U302,CHAR(44),\"\"))+1,\"-\"),\"\")","v":1},{"$f":"IF(B302=\"X\",IF(AN302=\"\",\"Afectat sau NU?\",IF(AN302=\"DA\",((AG302+AH302)-(AE302+AF302))*24,\"Nu a fost afectat producator/consumator\")),\"\")","v":9.7999999999883585},{"$f":"IF(B302=\"X\",IF(AN302=\"DA\",IF(AX302>24,IF(BA302=\"NU\",0,LEN(TRIM(V302))-LEN(SUBSTITUTE(V302,CHAR(44),\"\"))+1),0),\"-\"),\"\")","v":0},{"$f":"IF(B302=\"X\",IF(AN302=\"DA\",IF(AX302>24,LEN(TRIM(V302))-LEN(SUBSTITUTE(V302,CHAR(44),\"\"))+1,0),\"-\"),\"\")","v":0},null,null,null,null,null,{"$f":"IF(C302=\"X\",IF(AN302=\"\",\"Afectat sau NU?\",IF(AN302=\"DA\",IF(AK302=\"\",\"Neinformat\",NETWORKDAYS(AK302+AL302,AE302+AF302,$BS$2:$BS$14)-2),\"Nu a fost afectat producator/consumator\")),\"\")","v":""},{"$f":"IF(C302=\"X\",IF(AN302=\"DA\",IF(AND(BF302>=5,AK302<>\"\"),LEN(TRIM(V302))-LEN(SUBSTITUTE(V302,CHAR(44),\"\"))+1,0),\"-\"),\"\")","v":""},{"$f":"IF(C302=\"X\",IF(AN302=\"DA\",LEN(TRIM(V302))-LEN(SUBSTITUTE(V302,CHAR(44),\"\"))+1,\"-\"),\"\")","v":""},{"$f":"IF(C302=\"X\",IF(AN302=\"\",\"Afectat sau NU?\",IF(AN302=\"DA\",IF(AI302=\"\",\"Neinformat\",NETWORKDAYS(AI302+AJ302,AE302+AF302,$BS$2:$BS$14)-2),\"Nu a fost afectat producator/consumator\")),\"\")","v":""},{"$f":"IF(C302=\"X\",IF(AN302=\"DA\",IF(AND(BI302>=5,AI302<>\"\"),LEN(TRIM(U302))-LEN(SUBSTITUTE(U302,CHAR(44),\"\"))+1,0),\"-\"),\"\")","v":""},{"$f":"IF(C302=\"X\",IF(AN302=\"DA\",LEN(TRIM(U302))-LEN(SUBSTITUTE(U302,CHAR(44),\"\"))+1,\"-\"),\"\")","v":""},{"$f":"IF(C302=\"X\",IF(AN302=\"\",\"Afectat sau NU?\",IF(AN302=\"DA\",((AG302+AH302)-(Z302+AA302))*24,\"Nu a fost afectat producator/consumator\")),\"\")","v":""},{"$f":"IF(C302=\"X\",IF(AN302<>\"DA\",\"-\",IF(AND(AN302=\"DA\",BL302<=0),LEN(TRIM(V302))-LEN(SUBSTITUTE(V302,CHAR(44),\"\"))+1+LEN(TRIM(U302))-LEN(SUBSTITUTE(U302,CHAR(44),\"\"))+1,0)),\"\")","v":""},{"$f":"IF(C302=\"X\",IF(AN302=\"DA\",LEN(TRIM(V302))-LEN(SUBSTITUTE(V302,CHAR(44),\"\"))+1+LEN(TRIM(U302))-LEN(SUBSTITUTE(U302,CHAR(44),\"\"))+1,\"-\"),\"\")","v":""}]
[287,"x","-","Blocarea pig-ului în urma lucrării de Curățire interioară a conductei DN 600 Tașaul - Isaccea",60516,"Năvodari","Constanța",793523.15,323867.96000000002,793523.15,323867.96000000002,"-","-","-","-","PM0107","Midia Petromar","-","-","PM0107","Petrom","PETROM","-","2021-09-02","10:45:00","2021-09-02","16:30:00","Constanșa","Efectuată",null,"2021-09-02","10:45:00","2021-09-02","16:00:00","2021-09-02","16:15:00","2021-09-02","16:01:00","-","NU",null,null,null,{"$f":"IF(B303=\"X\",IF(AN303=\"\",\"Afectat sau NU?\",IF(AN303=\"DA\",IF(((AK303+AL303)-(AE303+AF303))*24<-720,\"Neinformat\",((AK303+AL303)-(AE303+AF303))*24),\"Nu a fost afectat producator/consumator\")),\"\")","v":"Nu a fost afectat producator/consumator"},{"$f":"IF(B303=\"X\",IF(AN303=\"DA\",IF(AR303<6,LEN(TRIM(V303))-LEN(SUBSTITUTE(V303,CHAR(44),\"\"))+1,0),\"-\"),\"\")","v":"-"},{"$f":"IF(B303=\"X\",IF(AN303=\"DA\",LEN(TRIM(V303))-LEN(SUBSTITUTE(V303,CHAR(44),\"\"))+1,\"-\"),\"\")","v":"-"},{"$f":"IF(B303=\"X\",IF(AN303=\"\",\"Afectat sau NU?\",IF(AN303=\"DA\",IF(((AI303+AJ303)-(AE303+AF303))*24<-720,\"Neinformat\",((AI303+AJ303)-(AE303+AF303))*24),\"Nu a fost afectat producator/consumator\")),\"\")","v":"Nu a fost afectat producator/consumator"},{"$f":"IF(B303=\"X\",IF(AN303=\"DA\",IF(AU303<6,LEN(TRIM(U303))-LEN(SUBSTITUTE(U303,CHAR(44),\"\"))+1,0),\"-\"),\"\")","v":"-"},{"$f":"IF(B303=\"X\",IF(AN303=\"DA\",LEN(TRIM(U303))-LEN(SUBSTITUTE(U303,CHAR(44),\"\"))+1,\"-\"),\"\")","v":"-"},{"$f":"IF(B303=\"X\",IF(AN303=\"\",\"Afectat sau NU?\",IF(AN303=\"DA\",((AG303+AH303)-(AE303+AF303))*24,\"Nu a fost afectat producator/consumator\")),\"\")","v":"Nu a fost afectat producator/consumator"},{"$f":"IF(B303=\"X\",IF(AN303=\"DA\",IF(AX303>24,IF(BA303=\"NU\",0,LEN(TRIM(V303))-LEN(SUBSTITUTE(V303,CHAR(44),\"\"))+1),0),\"-\"),\"\")","v":"-"},{"$f":"IF(B303=\"X\",IF(AN303=\"DA\",IF(AX303>24,LEN(TRIM(V303))-LEN(SUBSTITUTE(V303,CHAR(44),\"\"))+1,0),\"-\"),\"\")","v":"-"},null,null,null,null,null,{"$f":"IF(C303=\"X\",IF(AN303=\"\",\"Afectat sau NU?\",IF(AN303=\"DA\",IF(AK303=\"\",\"Neinformat\",NETWORKDAYS(AK303+AL303,AE303+AF303,$BS$2:$BS$14)-2),\"Nu a fost afectat producator/consumator\")),\"\")","v":""},{"$f":"IF(C303=\"X\",IF(AN303=\"DA\",IF(AND(BF303>=5,AK303<>\"\"),LEN(TRIM(V303))-LEN(SUBSTITUTE(V303,CHAR(44),\"\"))+1,0),\"-\"),\"\")","v":""},{"$f":"IF(C303=\"X\",IF(AN303=\"DA\",LEN(TRIM(V303))-LEN(SUBSTITUTE(V303,CHAR(44),\"\"))+1,\"-\"),\"\")","v":""},{"$f":"IF(C303=\"X\",IF(AN303=\"\",\"Afectat sau NU?\",IF(AN303=\"DA\",IF(AI303=\"\",\"Neinformat\",NETWORKDAYS(AI303+AJ303,AE303+AF303,$BS$2:$BS$14)-2),\"Nu a fost afectat producator/consumator\")),\"\")","v":""},{"$f":"IF(C303=\"X\",IF(AN303=\"DA\",IF(AND(BI303>=5,AI303<>\"\"),LEN(TRIM(U303))-LEN(SUBSTITUTE(U303,CHAR(44),\"\"))+1,0),\"-\"),\"\")","v":""},{"$f":"IF(C303=\"X\",IF(AN303=\"DA\",LEN(TRIM(U303))-LEN(SUBSTITUTE(U303,CHAR(44),\"\"))+1,\"-\"),\"\")","v":""},{"$f":"IF(C303=\"X\",IF(AN303=\"\",\"Afectat sau NU?\",IF(AN303=\"DA\",((AG303+AH303)-(Z303+AA303))*24,\"Nu a fost afectat producator/consumator\")),\"\")","v":""},{"$f":"IF(C303=\"X\",IF(AN303<>\"DA\",\"-\",IF(AND(AN303=\"DA\",BL303<=0),LEN(TRIM(V303))-LEN(SUBSTITUTE(V303,CHAR(44),\"\"))+1+LEN(TRIM(U303))-LEN(SUBSTITUTE(U303,CHAR(44),\"\"))+1,0)),\"\")","v":""},{"$f":"IF(C303=\"X\",IF(AN303=\"DA\",LEN(TRIM(V303))-LEN(SUBSTITUTE(V303,CHAR(44),\"\"))+1+LEN(TRIM(U303))-LEN(SUBSTITUTE(U303,CHAR(44),\"\"))+1,\"-\"),\"\")","v":""}]
[288,"x","-","Eliminare emanații gaze la îmbinarea electroizolantă cu flanșe montată la intrare în SRM Rusu de Sus",32526,"Rusu de Sus","Bistrița-Năsăud",437665.68,624792.5,437665.68,624792.5,"-","-","SM0607D0","Rusu de Sus","-","-","-","-","SM-SD001","Aderro GP, Nova Power, Cez Vânzare, Cis Gaz, Conef Gaz, CPL Concordia, Crest Energy, Energy Trade, Design Proiect, Distrigaz Vest, Engie, E.on Energie, Electrica Furnizare, Electric Planners, Electric&Gas, Energy Distribution, Enel Energie, Enel Muntenia, Gas&Power, Entrex, Premier Energy Trading, Gaz Est, Hargaz, Gazmir, Gaz Vest, Mihoc Oil, Met România, Monsson, Next Energy Distribution, Next Energy Partners, Pado Group, Premier Energy, Petrom, Prisma Serv, Gas Provider, Renovatio, Res Energy Solutions, Restart Energy, RWE Supply, SST Grup, Sun Wave, Tetarom, Tinmar, Veolia, Wiee, Arovi Energy","Delgaz Grid","-","2021-09-03","09:02:00","2021-09-03","12:00:00","Cluj","Efectuată",null,"2021-09-03","09:02:00","2021-09-03","10:21:00","2021-09-03","09:16:00","2021-09-03","09:10:00","65597/01.09.2021","NU",null,null,null,"Nu a fost afectat producator/consumator","-","-","Nu a fost afectat producator/consumator","-","-","Nu a fost afectat producator/consumator","-","-",null,null,null,null,null,"","","","","","","","",""]
[289,"x","-","Eliminare emanații gaze la îmbinarea electroizolantă cu flanșe montată la intrare în SRM Cociu",34958,"Cociu","Bistrița-Năsăud",442459.97,631893.75,442459.97,631893.75,"-","-","SM0027D0","Cociu","-","-","-","-","SM-SD001","Aderro GP, Nova Power, Cez Vânzare, Cis Gaz, Conef Gaz, CPL Concordia, Crest Energy, Energy Trade, Design Proiect, Distrigaz Vest, Engie, E.on Energie, Electrica Furnizare, Electric Planners, Electric&Gas, Energy Distribution, Enel Energie, Enel Muntenia, Gas&Power, Entrex, Premier Energy Trading, Gaz Est, Hargaz, Gazmir, Gaz Vest, Mihoc Oil, Met România, Monsson, Next Energy Distribution, Next Energy Partners, Pado Group, Premier Energy, Petrom, Prisma Serv, Gas Provider, Renovatio, Res Energy Solutions, Restart Energy, RWE Supply, SST Grup, Sun Wave, Tetarom, Tinmar, Veolia, Wiee, Arovi Energy","Delgaz Grid","-","2021-09-03","12:00:00","2021-09-03","15:00:00","Cluj","Efectuată",null,"2021-09-03","12:00:00","2021-09-03","12:40:00","2021-09-03","12:09:00","2021-09-03","12:03:00","65599/01.09.2021","NU",null,null,null,{"$f":"IF(B305=\"X\",IF(AN305=\"\",\"Afectat sau NU?\",IF(AN305=\"DA\",IF(((AK305+AL305)-(AE305+AF305))*24<-720,\"Neinformat\",((AK305+AL305)-(AE305+AF305))*24),\"Nu a fost afectat producator/consumator\")),\"\")","v":"Nu a fost afectat producator/consumator"},{"$f":"IF(B305=\"X\",IF(AN305=\"DA\",IF(AR305<6,LEN(TRIM(V305))-LEN(SUBSTITUTE(V305,CHAR(44),\"\"))+1,0),\"-\"),\"\")","v":"-"},{"$f":"IF(B305=\"X\",IF(AN305=\"DA\",LEN(TRIM(V305))-LEN(SUBSTITUTE(V305,CHAR(44),\"\"))+1,\"-\"),\"\")","v":"-"},{"$f":"IF(B305=\"X\",IF(AN305=\"\",\"Afectat sau NU?\",IF(AN305=\"DA\",IF(((AI305+AJ305)-(AE305+AF305))*24<-720,\"Neinformat\",((AI305+AJ305)-(AE305+AF305))*24),\"Nu a fost afectat producator/consumator\")),\"\")","v":"Nu a fost afectat producator/consumator"},{"$f":"IF(B305=\"X\",IF(AN305=\"DA\",IF(AU305<6,LEN(TRIM(U305))-LEN(SUBSTITUTE(U305,CHAR(44),\"\"))+1,0),\"-\"),\"\")","v":"-"},{"$f":"IF(B305=\"X\",IF(AN305=\"DA\",LEN(TRIM(U305))-LEN(SUBSTITUTE(U305,CHAR(44),\"\"))+1,\"-\"),\"\")","v":"-"},{"$f":"IF(B305=\"X\",IF(AN305=\"\",\"Afectat sau NU?\",IF(AN305=\"DA\",((AG305+AH305)-(AE305+AF305))*24,\"Nu a fost afectat producator/consumator\")),\"\")","v":"Nu a fost afectat producator/consumator"},{"$f":"IF(B305=\"X\",IF(AN305=\"DA\",IF(AX305>24,IF(BA305=\"NU\",0,LEN(TRIM(V305))-LEN(SUBSTITUTE(V305,CHAR(44),\"\"))+1),0),\"-\"),\"\")","v":"-"},{"$f":"IF(B305=\"X\",IF(AN305=\"DA\",IF(AX305>24,LEN(TRIM(V305))-LEN(SUBSTITUTE(V305,CHAR(44),\"\"))+1,0),\"-\"),\"\")","v":"-"},null,null,null,null,null,{"$f":"IF(C305=\"X\",IF(AN305=\"\",\"Afectat sau NU?\",IF(AN305=\"DA\",IF(AK305=\"\",\"Neinformat\",NETWORKDAYS(AK305+AL305,AE305+AF305,$BS$2:$BS$14)-2),\"Nu a fost afectat producator/consumator\")),\"\")","v":""},{"$f":"IF(C305=\"X\",IF(AN305=\"DA\",IF(AND(BF305>=5,AK305<>\"\"),LEN(TRIM(V305))-LEN(SUBSTITUTE(V305,CHAR(44),\"\"))+1,0),\"-\"),\"\")","v":""},{"$f":"IF(C305=\"X\",IF(AN305=\"DA\",LEN(TRIM(V305))-LEN(SUBSTITUTE(V305,CHAR(44),\"\"))+1,\"-\"),\"\")","v":""},{"$f":"IF(C305=\"X\",IF(AN305=\"\",\"Afectat sau NU?\",IF(AN305=\"DA\",IF(AI305=\"\",\"Neinformat\",NETWORKDAYS(AI305+AJ305,AE305+AF305,$BS$2:$BS$14)-2),\"Nu a fost afectat producator/consumator\")),\"\")","v":""},{"$f":"IF(C305=\"X\",IF(AN305=\"DA\",IF(AND(BI305>=5,AI305<>\"\"),LEN(TRIM(U305))-LEN(SUBSTITUTE(U305,CHAR(44),\"\"))+1,0),\"-\"),\"\")","v":""},{"$f":"IF(C305=\"X\",IF(AN305=\"DA\",LEN(TRIM(U305))-LEN(SUBSTITUTE(U305,CHAR(44),\"\"))+1,\"-\"),\"\")","v":""},{"$f":"IF(C305=\"X\",IF(AN305=\"\",\"Afectat sau NU?\",IF(AN305=\"DA\",((AG305+AH305)-(Z305+AA305))*24,\"Nu a fost afectat producator/consumator\")),\"\")","v":""},{"$f":"IF(C305=\"X\",IF(AN305<>\"DA\",\"-\",IF(AND(AN305=\"DA\",BL305<=0),LEN(TRIM(V305))-LEN(SUBSTITUTE(V305,CHAR(44),\"\"))+1+LEN(TRIM(U305))-LEN(SUBSTITUTE(U305,CHAR(44),\"\"))+1,0)),\"\")","v":""},{"$f":"IF(C305=\"X\",IF(AN305=\"DA\",LEN(TRIM(V305))-LEN(SUBSTITUTE(V305,CHAR(44),\"\"))+1+LEN(TRIM(U305))-LEN(SUBSTITUTE(U305,CHAR(44),\"\"))+1,\"-\"),\"\")","v":""}]
[290,"x","-","Alimentare SRM Băbana din conducta DN500 Schitu Golești - Slătioara F1",14094,"Băbana","Argeș",481895.48,373424.47,481895.48,373424.47,"-","-","SM0022D0","UM Băbana","-","-","-","-","SM-SD001","E.on Energie","Unitatea Militară 01714","-","2021-09-01","09:08:00","2021-09-03","20:00:00","Craiova","Efectuată",null,"2021-09-01","09:08:00","2021-09-03","11:20:00","2021-09-01","09:31:00","2021-09-01","09:20:00","65021/30.08.2021","DA",null,null,null,{"$f":"IF(B306=\"X\",IF(AN306=\"\",\"Afectat sau NU?\",IF(AN306=\"DA\",IF(((AK306+AL306)-(AE306+AF306))*24<-720,\"Neinformat\",((AK306+AL306)-(AE306+AF306))*24),\"Nu a fost afectat producator/consumator\")),\"\")","v":0.19999999995343387},{"$f":"IF(B306=\"X\",IF(AN306=\"DA\",IF(AR306<6,LEN(TRIM(V306))-LEN(SUBSTITUTE(V306,CHAR(44),\"\"))+1,0),\"-\"),\"\")","v":1},{"$f":"IF(B306=\"X\",IF(AN306=\"DA\",LEN(TRIM(V306))-LEN(SUBSTITUTE(V306,CHAR(44),\"\"))+1,\"-\"),\"\")","v":1},{"$f":"IF(B306=\"X\",IF(AN306=\"\",\"Afectat sau NU?\",IF(AN306=\"DA\",IF(((AI306+AJ306)-(AE306+AF306))*24<-720,\"Neinformat\",((AI306+AJ306)-(AE306+AF306))*24),\"Nu a fost afectat producator/consumator\")),\"\")","v":0.38333333318587393},{"$f":"IF(B306=\"X\",IF(AN306=\"DA\",IF(AU306<6,LEN(TRIM(U306))-LEN(SUBSTITUTE(U306,CHAR(44),\"\"))+1,0),\"-\"),\"\")","v":1},{"$f":"IF(B306=\"X\",IF(AN306=\"DA\",LEN(TRIM(U306))-LEN(SUBSTITUTE(U306,CHAR(44),\"\"))+1,\"-\"),\"\")","v":1},{"$f":"IF(B306=\"X\",IF(AN306=\"\",\"Afectat sau NU?\",IF(AN306=\"DA\",((AG306+AH306)-(AE306+AF306))*24,\"Nu a fost afectat producator/consumator\")),\"\")","v":50.199999999837019},{"$f":"IF(B306=\"X\",IF(AN306=\"DA\",IF(AX306>24,IF(BA306=\"NU\",0,LEN(TRIM(V306))-LEN(SUBSTITUTE(V306,CHAR(44),\"\"))+1),0),\"-\"),\"\")","v":1},{"$f":"IF(B306=\"X\",IF(AN306=\"DA\",IF(AX306>24,LEN(TRIM(V306))-LEN(SUBSTITUTE(V306,CHAR(44),\"\"))+1,0),\"-\"),\"\")","v":1},"DA",null,null,null,null,{"$f":"IF(C306=\"X\",IF(AN306=\"\",\"Afectat sau NU?\",IF(AN306=\"DA\",IF(AK306=\"\",\"Neinformat\",NETWORKDAYS(AK306+AL306,AE306+AF306,$BS$2:$BS$14)-2),\"Nu a fost afectat producator/consumator\")),\"\")","v":""},{"$f":"IF(C306=\"X\",IF(AN306=\"DA\",IF(AND(BF306>=5,AK306<>\"\"),LEN(TRIM(V306))-LEN(SUBSTITUTE(V306,CHAR(44),\"\"))+1,0),\"-\"),\"\")","v":""},{"$f":"IF(C306=\"X\",IF(AN306=\"DA\",LEN(TRIM(V306))-LEN(SUBSTITUTE(V306,CHAR(44),\"\"))+1,\"-\"),\"\")","v":""},{"$f":"IF(C306=\"X\",IF(AN306=\"\",\"Afectat sau NU?\",IF(AN306=\"DA\",IF(AI306=\"\",\"Neinformat\",NETWORKDAYS(AI306+AJ306,AE306+AF306,$BS$2:$BS$14)-2),\"Nu a fost afectat producator/consumator\")),\"\")","v":""},{"$f":"IF(C306=\"X\",IF(AN306=\"DA\",IF(AND(BI306>=5,AI306<>\"\"),LEN(TRIM(U306))-LEN(SUBSTITUTE(U306,CHAR(44),\"\"))+1,0),\"-\"),\"\")","v":""},{"$f":"IF(C306=\"X\",IF(AN306=\"DA\",LEN(TRIM(U306))-LEN(SUBSTITUTE(U306,CHAR(44),\"\"))+1,\"-\"),\"\")","v":""},{"$f":"IF(C306=\"X\",IF(AN306=\"\",\"Afectat sau NU?\",IF(AN306=\"DA\",((AG306+AH306)-(Z306+AA306))*24,\"Nu a fost afectat producator/consumator\")),\"\")","v":""},{"$f":"IF(C306=\"X\",IF(AN306<>\"DA\",\"-\",IF(AND(AN306=\"DA\",BL306<=0),LEN(TRIM(V306))-LEN(SUBSTITUTE(V306,CHAR(44),\"\"))+1+LEN(TRIM(U306))-LEN(SUBSTITUTE(U306,CHAR(44),\"\"))+1,0)),\"\")","v":""},{"$f":"IF(C306=\"X\",IF(AN306=\"DA\",LEN(TRIM(V306))-LEN(SUBSTITUTE(V306,CHAR(44),\"\"))+1+LEN(TRIM(U306))-LEN(SUBSTITUTE(U306,CHAR(44),\"\"))+1,\"-\"),\"\")","v":""}]
[291,"x","-","Înlocuire regulator în SRM Edilul Câmpulung",13506,"Câmpulung","Argeș",506375.17,420606.43,506375.17,420606.43,"-","-","SM0429D0","SC Edilul Câmpulung","-","-","-","-","SM-CF001","Engie","Edilul C.G.A.","-","2021-09-07","10:22:00","2021-09-07","14:00:00","Craiova","Efectuată",null,"2021-09-07","10:22:00","2021-09-07","13:58:00","2021-09-07","10:51:00","2021-09-07","10:41:00","67163/06.09.2021","DA",null,null,null,{"$f":"IF(B307=\"X\",IF(AN307=\"\",\"Afectat sau NU?\",IF(AN307=\"DA\",IF(((AK307+AL307)-(AE307+AF307))*24<-720,\"Neinformat\",((AK307+AL307)-(AE307+AF307))*24),\"Nu a fost afectat producator/consumator\")),\"\")","v":0.31666666682576761},{"$f":"IF(B307=\"X\",IF(AN307=\"DA\",IF(AR307<6,LEN(TRIM(V307))-LEN(SUBSTITUTE(V307,CHAR(44),\"\"))+1,0),\"-\"),\"\")","v":1},{"$f":"IF(B307=\"X\",IF(AN307=\"DA\",LEN(TRIM(V307))-LEN(SUBSTITUTE(V307,CHAR(44),\"\"))+1,\"-\"),\"\")","v":1},{"$f":"IF(B307=\"X\",IF(AN307=\"\",\"Afectat sau NU?\",IF(AN307=\"DA\",IF(((AI307+AJ307)-(AE307+AF307))*24<-720,\"Neinformat\",((AI307+AJ307)-(AE307+AF307))*24),\"Nu a fost afectat producator/consumator\")),\"\")","v":0.48333333333721384},{"$f":"IF(B307=\"X\",IF(AN307=\"DA\",IF(AU307<6,LEN(TRIM(U307))-LEN(SUBSTITUTE(U307,CHAR(44),\"\"))+1,0),\"-\"),\"\")","v":1},{"$f":"IF(B307=\"X\",IF(AN307=\"DA\",LEN(TRIM(U307))-LEN(SUBSTITUTE(U307,CHAR(44),\"\"))+1,\"-\"),\"\")","v":1},{"$f":"IF(B307=\"X\",IF(AN307=\"\",\"Afectat sau NU?\",IF(AN307=\"DA\",((AG307+AH307)-(AE307+AF307))*24,\"Nu a fost afectat producator/consumator\")),\"\")","v":3.6000000000349246},{"$f":"IF(B307=\"X\",IF(AN307=\"DA\",IF(AX307>24,IF(BA307=\"NU\",0,LEN(TRIM(V307))-LEN(SUBSTITUTE(V307,CHAR(44),\"\"))+1),0),\"-\"),\"\")","v":0},{"$f":"IF(B307=\"X\",IF(AN307=\"DA\",IF(AX307>24,LEN(TRIM(V307))-LEN(SUBSTITUTE(V307,CHAR(44),\"\"))+1,0),\"-\"),\"\")","v":0},null,null,null,null,null,{"$f":"IF(C307=\"X\",IF(AN307=\"\",\"Afectat sau NU?\",IF(AN307=\"DA\",IF(AK307=\"\",\"Neinformat\",NETWORKDAYS(AK307+AL307,AE307+AF307,$BS$2:$BS$14)-2),\"Nu a fost afectat producator/consumator\")),\"\")","v":""},{"$f":"IF(C307=\"X\",IF(AN307=\"DA\",IF(AND(BF307>=5,AK307<>\"\"),LEN(TRIM(V307))-LEN(SUBSTITUTE(V307,CHAR(44),\"\"))+1,0),\"-\"),\"\")","v":""},{"$f":"IF(C307=\"X\",IF(AN307=\"DA\",LEN(TRIM(V307))-LEN(SUBSTITUTE(V307,CHAR(44),\"\"))+1,\"-\"),\"\")","v":""},{"$f":"IF(C307=\"X\",IF(AN307=\"\",\"Afectat sau NU?\",IF(AN307=\"DA\",IF(AI307=\"\",\"Neinformat\",NETWORKDAYS(AI307+AJ307,AE307+AF307,$BS$2:$BS$14)-2),\"Nu a fost afectat producator/consumator\")),\"\")","v":""},{"$f":"IF(C307=\"X\",IF(AN307=\"DA\",IF(AND(BI307>=5,AI307<>\"\"),LEN(TRIM(U307))-LEN(SUBSTITUTE(U307,CHAR(44),\"\"))+1,0),\"-\"),\"\")","v":""},{"$f":"IF(C307=\"X\",IF(AN307=\"DA\",LEN(TRIM(U307))-LEN(SUBSTITUTE(U307,CHAR(44),\"\"))+1,\"-\"),\"\")","v":""},{"$f":"IF(C307=\"X\",IF(AN307=\"\",\"Afectat sau NU?\",IF(AN307=\"DA\",((AG307+AH307)-(Z307+AA307))*24,\"Nu a fost afectat producator/consumator\")),\"\")","v":""},{"$f":"IF(C307=\"X\",IF(AN307<>\"DA\",\"-\",IF(AND(AN307=\"DA\",BL307<=0),LEN(TRIM(V307))-LEN(SUBSTITUTE(V307,CHAR(44),\"\"))+1+LEN(TRIM(U307))-LEN(SUBSTITUTE(U307,CHAR(44),\"\"))+1,0)),\"\")","v":""},{"$f":"IF(C307=\"X\",IF(AN307=\"DA\",LEN(TRIM(V307))-LEN(SUBSTITUTE(V307,CHAR(44),\"\"))+1+LEN(TRIM(U307))-LEN(SUBSTITUTE(U307,CHAR(44),\"\"))+1,\"-\"),\"\")","v":""}]
[292,"x","-","Remediere definitivă a unui defect de coroziune pe conducta 12” Fântânele - Arad II",9299,"Fântânele","Arad",220074.46,520595.21,220074.46,520595.21,"-","-","SM0348D0","Fântânele AR","-","-","-","-","SM-SD001","Aderro GP, Nova Power, Cez Vânzare, Cis Gaz, Conef Gaz, CPL Concordia, Crest Energy, Energy Trade, Design Proiect, Distrigaz Vest, Engie, E.on Energie, Electrica Furnizare, Electric Planners, Electric&Gas, Energy Distribution, Enel Energie, Enel Muntenia, Gas&Power, Entrex, Premier Energy Trading, Gaz Est, Hargaz, Gazmir, Gaz Vest, Mihoc Oil, Met România, Monsson, Next Energy Distribution, Next Energy Partners, Pado Group, Premier Energy, Petrom, Prisma Serv, Gas Provider, Renovatio, Res Energy Solutions, Restart Energy, Romgaz, RWE Supply, SST Grup, Sun Wave, Tetarom, Tinmar, Veolia, Wiee, Arovi Energy","Delgaz Grid","-","2021-09-08","10:00:00","2021-09-08","15:00:00","Arad","Efectuată",null,"2021-09-08","10:00:00","2021-09-08","15:00:00","2021-09-08","10:47:00","2021-09-08","10:36:00","67008/06.09.2021","DA",null,null,null,{"$f":"IF(B308=\"X\",IF(AN308=\"\",\"Afectat sau NU?\",IF(AN308=\"DA\",IF(((AK308+AL308)-(AE308+AF308))*24<-720,\"Neinformat\",((AK308+AL308)-(AE308+AF308))*24),\"Nu a fost afectat producator/consumator\")),\"\")","v":0.6000000000349246},{"$f":"IF(B308=\"X\",IF(AN308=\"DA\",IF(AR308<6,LEN(TRIM(V308))-LEN(SUBSTITUTE(V308,CHAR(44),\"\"))+1,0),\"-\"),\"\")","v":1},{"$f":"IF(B308=\"X\",IF(AN308=\"DA\",LEN(TRIM(V308))-LEN(SUBSTITUTE(V308,CHAR(44),\"\"))+1,\"-\"),\"\")","v":1},{"$f":"IF(B308=\"X\",IF(AN308=\"\",\"Afectat sau NU?\",IF(AN308=\"DA\",IF(((AI308+AJ308)-(AE308+AF308))*24<-720,\"Neinformat\",((AI308+AJ308)-(AE308+AF308))*24),\"Nu a fost afectat producator/consumator\")),\"\")","v":0.78333333344198763},{"$f":"IF(B308=\"X\",IF(AN308=\"DA\",IF(AU308<6,LEN(TRIM(U308))-LEN(SUBSTITUTE(U308,CHAR(44),\"\"))+1,0),\"-\"),\"\")","v":47},{"$f":"IF(B308=\"X\",IF(AN308=\"DA\",LEN(TRIM(U308))-LEN(SUBSTITUTE(U308,CHAR(44),\"\"))+1,\"-\"),\"\")","v":47},{"$f":"IF(B308=\"X\",IF(AN308=\"\",\"Afectat sau NU?\",IF(AN308=\"DA\",((AG308+AH308)-(AE308+AF308))*24,\"Nu a fost afectat producator/consumator\")),\"\")","v":5.0000000000582077},{"$f":"IF(B308=\"X\",IF(AN308=\"DA\",IF(AX308>24,IF(BA308=\"NU\",0,LEN(TRIM(V308))-LEN(SUBSTITUTE(V308,CHAR(44),\"\"))+1),0),\"-\"),\"\")","v":0},{"$f":"IF(B308=\"X\",IF(AN308=\"DA\",IF(AX308>24,LEN(TRIM(V308))-LEN(SUBSTITUTE(V308,CHAR(44),\"\"))+1,0),\"-\"),\"\")","v":0},null,null,null,null,null,{"$f":"IF(C308=\"X\",IF(AN308=\"\",\"Afectat sau NU?\",IF(AN308=\"DA\",IF(AK308=\"\",\"Neinformat\",NETWORKDAYS(AK308+AL308,AE308+AF308,$BS$2:$BS$14)-2),\"Nu a fost afectat producator/consumator\")),\"\")","v":""},{"$f":"IF(C308=\"X\",IF(AN308=\"DA\",IF(AND(BF308>=5,AK308<>\"\"),LEN(TRIM(V308))-LEN(SUBSTITUTE(V308,CHAR(44),\"\"))+1,0),\"-\"),\"\")","v":""},{"$f":"IF(C308=\"X\",IF(AN308=\"DA\",LEN(TRIM(V308))-LEN(SUBSTITUTE(V308,CHAR(44),\"\"))+1,\"-\"),\"\")","v":""},{"$f":"IF(C308=\"X\",IF(AN308=\"\",\"Afectat sau NU?\",IF(AN308=\"DA\",IF(AI308=\"\",\"Neinformat\",NETWORKDAYS(AI308+AJ308,AE308+AF308,$BS$2:$BS$14)-2),\"Nu a fost afectat producator/consumator\")),\"\")","v":""},{"$f":"IF(C308=\"X\",IF(AN308=\"DA\",IF(AND(BI308>=5,AI308<>\"\"),LEN(TRIM(U308))-LEN(SUBSTITUTE(U308,CHAR(44),\"\"))+1,0),\"-\"),\"\")","v":""},{"$f":"IF(C308=\"X\",IF(AN308=\"DA\",LEN(TRIM(U308))-LEN(SUBSTITUTE(U308,CHAR(44),\"\"))+1,\"-\"),\"\")","v":""},{"$f":"IF(C308=\"X\",IF(AN308=\"\",\"Afectat sau NU?\",IF(AN308=\"DA\",((AG308+AH308)-(Z308+AA308))*24,\"Nu a fost afectat producator/consumator\")),\"\")","v":""},{"$f":"IF(C308=\"X\",IF(AN308<>\"DA\",\"-\",IF(AND(AN308=\"DA\",BL308<=0),LEN(TRIM(V308))-LEN(SUBSTITUTE(V308,CHAR(44),\"\"))+1+LEN(TRIM(U308))-LEN(SUBSTITUTE(U308,CHAR(44),\"\"))+1,0)),\"\")","v":""},{"$f":"IF(C308=\"X\",IF(AN308=\"DA\",LEN(TRIM(V308))-LEN(SUBSTITUTE(V308,CHAR(44),\"\"))+1+LEN(TRIM(U308))-LEN(SUBSTITUTE(U308,CHAR(44),\"\"))+1,\"-\"),\"\")","v":""}]
[293,"x","-","Înlocuire R435 pe racord Bascov și înlocuire 2 robineți în SRM Bascov",13196,"Bascov","Argeș",485881.22,377873.31,485881.22,377873.31,"-","-","SM0417D0","Bascov","-","-","-","-","SM-SD001","Aderro GP, Alpha Metal, Nova Power, Cez Vânzare, Cis Gaz, Conef Gaz, Crest Energy, MVM Energy Trade, Distrigaz Vest, Engie, E.on Energie, Electrocentrale București, Electrocentrale Constanța, Electrica Furnizare, Electric Planners, Electric&Gas, Energy Distribution, Enel Energie, Enel Muntenia, Gas&Power, Entrex, Euro Seven, Premier Energy Trading, Gaz Est, Hargaz, Gaz&Energy Distributie, Gaz Vest, Gecabuild, Getica 95, Macin Gaz, Megaconstruct, Met România, Monsson, Next Energy Distribution, Next Energy Partners, Nord Gaz, Oligopol, Premier Energy, Petrom, Progaz, Gas Provider, Renovatio, Res Energy, Restart Energy, Romgaz, RWE Supply, Tinmar, Transenergo, Veolia, Wiee, With Us","Distrigaz Sud Rețele","-","2021-09-13","11:00:00","2021-09-16","13:00:00","Craiova","Efectuată",null,"2021-09-13","11:00:00","2021-09-16","11:00:00","2021-09-13","11:16:00","2021-09-13","11:09:00","68364/09.09.2021","NU",null,null,null,{"$f":"IF(B309=\"X\",IF(AN309=\"\",\"Afectat sau NU?\",IF(AN309=\"DA\",IF(((AK309+AL309)-(AE309+AF309))*24<-720,\"Neinformat\",((AK309+AL309)-(AE309+AF309))*24),\"Nu a fost afectat producator/consumator\")),\"\")","v":"Nu a fost afectat producator/consumator"},{"$f":"IF(B309=\"X\",IF(AN309=\"DA\",IF(AR309<6,LEN(TRIM(V309))-LEN(SUBSTITUTE(V309,CHAR(44),\"\"))+1,0),\"-\"),\"\")","v":"-"},{"$f":"IF(B309=\"X\",IF(AN309=\"DA\",LEN(TRIM(V309))-LEN(SUBSTITUTE(V309,CHAR(44),\"\"))+1,\"-\"),\"\")","v":"-"},{"$f":"IF(B309=\"X\",IF(AN309=\"\",\"Afectat sau NU?\",IF(AN309=\"DA\",IF(((AI309+AJ309)-(AE309+AF309))*24<-720,\"Neinformat\",((AI309+AJ309)-(AE309+AF309))*24),\"Nu a fost afectat producator/consumator\")),\"\")","v":"Nu a fost afectat producator/consumator"},{"$f":"IF(B309=\"X\",IF(AN309=\"DA\",IF(AU309<6,LEN(TRIM(U309))-LEN(SUBSTITUTE(U309,CHAR(44),\"\"))+1,0),\"-\"),\"\")","v":"-"},{"$f":"IF(B309=\"X\",IF(AN309=\"DA\",LEN(TRIM(U309))-LEN(SUBSTITUTE(U309,CHAR(44),\"\"))+1,\"-\"),\"\")","v":"-"},{"$f":"IF(B309=\"X\",IF(AN309=\"\",\"Afectat sau NU?\",IF(AN309=\"DA\",((AG309+AH309)-(AE309+AF309))*24,\"Nu a fost afectat producator/consumator\")),\"\")","v":"Nu a fost afectat producator/consumator"},{"$f":"IF(B309=\"X\",IF(AN309=\"DA\",IF(AX309>24,IF(BA309=\"NU\",0,LEN(TRIM(V309))-LEN(SUBSTITUTE(V309,CHAR(44),\"\"))+1),0),\"-\"),\"\")","v":"-"},{"$f":"IF(B309=\"X\",IF(AN309=\"DA\",IF(AX309>24,LEN(TRIM(V309))-LEN(SUBSTITUTE(V309,CHAR(44),\"\"))+1,0),\"-\"),\"\")","v":"-"},null,null,null,null,null,{"$f":"IF(C309=\"X\",IF(AN309=\"\",\"Afectat sau NU?\",IF(AN309=\"DA\",IF(AK309=\"\",\"Neinformat\",NETWORKDAYS(AK309+AL309,AE309+AF309,$BS$2:$BS$14)-2),\"Nu a fost afectat producator/consumator\")),\"\")","v":""},{"$f":"IF(C309=\"X\",IF(AN309=\"DA\",IF(AND(BF309>=5,AK309<>\"\"),LEN(TRIM(V309))-LEN(SUBSTITUTE(V309,CHAR(44),\"\"))+1,0),\"-\"),\"\")","v":""},{"$f":"IF(C309=\"X\",IF(AN309=\"DA\",LEN(TRIM(V309))-LEN(SUBSTITUTE(V309,CHAR(44),\"\"))+1,\"-\"),\"\")","v":""},{"$f":"IF(C309=\"X\",IF(AN309=\"\",\"Afectat sau NU?\",IF(AN309=\"DA\",IF(AI309=\"\",\"Neinformat\",NETWORKDAYS(AI309+AJ309,AE309+AF309,$BS$2:$BS$14)-2),\"Nu a fost afectat producator/consumator\")),\"\")","v":""},{"$f":"IF(C309=\"X\",IF(AN309=\"DA\",IF(AND(BI309>=5,AI309<>\"\"),LEN(TRIM(U309))-LEN(SUBSTITUTE(U309,CHAR(44),\"\"))+1,0),\"-\"),\"\")","v":""},{"$f":"IF(C309=\"X\",IF(AN309=\"DA\",LEN(TRIM(U309))-LEN(SUBSTITUTE(U309,CHAR(44),\"\"))+1,\"-\"),\"\")","v":""},{"$f":"IF(C309=\"X\",IF(AN309=\"\",\"Afectat sau NU?\",IF(AN309=\"DA\",((AG309+AH309)-(Z309+AA309))*24,\"Nu a fost afectat producator/consumator\")),\"\")","v":""},{"$f":"IF(C309=\"X\",IF(AN309<>\"DA\",\"-\",IF(AND(AN309=\"DA\",BL309<=0),LEN(TRIM(V309))-LEN(SUBSTITUTE(V309,CHAR(44),\"\"))+1+LEN(TRIM(U309))-LEN(SUBSTITUTE(U309,CHAR(44),\"\"))+1,0)),\"\")","v":""},{"$f":"IF(C309=\"X\",IF(AN309=\"DA\",LEN(TRIM(V309))-LEN(SUBSTITUTE(V309,CHAR(44),\"\"))+1+LEN(TRIM(U309))-LEN(SUBSTITUTE(U309,CHAR(44),\"\"))+1,\"-\"),\"\")","v":""}]
[294,"x","-","Montare îmbinare electroizolantă la intrare în SRM Arpașu de Sus",143977,"Arpașu de Sus","Sibiu",471285.19,470926.03,471285.19,470926.03,"-","-","SM0816D0","Arpașu de Sus","-","-","-","-","SM-SD001","Aderro GP, Nova Power, Cez Vânzare, Cis Gaz, Conef Gaz, CPL Concordia, Crest Energy, Energy Trade, Design Proiect, Distrigaz Vest, Engie, E.on Energie, Electrica Furnizare, Electric Planners, Electric&Gas, Energy Distribution, Enel Energie, Enel Muntenia, Gas&Power, Entrex, Premier Energy Trading, Gaz Est, Hargaz, Gazmir, Gaz Vest, Mihoc Oil, Met România, Monsson, Next Energy Distribution, Next Energy Partners, Pado Group, Premier Energy, Petrom, Prisma Serv, Gas Provider, Renovatio, Res Energy Solutions, Restart Energy, Romgaz, RWE Supply, SST Grup, Sun Wave, Tetarom, Tinmar, Veolia, Wiee, Arovi Energy","Delgaz Grid","-","2021-09-16","10:00:00","2021-09-16","14:00:00","Craiova","Efectuată",null,"2021-09-16","10:00:00","2021-09-16","14:00:00","2021-09-16","11:24:00","2021-09-16","11:07:00","2801/14.09.2021","DA",null,null,null,{"$f":"IF(B310=\"X\",IF(AN310=\"\",\"Afectat sau NU?\",IF(AN310=\"DA\",IF(((AK310+AL310)-(AE310+AF310))*24<-720,\"Neinformat\",((AK310+AL310)-(AE310+AF310))*24),\"Nu a fost afectat producator/consumator\")),\"\")","v":1.1166666666395031},{"$f":"IF(B310=\"X\",IF(AN310=\"DA\",IF(AR310<6,LEN(TRIM(V310))-LEN(SUBSTITUTE(V310,CHAR(44),\"\"))+1,0),\"-\"),\"\")","v":1},{"$f":"IF(B310=\"X\",IF(AN310=\"DA\",LEN(TRIM(V310))-LEN(SUBSTITUTE(V310,CHAR(44),\"\"))+1,\"-\"),\"\")","v":1},{"$f":"IF(B310=\"X\",IF(AN310=\"\",\"Afectat sau NU?\",IF(AN310=\"DA\",IF(((AI310+AJ310)-(AE310+AF310))*24<-720,\"Neinformat\",((AI310+AJ310)-(AE310+AF310))*24),\"Nu a fost afectat producator/consumator\")),\"\")","v":1.4000000000232831},{"$f":"IF(B310=\"X\",IF(AN310=\"DA\",IF(AU310<6,LEN(TRIM(U310))-LEN(SUBSTITUTE(U310,CHAR(44),\"\"))+1,0),\"-\"),\"\")","v":47},{"$f":"IF(B310=\"X\",IF(AN310=\"DA\",LEN(TRIM(U310))-LEN(SUBSTITUTE(U310,CHAR(44),\"\"))+1,\"-\"),\"\")","v":47},{"$f":"IF(B310=\"X\",IF(AN310=\"\",\"Afectat sau NU?\",IF(AN310=\"DA\",((AG310+AH310)-(AE310+AF310))*24,\"Nu a fost afectat producator/consumator\")),\"\")","v":4.0000000001164153},{"$f":"IF(B310=\"X\",IF(AN310=\"DA\",IF(AX310>24,IF(BA310=\"NU\",0,LEN(TRIM(V310))-LEN(SUBSTITUTE(V310,CHAR(44),\"\"))+1),0),\"-\"),\"\")","v":0},{"$f":"IF(B310=\"X\",IF(AN310=\"DA\",IF(AX310>24,LEN(TRIM(V310))-LEN(SUBSTITUTE(V310,CHAR(44),\"\"))+1,0),\"-\"),\"\")","v":0},null,null,null,null,null,{"$f":"IF(C310=\"X\",IF(AN310=\"\",\"Afectat sau NU?\",IF(AN310=\"DA\",IF(AK310=\"\",\"Neinformat\",NETWORKDAYS(AK310+AL310,AE310+AF310,$BS$2:$BS$14)-2),\"Nu a fost afectat producator/consumator\")),\"\")","v":""},{"$f":"IF(C310=\"X\",IF(AN310=\"DA\",IF(AND(BF310>=5,AK310<>\"\"),LEN(TRIM(V310))-LEN(SUBSTITUTE(V310,CHAR(44),\"\"))+1,0),\"-\"),\"\")","v":""},{"$f":"IF(C310=\"X\",IF(AN310=\"DA\",LEN(TRIM(V310))-LEN(SUBSTITUTE(V310,CHAR(44),\"\"))+1,\"-\"),\"\")","v":""},{"$f":"IF(C310=\"X\",IF(AN310=\"\",\"Afectat sau NU?\",IF(AN310=\"DA\",IF(AI310=\"\",\"Neinformat\",NETWORKDAYS(AI310+AJ310,AE310+AF310,$BS$2:$BS$14)-2),\"Nu a fost afectat producator/consumator\")),\"\")","v":""},{"$f":"IF(C310=\"X\",IF(AN310=\"DA\",IF(AND(BI310>=5,AI310<>\"\"),LEN(TRIM(U310))-LEN(SUBSTITUTE(U310,CHAR(44),\"\"))+1,0),\"-\"),\"\")","v":""},{"$f":"IF(C310=\"X\",IF(AN310=\"DA\",LEN(TRIM(U310))-LEN(SUBSTITUTE(U310,CHAR(44),\"\"))+1,\"-\"),\"\")","v":""},{"$f":"IF(C310=\"X\",IF(AN310=\"\",\"Afectat sau NU?\",IF(AN310=\"DA\",((AG310+AH310)-(Z310+AA310))*24,\"Nu a fost afectat producator/consumator\")),\"\")","v":""},{"$f":"IF(C310=\"X\",IF(AN310<>\"DA\",\"-\",IF(AND(AN310=\"DA\",BL310<=0),LEN(TRIM(V310))-LEN(SUBSTITUTE(V310,CHAR(44),\"\"))+1+LEN(TRIM(U310))-LEN(SUBSTITUTE(U310,CHAR(44),\"\"))+1,0)),\"\")","v":""},{"$f":"IF(C310=\"X\",IF(AN310=\"DA\",LEN(TRIM(V310))-LEN(SUBSTITUTE(V310,CHAR(44),\"\"))+1+LEN(TRIM(U310))-LEN(SUBSTITUTE(U310,CHAR(44),\"\"))+1,\"-\"),\"\")","v":""}]
[295,"x","-","Refacere ocolitor exterior și înlocuire regulator în SRM Păuleni",84898,"Păuleni","Harghita",563853.18999999994,547405.9,563853.18999999994,547405.9,"-","-","SM0418D0","Păuleni","-","-","-","-","SM-SD001","Nova Power, CIS Gaz, MVM Energy, Engie, E.On Energie, Electrica Furnizare, Electric&Gas, Enel Energie, Enel Muntenia, Premier Energy Trading, Gaz Est, Hargaz, Petrom, Renovatio, Restart Energy, Tinmar","Hargaz","-","2021-09-21","10:08:00","2021-09-21","17:00:00","Brașov","Efectuată",null,"2021-09-21","10:08:00","2021-09-21","16:03:00","2021-09-21","10:26:00","2021-09-21","10:17:00","1877/20.09.2021","DA",null,null,null,{"$f":"IF(B311=\"X\",IF(AN311=\"\",\"Afectat sau NU?\",IF(AN311=\"DA\",IF(((AK311+AL311)-(AE311+AF311))*24<-720,\"Neinformat\",((AK311+AL311)-(AE311+AF311))*24),\"Nu a fost afectat producator/consumator\")),\"\")","v":0.1499999999650754},{"$f":"IF(B311=\"X\",IF(AN311=\"DA\",IF(AR311<6,LEN(TRIM(V311))-LEN(SUBSTITUTE(V311,CHAR(44),\"\"))+1,0),\"-\"),\"\")","v":1},{"$f":"IF(B311=\"X\",IF(AN311=\"DA\",LEN(TRIM(V311))-LEN(SUBSTITUTE(V311,CHAR(44),\"\"))+1,\"-\"),\"\")","v":1},{"$f":"IF(B311=\"X\",IF(AN311=\"\",\"Afectat sau NU?\",IF(AN311=\"DA\",IF(((AI311+AJ311)-(AE311+AF311))*24<-720,\"Neinformat\",((AI311+AJ311)-(AE311+AF311))*24),\"Nu a fost afectat producator/consumator\")),\"\")","v":0.29999999993015081},{"$f":"IF(B311=\"X\",IF(AN311=\"DA\",IF(AU311<6,LEN(TRIM(U311))-LEN(SUBSTITUTE(U311,CHAR(44),\"\"))+1,0),\"-\"),\"\")","v":16},{"$f":"IF(B311=\"X\",IF(AN311=\"DA\",LEN(TRIM(U311))-LEN(SUBSTITUTE(U311,CHAR(44),\"\"))+1,\"-\"),\"\")","v":16},{"$f":"IF(B311=\"X\",IF(AN311=\"\",\"Afectat sau NU?\",IF(AN311=\"DA\",((AG311+AH311)-(AE311+AF311))*24,\"Nu a fost afectat producator/consumator\")),\"\")","v":5.9166666665696539},{"$f":"IF(B311=\"X\",IF(AN311=\"DA\",IF(AX311>24,IF(BA311=\"NU\",0,LEN(TRIM(V311))-LEN(SUBSTITUTE(V311,CHAR(44),\"\"))+1),0),\"-\"),\"\")","v":0},{"$f":"IF(B311=\"X\",IF(AN311=\"DA\",IF(AX311>24,LEN(TRIM(V311))-LEN(SUBSTITUTE(V311,CHAR(44),\"\"))+1,0),\"-\"),\"\")","v":0},null,null,null,null,null,{"$f":"IF(C311=\"X\",IF(AN311=\"\",\"Afectat sau NU?\",IF(AN311=\"DA\",IF(AK311=\"\",\"Neinformat\",NETWORKDAYS(AK311+AL311,AE311+AF311,$BS$2:$BS$14)-2),\"Nu a fost afectat producator/consumator\")),\"\")","v":""},{"$f":"IF(C311=\"X\",IF(AN311=\"DA\",IF(AND(BF311>=5,AK311<>\"\"),LEN(TRIM(V311))-LEN(SUBSTITUTE(V311,CHAR(44),\"\"))+1,0),\"-\"),\"\")","v":""},{"$f":"IF(C311=\"X\",IF(AN311=\"DA\",LEN(TRIM(V311))-LEN(SUBSTITUTE(V311,CHAR(44),\"\"))+1,\"-\"),\"\")","v":""},{"$f":"IF(C311=\"X\",IF(AN311=\"\",\"Afectat sau NU?\",IF(AN311=\"DA\",IF(AI311=\"\",\"Neinformat\",NETWORKDAYS(AI311+AJ311,AE311+AF311,$BS$2:$BS$14)-2),\"Nu a fost afectat producator/consumator\")),\"\")","v":""},{"$f":"IF(C311=\"X\",IF(AN311=\"DA\",IF(AND(BI311>=5,AI311<>\"\"),LEN(TRIM(U311))-LEN(SUBSTITUTE(U311,CHAR(44),\"\"))+1,0),\"-\"),\"\")","v":""},{"$f":"IF(C311=\"X\",IF(AN311=\"DA\",LEN(TRIM(U311))-LEN(SUBSTITUTE(U311,CHAR(44),\"\"))+1,\"-\"),\"\")","v":""},{"$f":"IF(C311=\"X\",IF(AN311=\"\",\"Afectat sau NU?\",IF(AN311=\"DA\",((AG311+AH311)-(Z311+AA311))*24,\"Nu a fost afectat producator/consumator\")),\"\")","v":""},{"$f":"IF(C311=\"X\",IF(AN311<>\"DA\",\"-\",IF(AND(AN311=\"DA\",BL311<=0),LEN(TRIM(V311))-LEN(SUBSTITUTE(V311,CHAR(44),\"\"))+1+LEN(TRIM(U311))-LEN(SUBSTITUTE(U311,CHAR(44),\"\"))+1,0)),\"\")","v":""},{"$f":"IF(C311=\"X\",IF(AN311=\"DA\",LEN(TRIM(V311))-LEN(SUBSTITUTE(V311,CHAR(44),\"\"))+1+LEN(TRIM(U311))-LEN(SUBSTITUTE(U311,CHAR(44),\"\"))+1,\"-\"),\"\")","v":""}]